Workbook

Sheet SourceTypeAgeDistribution
A1: sourceTypeID | B1: yearID | C1: ageID | D1: ageFraction

Sheet Inputs
A1: MOVES5 Age Distribution Projection Tool (April 2024)
A2: This macro-based Excel tool projects a base year age distribution by source type to a future year using an algorithm similar to what was used to generate the national projected age distributions in MOVES5. It also produces charts allowing you to visually inspect the tool output. You must enable macros for this tool to work. Instructions: Step 1: Enter the future analysis year. Step 2: Specify if you want to use default age distributions for long-haul vehicles (sourceTypeIDs 53 and 62) instead of projecting them. The recommended option is Yes. Step 3: Enter the base year age distribution by source type in the space provided. It is important to note that MOVES5 requires age distributions to contain data for ages 0 through 40. Vehicles older than 40 years old should be counted as 40-year-old vehicles for modeling purposes. The base year age distributions should be formatted as they are accepted into MOVES, using the base year as the yearID value. Step 4: After inputting the base year age distribution, click the green button labeled "Start" to run the tool. Step 5: Review the results and save this file as a .xlsx file to import into MOVES (see notes below). If your analysis requires multiple analysis years, you may click the red button labeled "Reset" to clear the previous results and generated graphs and start again. NOTE: This calculator will only work with base year age distributions from 2011 or later. The output page "SourceTypeAgeDistribution" contains the future year age distribution formatted for use in MOVES. This tool is a macro-enabled Excel template (.xltm). Therefore, MOVES cannot import it directly into an input database. To import the projected age distribution, you can either 1) copy the calculated SourceTypeAgeDistribution into a blank spreadsheet and import from there; or 2) save this file by selecting File > Save As, choosing either an .xls or .xlsx file, and then selecting "Yes" when prompted to confirm saving a macro-free version of this workbook.
A4: Follow the numbered steps below to make your selections and input data into the black outlined boxes.
A5: 1) Please specify your future analysis year: | E5: 3) Enter a base year age distribution by source type below (max 533 rows):
A6: 2) Include default distributions for long-haul vehicles? | C6: Yes | E6: sourceTypeID | F6: yearID | G6: ageID | H6: ageFraction
A7: 4) Once you have completed step 3, click "Start"

Sheet 11 (hidden)
D1: 2011 | E1: 2012 | F1: 2013 | G1: 2014 | H1: 2015 | I1: 2016 | J1: 2017 | K1: 2018 | L1: 2019 | M1: 2020 | N1: 2021 | O1: 2022 | P1: 2023 | Q1: 2024 | R1: 2025 | S1: 2026 | T1: 2027 | U1: 2028 | V1: 2029 | W1: 2030 | X1: 2031 | Y1: 2032 | Z1: 2033 | AA1: 2034 | AB1: 2035 | AC1: 2036 | AD1: 2037 | AE1: 2038 | AF1: 2039 | AG1: 2040 | AH1: 2041 | AI1: 2042 | AJ1: 2043 | AK1: 2044 | AL1: 2045 | AM1: 2046 | AN1: 2047 | AO1: 2048 | AP1: 2049 | AQ1: 2050 | AR1: 2051 | AS1: 2052 | AT1: 2053 | AU1: 2054 | AV1: 2055 | AW1: 2056 | AX1: 2057 | AY1: 2058 | AZ1: 2059 | BA1: 2060
C2: sales (age 0 pop) | D2: 0.03493404364 | E2: 0.04663965948 | F2: 0.04835919335 | G2: 0.0513014684 | H2: 0.05001775335 | I2: 0.04965305883 | J2: 0.04605307173 | K2: 0.04431983855 | L2: 0.04533871805 | M2: 0.04719427337 | N2: 0.05935344266 | O2: 0.05297599849 | P2: 0.05555129715 | Q2: 0.05707977312 | R2: 0.05758228868 | S2: 0.05770425948 | T2: 0.05717675459 | U2: 0.05640990964 | V2: 0.05639729743 | W2: 0.05590035864 | X2: 0.05550029013 | Y2: 0.05518634577 | Z2: 0.05485369703 | AA2: 0.05486893328 | AB2: 0.05513648588 | AC2: 0.05549112608 | AD2: 0.05572224697 | AE2: 0.05599814328 | AF2: 0.05616817303 | AG2: 0.05638640429 | AH2: 0.05627240101 | AI2: 0.05616732862 | AJ2: 0.05598925455 | AK2: 0.05584849716 | AL2: 0.0559869288 | AM2: 0.0561074238 | AN2: 0.05600245044 | AO2: 0.05582662803 | AP2: 0.05581967482 | AQ2: 0.05598729911 | AR2: 0.05598729911 | AS2: 0.05598729911 | AT2: 0.05598729911 | AU2: 0.05598729911 | AV2: 0.05598729911 | AW2: 0.05598729911 | AX2: 0.05598729911 | AY2: 0.05598729911 | AZ2: 0.05598729911 | BA2: 0.05598729911
C3: scrappage k factor | D3: 0 | E3: 0.8094470247 | F3: 0.9642992564 | G3: 0.8610856307 | H3: 0.515355793 | I3: 0.7338406161 | J3: 0.8194151982 | K3: 0.9839514174 | L3: 1.021740824 | M3: 1.379390471 | N3: 0 | O3: 1.301167541 | P3: 0.9751438363 | Q3: 0.9769836802 | R3: 0.978224879 | S3: 0.9771152111 | T3: 0.9754409866 | U3: 0.9741403129 | V3: 0.9739645479 | W3: 0.9751580273 | X3: 0.9750887372 | Y3: 0.9742331006 | Z3: 0.9780093719 | AA3: 0.9768942994 | AB3: 0.973355375 | AC3: 0.9683429004 | AD3: 0.9616339289 | AE3: 0.9546956258 | AF3: 0.9468723971 | AG3: 0.9410663981 | AH3: 0.9352190732 | AI3: 0.9307314865 | AJ3: 0.926545229 | AK3: 0.926343516 | AL3: 0.9272282557 | AM3: 0.9264603117 | AN3: 0.9249969705 | AO3: 0.9228334471 | AP3: 0.9205742525 | AQ3: 0.9205725176 | AR3: 0.920702409 | AS3: 0.9207523257 | AT3: 0.9207550792 | AU3: 0.9207627335 | AV3: 0.9207608719 | AW3: 0.9207597306 | AX3: 0.9207451687 | AY3: 0.9207387154 | AZ3: 0.9207338528
A5: default
A6: scrappage | C6: age | D6: 2011 | E6: 2012 | F6: 2013 | G6: 2014 | H6: 2015 | I6: 2016 | J6: 2017 | K6: 2018 | L6: 2019 | M6: 2020 | N6: 2021 | O6: 2022 | P6: 2023 | Q6: 2024 | R6: 2025 | S6: 2026 | T6: 2027 | U6: 2028 | V6: 2029 | W6: 2030 | X6: 2031 | Y6: 2032 | Z6: 2033 | AA6: 2034 | AB6: 2035 | AC6: 2036 | AD6: 2037 | AE6: 2038 | AF6: 2039 | AG6: 2040 | AH6: 2041 | AI6: 2042 | AJ6: 2043 | AK6: 2044 | AL6: 2045 | AM6: 2046 | AN6: 2047 | AO6: 2048 | AP6: 2049 | AQ6: 2050 | AR6: 2051 | AS6: 2052 | AT6: 2053 | AU6: 2054 | AV6: 2055 | AW6: 2056 | AX6: 2057 | AY6: 2058 | AZ6: 2059 | BA6: 2060
A7: 0 | C7: 0 | D7: 0.03493404364 | E7: =E51 -> 0.04663965948 | F7: =F51 -> 0.04835919335 | G7: 0.0513014684 | H7: 0.05001775335 | I7: 0.04965305883 | J7: 0.04605307173 | K7: 0.04431983855 | L7: 0.04533871805 | M7: 0.04719427337 | N7: 0.05935344266 | O7: 0.05297599849 | P7: 0.05555129715 | Q7: 0.05707977312 | R7: 0.05758228868 | S7: 0.05770425948 | T7: 0.05717675459 | U7: 0.05640990964 | V7: 0.05639729743 | W7: 0.05590035864 | X7: 0.05550029013 | Y7: 0.05518634577 | Z7: 0.05485369703 | AA7: 0.05486893328 | AB7: 0.05513648588 | AC7: 0.05549112608 | AD7: 0.05572224697 | AE7: 0.05599814328 | AF7: 0.05616817303 | AG7: 0.05638640429 | AH7: 0.05627240101 | AI7: 0.05616732862 | AJ7: 0.05598925455 | AK7: 0.05584849716 | AL7: 0.0559869288 | AM7: 0.0561074238 | AN7: 0.05600245044 | AO7: 0.05582662803 | AP7: 0.05581967482 | AQ7: 0.05598729911 | AR7: =AR51 -> 0.05598729911 | AS7: 0.05598729911 | AT7: 0.05598729911 | AU7: 0.05598729911 | AV7: 0.05598729911 | AW7: 0.05598729911 | AX7: 0.05598729911 | AY7: 0.05598729911 | AZ7: 0.05598729911 | BA7: 0.05598729911
A8: 0.021000028 | C8: 1 | D8: 0.02967541448 | E8: =E52*(1-E$51-E$91)/SUM(E$52:E$90) -> 0.03336783998 | F8: 0.04656709645 | G8: 0.04853677466 | H8: 0.05124190255 | I8: 0.04900327023 | J8: 0.04945073589 | K8: 0.04618614775 | L8: 0.04483599839 | M8: 0.0458755125 | N8: 0.04812087748 | O8: 0.05630183897 | P8: 0.05393103693 | Q8: 0.05539601735 | R8: 0.05693036291 | S8: 0.05743792224 | T8: 0.05751179618 | U8: =U52*(1-U$51-U$91)/SUM(U$52:U$90) -> 0.05698444977 | V8: 0.05621426593 | W8: 0.05621409615 | X8: 0.05573587939 | Y8: 0.05537256812 | Z8: 0.05510917684 | AA8: 0.05479741835 | AB8: 0.0548153437 | AC8: 0.0550712485 | AD8: 0.05540132305 | AE8: 0.05562590753 | AF8: 0.05593142658 | AG8: 0.05613821562 | AH8: 0.05640922767 | AI8: 0.05636188671 | AJ8: 0.05638191971 | AK8: 0.05614223411 | AL8: 0.05611955334 | AM8: 0.05629719854 | AN8: 0.05640001833 | AO8: 0.05611518352 | AP8: 0.05581478627 | AQ8: 0.055544019 | AR8: 0.05573830769 | AS8: 0.05582405732 | AT8: 0.05583437245 | AU8: 0.05584549387 | AV8: 0.05583166511 | AW8: 0.05583236305 | AX8: 0.05581012142 | AY8: 0.05579902928 | AZ8: 0.05580746951 | BA8: 0.05580676886
A9: 0.060000002 | C9: 2 | D9: 0.06413786476 | E9: 0.02834497179 | F9: 0.03274960778 | G9: 0.04579163593 | H9: 0.04760375608 | I9: 0.04965927385 | J9: 0.04805149875 | K9: 0.04874023549 | L9: 0.04575858385 | M9: 0.04439342329 | N9: 0.04542124624 | O9: 0.04564678599 | P9: 0.05575067785 | Q9: 0.05267897089 | R9: 0.05411744685 | S9: 0.05562105684 | T9: 0.05607168389 | U9: 0.05614423861 | V9: 0.05562512706 | W9: 0.05488562784 | X9: 0.05490090923 | Y9: 0.05446894416 | Z9: 0.05416385983 | AA9: 0.05392195267 | AB9: 0.05362083807 | AC9: 0.05363135952 | AD9: 0.05386405091 | AE9: 0.05418867964 | AF9: 0.05444573949 | AG9: 0.05479002873 | AH9: 0.05505106245 | AI9: 0.05538931305 | AJ9: 0.05547139742 | AK9: 0.05543592484 | AL9: 0.05531726692 | AM9: 0.05533175243 | AN9: 0.05548976986 | AO9: 0.0554157781 | AP9: 0.05501602544 | AQ9: 0.05446546693 | AR9: 0.05422799471 | AS9: 0.05450124638 | AT9: 0.05459512071 | AU9: 0.05461608212 | AV9: 0.0546134249 | AW9: 0.05460058596 | AX9: 0.05457951864 | AY9: 0.05454694986 | AZ9: 0.05454436551 | BA9: 0.05455193674
A10: 0.060000002 | C10: 3 | D10: 0.07704512096 | E10: 0.06126236143 | F10: 0.02692638861 | G10: 0.03096808518 | H10: 0.04337538321 | I10: 0.04519611766 | J10: 0.04727931547 | K10: 0.0458210751 | L10: 0.04639688298 | M10: 0.04346193184 | N10: 0.04151874632 | O10: 0.04308595385 | P10: 0.04284180351 | Q10: 0.05234206265 | R10: 0.04946117331 | S10: 0.05081338866 | T10: 0.05218552696 | U10: 0.05261245596 | V10: 0.05267935545 | W10: 0.05220437919 | X10: 0.05152225346 | Y10: 0.05156996268 | Z10: 0.05121330358 | AA10: 0.05093318399 | AB10: 0.05071181186 | AC10: 0.05042957126 | AD10: 0.05043359607 | AE10: 0.05066844734 | AF10: 0.05102379508 | AG10: 0.05132516033 | AH10: 0.05171729033 | AI10: 0.05204460529 | AJ10: 0.0524959593 | AK10: 0.05253073053 | AL10: 0.05260886178 | AM10: 0.05252926645 | AN10: 0.05252850168 | AO10: 0.05251559928 | AP10: 0.05233630222 | AQ10: 0.05172056451 | AR10: 0.05122825777 | AS10: 0.05108294615 | AT10: 0.05134967395 | AU10: 0.05144835668 | AV10: 0.0514553401 | AW10: 0.05145348594 | AX10: 0.05142090117 | AY10: 0.05139089238 | AZ10: 0.05136801619 | BA10: 0.05136495343
A11: 0.060000002 | C11: 4 | D11: 0.09714189096 | E11: 0.07359094452 | F11: 0.05819635888 | G11: 0.02546163916 | H11: 0.02933401558 | I11: 0.04118160171 | J11: 0.04303005943 | K11: 0.04508473453 | L11: 0.04361807116 | M11: 0.04406819434 | N11: 0.04064757319 | O11: 0.03938409744 | P11: 0.0404383338 | Q11: 0.04022244123 | R11: 0.04914484449 | S11: 0.0464413968 | T11: 0.04767481264 | U11: 0.04896604753 | V11: 0.04936553308 | W11: 0.04943976209 | X11: 0.04900531091 | Y11: 0.04839629663 | Z11: 0.04848759592 | AA11: 0.04815861761 | AB11: 0.04790097383 | AC11: 0.04769367697 | AD11: 0.04742271405 | AE11: 0.04744151179 | AF11: 0.04770916161 | AG11: 0.04809934603 | AH11: 0.04844673894 | AI11: 0.04889289765 | AJ11: 0.04932596797 | AK11: 0.04971302725 | AL11: 0.04985182352 | AM11: 0.04995736543 | AN11: 0.04986799694 | AO11: 0.04971305074 | AP11: 0.04959728744 | AQ11: 0.04920135676 | AR11: 0.04864650135 | AS11: 0.04825718426 | AT11: 0.0481290393 | AU11: 0.04838997161 | AV11: 0.04847093727 | AW11: 0.04847812828 | AX11: 0.04845707365 | AY11: 0.0484168066 | AZ11: 0.04839589013 | BA11: 0.04837375474
A12: 0.060000002 | C12: 5 | D12: 0.09487838758 | E12: 0.09278671276 | F12: 0.06990793233 | G12: 0.05503057659 | H12: 0.02411812405 | I12: 0.0278503994 | J12: 0.03920794221 | K12: 0.04103271773 | L12: 0.04291713266 | M12: 0.04142885282 | N12: 0.04121457743 | O12: 0.03855771489 | P12: 0.03696395545 | Q12: 0.03796592047 | R12: 0.03776552774 | S12: 0.04614438096 | T12: 0.04357286435 | U12: 0.04473361251 | V12: 0.04594415895 | W12: 0.04632972803 | X12: 0.04641010868 | Y12: 0.04603206195 | Z12: 0.04550362174 | AA12: 0.04559548842 | AB12: 0.04529158599 | AC12: 0.04505012716 | AD12: 0.04484994714 | AE12: 0.04460925699 | AF12: 0.04467069492 | AG12: 0.04497469208 | AH12: 0.04540183499 | AI12: 0.04580095812 | AJ12: 0.04633889507 | AK12: 0.04671108448 | AL12: 0.04717781452 | AM12: 0.0473392824 | AN12: 0.04742639512 | AO12: 0.04719514517 | AP12: 0.04695047759 | AQ12: 0.04662640902 | AR12: 0.04627702521 | AS12: 0.04582516138 | AT12: 0.04546667906 | AU12: 0.04535496851 | AV12: 0.04558954706 | AW12: 0.04566640334 | AX12: 0.04565498702 | AY12: 0.04562613082 | AZ12: 0.04559513065 | BA12: 0.04557487505
A13: 0.060000002 | C13: 6 | D13: 0.08497730849 | E13: 0.0906246894 | F13: 0.08814300834 | G13: 0.06610506049 | H13: 0.05212681965 | I13: 0.02289831018 | J13: 0.02651564788 | K13: 0.0373880131 | L13: 0.03905993035 | M13: 0.04076309487 | N13: 0.03874614533 | O13: 0.03909556712 | P13: 0.03618835388 | Q13: 0.03470396678 | R13: 0.03564684239 | S13: 0.03545981104 | T13: 0.0432941942 | U13: 0.04088472555 | V13: 0.04197292425 | W13: 0.04311875626 | X13: 0.04349065656 | Y13: 0.04359431577 | Z13: 0.04328069874 | AA13: 0.04278949737 | AB13: 0.04288104782 | AC13: 0.04259603813 | AD13: 0.04236401867 | AE13: 0.04218912514 | AF13: 0.04200385768 | AG13: 0.04211037632 | AH13: 0.04245241812 | AI13: 0.04292234293 | AJ13: =AJ57*(1-AJ$51-AJ$91)/SUM(AJ$52:AJ$90) -> 0.04340846819 | AK13: 0.04388236322 | AL13: 0.04432896167 | AM13: 0.04480004395 | AN13: 0.044940951 | AO13: 0.04488440964 | AP13: 0.04457249299 | AQ13: 0.04413814313 | AR13: 0.04385512205 | AS13: 0.04359310721 | AT13: 0.04317528959 | AU13: 0.0428460619 | AV13: 0.04273018568 | AW13: 0.0429517307 | AX13: 0.04300700389 | AY13: 0.04298774674 | AZ13: 0.04296709225 | BA13: 0.04293737292
A14: 0.060000002 | C14: 7 | D14: 0.06646691574 | E14: 0.08116750699 | F14: 0.08608918794 | G14: 0.08334817958 | H14: 0.06261694462 | I14: 0.04949041984 | J14: 0.02180089129 | K14: 0.02528486154 | L14: 0.03559045727 | M14: 0.03709948795 | N14: 0.03812349824 | O14: 0.03675404723 | P14: 0.03669315524 | Q14: 0.03397578575 | R14: 0.03258413911 | S14: 0.03347047878 | T14: 0.03326957505 | U14: 0.04062324738 | V14: 0.03836156732 | W14: 0.0393917384 | X14: 0.04047645215 | Y14: 0.04085199257 | Z14: 0.04098865808 | AA14: 0.04069916359 | AB14: 0.0402421061 | AC14: 0.04032896416 | AD14: 0.04005625441 | AE14: 0.03985067986 | AF14: 0.0397250734 | AG14: 0.03959638991 | AH14: 0.03974873911 | AI14: 0.04013400007 | AJ14: 0.0406802223 | AK14: 0.04110728503 | AL14: 0.04164449656 | AM14: 0.04209477381 | AN14: 0.04253035699 | AO14: 0.0425321817 | AP14: 0.04239016592 | AQ14: 0.04190259984 | AR14: 0.04151474872 | AS14: 0.04131166661 | AT14: 0.0410723055 | AU14: 0.04068674397 | AV14: 0.04036647452 | AW14: 0.04025781229 | AX14: 0.04045042119 | AY14: 0.0404944632 | AZ14: 0.04048247017 | BA14: 0.04046252389
A15: 0.060000002 | C15: 8 | D15: 0.06893814482 | E15: 0.0634869937 | F15: 0.07710530994 | G15: 0.0814060835 | H15: 0.07895020905 | I15: 0.05944998944 | J15: 0.04711855392 | K15: 0.0207889515 | L15: 0.02406920587 | M15: 0.03380414991 | N15: 0.03469712662 | O15: 0.03616341298 | P15: 0.0344955211 | Q15: 0.03444972338 | R15: 0.03190043767 | S15: 0.03059476418 | T15: 0.03140311731 | U15: 0.03121707662 | V15: 0.03811622601 | W15: 0.03600246711 | X15: 0.03697782479 | Y15: 0.03802066589 | Z15: 0.03841024513 | AA15: 0.03854383476 | AB15: 0.03827621636 | AC15: 0.03784708017 | AD15: 0.03792435445 | AE15: 0.0376798288 | AF15: 0.03752320479 | AG15: 0.03744821506 | AH15: 0.03737574228 | AI15: 0.03757797481 | AJ15: 0.03803753321 | AK15: 0.03852366976 | AL15: 0.0390109389 | AM15: 0.03954560624 | AN15: 0.03996214289 | AO15: 0.040250792 | AP15: 0.04016865217 | AQ15: 0.0398509942 | AR15: 0.03941207717 | AS15: 0.03910702737 | AT15: 0.03892279079 | AU15: 0.03870497209 | AV15: 0.03833212064 | AW15: 0.03803086572 | AX15: 0.03791338409 | AY15: 0.03808724031 | AZ15: 0.03813449233 | BA15: 0.03812273139
A16: 0.060000002 | C16: 9 | D16: 0.05250688547 | E16: 0.06584742976 | F16: 0.06030965478 | G16: 0.07291091308 | H16: 0.07711059009 | I16: 0.07495717211 | J16: 0.05660080359 | K16: 0.04493143511 | L16: 0.01978945199 | M16: 0.02286115734 | N16: 0.03161517677 | O16: 0.03291320516 | P16: 0.03394118117 | Q16: 0.03238645334 | R16: 0.0323454257 | S16: 0.0299528051 | T16: 0.02870502615 | U16: 0.02946576617 | V16: 0.02929054727 | W16: 0.03577221341 | X16: 0.033796247 | Y16: 0.03473430716 | Z16: 0.03574814851 | AA16: 0.0361192147 | AB16: 0.03624920093 | AC16: 0.03599819119 | AD16: 0.0355904525 | AE16: 0.03567440851 | AF16: 0.03547914207 | AG16: 0.03537254742 | AH16: 0.03534804152 | AI16: 0.03533457244 | AJ16: 0.03561502621 | AK16: 0.03602107572 | AL16: 0.03655908012 | AM16: 0.03704478037 | AN16: 0.03754212278 | AO16: 0.03782023042 | AP16: 0.03801404017 | AQ16: 0.03776254917 | AR16: 0.03748241075 | AS16: 0.03712630398 | AT16: 0.03684563634 | AU16: 0.03667935152 | AV16: 0.03646503786 | AW16: 0.03611421979 | AX16: 0.03581612456 | AY16: 0.03569842113 | AZ16: 0.03586755963 | BA16: 0.03591161808
A17: 0.060000002 | C17: 10 | D17: 0.0421612539 | E17: 0.05015283573 | F17: 0.0625519579 | G17: 0.05702891281 | H17: 0.06906367792 | I17: 0.0732105949 | J17: 0.07136479276 | K17: 0.0539735438 | L17: 0.04277120363 | M17: 0.01879620699 | N17: 0.02138079296 | O17: 0.02998971098 | P17: 0.03089069773 | Q17: 0.03186600594 | R17: 0.03040818669 | S17: 0.03037062506 | T17: 0.02810271877 | U17: 0.02693412823 | V17: 0.02764731713 | W17: 0.02748928259 | X17: 0.03358010318 | Y17: 0.03174576198 | Z17: 0.03265821735 | AA17: 0.03361590239 | AB17: 0.03396892601 | AC17: 0.03409181443 | AD17: 0.03385180331 | AE17: 0.03347897044 | AF17: 0.03359084816 | AG17: 0.03344564097 | AH17: 0.03338878163 | AI17: 0.0334176088 | AJ17: 0.03348881174 | AK17: 0.03372699142 | AL17: 0.03418411074 | AM17: 0.03471649573 | AN17: 0.03516799527 | AO17: 0.03552991986 | AP17: 0.03571854582 | AQ17: 0.03573699847 | AR17: 0.03551809453 | AS17: 0.03530855198 | AT17: 0.03497944966 | AU17: 0.0347219205 | AV17: 0.034556644 | AW17: 0.03435516663 | AX17: 0.03401109519 | AY17: 0.03372368699 | AZ17: 0.0336179581 | BA17: 0.03377682576
A18: 0.060000002 | C18: 11 | D18: 0.03395060278 | E18: 0.04027103155 | F18: 0.04764283254 | G18: 0.05914923848 | H18: 0.05401971118 | I18: 0.06557066858 | J18: 0.0697019216 | K18: 0.06805222759 | L18: 0.05137858221 | M18: 0.0406244901 | N18: 0.01757906671 | O18: 0.02028151878 | P18: 0.02814685146 | Q18: 0.02900203008 | R18: 0.02991952986 | S18: 0.02855166122 | T18: 0.02849473136 | U18: 0.02636897897 | V18: 0.02527191658 | W18: 0.02594710526 | X18: 0.02580474781 | Y18: 0.03154273203 | Z18: 0.02984829926 | AA18: 0.03071027431 | AB18: 0.03161464363 | AC18: 0.03194725104 | AD18: 0.03205909404 | AE18: 0.03184347045 | AF18: 0.03152363443 | AG18: 0.03166557537 | AH18: 0.03156994009 | AI18: 0.03156534831 | AJ18: 0.03167198391 | AK18: 0.03171349248 | AL18: 0.03200701774 | AM18: 0.03246122525 | AN18: 0.03295766759 | AO18: 0.03328304211 | AP18: 0.03355550869 | AQ18: 0.03357900427 | AR18: 0.03361293444 | AS18: 0.03345815975 | AT18: 0.03326681044 | AU18: 0.03296329744 | AV18: 0.03271249344 | AW18: 0.03255719266 | AX18: 0.03235448113 | AY18: =AY62*(1-AY$51-AY$91)/SUM(AY$52:AY$90) -> 0.03202411044 | AZ18: 0.0317583092 | BA18: 0.03165835437
A19: 0.060000002 | C19: 12 | D19: 0.02555856572 | E19: 0.03242848989 | F19: 0.03825558384 | G19: 0.04505114401 | H19: 0.05602815522 | I19: 0.05128757525 | J19: 0.06242814454 | K19: 0.06646654251 | L19: 0.06478038542 | M19: 0.04879985896 | N19: 0.03799386877 | O19: 0.01667525486 | P19: 0.01903522501 | Q19: 0.0264259435 | R19: 0.02723049467 | S19: 0.02809283859 | T19: 0.02678811894 | U19: 0.02673680715 | V19: 0.02474164492 | W19: 0.02371778342 | X19: 0.02435707464 | Y19: 0.02423912282 | Z19: 0.02965740453 | AA19: 0.02806795754 | AB19: 0.02888199659 | AC19: 0.02973308477 | AD19: 0.03004239998 | AE19: 0.0301571176 | AF19: 0.02998365566 | AG19: 0.02971684482 | AH19: 0.02988970426 | AI19: 0.02984583762 | AJ19: 0.02991647935 | AK19: 0.02999297889 | AL19: 0.03009620111 | AM19: 0.03039385813 | AN19: 0.03081665499 | AO19: 0.03119118477 | AP19: 0.03143349079 | AQ19: 0.0315455331 | AR19: 0.03158320278 | AS19: 0.0316634928 | AT19: 0.03152341843 | AU19: 0.03134937164 | AV19: 0.03105564542 | AW19: 0.03081974486 | AX19: 0.03066121282 | AY19: 0.03046427853 | AZ19: 0.03015778202 | BA19: 0.02990710512
A20: 0.060000002 | C20: 13 | D20: 0.01897577079 | E20: 0.02441269438 | F20: 0.03080553852 | G20: 0.03617454558 | H20: 0.04267396427 | I20: 0.05319443893 | J20: 0.0488295793 | K20: 0.05953039497 | L20: 0.06327093754 | M20: 0.06152901726 | N20: 0.04563984514 | O20: 0.03604044829 | P20: 0.01565056502 | Q20: 0.01787140495 | R20: 0.02481176358 | S20: 0.02556797834 | T20: 0.02635763627 | U20: 0.0251354807 | V20: 0.02508677297 | W20: 0.02322012158 | X20: 0.02226436495 | Y20: 0.02287928284 | Z20: 0.0227903363 | AA20: 0.02788844898 | AB20: 0.02639698512 | AC20: 0.02716307237 | AD20: 0.02796025311 | AE20: 0.02826006837 | AF20: 0.02839579409 | AG20: 0.02826513054 | AH20: 0.02805026256 | AI20: 0.02825736309 | AJ20: 0.02828679019 | AK20: 0.02833053769 | AL20: 0.02846342846 | AM20: 0.02857934701 | AN20: 0.02885402608 | AO20: 0.02916492731 | AP20: 0.02945787876 | AQ20: 0.02955062412 | AR20: 0.02967059299 | AS20: 0.02975147902 | AT20: 0.02983252933 | AU20: 0.0297064656 | AV20: 0.02953512074 | AW20: 0.02925876225 | AX20: 0.02902494591 | AY20: 0.02886993377 | AZ20: 0.02868885532 | BA20: 0.02839987329
A21: 0.060000002 | C21: 14 | D21: 0.01533384739 | E21: 0.01812502697 | F21: 0.02319091021 | G21: 0.02912976997 | H21: 0.03426575061 | I21: 0.0405156582 | J21: 0.05064505508 | K21: 0.04656303921 | L21: 0.05666826887 | M21: 0.06009532952 | N21: 0.05754473229 | O21: 0.04329331369 | P21: 0.03382577263 | Q21: 0.01469368421 | R21: 0.01677976321 | S21: 0.02329691919 | T21: 0.02398872835 | U21: 0.02473155578 | V21: 0.02358427071 | W21: 0.02354402548 | X21: 0.02179719968 | Y21: 0.02091354198 | Z21: 0.02151177475 | AA21: 0.02143097622 | AB21: 0.02622816326 | AC21: 0.02482595741 | AD21: 0.0255434774 | AE21: 0.02630144946 | AF21: 0.02660954183 | AG21: 0.02676827789 | AH21: 0.02667996342 | AI21: 0.02651837727 | AJ21: 0.0267812923 | AK21: 0.02678724211 | AL21: 0.02688576669 | AM21: 0.02702886641 | AN21: 0.02713144282 | AO21: 0.02730749245 | AP21: 0.0275442212 | AQ21: 0.02769335128 | AR21: 0.0277942534 | AS21: 0.02794979442 | AT21: 0.02803107908 | AU21: 0.02811303629 | AV21: 0.02798729295 | AW21: 0.0278262153 | AX21: 0.02755486769 | AY21: 0.0273292603 | AZ21: 0.02718742715 | BA21: 0.02701657089
A22: 0.060000002 | C22: 15 | D22: 0.01387984994 | E22: 0.01464638251 | F22: 0.01721792222 | G22: 0.0219293644 | H22: 0.02759270136 | I22: 0.0325327038 | J22: 0.03857391454 | K22: 0.0482942454 | L22: 0.04432436281 | M22: 0.05382405293 | N22: 0.05620388238 | O22: 0.05458612181 | P22: 0.04063295143 | Q22: 0.03175765351 | R22: 0.01379614767 | S22: 0.01575530036 | T22: 0.02185794506 | U22: 0.02250879278 | V22: 0.02320527359 | W22: 0.02213392178 | X22: 0.02210125484 | Y22: 0.02047472054 | Z22: 0.01966352737 | AA22: 0.02022867618 | AB22: 0.02015512385 | AC22: 0.02466718305 | AD22: 0.02334571264 | AE22: 0.02402805429 | AF22: 0.02476531586 | AG22: 0.02508440538 | AH22: 0.02526705737 | AI22: 0.02522291312 | AJ22: 0.02513314532 | AK22: 0.02536155414 | AL22: 0.02542117448 | AM22: 0.02553071908 | AN22: 0.02565951361 | AO22: 0.02567723713 | AP22: 0.0257900047 | AQ22: 0.02589432185 | AR22: 0.02604736942 | AS22: 0.02618227647 | AT22: 0.02633357814 | AU22: 0.02641541837 | AV22: 0.02648607859 | AW22: 0.02636794501 | AX22: 0.02620574563 | AY22: 0.02594506649 | AZ22: 0.02573654236 | BA22: 0.02560266155
A23: 0.060000002 | C23: 16 | D23: 0.0115716816 | E23: 0.01325757237 | F23: 0.01391337377 | G23: 0.01628129673 | H23: 0.02077223417 | I23: 0.02619715501 | J23: 0.03097354929 | K23: 0.03678341532 | L23: 0.04597233539 | M23: 0.04209969526 | N23: 0.0503386996 | O23: 0.05331421049 | P23: 0.05123181959 | Q23: 0.03814863911 | R23: 0.02981779594 | S23: 0.01295384491 | T23: 0.01478214723 | U23: 0.02050946381 | V23: 0.0211196861 | W23: 0.02177823164 | X23: 0.02077756186 | Y23: 0.02076032808 | Z23: 0.01925093455 | AA23: 0.01849066999 | AB23: 0.01902440045 | AC23: 0.01895558314 | AD23: 0.02319640519 | AE23: 0.02196067677 | AF23: 0.02262469812 | AG23: 0.02334588196 | AH23: 0.02367761993 | AI23: 0.02388716891 | AJ23: 0.02390535191 | AK23: 0.02380077924 | AL23: 0.02406819224 | AM23: 0.02413994259 | AN23: 0.02423726633 | AO23: 0.02428420117 | AP23: 0.02425034329 | AQ23: 0.02424518295 | AR23: 0.02435526709 | AS23: 0.02453670612 | AT23: 0.02466826815 | AU23: 0.02481575832 | AV23: 0.02488670522 | AW23: 0.02495359108 | AX23: 0.02483239823 | AY23: 0.02467476238 | AZ23: 0.02443301778 | BA23: 0.02423634939
A24: 0.060000002 | C24: 17 | D24: 0.009517170775 | E24: 0.01105288652 | F24: 0.01259406953 | G24: 0.01315651006 | H24: 0.01542219382 | I24: 0.01972164419 | J24: 0.02494163648 | K24: 0.02953583894 | L24: 0.03501492759 | M24: 0.04366495505 | N24: 0.03937354765 | O24: 0.04775058079 | P24: 0.05003806687 | Q24: 0.0480994889 | R24: =R68*(1-R$51-R$91)/SUM(R$52:R$90) -> 0.0358184 | S24: 0.02799731588 | T24: 0.01215372848 | U24: 0.01387019287 | V24: 0.01924374363 | W24: 0.01982090037 | X24: 0.02044366831 | Y24: 0.01951694617 | Z24: 0.01951947116 | AA24: 0.01810268682 | AB24: 0.01738986315 | AC24: 0.01789215523 | AD24: 0.01782535875 | AE24: 0.02182022731 | AF24: 0.02067806558 | AG24: 0.02132795457 | AH24: 0.0220365965 | AI24: 0.02238453408 | AJ24: 0.02263938255 | AK24: 0.022638074 | AL24: 0.0225870121 | AM24: 0.02285515091 | AN24: 0.0229169502 | AO24: 0.02293818427 | AP24: 0.02293471887 | AQ24: 0.02279774729 | AR24: 0.0228041464 | AS24: 0.02294274026 | AT24: 0.02311785404 | AU24: 0.02324643378 | AV24: 0.0233796207 | AW24: 0.02344675763 | AX24: 0.02350040972 | AY24: 0.02338164823 | AZ24: 0.02323674554 | BA24: 0.02300880776
A25: 0.060000002 | C25: 18 | D25: 0.008491628868 | E25: 0.009090485909 | F25: 0.01049972177 | G25: 0.01190897371 | H25: 0.01246229042 | I25: 0.01464219095 | J25: 0.01877646943 | K25: 0.0237839116 | L25: 0.02811580309 | M25: 0.03325750642 | N25: 0.04083744973 | O25: 0.03734919223 | P25: 0.04481632069 | Q25: 0.04697872263 | R25: 0.04516142052 | S25: 0.03363156221 | T25: 0.02626801369 | U25: 0.01140392904 | V25: 0.01301420838 | W25: 0.01806032171 | X25: 0.0186062817 | Y25: 0.01920331059 | Z25: 0.01835040691 | AA25: 0.0183552062 | AB25: 0.01702497782 | AC25: 0.0163548981 | AD25: 0.01682533759 | AE25: 0.01676783004 | AF25: 0.02054581906 | AG25: 0.01949289405 | AH25: 0.02013183866 | AI25: 0.02083313048 | AJ25: 0.02121524036 | AK25: 0.02143921659 | AL25: 0.02148360128 | AM25: 0.02144862252 | AN25: 0.02169724941 | AO25: 0.02168863515 | AP25: 0.02166350064 | AQ25: 0.02156092879 | AR25: 0.02144274052 | AS25: 0.02148157955 | AT25: 0.02161606037 | AU25: 0.02178538274 | AV25: 0.02190111611 | AW25: 0.02202687319 | AX25: 0.02208132726 | AY25: 0.02212747669 | AZ25: 0.02201899259 | BA25: 0.02188226669
A26: 0.060000002 | C26: 19 | D26: 0.006285085226 | E26: 0.008110922289 | F26: 0.008635533596 | G26: 0.009928554884 | H26: 0.01128058187 | I26: 0.01183198954 | J26: 0.01394045284 | K26: 0.01790491531 | L26: 0.0226404192 | M26: 0.0267046533 | N26: 0.03110393094 | O26: 0.0387378291 | P26: 0.03505409461 | Q26: 0.04207623576 | R26: 0.04410911418 | S26: 0.04240415886 | T26: 0.03155425114 | U26: 0.02464746227 | V26: 0.01070014745 | W26: 0.01221388076 | X26: 0.01695359075 | Y26: 0.01747740186 | Z26: 0.01805551751 | AA26: 0.01725587235 | AB26: 0.01726246394 | AC26: 0.01601172908 | AD26: 0.01537973924 | AE26: 0.01582713735 | AF26: 0.01578850656 | AG26: 0.01936822729 | AH26: 0.01839969214 | AI26: 0.01903239557 | AJ26: 0.01974487693 | AK26: 0.02009057147 | AL26: 0.02034588195 | AM26: 0.02040082381 | AN26: 0.02036197941 | AO26: 0.02053430854 | AP26: 0.02048338944 | AQ26: 0.02036585655 | AR26: 0.02027943356 | AS26: 0.02019913082 | AT26: 0.0202393923 | AU26: 0.02037014974 | AV26: 0.02052461903 | AW26: 0.02063391505 | AX26: 0.0207441303 | AY26: 0.02079129939 | AZ26: 0.02083791274 | BA26: 0.02073549703
A27: 0.060000002 | C27: 20 | D27: 0.005163155843 | E27: 0.006003304978 | F27: 0.007704994279 | G27: 0.008165775352 | H27: 0.009404662317 | I27: 0.01071004785 | J27: 0.01126493246 | K27: 0.01329337384 | L27: 0.01704407565 | M27: 0.02150408237 | N27: 0.024975405 | O27: 0.0295047504 | P27: 0.03635740012 | Q27: 0.03291087547 | R27: 0.03950608667 | S27: 0.04141609948 | T27: 0.03978499333 | U27: 0.02960757611 | V27: 0.02312636983 | W27: 0.01004212637 | X27: 0.01146541791 | Y27: 0.01592498293 | Z27: 0.01643276735 | AA27: 0.01697857203 | AB27: 0.01622857684 | AC27: 0.01623508111 | AD27: 0.01505703163 | AE27: 0.01446730231 | AF27: 0.01490275493 | AG27: 0.01488358204 | AH27: 0.01828201695 | AI27: 0.0173948453 | AJ27: 0.01803820644 | AK27: 0.0186981554 | AL27: 0.01906601361 | AM27: 0.01932044574 | AN27: 0.01936726492 | AO27: 0.01927060707 | AP27: 0.0193932092 | AQ27: 0.01925643404 | AR27: 0.01915539162 | AS27: 0.0191032919 | AT27: 0.01903110205 | AU27: 0.01907283032 | AV27: 0.01919128839 | AW27: 0.01933706224 | AX27: 0.01943229157 | AY27: 0.0195322237 | AZ27: 0.01957960631 | BA27: 0.01962326277
A28: 0.060000002 | C28: 21 | D28: 0.005470811972 | E28: 0.004931675237 | F28: 0.005702857069 | G28: 0.007285855781 | H28: 0.007734898043 | I28: 0.00892900602 | J28: 0.01019676068 | K28: 0.01074204405 | L28: 0.01265424971 | M28: 0.0161886228 | N28: 0.02011159479 | O28: 0.02369131709 | P28: 0.02769169157 | Q28: 0.03413449645 | R28: 0.03090057547 | S28: 0.03709410279 | T28: 0.03885796312 | U28: 0.03733053948 | V28: 0.02778037541 | W28: 0.02170418018 | X28: 0.009426747952 | Y28: 0.01076978837 | Z28: 0.01497313741 | AA28: 0.01545261297 | AB28: 0.01596778506 | AC28: 0.01526272624 | AD28: 0.01526706633 | AE28: 0.01416374003 | AF28: 0.01362234092 | AG28: 0.01404859762 | AH28: 0.01404887991 | AI28: 0.01728359661 | AJ28: 0.01648619635 | AK28: 0.01708195945 | AL28: 0.01774460652 | AM28: 0.01810508301 | AN28: 0.01834162161 | AO28: 0.01832920781 | AP28: 0.0181997321 | AQ28: 0.01823155562 | AR28: 0.01811190874 | AS28: 0.01804444077 | AT28: 0.01799863078 | AU28: 0.01793418374 | AV28: 0.01796904745 | AW28: 0.01808087827 | AX28: 0.01821096146 | AY28: 0.01829702478 | AZ28: 0.01839390811 | BA28: 0.01843830352
A29: 0.060000002 | C29: 22 | D29: 0.006011597045 | E29: 0.005225538169 | F29: 0.004684859272 | G29: 0.005392631407 | H29: 0.006901408524 | I29: 0.007343692826 | J29: 0.008501076631 | K29: 0.009723453987 | L29: 0.01022558377 | M29: 0.01201912498 | N29: 0.01514033552 | O29: 0.01907757529 | P29: 0.02223549215 | Q29: 0.02599861223 | R29: 0.03204945382 | S29: 0.02901398795 | T29: 0.03480292197 | U29: 0.03646070051 | V29: 0.03502672415 | W29: 0.02607198094 | X29: 0.0203741547 | Y29: 0.008854808544 | Z29: 0.01012607183 | AA29: 0.01408004461 | AB29: 0.01453267107 | AC29: 0.01501745559 | AD29: 0.01435268799 | AE29: 0.01436131396 | AF29: 0.01333650817 | AG29: =AG73*(1-AG$51-AG$91)/SUM(AG$52:AG$90) -> 0.01284157105 | AH29: 0.01326072314 | AI29: 0.0132816403 | AJ29: 0.01638075892 | AK29: 0.01561222501 | AL29: 0.01621083163 | AM29: 0.01685027507 | AN29: 0.01718783233 | AO29: 0.01735853749 | AP29: 0.01731064676 | AQ29: 0.01710956781 | AR29: 0.01714794499 | AS29: 0.01706147653 | AT29: 0.01700100845 | AU29: 0.01696122225 | AV29: 0.01689629662 | AW29: 0.01692935632 | AX29: 0.01702793181 | AY29: 0.0171470468 | AZ29: 0.01723069517 | BA29: 0.01732172012
A30: 0.060000002 | C30: 23 | D30: 0.005915089562 | E30: 0.005742078137 | F30: 0.00496401522 | G30: 0.004430010948 | H30: 0.005108082493 | I30: 0.006552358413 | J30: 0.006991740775 | K30: 0.00810647911 | L30: 0.009255965884 | M30: 0.009712355311 | N30: 0.01124083173 | O30: 0.01436190883 | P30: 0.01790526352 | Q30: 0.02087600668 | R30: 0.02441053506 | S30: 0.03009272329 | T30: 0.02722188927 | U30: 0.03265582683 | V30: 0.03421056639 | W30: 0.03287270495 | X30: 0.02447429797 | Y30: 0.01913801451 | Z30: 0.00832555147 | AA30: 0.009522088736 | AB30: 0.01324181595 | AC30: 0.01366775302 | AD30: 0.01412204158 | AE30: 0.01350118314 | AF30: 0.01352254281 | AG30: 0.01257212092 | AH30: 0.01212138912 | AI30: 0.01253652647 | AJ30: 0.01258785152 | AK30: 0.01551237706 | AL30: 0.01481604916 | AM30: 0.01539380272 | AN30: 0.01599659623 | AO30: 0.01626658963 | AP30: 0.01639391696 | AQ30: 0.0162737387 | AR30: 0.01609264364 | AS30: 0.01615341956 | AT30: 0.0160748848 | AU30: 0.01602110107 | AV30: 0.01597964236 | AW30: 0.01591867498 | AX30: 0.01594346916 | AY30: 0.01603313171 | AZ30: 0.01614773658 | BA30: 0.01622631131
A31: 0.060000002 | C31: 24 | D31: 0.00734032143 | E31: 0.00564989739 | F31: 0.005454703869 | G31: 0.004693981291 | H31: 0.004196255901 | I31: 0.004849732802 | J31: 0.006238331665 | K31: 0.006667202637 | L31: 0.00771673257 | M31: 0.008791403153 | N31: 0.009083435933 | O31: 0.01066289451 | P31: 0.01347937347 | Q31: 0.01681052969 | R31: 0.01960083439 | S31: 0.02292018706 | T31: 0.02823399467 | U31: 0.02554249045 | V31: 0.03064050652 | W31: 0.03210673799 | X31: 0.03085827571 | Y31: 0.02298939399 | Z31: 0.01799412421 | AA31: 0.00782896282 | AB31: 0.00895520931 | AC31: 0.01245372369 | AD31: 0.01285281486 | AE31: 0.01328422033 | AF31: 0.01271264785 | AG31: 0.01274749291 | AH31: 0.01186705031 | AI31: 0.01145941394 | AJ31: 0.01188165997 | AK31: 0.01192054044 | AL31: 0.01472129315 | AM31: 0.01406931754 | AN31: 0.01461391256 | AO31: 0.01513920205 | AP31: 0.01536264905 | AQ31: 0.01541192103 | AR31: 0.01530649287 | AS31: 0.01515932229 | AT31: 0.01521933685 | AU31: 0.01514835751 | AV31: 0.01509392787 | AW31: 0.01505505844 | AX31: 0.01499164521 | AY31: 0.01501202517 | AZ31: 0.01509873918 | BA31: 0.01520647879
A32: 0.060000002 | C32: 25 | D32: 0.009639680642 | E32: 0.007011231605 | F32: 0.0053671365 | G32: 0.005157977317 | H32: 0.00444629752 | I32: 0.003984023343 | J32: 0.004617305678 | K32: 0.005948764787 | L32: 0.006346654206 | M32: 0.007329424924 | N32: 0.008222119635 | O32: 0.008616419271 | P32: 0.01000766256 | Q32: 0.01265524004 | R32: 0.01578368955 | S32: 0.01840413534 | T32: 0.02150448243 | U32: 0.02649215608 | V32: 0.02396616228 | W32: 0.02875622413 | X32: 0.03013924697 | Y32: 0.0289860432 | Z32: 0.0216153045 | AA32: 0.01692084061 | AB32: 0.007362880422 | AC32: 0.008422236248 | AD32: 0.01171117189 | AE32: 0.01209029329 | AF32: 0.01250835674 | AG32: 0.01198401739 | AH32: 0.01203258708 | AI32: 0.01121896512 | AJ32: 0.01086081222 | AK32: 0.01125178573 | AL32: 0.01131262924 | AM32: 0.01397933726 | AN32: 0.01335652926 | AO32: 0.0138306282 | AP32: 0.01429791083 | AQ32: 0.01444242609 | AR32: 0.01449589819 | AS32: 0.01441876572 | AT32: 0.01428272394 | AU32: 0.0143421218 | AV32: 0.01427169173 | AW32: 0.0142205915 | AX32: 0.01417832169 | AY32: 0.01411580836 | AZ32: 0.01413714157 | BA32: 0.01421862786
A33: 0.060000002 | C33: 26 | D33: 0.008522013953 | E33: 0.009207503272 | F33: 0.006660339907 | G33: 0.005075173462 | H33: 0.004885810218 | I33: 0.004221418695 | J33: 0.003793086001 | K33: 0.004402982545 | L33: 0.005662757698 | M33: 0.006028111653 | N33: 0.006854811175 | O33: 0.007799386773 | P33: 0.008086942669 | Q33: 0.009395790708 | R33: 0.01188221809 | S33: 0.01482004045 | T33: 0.01726737238 | U33: 0.02017780734 | V33: 0.02485722028 | W33: 0.02249232837 | X33: 0.02699405157 | Y33: 0.02831063936 | Z33: 0.02725353048 | AA33: 0.02032603076 | AB33: 0.01591349058 | AC33: 0.006924675486 | AD33: 0.00792006141 | AE33: 0.0110163808 | AF33: 0.01138416088 | AG33: 0.01179143531 | AH33: 0.01131192886 | AI33: 0.01137546157 | AJ33: 0.01063292365 | AK33: 0.01028505548 | AL33: 0.01067797898 | AM33: 0.01074247064 | AN33: 0.01327110761 | AO33: 0.0126406388 | AP33: 0.01306205493 | AQ33: 0.01344146571 | AR33: 0.01358402614 | AS33: 0.01365518291 | AT33: 0.01358499057 | AU33: 0.01345949357 | AV33: 0.0135121145 | AW33: 0.01344593003 | AX33: 0.01339245023 | AY33: 0.01335000055 | AZ33: 0.01329315524 | BA33: 0.01331308214
A34: 0.060000002 | C34: 27 | D34: 0.006559944529 | E34: 0.008139945115 | F34: 0.008746694581 | G34: 0.006298028819 | H34: 0.004807375612 | I34: 0.004638702314 | J34: 0.004019104001 | K34: 0.003617020968 | L34: 0.004191294192 | M34: 0.005378540339 | N34: 0.005637763883 | O34: 0.006502377244 | P34: 0.007320116594 | Q34: 0.007592504274 | R34: 0.008821866198 | S34: 0.01115676739 | T34: 0.01390465526 | U34: 0.01620209714 | V34: 0.018932555 | W34: 0.02332858947 | X34: 0.02111400541 | Y34: 0.02535626917 | Z34: 0.02661849592 | AA34: 0.02562795722 | AB34: 0.01911595921 | AC34: 0.01496639247 | AD34: 0.006511792531 | AE34: 0.007450186306 | AF34: 0.01037297015 | AG34: 0.01073167319 | AH34: 0.01113014717 | AI34: 0.01069416004 | AJ34: 0.01078124524 | AK34: 0.01006924781 | AL34: 0.009760549023 | AM34: 0.01013980687 | AN34: 0.01019822908 | AO34: 0.01255979563 | AP34: 0.0119381937 | AQ34: 0.0122796376 | AR34: 0.01264255883 | AS34: 0.0127961965 | AT34: 0.01286556247 | AU34: 0.01280197628 | AV34: =AV78*(1-AV$51-AV$91)/SUM(AV$52:AV$90) -> 0.01268056572 | AW34: 0.01273030202 | AX34: 0.01266290145 | AY34: 0.01261004101 | AZ34: 0.01257197784 | BA34: 0.0125182921
A35: 0.060000002 | C35: 28 | D35: 0.006168153486 | E35: 0.006265841469 | F35: 0.007732564597 | G35: 0.00827088937 | H35: 0.005965705482 | I35: 0.004564234667 | J35: 0.004416388986 | K35: 0.00383254781 | L35: 0.00344312039 | M35: 0.003980930508 | N35: 0.00503025528 | O35: 0.005347903341 | P35: 0.006102807945 | Q35: 0.006872562203 | R35: 0.007128730182 | S35: 0.00828326061 | T35: 0.01046765053 | U35: 0.01304683597 | V35: 0.0152022016 | W35: 0.01776827007 | X35: 0.02189902069 | Y35: 0.01983297702 | Z35: 0.02384071017 | AA35: 0.02503080014 | AB35: 0.02410224557 | AC35: 0.01797826483 | AD35: 0.01407402309 | AE35: 0.006125466083 | AF35: 0.0070150589 | AG35: 0.009778439251 | AH35: 0.01012981871 | AI35: 0.01052230585 | AJ35: 0.01013553264 | AK35: 0.01020970653 | AL35: 0.009555746884 | AM35: 0.009268615549 | AN35: 0.009626097833 | AO35: 0.009651618906 | AP35: 0.01186184301 | AQ35: 0.01122309568 | AR35: 0.01154978514 | AS35: 0.01190933125 | AT35: 0.01205624755 | AU35: 0.01212401472 | AV35: 0.01206110028 | AW35: 0.01194686675 | AX35: 0.01198894829 | AY35: 0.01192311369 | AZ35: 0.01187514228 | BA35: 0.0118391524
A36: 0.060000002 | C36: 29 | D36: 0.005805893001 | E36: =E80*(1-E$51-E$91)/SUM(E$52:E$90) -> 0.005891615657 | F36: =F80*(1-F$51-F$91)/SUM(F$52:F$90) -> 0.005952254374 | G36: 0.007311926321 | H36: 0.007834465588 | I36: 0.005663980095 | J36: 0.004345490258 | K36: 0.004211391875 | L36: 0.003648285046 | M36: 0.003270308019 | N36: 0.003723147071 | O36: 0.004771629244 | P36: 0.005019276147 | Q36: 0.005729680215 | R36: 0.006452764443 | S36: 0.006693496432 | T36: 0.007771630825 | U36: 0.009821870227 | V36: 0.01224166409 | W36: 0.01426732017 | X36: 0.01667943595 | Y36: 0.02057036387 | Z36: 0.01864754841 | AA36: 0.02241869913 | AB36: 0.0235406391 | AC36: 0.02266779025 | AD36: 0.01690631292 | AE36: 0.01323905065 | AF36: 0.005767708833 | AG36: 0.006612988016 | AH36: 0.009230044106 | AI36: 0.009576607477 | AJ36: 0.009972655539 | AK36: 0.009598224646 | AL36: 0.009689042639 | AM36: 0.009074135475 | AN36: 0.008799043334 | AO36: 0.009110153054 | AP36: 0.009115274771 | AQ36: 0.01115131839 | AR36: 0.01055603983 | AS36: 0.0108799349 | AT36: 0.0112206659 | AU36: 0.01136134724 | AV36: 0.01142237371 | AW36: 0.01136324365 | AX36: 0.01125113666 | AY36: 0.01128853399 | AZ36: 0.0112282483 | BA36: 0.01118293567
A37: 0.06 | C37: 30 | D37: 0.005468983694 | E37: =E81*(1-E$51-E$91)/SUM(E$52:E$90) -> 0.005545596455 | F37: 0.005596757473 | G37: 0.005628461926 | H37: 0.00692610342 | I37: 0.007438224579 | J37: 0.005392529551 | K37: 0.004143784078 | L37: 0.004008914895 | M37: 0.003465175332 | N37: 0.003058540634 | O37: 0.003531724824 | P37: 0.004478413935 | Q37: 0.004712395914 | R37: 0.005379693288 | S37: 0.00605880075 | T37: 0.006280061155 | U37: 0.007292175946 | V37: 0.009215723744 | W37: 0.0114888452 | X37: 0.01339302318 | Y37: 0.01566746164 | Z37: 0.01934086122 | AA37: 0.01753529045 | AB37: 0.02108404455 | AC37: 0.02213960803 | AD37: 0.02131622594 | AE37: 0.01590330863 | AF37: 0.01246582518 | AG37: 0.005437130313 | AH37: 0.006242117939 | AI37: 0.008725971506 | AJ37: 0.009076357309 | AK37: 0.009443982036 | AL37: 0.009108744469 | AM37: 0.0092007131 | AN37: 0.008614416128 | AO37: 0.008327427468 | AP37: 0.008603898382 | AQ37: 0.008569269645 | AR37: 0.0104885287 | AS37: 0.00994382361 | AT37: 0.01025079511 | AU37: 0.01057392701 | AV37: 0.01070384333 | AW37: 0.01076147387 | AX37: 0.01070150107 | AY37: 0.01059382655 | AZ37: 0.01063065118 | BA37: 0.01057374938
A38: 0.06 | C38: 31 | D38: 0.005184583009 | E38: 0.005223791859 | F38: 0.005268055532 | G38: 0.005292303458 | H38: 0.00533146913 | I38: 0.006575804331 | J38: 0.007081742033 | K38: 0.005142222583 | L38: 0.003944557581 | M38: 0.003807704951 | N38: 0.003240789408 | O38: 0.002901288527 | P38: 0.003314701311 | Q38: 0.004204602209 | R38: 0.004424547928 | S38: 0.005051244329 | T38: 0.005684568551 | U38: 0.005892625631 | V38: 0.006842146922 | W38: 0.008648989465 | X38: 0.01078481233 | Y38: 0.01258044205 | Z38: 0.01473100835 | AA38: 0.01818724973 | AB38: 0.01649136035 | AC38: 0.01982921878 | AD38: 0.02081953657 | AE38: 0.02005159389 | AF38: 0.01497447747 | AG38: 0.01175134149 | AH38: 0.005132204784 | AI38: 0.005901222438 | AJ38: 0.008270155753 | AK38: 0.008595198662 | AL38: 0.008962367779 | AM38: 0.008649662082 | AN38: 0.008734581017 | AO38: 0.008152696027 | AP38: 0.00786466917 | AQ38: 0.008088524727 | AR38: 0.008059946602 | AS38: 0.009880227928 | AT38: 0.009368815121 | AU38: 0.009659957832 | AV38: 0.009961992699 | AW38: 0.01008451776 | AX38: 0.01013477558 | AY38: 0.01007630159 | AZ38: 0.009976430508 | BA38: 0.01001098645
A39: 0.06 | C39: 32 | D39: 0.004934327044 | E39: 0.004952141756 | F39: 0.004962356316 | G39: 0.00498148234 | H39: 0.005013048482 | I39: 0.005061821297 | J39: 0.006260653929 | K39: 0.006753026286 | L39: 0.004894992762 | M39: 0.003746577771 | N39: 0.00356113867 | O39: 0.003074167145 | P39: 0.00272300515 | Q39: 0.003112039364 | R39: 0.003947771862 | S39: 0.004154413911 | T39: 0.004739245577 | U39: 0.005333870724 | V39: 0.005528968394 | W39: 0.006421379188 | X39: 0.008118982069 | Y39: 0.01013047649 | Z39: 0.01182850171 | AA39: 0.01385235769 | AB39: 0.01710450647 | AC39: 0.01550987011 | AD39: 0.018646904 | AE39: 0.0195843717 | AF39: 0.01888048254 | AG39: 0.01411620938 | AH39: 0.01109230192 | AI39: 0.00485192403 | AJ39: 0.005592962189 | AK39: 0.007831735711 | AL39: 0.008156869767 | AM39: 0.008510662804 | AN39: 0.008211447679 | AO39: 0.008266420254 | AP39: 0.007699647621 | AQ39: 0.007393575357 | AR39: 0.007607775235 | AS39: 0.007592495744 | AT39: 0.009308896904 | AU39: 0.008828813577 | AV39: 0.009100916749 | AW39: 0.00938559069 | AX39: 0.009497242252 | AY39: 0.009542685157 | AZ39: 0.009489066314 | BA39: 0.009394900548
A40: 0.06 | C40: 33 | D40: 0.004701164259 | E40: 0.004713105557 | F40: 0.004704301509 | G40: 0.004692412638 | H40: 0.004718628227 | I40: 0.004759505298 | J40: 0.004819229678 | K40: 0.005970050921 | L40: 0.006428351605 | M40: 0.004649310017 | N40: 0.003503969754 | O40: 0.003378045939 | P40: 0.002885260425 | Q40: 0.002556519705 | R40: 0.002921946197 | S40: 0.003706746679 | T40: 0.003897809425 | U40: 0.004446867517 | V40: 0.005004696463 | W40: 0.005188956474 | X40: 0.00602787906 | Y40: 0.007626387415 | Z40: 0.009524972023 | AA40: 0.01112297493 | AB40: 0.01302768397 | AC40: 0.01608652458 | AD40: 0.01458509597 | AE40: 0.01754063535 | AF40: 0.01844054842 | AG40: 0.01779834022 | AH40: 0.01332454312 | AI40: 0.01048652743 | AJ40: 0.004598475642 | AK40: 0.005296466356 | AL40: 0.007432341095 | AM40: 0.007745762039 | AN40: 0.008079490466 | AO40: 0.007771326097 | AP40: 0.00780705215 | AQ40: 0.007238438602 | AR40: 0.00695413087 | AS40: 0.007166548855 | AT40: 0.007153454418 | AU40: 0.008772348937 | AV40: 0.008317872475 | AW40: 0.008574336691 | AX40: 0.008839017452 | AY40: 0.008942397581 | AZ40: 0.00898654843 | BA40: 0.008935945001
A41: 0.06 | C41: 34 | D41: 0.0044736914 | E41: 0.004490396197 | F41: 0.004477228374 | G41: 0.004448395569 | H41: 0.004444811647 | I41: 0.004479975832 | J41: 0.004531402402 | K41: 0.004595533775 | L41: 0.005683020441 | M41: 0.006105708621 | N41: 0.004348245965 | O41: 0.003323816311 | P41: 0.003170465951 | Q41: 0.002708854637 | R41: 0.002400359428 | S41: 0.002743551234 | T41: 0.003477793126 | U41: 0.003657342047 | V41: 0.004172433732 | W41: 0.004696925405 | X41: 0.004870978829 | Y41: 0.005662155749 | Z41: 0.007170553803 | AA41: 0.008956842348 | AB41: 0.01046078981 | AC41: 0.01225233588 | AD41: 0.01512736749 | AE41: 0.01371980303 | AF41: 0.01651617628 | AG41: 0.0173836211 | AH41: 0.01680017244 | AI41: 0.01259686113 | AJ41: =AJ85*(1-AJ$51-AJ$91)/SUM(AJ$52:AJ$90) -> 0.009938746084 | AK41: 0.004354699836 | AL41: 0.005026362739 | AM41: 0.007057749745 | AN41: 0.007353341565 | AO41: 0.007646441598 | AP41: 0.007339470562 | AQ41: 0.007339409597 | AR41: 0.006808214822 | AS41: 0.006550813751 | AT41: 0.006752138203 | AU41: 0.006741142255 | AV41: 0.008264675556 | AW41: 0.007836599445 | AX41: 0.00807500712 | AY41: 0.008322627368 | AZ41: 0.008421244924 | BA41: 0.008462719077
A42: 0.06 | C42: 35 | D42: 0.004242380136 | E42: 0.004273121665 | F42: 0.004265664968 | G42: 0.004233674824 | H42: 0.004213670443 | I42: 0.004220007977 | J42: 0.004265269598 | K42: 0.00432106668 | L42: 0.004374587876 | M42: 0.005397786094 | N42: 0.00571033611 | O42: 0.004124684823 | P42: 0.003119568719 | Q42: 0.002976622603 | R42: 0.002543389264 | S42: 0.002253809149 | T42: 0.002574091096 | U42: 0.003263237794 | V42: 0.003431633002 | W42: 0.003915843877 | X42: 0.004409099271 | Y42: 0.004575446936 | Z42: 0.005323725407 | AA42: 0.006742856547 | AB42: 0.008423613807 | AC42: 0.009838211514 | AD42: 0.01152179183 | AE42: 0.01422990309 | AF42: 0.01291849929 | AG42: 0.01556954512 | AH42: 0.01640871163 | AI42: 0.01588267885 | AJ42: 0.01193884297 | AK42: 0.009411870218 | AL42: 0.004132623437 | AM42: 0.004773033137 | AN42: 0.006700185766 | AO42: 0.006959213215 | AP42: 0.007221525942 | AQ42: 0.006899836155 | AR42: 0.006903184506 | AS42: 0.006413360362 | AT42: 0.006172008408 | AU42: 0.00636295718 | AV42: 0.006351018868 | AW42: 0.007786480507 | AX42: 0.007380232268 | AY42: 0.007603251789 | AZ42: 0.007837594207 | BA42: 0.007930367329
A43: 0.06 | C43: 36 | D43: 0.004026291535 | E43: 0.004052180817 | F43: 0.004059264393 | G43: 0.004033620104 | H43: 0.004010279705 | I43: 0.00400055712 | J43: 0.004017760899 | K43: 0.004067287057 | L43: 0.004113316719 | M43: 0.004155024577 | N43: 0.005048254799 | O43: 0.005416744332 | P43: 0.003871224082 | Q43: 0.002928837244 | R43: 0.002794801118 | S43: 0.002388106516 | T43: 0.002114598769 | U43: 0.002415287812 | V43: 0.003061850482 | W43: 0.00322059976 | X43: 0.003675882177 | Y43: 0.004141590523 | Z43: 0.004301969812 | AA43: 0.005006184697 | AB43: 0.006341433432 | AC43: 0.007922278892 | AD43: 0.009251609337 | AE43: 0.01083823615 | AF43: 0.01339880702 | AG43: 0.01217807041 | AH43: 0.01469637278 | AI43: 0.01551259655 | AJ43: 0.01505302049 | AK43: 0.01130593735 | AL43: 0.008931893566 | AM43: 0.00392433846 | AN43: 0.004531218851 | AO43: 0.006341065611 | AP43: 0.006572487101 | AQ43: 0.00678895642 | AR43: 0.006489737547 | AS43: 0.006502822112 | AT43: 0.006042503356 | AU43: 0.005816265016 | AV43: 0.00599472012 | AW43: 0.005983548207 | AX43: 0.007333032024 | AY43: 0.006949066837 | AZ43: 0.00716014301 | BA43: 0.007380737836
A44: 0.06 | C44: 37 | D44: 0.003809290681 | E44: 0.003845780152 | F44: 0.003849380989 | G44: 0.003838447367 | H44: 0.003820781121 | I44: 0.003807453203 | J44: 0.00380882739 | K44: 0.003831267057 | L44: 0.003871738413 | M44: 0.003906866783 | N44: 0.003885967765 | O44: 0.004788703334 | P44: 0.005083886892 | Q44: 0.003634536147 | R44: 0.00274993464 | S44: 0.002624168803 | T44: 0.002240601029 | U44: 0.001984142924 | V44: 0.002266230847 | W44: 0.002873557552 | X44: 0.003023242404 | Y44: 0.003452859155 | Z44: 0.003894045249 | AA44: 0.004045373079 | AB44: 0.00470815103 | AC44: 0.005964020357 | AD44: 0.007449913968 | AE44: 0.008702737234 | AF44: 0.01020523005 | AG44: 0.0126308491 | AH44: 0.01149509899 | AI44: 0.01389377222 | AJ44: 0.01470227006 | AK44: 0.01425502513 | AL44: 0.01072936906 | AM44: 0.008481724496 | AN44: 0.003725521255 | AO44: 0.004288352149 | AP44: 0.005988690194 | AQ44: 0.006178795016 | AR44: 0.006385448059 | AS44: 0.006113353741 | AT44: 0.006126791918 | AU44: 0.005694224401 | AV44: 0.005479666125 | AW44: 0.005647864945 | AX44: 0.005635094133 | AY44: 0.00690462411 | AZ44: 0.006544083206 | BA44: 0.006742775529
A45: 0.06 | C45: 38 | D45: 0.003615746841 | E45: 0.003638508132 | F45: 0.003653310075 | G45: 0.003639981261 | H45: 0.003635906916 | I45: 0.003627538823 | J45: 0.003624978125 | K45: 0.00363203169 | L45: 0.003647065878 | M45: 0.003677413443 | N45: 0.003653879321 | O45: 0.003686174239 | P45: 0.00449443884 | Q45: 0.004773056347 | R45: 0.003412527231 | S45: 0.002582041579 | T45: 0.002462082526 | U45: 0.002102371733 | V45: 0.001861693616 | W45: 0.002126865699 | X45: 0.002697466835 | Y45: 0.002839816325 | Z45: 0.003246479756 | AA45: 0.00366177972 | AB45: 0.003804539501 | AC45: 0.004427943444 | AD45: 0.005608416362 | AE45: 0.007007931411 | AF45: 0.00819445473 | AG45: 0.009620313256 | AH45: 0.01192248492 | AI45: 0.01086732689 | AJ45: 0.01316800773 | AK45: 0.0139228688 | AL45: 0.01352806236 | AM45: 0.0101886069 | AN45: 0.008052018248 | AO45: 0.003525838767 | AP45: 0.004050046796 | AQ45: 0.005629967553 | AR45: 0.005811552204 | AS45: 0.006015112706 | AT45: 0.005759844826 | AU45: 0.005773654723 | AV45: 0.005364688245 | AW45: 0.005162612032 | AX45: 0.005318959506 | AY45: 0.005305882572 | AZ45: 0.00650223055 | BA45: 0.006162626087
A46: 0.06 | C46: 39 | D46: 0.003443779071 | E46: 0.003453641475 | F46: 0.003456411415 | G46: 0.003454576268 | H46: 0.003447913121 | I46: 0.003452014935 | J46: 0.003453686278 | K46: 0.003456716222 | L46: 0.003457409427 | M46: 0.003464017362 | N46: 0.003439284132 | O46: 0.003466018413 | P46: 0.003459659852 | Q46: 0.004219647346 | R46: 0.004481503031 | S46: 0.003204180591 | T46: 0.002422557362 | U46: 0.002310189381 | V46: 0.001972626057 | W46: 0.00174720607 | X46: 0.001996532028 | Y46: 0.002533806202 | Z46: 0.002670078852 | AA46: 0.003052839136 | AB46: 0.003443782642 | AC46: 0.003578110734 | AD46: 0.004163927849 | AE46: 0.005275684707 | AF46: 0.006598633873 | AG46: 0.007724786322 | AH46: 0.009080786163 | AI46: 0.01127137235 | AJ46: 0.01029965384 | AK46: 0.01246994125 | AL46: 0.01321284499 | AM46: 0.01284624555 | AN46: 0.009672425541 | AO46: 0.007620441851 | AP46: 0.003329906571 | AQ46: 0.003807448927 | AR46: 0.005295344845 | AS46: 0.005474500956 | AT46: 0.005667284647 | AU46: 0.005427857796 | AV46: 0.005439521775 | AW46: 0.005054286784 | AX46: 0.00486196547 | AY46: =AY90*(1-AY$51-AY$91)/SUM(AY$52:AY$90) -> 0.005008217054 | AZ46: 0.004996661832 | BA46: 0.006123213038
A47: 0.06 | C47: 40 | D47: 0.03307566698 | E47: =D47 -> 0.03307566698 | F47: =E47 -> 0.03307566698 | G47: =F47 -> 0.03307566698 | H47: =G47 -> 0.03307566698 | I47: =H47 -> 0.03307566698 | J47: =I47 -> 0.03307566698 | K47: =J47 -> 0.03307566698 | L47: =K47 -> 0.03307566698 | M47: =L47 -> 0.03307566698 | N47: =M47 -> 0.03307566698 | O47: =N47 -> 0.03307566698 | P47: =O47 -> 0.03307566698 | Q47: =P47 -> 0.03307566698 | R47: =Q47 -> 0.03307566698 | S47: =R47 -> 0.03307566698 | T47: =S47 -> 0.03307566698 | U47: =T47 -> 0.03307566698 | V47: =U47 -> 0.03307566698 | W47: =V47 -> 0.03307566698 | X47: =W47 -> 0.03307566698 | Y47: =X47 -> 0.03307566698 | Z47: =Y47 -> 0.03307566698 | AA47: =Z47 -> 0.03307566698 | AB47: =AA47 -> 0.03307566698 | AC47: =AB47 -> 0.03307566698 | AD47: =AC47 -> 0.03307566698 | AE47: =AD47 -> 0.03307566698 | AF47: =AE47 -> 0.03307566698 | AG47: =AF47 -> 0.03307566698 | AH47: =AG47 -> 0.03307566698 | AI47: =AH47 -> 0.03307566698 | AJ47: =AI47 -> 0.03307566698 | AK47: =AJ47 -> 0.03307566698 | AL47: =AK47 -> 0.03307566698 | AM47: =AL47 -> 0.03307566698 | AN47: =AM47 -> 0.03307566698 | AO47: =AN47 -> 0.03307566698 | AP47: =AO47 -> 0.03307566698 | AQ47: =AP47 -> 0.03307566698 | AR47: =AQ47 -> 0.03307566698 | AS47: =AR47 -> 0.03307566698 | AT47: =AS47 -> 0.03307566698 | AU47: =AT47 -> 0.03307566698 | AV47: =AU47 -> 0.03307566698 | AW47: =AV47 -> 0.03307566698 | AX47: =AW47 -> 0.03307566698 | AY47: =AX47 -> 0.03307566698 | AZ47: =AY47 -> 0.03307566698 | BA47: =AZ47 -> 0.03307566698
C49: Intermediate table
C50: age | D50: 2011 | E50: 2012 | F50: 2013 | G50: 2014 | H50: 2015 | I50: 2016 | J50: 2017 | K50: 2018 | L50: 2019 | M50: 2020 | N50: 2021 | O50: 2022 | P50: 2023 | Q50: 2024 | R50: 2025 | S50: 2026 | T50: 2027 | U50: 2028 | V50: 2029 | W50: 2030 | X50: 2031 | Y50: 2032 | Z50: 2033 | AA50: 2034 | AB50: 2035 | AC50: 2036 | AD50: 2037 | AE50: 2038 | AF50: 2039 | AG50: 2040 | AH50: 2041 | AI50: 2042 | AJ50: 2043 | AK50: 2044 | AL50: 2045 | AM50: 2046 | AN50: 2047 | AO50: 2048 | AP50: 2049 | AQ50: 2050 | AR50: 2051 | AS50: 2052 | AT50: 2053 | AU50: 2054 | AV50: 2055 | AW50: 2056 | AX50: 2057 | AY50: 2058 | AZ50: 2059 | BA50: 2060
C51: 0 | D51: =D7 -> 0.03493404364 | E51: =E2 -> 0.04663965948 | F51: 0.04835919335 | G51: 0.0513014684 | H51: 0.05001775335 | I51: 0.04965305883 | J51: 0.04605307173 | K51: 0.04431983855 | L51: 0.04533871805 | M51: 0.04719427337 | N51: 0.05935344266 | O51: 0.05297599849 | P51: 0.05555129715 | Q51: 0.05707977312 | R51: 0.05758228868 | S51: 0.05770425948 | T51: 0.05717675459 | U51: 0.05640990964 | V51: 0.05639729743 | W51: 0.05590035864 | X51: 0.05550029013 | Y51: 0.05518634577 | Z51: 0.05485369703 | AA51: 0.05486893328 | AB51: 0.05513648588 | AC51: 0.05549112608 | AD51: 0.05572224697 | AE51: 0.05599814328 | AF51: 0.05616817303 | AG51: 0.05638640429 | AH51: 0.05627240101 | AI51: 0.05616732862 | AJ51: 0.05598925455 | AK51: 0.05584849716 | AL51: 0.0559869288 | AM51: 0.0561074238 | AN51: 0.05600245044 | AO51: 0.05582662803 | AP51: 0.05581967482 | AQ51: 0.05598729911 | AR51: 0.05598729911 | AS51: 0.05598729911 | AT51: 0.05598729911 | AU51: 0.05598729911 | AV51: 0.05598729911 | AW51: 0.05598729911 | AX51: 0.05598729911 | AY51: 0.05598729911 | AZ51: 0.05598729911 | BA51: =BA2 -> 0.05598729911
C52: 1 | D52: =D8 -> 0.02967541448 | E52: =MAX(D7*(1-D$3*$A7),0) -> 0.03493404364 | F52: =MAX(E7*(1-E$3*$A7),0) -> 0.04663965948 | G52: 0.04835919335 | H52: 0.0513014684 | I52: 0.05001775335 | J52: 0.04965305883 | K52: 0.04605307173 | L52: 0.04431983855 | M52: 0.04533871805 | N52: 0.04719427337 | O52: 0.05935344266 | P52: 0.05297599849 | Q52: 0.05555129715 | R52: 0.05707977312 | S52: 0.05758228868 | T52: 0.05770425948 | U52: 0.05717675459 | V52: 0.05640990964 | W52: 0.05639729743 | X52: 0.05590035864 | Y52: 0.05550029013 | Z52: 0.05518634577 | AA52: 0.05485369703 | AB52: 0.05486893328 | AC52: 0.05513648588 | AD52: 0.05549112608 | AE52: 0.05572224697 | AF52: 0.05599814328 | AG52: 0.05616817303 | AH52: 0.05638640429 | AI52: 0.05627240101 | AJ52: 0.05616732862 | AK52: 0.05598925455 | AL52: 0.05584849716 | AM52: 0.0559869288 | AN52: 0.0561074238 | AO52: 0.05600245044 | AP52: 0.05582662803 | AQ52: 0.05581967482 | AR52: =MAX(AQ7*(1-AQ$3*$A7),0) -> 0.05598729911 | AS52: 0.05598729911 | AT52: 0.05598729911 | AU52: 0.05598729911 | AV52: 0.05598729911 | AW52: 0.05598729911 | AX52: 0.05598729911 | AY52: 0.05598729911 | AZ52: 0.05598729911 | BA52: 0.05598729911
C53: 2 | D53: 0.06413786476 | E53: =MAX(D8*(1-D$3*$A8),0) -> 0.02967541448 | F53: 0.03280063974 | G53: 0.04562409825 | H53: 0.04765909279 | I53: 0.05068733778 | J53: 0.04824809684 | K53: 0.04859980038 | L53: 0.04523180304 | M53: =MAX(L8*(1-L$3*$A8),0) -> 0.04387397094 | N53: 0.04454662558 | O53: 0.04812087748 | P53: 0.05476341628 | Q53: 0.05282663457 | R53: 0.05425947473 | S53: 0.05576085671 | T53: 0.05625932785 | U53: 0.05633370799 | V53: 0.05581872037 | W53: 0.05506449966 | X53: 0.05506292444 | Y53: 0.05459458188 | Z53: 0.05423970504 | AA53: 0.05397733221 | AB53: 0.05367325985 | AC53: 0.05369489121 | AD53: 0.0539513621 | AE53: 0.05428252992 | AF53: 0.05451068402 | AG53: 0.05481926669 | AH53: 0.05502878859 | AI53: 0.0553013715 | AJ53: 0.05526027181 | AK53: 0.05528486987 | AL53: 0.05505008577 | AM53: 0.05502680354 | AN53: 0.05520189756 | AO53: 0.0553044501 | AP53: 0.05502769774 | AQ53: 0.05473577007 | AR53: 0.05447023933 | AS53: 0.05466061998 | AT53: 0.05474465314 | AU53: 0.05475476559 | AV53: 0.05476566299 | AW53: 0.05475210381 | AX53: 0.05475278959 | AY53: 0.05473099509 | AZ53: 0.05472012498 | BA53: 0.05472840772
C54: 3 | D54: 0.07704512096 | E54: =MAX(D9*(1-D$3*$A9),0) -> 0.06413786476 | F54: 0.02696834656 | G54: 0.03085478237 | H54: 0.04342580467 | I54: 0.04613178375 | J54: 0.04747275425 | K54: 0.04568905097 | L54: 0.04586275397 | M54: 0.04295337896 | N54: 0.04071927127 | O54: 0.04542124624 | P54: 0.0420831389 | Q54: 0.05248878195 | R54: 0.0495909811 | S54: 0.05094110477 | T54: 0.05236016589 | U54: 0.05279000666 | V54: 0.05286269653 | W54: 0.05237451284 | X54: 0.0516742981 | Y54: 0.05168891363 | Z54: 0.05128501715 | AA54: 0.05098549397 | AB54: 0.05076138967 | AC54: 0.05048931011 | AD54: 0.05051534664 | AE54: 0.05075620088 | AF54: 0.05108465781 | AG54: 0.05135254932 | AH54: 0.05169636532 | AI54: 0.05196197413 | AJ54: 0.05229615828 | AK54: 0.0523875918 | AL54: 0.05235476216 | AM54: 0.05223976284 | AN54: 0.05225599197 | AO54: 0.05241009762 | AP54: 0.05234740598 | AQ54: 0.05197724515 | AR54: 0.05145710211 | AS54: 0.05123232388 | AT54: 0.05149031732 | AU54: 0.05157899653 | AV54: 0.05159877484 | AW54: 0.05159627052 | AX54: 0.05158414461 | AY54: 0.05156428885 | AZ54: 0.05153354045 | BA54: 0.05153111478
C55: 4 | D55: 0.09714189096 | E55: 0.07704512096 | F55: 0.05828704316 | G55: 0.02536848276 | H55: 0.02936811474 | I55: 0.04203415787 | J55: 0.04320611278 | K55: 0.04495483201 | L55: 0.0431159323 | M55: 0.04355254752 | N55: 0.03986487324 | O55: 0.04151874632 | P55: 0.03972223107 | Q55: 0.04033518819 | R55: 0.04927382209 | S55: 0.0465581242 | T55: 0.04783435646 | U55: 0.04913129274 | V55: 0.049537341 | W55: 0.04960088587 | X55: 0.04914992793 | Y55: 0.04850792721 | Z55: 0.0485554927 | AA55: 0.04820807803 | AB55: 0.04794780366 | AC55: 0.04775017488 | AD55: 0.04749958412 | AE55: 0.04752367654 | AF55: 0.04776607054 | AG55: 0.0481250136 | AH55: 0.04842713721 | AI55: 0.04881527045 | AJ55: 0.04913823203 | AK55: 0.04957756636 | AL55: 0.04961104033 | AM55: 0.04968203629 | AN55: 0.04960928952 | AO55: 0.04961317929 | AP55: 0.04960781009 | AQ55: 0.04944553498 | AR55: 0.04886381259 | AS55: 0.04839829885 | AT55: 0.04826086156 | AU55: 0.04851284547 | AV55: 0.04860605282 | AW55: 0.04861265617 | AX55: 0.04861090798 | AY55: 0.04858016829 | AZ55: 0.04855183723 | BA55: 0.04853023981
C56: 5 | D56: 0.09487838758 | E56: 0.09714189096 | F56: 0.07001686614 | G56: 0.05482923643 | H56: 0.02414616002 | I56: 0.02842696826 | J56: 0.03936835774 | K56: 0.04091449028 | L56: 0.04242306314 | M56: 0.04094408923 | N56: 0.04042095938 | O56: 0.04064757319 | P56: 0.03630937879 | Q56: 0.03807234221 | R56: 0.03786464103 | S56: 0.04626036182 | T56: 0.043718681 | U56: 0.04488457457 | V56: 0.04610405939 | W56: 0.04648071624 | X56: 0.04654706714 | Y56: 0.04613823921 | Z56: 0.04556734008 | AA56: 0.04564231643 | AB56: 0.04533586478 | AC56: 0.04510349352 | AD56: 0.04492264687 | AE56: 0.04468651651 | AF56: 0.04472397947 | AG56: 0.04499869223 | AH56: 0.04538346524 | AI56: 0.04572823999 | AJ56: 0.046162528 | AK56: 0.04658380346 | AL56: 0.04694994673 | AM56: 0.04707838226 | AN56: 0.04718035435 | AO56: 0.04710033208 | AP56: 0.04696043869 | AQ56: 0.0468578082 | AR56: 0.04648375166 | AS56: 0.0459591642 | AT56: 0.04559120929 | AU56: 0.04547013577 | AV56: 0.04571663057 | AW56: 0.04579312863 | AX56: 0.04579992569 | AY56: 0.04578007658 | AZ56: 0.04574205281 | BA56: 0.04572230597
C57: 6 | D57: 0.08497730849 | E57: 0.09487838758 | F57: 0.0882803569 | G57: 0.06586320216 | H57: 0.05218741417 | I57: 0.02337235913 | J57: 0.0266241341 | K57: 0.03728028712 | L57: 0.03861026561 | M57: 0.04028612139 | N57: 0.03800005882 | O57: 0.04121457743 | P57: 0.03554751197 | Q57: 0.03480124498 | R57: 0.03574039531 | S57: 0.03554893694 | T57: 0.04343907827 | U57: 0.0410226988 | V57: 0.04211900351 | W57: 0.04325927994 | X57: 0.04361899957 | Y57: 0.04369487014 | Z57: 0.04334130435 | AA57: 0.04283344354 | AB57: 0.04292296997 | AC57: 0.04264649738 | AD57: 0.04243268882 | AE57: 0.0422621932 | AF57: 0.04205396115 | AG57: 0.04213284795 | AH57: 0.04243524171 | AI57: 0.04285419518 | AJ57: 0.04324325441 | AK57: 0.04376279005 | AL57: 0.04411485378 | AM57: 0.04455313827 | AN57: 0.04470780433 | AO57: 0.04479423873 | AP57: 0.04458194957 | AQ57: 0.04435719346 | AR57: 0.04405102949 | AS57: 0.04372058301 | AT57: 0.04329354386 | AU57: 0.04295485844 | AV57: 0.04284929854 | AW57: 0.04307092271 | AX57: 0.04314353615 | AY57: 0.04313279041 | AZ57: 0.04310554603 | BA57: 0.04307627174
C58: 7 | D58: 0.06646691574 | E58: 0.08497730849 | F58: 0.08622333614 | G58: 0.08304323393 | H58: 0.06268973332 | I58: 0.05051498809 | J58: 0.02189008754 | K58: 0.02521200834 | L58: 0.03518073371 | M58: 0.03666538274 | N58: 0.03738940128 | O58: 0.03874614533 | P58: 0.03604337404 | Q58: 0.0340710228 | R58: 0.03266965416 | S58: 0.03355460463 | T58: 0.03338091172 | U58: 0.04076033822 | V58: 0.03849507791 | W58: 0.03952011575 | X58: 0.0405959001 | Y58: 0.04094622151 | Z58: 0.04104605416 | AA58: 0.04074096292 | AB58: 0.04028144832 | AC58: 0.04037673783 | AD58: 0.04012118378 | AE58: 0.03991969792 | AF58: 0.03977245867 | AG58: 0.03961751999 | AH58: 0.03973265663 | AI58: 0.04007027937 | AJ58: 0.04052539229 | AK58: 0.04099527356 | AL58: 0.04144335458 | AM58: 0.04186277764 | AN58: 0.0423097161 | AO58: 0.04244673631 | AP58: 0.04239915949 | AQ58: 0.04211055554 | AR58: 0.04170020135 | AS58: 0.04143247098 | AT58: 0.04118479984 | AU58: 0.04079005748 | AV58: 0.0404789984 | AW58: 0.04036952862 | AX58: 0.04057883718 | AY58: 0.04063109435 | AZ58: 0.0406129177 | BA58: 0.04059341679
C59: 8 | D59: 0.06893814482 | E59: 0.06646691574 | F59: 0.07722545904 | G59: 0.08110824338 | H59: 0.07904198425 | I59: 0.06068074425 | J59: =MAX(I14*(1-I$3*$A14),0) -> 0.04731133495 | K59: 0.02072905235 | L59: 0.02379211697 | M59: 0.03340860381 | N59: 0.03402900704 | O59: 0.03812349824 | P59: 0.03388465674 | Q59: 0.03454628892 | R59: 0.03198415839 | S59: 0.03067166211 | T59: 0.03150820788 | U59: 0.03132242456 | V59: 0.03824888272 | W59: 0.03611979886 | X59: 0.03708694813 | Y59: 0.03810836412 | Z59: 0.03846403068 | AA59: 0.03858342049 | AB59: 0.03831363666 | AC59: 0.03789191381 | AD59: 0.03798582811 | AE59: 0.03774508713 | AF59: 0.0375679636 | AG59: 0.0374681988 | AH59: 0.03736061991 | AI59: 0.0375183123 | AJ59: 0.03789276135 | AK59: 0.03841869827 | AL59: 0.03882251694 | AM59: 0.03932765925 | AN59: 0.0397548255 | AO59: 0.04016992983 | AP59: 0.04017717443 | AQ59: 0.04004876812 | AR59: 0.03958813686 | AS59: 0.03922138489 | AT59: 0.03902939774 | AU59: 0.03880325339 | AV59: 0.03843897364 | AW59: 0.03813640222 | AX59: 0.03803374587 | AY59: 0.03821574932 | AZ59: 0.03825737392 | BA59: 0.03824605526
C60: 9 | D60: 0.05250688547 | E60: 0.06893814482 | F60: 0.06040363211 | G60: 0.07264415421 | H60: 0.07720022684 | I60: 0.07650896212 | J60: 0.05683238034 | K60: 0.04480197429 | L60: 0.01956163236 | M60: 0.02259365641 | N60: 0.03100640248 | O60: 0.03469712662 | P60: 0.03334013334 | Q60: 0.03247723535 | R60: 0.03243031426 | S60: 0.0300280895 | T60: 0.02880108756 | U60: 0.02956520398 | V60: 0.02939248779 | W60: 0.03588879477 | X60: 0.03389598135 | Y60: 0.03481442509 | Z60: 0.03579820634 | AA60: 0.03615631027 | AB60: 0.03628463953 | AC60: 0.03604083463 | AD60: 0.03564814301 | AE60: 0.03573619362 | AF60: 0.03552146267 | AG60: 0.0353914235 | AH60: 0.03533373958 | AI60: 0.03527847179 | AJ60: 0.03547947448 | AK60: 0.03592292344 | AL60: 0.03638250059 | AM60: 0.03684061614 | AN60: 0.03734736008 | AO60: 0.03774425115 | AP60: 0.03802210529 | AQ60: 0.03794995848 | AR60: 0.03764985033 | AS60: 0.03723486943 | AT60: 0.03694655411 | AU60: 0.03677248928 | AV60: 0.03656668626 | AW60: 0.03621443756 | AX60: 0.03592982827 | AY60: 0.0358188701 | AZ60: 0.03598313643 | BA60: 0.03602778918
C61: 10 | D61: 0.0421612539 | E61: 0.05250688547 | F61: 0.06264942929 | G61: 0.05682026135 | H61: 0.06914396058 | I61: 0.07472622665 | J61: 0.07165677496 | K61: 0.05381802998 | L61: 0.04227881406 | M61: 0.01857627049 | N61: 0.02096908952 | O61: 0.03161517677 | P61: 0.03034366942 | Q61: 0.03195532909 | R61: 0.03048799109 | S61: 0.03044695963 | T61: 0.02819676455 | U61: 0.02702502255 | V61: 0.02774353867 | W61: 0.02757886994 | X61: 0.03367919968 | Y61: 0.03181898655 | Z61: 0.03270394839 | AA61: 0.03365042698 | AB61: 0.03400213533 | AC61: 0.03413219958 | AD61: 0.03390667555 | AE61: 0.03353695323 | AF61: 0.03363091634 | AG61: 0.03346348879 | AH61: 0.0333752724 | AI61: 0.0333645517 | AJ61: 0.03336135243 | AK61: 0.03363509019 | AL61: 0.03401900226 | AM61: 0.03452516333 | AN61: 0.03498554917 | AO61: 0.03545854172 | AP61: 0.03572612393 | AQ61: 0.0359143553 | AR61: 0.03567675921 | AS61: 0.03541180193 | AT61: 0.03507525607 | AU61: 0.03481008787 | AV61: 0.03465297265 | AW61: 0.03445050299 | AX61: 0.03411906857 | AY61: 0.03383747307 | AZ61: 0.03372628596 | BA61: 0.03388609098
C62: 11 | D62: 0.03395060278 | E62: 0.0421612539 | F62: 0.04771707183 | G62: 0.05893282939 | H62: 0.05408250607 | I62: 0.06692813586 | J62: 0.06998710031 | K62: 0.0678561489 | L62: 0.050787103 | M62: 0.04014913845 | N62: 0.01724056841 | O62: 0.02138079296 | P62: 0.02764841259 | Q62: 0.02908332526 | R62: 0.02999805181 | S62: 0.02862342395 | T62: 0.02859008902 | U62: 0.02645796609 | V62: 0.02535987097 | W62: 0.02603166667 | X62: 0.02588089886 | Y62: 0.03161548829 | Z62: 0.02989009559 | AA62: 0.03074181473 | AB62: 0.03164555132 | AC62: 0.03198509574 | AD62: 0.03211106038 | AE62: 0.03189862069 | AF62: 0.03156123678 | AG62: 0.03168247328 | AH62: 0.03155716677 | AI62: 0.03151523204 | AJ62: 0.03155143949 | AK62: 0.03162707775 | AL62: 0.03185242457 | AM62: 0.03228232228 | AN62: 0.03278668834 | AO62: 0.03321617786 | AP62: 0.03356262788 | AQ62: 0.03374565134 | AR62: 0.03376308848 | AS62: 0.03355599875 | AT62: 0.03335792603 | AU62: 0.03304699924 | AV62: 0.03280368141 | AW62: 0.0326475396 | AX62: 0.03245719533 | AY62: 0.03213216203 | AZ62: 0.03186064467 | BA62: 0.03176076651
C63: 12 | D63: 0.02555856572 | E63: 0.03395060278 | F63: 0.03831519548 | G63: 0.04488631557 | H63: 0.05609328482 | I63: 0.05234934886 | J63: 0.0626835633 | K63: 0.06627503265 | L63: 0.06403462231 | M63: 0.04822884641 | N63: 0.03726226792 | O63: 0.01757906671 | P63: 0.01869813949 | Q63: 0.02650001769 | R63: 0.02730195941 | S63: 0.02816344809 | T63: 0.02687776542 | U63: 0.02682703557 | V63: 0.0248277538 | W63: 0.02379507949 | X63: 0.02442895353 | Y63: 0.02429503262 | Z63: 0.02969893355 | AA63: 0.02809678422 | AB63: 0.02891023274 | AC63: 0.02976830657 | AD63: 0.03009109735 | AE63: 0.03020934722 | AF63: 0.03001942107 | AG63: 0.02973270282 | AH63: 0.02987761077 | AI63: 0.02979845142 | AJ63: 0.02980261644 | AK63: 0.02991125231 | AL63: 0.02995083714 | AM63: 0.03022634901 | AN63: 0.03065678298 | AO63: 0.03112852297 | AP63: 0.03144015978 | AQ63: 0.03170208839 | AR63: 0.0317242897 | AS63: 0.03175608379 | AT63: 0.03160975899 | AU63: 0.03142897529 | AV63: 0.03114221483 | AW63: 0.03090527034 | AX63: 0.03075855149 | AY63: 0.03056706714 | AZ63: 0.03025496009 | BA63: 0.03000385212
C64: 13 | D64: 0.01897577079 | E64: 0.02555856572 | F64: 0.03085354115 | G64: 0.03604219391 | H64: 0.04272357037 | I64: 0.0542956891 | J64: 0.04902936083 | K64: 0.05935887021 | L64: 0.06254255146 | M64: 0.06080905942 | N64: 0.0447610152 | O64: 0.03799386877 | P64: 0.0153734168 | Q64: 0.01792150004 | R64: 0.02487688051 | S64: 0.02563224178 | T64: 0.02644584214 | U64: 0.02522030514 | V64: 0.025174083 | W64: 0.02329579577 | X64: 0.02233006816 | Y64: 0.02293205604 | Z64: 0.02282224943 | AA64: 0.0279170913 | AB64: 0.02642279182 | AC64: 0.02719524974 | AD64: 0.02800557542 | AE64: 0.02830901246 | AF64: 0.02842966545 | AG64: 0.02828021385 | AH64: 0.02803891332 | AI64: 0.02821249891 | AJ64: 0.02817912992 | AK64: 0.02825334102 | AL64: 0.02832595074 | AM64: 0.02842183817 | AN64: 0.02870433588 | AO64: 0.02910633619 | AP64: 0.0294641286 | AQ64: 0.029697279 | AR64: 0.029803136 | AS64: 0.02983847887 | AT64: 0.02991423866 | AU64: 0.02978189751 | AV64: 0.0296174516 | AW64: 0.02933995597 | AX64: 0.02911709 | AY64: 0.02896734295 | AZ64: 0.02878130003 | BA64: 0.02849174452
C65: 14 | D65: 0.01533384739 | E65: 0.01897577079 | F65: 0.02322704737 | G65: 0.02902319299 | H65: 0.03430558263 | I65: 0.04135442775 | J65: 0.05085226446 | K65: 0.04642887725 | L65: 0.05601589387 | M65: 0.05939214742 | N65: 0.05643666468 | O65: 0.04563984514 | P65: 0.03322676851 | Q65: 0.01473487187 | R65: 0.01682380066 | S65: 0.02335547446 | T65: 0.02406900666 | U65: 0.0248150171 | V65: 0.02366635155 | W65: 0.02362075527 | X65: 0.02186152426 | Y65: 0.02096178102 | Z65: 0.02154189751 | AA65: 0.02145298651 | AB65: 0.02625380492 | AC65: 0.02485536622 | AD65: 0.02558488222 | AE65: 0.02634700138 | AF65: 0.0266412825 | AG65: 0.02678256242 | AH65: 0.02666916861 | AI65: 0.02647627407 | AJ65: 0.02667936199 | AK65: =MAX(AJ20*(1-AJ$3*$A20),0) -> 0.02671425071 | AL65: 0.02675590904 | AM65: 0.0268799027 | AN65: 0.02699068912 | AO65: 0.02725263283 | AP65: 0.02755006504 | AQ65: 0.02783078882 | AR65: 0.02791841452 | AS65: 0.02803152575 | AT65: 0.02810785435 | AU65: 0.0281844221 | AV65: 0.02806530915 | AW65: 0.02790343367 | AX65: 0.0276423448 | AY65: 0.02742147114 | AZ65: 0.02727503377 | BA65: 0.02710396725
C66: 15 | D66: 0.01387984994 | E66: 0.01533384739 | F66: 0.01724475199 | G66: 0.02184913152 | H66: 0.02762477634 | I66: 0.03320620739 | J66: 0.038731736 | K66: 0.04815509533 | L66: 0.04381409301 | M66: 0.05319425173 | N66: 0.05512163386 | O66: 0.05754473229 | P66: 0.03991340231 | Q66: 0.03184667294 | R66: 0.0138323548 | S66: 0.01579490027 | T66: 0.0219310927 | U66: =MAX(T21*(1-T$3*$A21),0) -> 0.02258475297 | V66: 0.0232860354 | W66: 0.02220605605 | X66: 0.02216647671 | Y66: 0.0205219474 | Z66: 0.01969106205 | AA66: 0.02024945167 | AB66: 0.02017482827 | AC66: 0.02469640379 | AD66: 0.02338355498 | AE66: 0.02406966888 | AF66: 0.02479485668 | AG66: 0.02509779134 | AH66: 0.02525683422 | AI66: 0.02518286673 | AJ66: 0.0250374879 | AK66: 0.02529244753 | AL66: 0.02529839078 | AM66: 0.02539001208 | AN66: 0.02552639604 | AO66: 0.02562565263 | AP66: 0.02579547635 | AQ66: 0.0260228311 | AR66: 0.02616372695 | AS66: 0.02625883919 | AT66: 0.02640570407 | AU66: 0.02648249352 | AV66: 0.02655991007 | AW66: 0.02644111665 | AX66: 0.02628893974 | AY66: 0.02603260697 | AZ66: 0.02581947377 | BA66: 0.02568548403
C67: 16 | D67: 0.0115716816 | E67: 0.01387984994 | F67: 0.01393505424 | G67: 0.01622172841 | H67: 0.02079638073 | I67: 0.02673949783 | J67: 0.03110027459 | K67: 0.03667743136 | L67: 0.04544309384 | M67: 0.04160708207 | N67: 0.04936938964 | O67: 0.05620388238 | P67: 0.05032458027 | Q67: 0.03825557302 | R67: 0.02989605089 | S67: 0.01298640355 | T67: 0.01483161571 | U67: 0.02057867688 | V67: 0.02119318939 | W67: 0.02184920672 | X67: 0.02083887744 | Y67: 0.02080821372 | Z67: 0.01927789148 | AA67: 0.01850966049 | AB67: 0.01904299943 | AC67: 0.01897803792 | AD67: 0.02323400551 | AE67: 0.02199871083 | AF67: 0.02265168554 | AG67: 0.02335834018 | AH67: 0.02366803988 | AI67: 0.02384924328 | AJ67: 0.02381436751 | AK67: 0.02373592552 | AL67: 0.02395194342 | AM67: 0.02400690056 | AN67: 0.02411152715 | AO67: 0.02423541522 | AP67: 0.02425548829 | AQ67: 0.02436550779 | AR67: 0.02446406574 | AS67: 0.02460845683 | AT67: 0.0247358329 | AU67: 0.02487877154 | AV67: 0.02495607835 | AW67: 0.02502283786 | AX67: 0.02491123244 | AY67: 0.02475801676 | AZ67: 0.02451174881 | BA67: 0.02431475196
C68: 17 | D68: 0.009517170775 | E68: 0.0115716816 | F68: 0.0126136942 | G68: 0.01310837439 | H68: 0.01544012126 | I68: 0.02012992867 | J68: 0.02504368279 | K68: 0.02945073741 | L68: 0.03461182963 | M68: 0.04315402659 | N68: 0.03861538003 | O68: 0.0503386996 | P68: 0.04915196714 | Q68: 0.0482343159 | R68: 0.03591240317 | S68: 0.02806768529 | T68: 0.01219440095 | U68: 0.01391700047 | V68: 0.01931071804 | W68: 0.01988549653 | X68: 0.02050399855 | Y68: 0.01956196383 | Z68: 0.01954680411 | AA68: 0.01812127885 | AB68: 0.01740686414 | AC68: 0.01791335027 | AD68: 0.01785425285 | AE68: 0.02185801813 | AF68: 0.020702731 | AG68: 0.02133933595 | AH68: 0.02202768041 | AI68: 0.02234899418 | AJ68: 0.02255321646 | AK68: 0.02257638848 | AL68: 0.02247791734 | AM68: 0.02272918972 | AN68: 0.02279806062 | AO68: 0.02289210241 | AP68: 0.02293958474 | AQ68: 0.02291088875 | AR68: =MAX(AQ23*(1-AQ$3*$A23),0) -> 0.02290601596 | AS68: 0.02300982986 | AT68: 0.02318117232 | AU68: 0.02330546211 | AV68: 0.02344479275 | AW68: 0.02351182291 | AX68: 0.02357501533 | AY68: 0.02346053955 | AZ68: 0.0233116218 | BA68: 0.02308323934
C69: 18 | D69: 0.008491628868 | E69: =MAX(D24*(1-D$3*$A24),0) -> 0.009517170775 | F69: 0.01051608293 | G69: 0.01186540239 | H69: 0.01247677713 | I69: 0.01494531879 | J69: 0.01885329155 | K69: 0.02371538308 | L69: 0.02779212905 | M69: 0.03286835666 | N69: 0.04005109356 | O69: 0.03937354765 | P69: 0.04402269032 | Q69: 0.04711040802 | R69: 0.04527994387 | S69: 0.03371609293 | T69: 0.02635591963 | U69: 0.01144241376 | V69: 0.013059502 | W69: 0.01811918015 | X69: 0.01866118973 | Y69: 0.01924760482 | Z69: 0.01837610283 | AA69: 0.01837405758 | AB69: 0.01704162209 | AC69: 0.01637427211 | AD69: 0.0168526107 | AE69: 0.01679687053 | AF69: 0.02057032673 | AG69: 0.01950329617 | AH69: 0.02012369325 | AI69: 0.02080005374 | AJ69: 0.02113449459 | AK69: 0.02138079779 | AL69: 0.02137983597 | AM69: 0.02133041311 | AN69: 0.02158468745 | AO69: 0.02164506359 | AP69: 0.0216680968 | AQ69: 0.02166793213 | AR69: 0.02153852847 | AS69: 0.0215443964 | AT69: 0.02167526533 | AU69: 0.02184070111 | AV69: 0.02196216674 | AW69: 0.02208799826 | AX69: 0.02215142778 | AY69: 0.02220213635 | AZ69: 0.02208994486 | BA69: 0.021953054
C70: 19 | D70: 0.006285085226 | E70: 0.008491628868 | F70: 0.008648989888 | G70: 0.009892229319 | H70: 0.01129369492 | I70: 0.01207693959 | J70: 0.01399748886 | K70: 0.01785332593 | L70: 0.02237977874 | M70: 0.0263921792 | N70: 0.03050500108 | O70: 0.04083744973 | P70: 0.03443333874 | Q70: 0.04219417907 | R70: 0.04422487581 | S70: 0.04251073892 | T70: 0.03165984748 | U70: 0.02473063981 | V70: 0.0107373874 | W70: 0.0122536857 | X70: 0.01700362161 | Y70: 0.01751771512 | Z70: 0.0180808005 | AA70: 0.01727359467 | AB70: 0.01727934039 | AC70: 0.01603069656 | AD70: 0.0154046691 | AE70: 0.01585454863 | AF70: 0.01580733957 | AG70: 0.01937856288 | AH70: 0.01839224755 | AI70: 0.01900217786 | AJ70: 0.01966972741 | AK70: 0.02003582754 | AL70: 0.02024761179 | AM70: 0.02028838911 | AN70: 0.02025634463 | AO70: 0.02049305597 | AP70: 0.02048773524 | AQ70: 0.02046692894 | AR70: 0.02037002484 | AS70: 0.02025819751 | AT70: 0.02029482666 | AU70: 0.02042187448 | AV70: 0.02058183259 | AW70: 0.02069117463 | AX70: 0.02080998568 | AY70: 0.02086145069 | AZ70: 0.02090505919 | BA70: 0.02080257464
C71: 20 | D71: 0.005163155843 | E71: 0.006285085226 | F71: 0.007717000561 | G71: 0.008135899262 | H71: 0.009415594711 | I71: 0.01093177107 | J71: 0.01131102185 | K71: 0.01325507168 | L71: 0.01684786127 | M71: 0.02125246072 | N71: 0.02449448457 | O71: 0.03110393094 | P71: 0.03571356465 | Q71: 0.03300312748 | R71: 0.03960976794 | S71: 0.04152019612 | T71: 0.03991813386 | U71: 0.02970749248 | V71: 0.02320685703 | W71: 0.01007485357 | X71: 0.0114992529 | Y71: 0.01596171539 | Z71: 0.01645577802 | AA71: 0.01699600956 | AB71: 0.01624444251 | AC71: 0.01625431318 | AD71: 0.0150814384 | AE71: 0.01449235847 | AF71: 0.01492053139 | AG71: 0.01489152447 | AH71: 0.01827461998 | AI71: 0.01736722752 | AJ71: 0.01796955254 | AK71: 0.0186472056 | AL71: 0.0189739252 | AM71: 0.01921396531 | AN71: 0.01926679055 | AO71: 0.01923189322 | AP71: 0.0193973237 | AQ71: 0.01935200055 | AR71: 0.01924096164 | AS71: 0.01915915412 | AT71: 0.01908322698 | AU71: 0.01912126086 | AV71: 0.01924478521 | AW71: 0.01939072302 | AX71: 0.01949398233 | AY71: 0.0195981268 | AZ71: 0.0196426981 | BA71: 0.0196867424
C72: 21 | D72: 0.005470811972 | E72: 0.005163155843 | F72: 0.005711743527 | G72: 0.007259199049 | H72: 0.007743889429 | I72: 0.009113857475 | J72: 0.01023847975 | K72: 0.01071109303 | L72: 0.01250857177 | M72: 0.01599919794 | N72: 0.01972433073 | O72: 0.024975405 | P72: 0.02720131291 | Q72: 0.03423017837 | R72: 0.03098167211 | S72: 0.03718733638 | T72: 0.03898800135 | U72: 0.03745651846 | V72: 0.02787706004 | W72: 0.02177491393 | X72: 0.009454566737 | Y72: 0.01079462989 | Z72: 0.01499410417 | AA72: 0.01546848329 | AB72: 0.01598339578 | AC72: 0.01528080646 | AD72: 0.01529181355 | AE72: 0.01418827045 | AF72: 0.01363859006 | AG72: 0.01405609447 | AH72: 0.01404319568 | AI72: 0.01725615546 | AJ72: 0.01642344945 | AK72: 0.01703541356 | AL72: 0.01765890047 | AM72: 0.01800530079 | AN72: 0.01824646813 | AO72: 0.0182923852 | AP72: 0.01820359339 | AQ72: 0.01832203582 | AR72: 0.01819281737 | AS72: 0.01809720668 | AT72: 0.01804792784 | AU72: 0.01797972298 | AV72: 0.01801913721 | AW72: 0.01813105311 | AX72: 0.01826877491 | AY72: 0.01835876022 | AZ72: 0.0184531792 | BA72: 0.0184979499
C73: 22 | D73: 0.006011597045 | E73: 0.005470811972 | F73: 0.004692159438 | G73: 0.005372901408 | H73: 0.006909431025 | I73: 0.007495724564 | J73: =MAX(I28*(1-I$3*$A28),0) -> 0.00853585797 | K73: 0.009695437827 | L73: 0.01010786507 | M73: 0.01187848787 | N73: 0.01484879684 | O73: 0.02011159479 | P73: 0.02184173466 | Q73: 0.02607148858 | R73: 0.03213356562 | S73: 0.0290869127 | T73: 0.03491938999 | U73: 0.03658374406 | V73: 0.0351486284 | W73: 0.02615694931 | X73: 0.0204342798 | Y73: 0.008875232989 | Z73: 0.01014025129 | AA73: 0.01409450526 | AB73: 0.01454687877 | AC73: 0.01503524526 | AD73: 0.01437595305 | AE73: 0.01438618656 | AF73: 0.01335241637 | AG73: 0.01284842378 | AH73: 0.0132553578 | AI73: 0.01326055305 | AJ73: 0.01631841332 | AK73: 0.01556968393 | AL73: 0.01613253368 | AM73: 0.01675740845 | AN73: 0.01709866452 | AO73: 0.01732366491 | AP73: 0.01731431942 | AQ73: 0.01719447978 | AR73: 0.01722454744 | AS73: 0.01711136803 | AT73: 0.01704757309 | AU73: 0.01700429091 | AV73: 0.01694339603 | AW73: 0.01697633567 | AX73: 0.01708198956 | AY73: 0.01720490214 | AZ73: 0.017286218 | BA73: 0.01737775445
C74: 23 | D74: 0.005915089562 | E74: 0.006011597045 | F74: 0.004971750381 | G74: 0.004413802884 | H74: 0.005114020353 | I74: 0.006688007665 | J74: 0.007020346811 | K74: 0.008083121934 | L74: 0.009149409588 | M74: 0.009598709967 | N74: 0.01102438096 | O74: 0.01514033552 | P74: 0.01758818794 | Q74: 0.02093452392 | R74: 0.02447459899 | S74: 0.03016835937 | T74: 0.02731298736 | U74: 0.03276603011 | V74: 0.03432963015 | W74: 0.03297983683 | X74: 0.02454652279 | Y74: 0.01918215813 | Z74: 0.008337209672 | AA74: 0.009531868222 | AB74: 0.01325476166 | AC74: 0.01368394383 | AD74: 0.01414493277 | AE74: 0.01352456606 | AF74: 0.01353867291 | AG74: 0.01257882986 | AH74: 0.01211648476 | AI74: 0.01251662224 | AJ74: 0.01253994182 | AK74: 0.01547010805 | AL74: 0.01474448798 | AM74: 0.01530896313 | AN74: 0.01591360837 | AO74: 0.01623391072 | AP74: 0.01639739512 | AQ74: 0.01635450259 | AR74: 0.01616453191 | AS74: 0.0162006557 | AT74: 0.01611891285 | AU74: 0.01606178253 | AV74: 0.01602418654 | AW74: 0.01596284966 | AX74: 0.01599408412 | AY74: 0.01608722862 | AZ74: 0.01619976978 | BA74: 0.01627880207
C75: 24 | D75: 0.00734032143 | E75: 0.005915089562 | F75: 0.005463203644 | G75: 0.00467680744 | H75: 0.004201133814 | I75: 0.004950133693 | J75: 0.006263855199 | K75: 0.006647992445 | L75: 0.007627896197 | M75: 0.008688533972 | N75: 0.008908527462 | O75: 0.01124083173 | P75: 0.01324067382 | Q75: 0.01685765105 | R75: 0.01965227557 | S75: 0.02297779545 | T75: 0.02832847977 | U75: 0.02562868843 | V75: 0.03074714533 | W75: 0.03221137359 | X75: 0.03094933996 | Y75: 0.02304242118 | Z75: 0.01801932124 | AA75: 0.007837003412 | AB75: 0.008963964265 | AC75: 0.01246847636 | AD75: 0.01287364869 | AE75: 0.0133072275 | AF75: 0.01272781188 | AG75: 0.01275429544 | AH75: 0.01186224886 | AI75: 0.01144121984 | AJ75: 0.01183643805 | AK75: 0.01188805867 | AL75: 0.01465018964 | AM75: 0.01399177757 | AN75: 0.01453809786 | AO75: 0.01510878802 | AP75: 0.01536590842 | AQ75: 0.01548840786 | AR75: 0.01537486928 | AS75: 0.01520365147 | AT75: 0.01526102161 | AU75: 0.01518682286 | AV75: 0.01513600307 | AW75: 0.01509683656 | AX75: 0.01503923846 | AY75: 0.0150626768 | AZ75: 0.01514739217 | BA75: 0.01525567049
C76: 25 | D76: 0.009639680642 | E76: 0.00734032143 | F76: 0.005375499823 | G76: 0.005139105846 | H76: 0.004451466092 | I76: 0.00406650201 | J76: 0.00463619694 | K76: 0.005931624628 | L76: 0.006273590415 | M76: 0.007243662513 | N76: 0.008063796465 | O76: 0.009083435933 | P76: 0.009830441747 | Q76: 0.01269071377 | R76: 0.01582511286 | S76: 0.01845039292 | T76: 0.02157644721 | U76: 0.02658155888 | V76: 0.02404957222 | W76: 0.02884994044 | X76: 0.03022818933 | Y76: 0.02905290222 | Z76: 0.02164557223 | AA76: 0.01693821885 | AB76: 0.007370078656 | AC76: 0.008432213225 | AD76: 0.01173015517 | AE76: 0.01211123267 | AF76: 0.01252327708 | AG76: 0.0119904125 | AH76: 0.01202771865 | AI76: 0.01120115278 | AJ76: 0.01081947568 | AK76: 0.01122112622 | AL76: 0.0112579895 | AM76: 0.01390229319 | AN76: 0.01328723766 | AO76: 0.01380284305 | AP76: 0.0143009443 | AQ76: 0.01451410147 | AR76: 0.01456065355 | AS76: 0.01446092935 | AT76: 0.01432184338 | AU76: 0.01437853992 | AV76: 0.0143114749 | AW76: 0.01426005395 | AX76: 0.01422333292 | AY76: 0.01416343609 | AZ76: 0.01418269598 | BA76: 0.01426462394
C77: 26 | D77: 0.008522013953 | E77: 0.009639680642 | F77: 0.00667071836 | G77: 0.005056604945 | H77: 0.004891489699 | I77: 0.004308812005 | J77: 0.003808605048 | K77: 0.004390296243 | L77: 0.005597567043 | M77: 0.005957576052 | N77: 0.00672281657 | O77: 0.008222119635 | P77: 0.007943734944 | Q77: 0.009422127916 | R77: 0.01191340224 | S77: 0.01485728965 | T77: 0.01732515767 | U77: 0.02024590118 | V77: 0.02494373139 | W77: 0.02256563069 | X77: 0.02707371231 | Y77: 0.02837594049 | Z77: 0.02729169338 | AA77: 0.02034690624 | AB77: 0.01592904822 | AC77: 0.006932878454 | AD77: 0.007932899471 | AE77: 0.01103546025 | AF77: 0.01139774026 | AG77: 0.01179772765 | AH77: 0.01130735201 | AI77: 0.01135740076 | AJ77: 0.01059245446 | AK77: 0.01025703017 | AL77: 0.01062640459 | AM77: 0.01068326585 | AN77: 0.01320225916 | AO77: 0.01261524429 | AP77: 0.0130648262 | AQ77: 0.01350817349 | AR77: 0.01364470803 | AS77: 0.01369511366 | AT77: 0.01362219896 | AU77: 0.01349367048 | AV77: 0.0135497803 | AW77: 0.01348324279 | AX77: 0.01343496659 | AY77: 0.01339504439 | AZ77: 0.01333599006 | BA77: 0.01335614885
C78: 27 | D78: 0.006559944529 | E78: 0.008522013953 | F78: 0.008760324089 | G78: 0.006274986245 | H78: 0.004812963917 | I78: 0.004734734377 | J78: 0.004035547779 | K78: 0.003606599256 | L78: 0.004143043281 | M78: 0.005315605444 | N78: 0.00552920445 | O78: 0.006854811175 | P78: 0.007190488219 | Q78: 0.007613786715 | R78: 0.008845018639 | S78: 0.01118480919 | T78: 0.01395118721 | U78: 0.01625677418 | V78: 0.01899844637 | W78: 0.02340461715 | X78: 0.02117631385 | Y78: 0.02541475578 | Z78: 0.02665576958 | AA78: 0.02565427794 | AB78: 0.0191346477 | AC78: 0.01498412165 | AD78: 0.006522347852 | AE78: 0.007463089408 | AF78: 0.01038534334 | AG78: 0.0107374 | AH78: 0.01112564387 | AI78: 0.01067718094 | AJ78: 0.01074021153 | AK78: 0.01004181055 | AL78: 0.009713405791 | AM78: 0.01008392353 | AN78: 0.01014532226 | AO78: 0.01253456352 | AP78: 0.01194072652 | AQ78: 0.01234057942 | AR78: 0.01269903505 | AS78: 0.01283361538 | AT78: 0.0129008004 | AU78: 0.0128344836 | AV78: 0.01271591354 | AW78: 0.01276562889 | AX78: 0.01270310175 | AY78: 0.01265258817 | AZ78: 0.01261248879 | BA78: 0.01255878774
C79: 28 | D79: 0.006168153486 | E79: 0.006559944529 | F79: 0.007744613841 | G79: 0.008240628699 | H79: 0.005972640281 | I79: 0.004658725075 | J79: 0.004434458217 | K79: 0.0038215051 | L79: 0.003403482587 | M79: 0.0039343492 | N79: 0.004933393887 | O79: 0.005637763883 | P79: 0.005994736295 | Q79: 0.006891826585 | R79: 0.007147439093 | S79: 0.008304080041 | T79: 0.01050268054 | U79: 0.01309086499 | V79: 0.01525511015 | W79: 0.01782617672 | X79: 0.02196364575 | Y79: 0.01987872364 | Z79: 0.02387409412 | AA79: 0.02505650756 | AB79: 0.02412580885 | AC79: 0.01799956188 | AD79: 0.01409683645 | AE79: 0.00613607488 | AF79: 0.007023426675 | AG79: 0.009783657384 | AH79: 0.01012572014 | AI79: 0.0105055996 | AJ79: 0.01009695653 | AK79: =MAX(AJ34*(1-AJ$3*$A34),0) -> 0.01018188654 | AL79: 0.009509592841 | AM79: 0.009217533594 | AN79: 0.009576159133 | AO79: 0.009632229205 | AP79: 0.01186435964 | AQ79: 0.01127879405 | AR79: 0.01160137977 | AS79: 0.01194415675 | AT79: 0.01208926881 | AU79: 0.01215480053 | AV79: 0.0120947213 | AW79: 0.01198001958 | AX79: 0.01202700903 | AY79: 0.01196334311 | AZ79: 0.01191340781 | BA79: 0.01187745108
C80: 29 | D80: 0.005805893001 | E80: =MAX(D35*(1-D$3*$A35),0) -> 0.006168153486 | F80: =MAX(E35*(1-E$3*$A35),0) -> 0.005961529455 | G80: 0.007285174205 | H80: 0.007843572716 | I80: 0.005781237823 | J80: 0.004363269414 | K80: 0.004199257603 | L80: 0.003606285351 | M80: 0.003232041783 | N80: 0.003651455041 | O80: 0.00503025528 | P80: 0.004930392233 | Q80: 0.005745741 | R80: 0.006469699323 | S80: 0.006710320095 | T80: 0.007797638597 | U80: 0.009855015989 | V80: 0.01228426902 | W80: 0.01431381725 | X80: 0.01672865776 | Y80: 0.02061781134 | Z80: 0.01867366042 | AA80: 0.02244172384 | AB80: 0.02356365333 | AC80: 0.02269464251 | AD80: 0.01693371729 | AE80: 0.01326197958 | AF80: 0.00577458873 | AG80: 0.006616516949 | AH80: 0.009226309596 | AI80: 0.009561402708 | AJ80: 0.009934699347 | AK80: 0.009572070857 | AL80: 0.009642244781 | AM80: 0.009024125355 | AN80: 0.008753395264 | AO80: 0.009091851135 | AP80: 0.009117208684 | AQ80: 0.01120666055 | AR80: 0.01060319525 | AS80: 0.01091175021 | AT80: 0.01125139856 | AU80: 0.01139019645 | AV80: 0.01145421424 | AW80: 0.01139477691 | AX80: 0.0112868551 | AY80: 0.0113266223 | AZ80: 0.01126442932 | BA80: 0.01121911153
C81: 30 | D81: 0.005468983694 | E81: 0.005805893001 | F81: =MAX(E36*(1-E$3*$A36),0) -> 0.005605478602 | G81: =MAX(F36*(1-F$3*$A36),0) -> 0.005607869095 | H81: =MAX(G36*(1-G$3*$A36),0) -> 0.006934154627 | I81: =MAX(H36*(1-H$3*$A36),0) -> 0.007592213347 | J81: =MAX(I36*(1-I$3*$A36),0) -> 0.005414592568 | K81: =MAX(J36*(1-J$3*$A36),0) -> 0.004131844605 | L81: =MAX(K36*(1-K$3*$A36),0) -> 0.003962763566 | M81: =MAX(L36*(1-L$3*$A36),0) -> 0.003424628932 | N81: =MAX(M36*(1-M$3*$A36),0) -> 0.002999646107 | O81: =MAX(N36*(1-N$3*$A36),0) -> 0.003723147071 | P81: =MAX(O36*(1-O$3*$A36),0) -> 0.004399107886 | Q81: =MAX(P36*(1-P$3*$A36),0) -> 0.004725605165 | R81: =MAX(Q36*(1-Q$3*$A36),0) -> 0.00539381196 | S81: =MAX(R36*(1-R$3*$A36),0) -> 0.006074029147 | T81: =MAX(S36*(1-S$3*$A36),0) -> 0.006301077388 | U81: =MAX(T36*(1-T$3*$A36),0) -> 0.007316784775 | V81: =MAX(U36*(1-U$3*$A36),0) -> 0.009247797424 | W81: =MAX(V36*(1-V$3*$A36),0) -> 0.01152628726 | X81: =MAX(W36*(1-W$3*$A36),0) -> 0.01343254663 | Y81: =MAX(X36*(1-X$3*$A36),0) -> 0.01570360011 | Z81: =MAX(Y36*(1-Y$3*$A36),0) -> 0.01936794407 | AA81: =MAX(Z36*(1-Z$3*$A36),0) -> 0.01755329975 | AB81: =MAX(AA36*(1-AA$3*$A36),0) -> 0.02110465712 | AC81: =MAX(AB36*(1-AB$3*$A36),0) -> 0.0221658346 | AD81: =MAX(AC36*(1-AC$3*$A36),0) -> 0.02135077858 | AE81: =MAX(AD36*(1-AD$3*$A36),0) -> 0.01593085184 | AF81: =MAX(AE36*(1-AE$3*$A36),0) -> 0.0124806948 | AG81: =MAX(AF36*(1-AF$3*$A36),0) -> 0.005440031764 | AH81: =MAX(AG36*(1-AG$3*$A36),0) -> 0.006239592355 | AI81: =MAX(AH36*(1-AH$3*$A36),0) -> 0.008712117291 | AJ81: =MAX(AI36*(1-AI$3*$A36),0) -> 0.009041812452 | AK81: =MAX(AJ36*(1-AJ$3*$A36),0) -> 0.009418248536 | AL81: =MAX(AK36*(1-AK$3*$A36),0) -> 0.009064749438 | AM81: =MAX(AL36*(1-AL$3*$A36),0) -> 0.009150005375 | AN81: =MAX(AM36*(1-AM$3*$A36),0) -> 0.008569725876 | AO81: =MAX(AN36*(1-AN$3*$A36),0) -> 0.008310698012 | AP81: =MAX(AO36*(1-AO$3*$A36),0) -> 0.008605723801 | AQ81: =MAX(AP36*(1-AP$3*$A36),0) -> 0.008611797518 | AR81: =MAX(AQ36*(1-AQ$3*$A36),0) -> 0.01053538254 | AS81: =MAX(AR36*(1-AR$3*$A36),0) -> 0.009972901531 | AT81: =MAX(AS36*(1-AS$3*$A36),0) -> 0.01027887136 | AU81: =MAX(AT36*(1-AT$3*$A36),0) -> 0.01060077677 | AV81: =MAX(AU36*(1-AU$3*$A36),0) -> 0.01073368091 | AW81: =MAX(AV36*(1-AV$3*$A36),0) -> 0.0107913372 | AX81: =MAX(AW36*(1-AW$3*$A36),0) -> 0.0107354746 | AY81: =MAX(AX36*(1-AX$3*$A36),0) -> 0.01062957086 | AZ81: =MAX(AY36*(1-AY$3*$A36),0) -> 0.01066490656 | BA81: =MAX(AZ36*(1-AZ$3*$A36),0) -> 0.01060795458
C82: 31 | D82: 0.005184583009 | E82: 0.005468983694 | F82: 0.005276264462 | G82: 0.005272940528 | H82: 0.005337666665 | I82: 0.006711938968 | J82: 0.0071107163 | K82: 0.005127406311 | L82: 0.003899147145 | M82: 0.003763150574 | N82: 0.003178385542 | O82: 0.003058540634 | P82: 0.003256002882 | Q82: 0.00421638807 | R82: 0.00443615988 | S82: 0.005063940299 | T82: 0.005703591967 | U82: 0.005912511412 | V82: 0.006865959792 | W82: 0.008677176451 | X82: 0.01081663883 | Y82: 0.01260946001 | Z82: 0.01475163606 | AA82: 0.01820592861 | AB82: 0.01650748293 | AC82: 0.01985270847 | AD82: 0.02085328409 | AE82: 0.02008632158 | AF82: 0.01499233948 | AG82: 0.01175761244 | AH82: 0.005130128274 | AI82: 0.005891853074 | AJ82: 0.00823867932 | AK82: 0.008571777975 | AL82: 0.008919079745 | AM82: 0.008601991354 | AN82: 0.008689267368 | AO82: 0.008136317599 | AP82: 0.007866337752 | AQ82: 0.008128666743 | AR82: 0.008095951597 | AS82: 0.009909119881 | AT82: 0.009394475687 | AU82: 0.009684486806 | AV82: 0.009989762331 | AW82: 0.01011250252 | AX82: 0.01016694997 | AY82: 0.01011029974 | AZ82: 0.01000857777 | BA82: 0.01004337116
C83: 32 | D83: 0.004934327044 | E83: 0.005184583009 | F83: 0.004970088892 | G83: 0.00496325661 | H83: 0.005018875871 | I83: 0.00516661292 | J83: 0.006286268793 | K83: 0.00673356881 | L83: 0.004838640751 | M83: 0.00370273865 | N83: 0.003492566236 | O83: 0.003240789408 | P83: 0.00267478478 | Q83: 0.003120762678 | R83: 0.003958132545 | S83: 0.004164855757 | T83: 0.004755105469 | U83: 0.005351870882 | V83: 0.00554821098 | W83: 0.00644230641 | X83: 0.008142941574 | Y83: 0.01015384339 | Z83: 0.01184506506 | AA83: 0.01386658449 | AB83: 0.01712122849 | AC83: 0.01552824309 | AD83: 0.01867712979 | AE83: 0.0196182902 | AF83: 0.01890300375 | AG83: 0.01412374231 | AH83: 0.01108781393 | AI83: 0.004844220635 | AJ83: 0.005571675226 | AK83: 0.007810395351 | AL83: 0.008117472269 | AM83: 0.008463758141 | AN83: 0.008168847964 | AO83: 0.008249813359 | AP83: 0.007701281192 | AQ83: 0.007430268453 | AR83: 0.007641760313 | AS83: 0.007614697867 | AT83: 0.009334393357 | AU83: 0.008851232074 | AV83: 0.009126286082 | AW83: 0.009411635914 | AX83: 0.009527392687 | AY83: 0.009574882845 | AZ83: 0.009519643135 | BA83: 0.00942529227
C84: 33 | D84: 0.004701164259 | E84: 0.004934327044 | F84: 0.004711631971 | G84: 0.004675244526 | H84: 0.004724113368 | I84: 0.004858038268 | J84: 0.004838947094 | K84: 0.00595284943 | L84: 0.006354347299 | M84: 0.004594907926 | N84: 0.003436498151 | O84: 0.00356113867 | P84: 0.002834166755 | Q84: 0.002563685849 | R84: 0.002929614664 | S84: 0.003716063343 | T84: 0.003910853449 | U84: 0.004461874314 | V84: 0.005022114415 | W84: 0.005205867241 | X84: 0.00604566762 | Y84: 0.007643978391 | Z84: 0.009538309763 | AA84: 0.01113439858 | AB84: 0.01304042033 | AC84: 0.01610558067 | AD84: 0.01460873775 | AE84: 0.01757101427 | AF84: 0.01846254486 | AG84: 0.01780783807 | AH84: 0.01331915196 | AI84: 0.01046987798 | AJ84: 0.004580973722 | AK84: 0.005282034243 | AL84: 0.007396443055 | AM84: 0.007703072959 | AN84: 0.008037575325 | AO84: 0.007755713825 | AP84: 0.007808708508 | AQ84: 0.00727436178 | AR84: 0.00698519602 | AS84: 0.007187505416 | AT84: 0.007173047257 | AU84: 0.008794624057 | AV84: 0.008341059026 | AW84: 0.008598130667 | AX84: 0.008867078253 | AY84: 0.008972569857 | AZ84: 0.009015505977 | BA84: 0.008964852039
C85: 34 | D85: 0.0044736914 | E85: 0.004701164259 | F85: 0.004484205001 | G85: 0.004432120242 | H85: 0.004449978492 | I85: 0.004572721883 | J85: 0.0045499422 | K85: 0.004582292676 | L85: 0.005617596517 | M85: 0.006034265049 | N85: 0.004264517181 | O85: 0.003503969754 | P85: 0.003114321716 | Q85: 0.00271644779 | R85: 0.002406659023 | S85: 0.002750446969 | T85: 0.003489431565 | U85: 0.003669684441 | V85: 0.004186955142 | W85: 0.004712232647 | X85: 0.004885353321 | Y85: 0.005675216041 | Z85: 0.007180594671 | AA85: 0.008966041308 | AB85: 0.01047101668 | AC85: 0.01226684999 | AD85: 0.01515188827 | AE85: 0.01374356458 | AF85: 0.01653587728 | AG85: 0.01739289764 | AH85: 0.01679337503 | AI85: 0.01257686111 | AJ85: 0.009900918952 | AK85: 0.004342833902 | AL85: 0.00500208552 | AM85: 0.007018852495 | AN85: 0.007315193572 | AO85: 0.007631080214 | AP85: 0.007341027718 | AQ85: 0.007375833878 | AR85: 0.006838628143 | AS85: 0.006569969768 | AT85: 0.006770631864 | AU85: 0.006758259648 | AV85: 0.008287713818 | AW85: 0.007858346184 | AX85: 0.008100642454 | AY85: 0.008350708496 | AZ85: 0.008448380881 | BA85: 0.008490095269
C86: 35 | D86: 0.004242380136 | E86: 0.0044736914 | F86: 0.004272311926 | G86: 0.004218185095 | H86: 0.004218568599 | I86: 0.004307372081 | J86: 0.004282720538 | K86: 0.004308616403 | L86: 0.004324226856 | M86: 0.005334626001 | N86: 0.005600379243 | O86: 0.004348245965 | P86: 0.003064325798 | Q86: 0.002984966331 | R86: 0.002550064231 | S86: 0.00225947395 | T86: 0.002582705295 | U86: 0.003274250209 | V86: 0.003443576187 | W86: 0.00392860558 | X86: 0.004422110735 | Y86: 0.004586000633 | Z86: 0.005331180176 | AA86: 0.006749781674 | AB86: 0.008431849055 | AC86: 0.009849865855 | AD86: 0.01154046813 | AE86: 0.0142545481 | AF86: 0.01293390887 | AG86: 0.0155778536 | AH86: 0.0164020726 | AI86: 0.01585746194 | AJ86: 0.01189340342 | AK86: 0.009386224218 | AL86: 0.004112662959 | AM86: 0.004746727605 | AN86: 0.006665426243 | AO86: 0.006945232445 | AP86: 0.007223058074 | AQ86: 0.006934078905 | AR86: 0.006934022071 | AS86: 0.006432114434 | AT86: 0.006188913132 | AU86: 0.00637911427 | AV86: 0.0063687227 | AW86: 0.007808088164 | AX86: 0.007403661934 | AY86: 0.007628905693 | AZ86: 0.007862849454 | BA86: 0.007956021407
C87: 36 | D87: 0.004026291535 | E87: 0.004242380136 | F87: 0.004065589728 | G87: 0.004018862314 | H87: 0.004014941431 | I87: 0.004083378075 | J87: 0.004034199182 | K87: 0.004055567994 | L87: 0.004065963499 | M87: 0.004106406175 | N87: 0.004951046811 | O87: 0.00571033611 | P87: 0.003802670462 | Q87: 0.002937047027 | R87: 0.0028021359 | S87: 0.002394108864 | T87: 0.002121675277 | U87: 0.002423438658 | V87: 0.003072506705 | W87: 0.003231095669 | X87: 0.003686729881 | Y87: 0.004151143489 | Z87: 0.004307993825 | AA87: 0.005011326206 | AB87: 0.00634763306 | AC87: 0.007931663621 | AD87: 0.009266605777 | AE87: 0.01085700707 | AF87: 0.01341478952 | AG87: 0.01218456907 | AH87: 0.01469042657 | AI87: 0.01548796722 | AJ87: 0.01499572829 | AK87: 0.01127513029 | AL87: 0.008888752721 | AM87: 0.003902710324 | AN87: 0.004507711591 | AO87: 0.006328326674 | AP87: 0.006573881532 | AQ87: 0.006822648892 | AR87: 0.006518728182 | AS87: 0.00652183779 | AT87: 0.006059053374 | AU87: 0.005831033923 | AV87: 0.006011430749 | AW87: 0.006000152687 | AX87: 0.007356311845 | AY87: 0.006972513476 | AZ87: 0.007183215292 | BA87: 0.007404613909
C88: 37 | D88: 0.003809290681 | E88: 0.004026291535 | F88: 0.003855379275 | G88: 0.003824403655 | H88: 0.003825222566 | I88: 0.003886276453 | J88: 0.003824410842 | K88: 0.003820228038 | L88: 0.003827166285 | M88: 0.003861152102 | N88: 0.003811140498 | O88: 0.005048254799 | P88: 0.004993858818 | Q88: 0.003644724064 | R88: 0.002757151673 | S88: 0.002630764479 | T88: 0.002248099203 | U88: 0.00199083879 | V88: 0.002274118059 | W88: 0.002882922452 | X88: 0.003032164137 | Y88: 0.003460823498 | Z88: 0.003899498048 | AA88: 0.004049527804 | AB88: 0.004712753899 | AC88: 0.005971085333 | AD88: 0.007461989941 | AE88: 0.008717809651 | AF88: 0.01021740315 | AG88: 0.01263758938 | AH88: 0.01149044803 | AI88: 0.01387171309 | AJ88: 0.01464631283 | AK88: 0.01421618223 | AL88: 0.01067754645 | AM88: 0.00843497932 | AN88: 0.00370619383 | AO88: 0.004279737028 | AP88: 0.005989960765 | AQ88: 0.006209459357 | AR88: 0.006413972817 | AS88: 0.006131230528 | AT88: 0.006143572797 | AU88: 0.005708683417 | AV88: 0.005494941012 | AW88: 0.005663537896 | AX88: 0.005652983593 | AY88: 0.006927920795 | AZ88: 0.006565170345 | BA88: 0.006764587847
C89: 38 | D89: 0.003615746841 | E89: 0.003809290681 | F89: 0.003659002834 | G89: 0.003626663676 | H89: 0.003640133455 | I89: 0.00370263742 | J89: 0.003639809375 | K89: 0.003621566727 | L89: 0.003605080218 | M89: 0.003634383622 | N89: 0.003583521094 | O89: 0.003885967765 | P89: 0.004414849014 | Q89: 0.004786435634 | R89: 0.003421483197 | S89: 0.002588531371 | T89: 0.002470321888 | U89: 0.002109466585 | V89: 0.001868172908 | W89: 0.002133797137 | X89: 0.002705427189 | Y89: 0.002846366627 | Z89: 0.003251025775 | AA89: 0.003665540484 | AB89: 0.003808258965 | AC89: 0.004433188784 | AD89: 0.005617507351 | AE89: 0.007020068565 | AF89: 0.008204229324 | AG89: 0.009625447007 | AH89: 0.01191766104 | AI89: 0.01085007284 | AJ89: 0.01311788994 | AK89: 0.01388493097 | AL89: 0.01346272213 | AM89: 0.01013245461 | AN89: 0.008010245629 | AO89: 0.003518755503 | AP89: 0.004050906062 | AQ89: 0.005657908154 | AR89: 0.005837513283 | AS89: 0.006032702214 | AT89: 0.00577562066 | AU89: 0.005788315432 | AV89: 0.005379642624 | AW89: 0.005176938396 | AX89: 0.005335845349 | AY89: 0.005323784991 | AZ89: 0.006523182826 | BA89: 0.00618256167
C90: 39 | D90: 0.003443779071 | E90: 0.003615746841 | F90: 0.003461797357 | G90: 0.003441937024 | H90: 0.003451921127 | I90: 0.003523479775 | J90: 0.003467816703 | K90: 0.003446756395 | L90: 0.003417607126 | M90: 0.003423484512 | N90: 0.003373058099 | O90: 0.003653879321 | P90: 0.003398394422 | Q90: 0.00423147538 | R90: 0.004493264458 | S90: 0.003212234089 | T90: 0.002430664453 | U90: 0.002317985553 | V90: 0.001979491429 | W90: 0.001752900201 | X90: 0.002002423889 | Y90: 0.002539650663 | Z90: 0.002673817741 | AA90: 0.003055974498 | AB90: 0.003447149416 | AC90: 0.003582349363 | AD90: 0.004170677388 | AE90: 0.005284821754 | AF90: 0.006606504924 | AG90: 0.007728908551 | AH90: 0.009077112043 | AI90: 0.0112534768 | AJ90: 0.01026045309 | AK90: 0.01243596244 | AL90: 0.01314902724 | AM90: 0.01277544626 | AN90: 0.0096222465 | AO90: 0.007605132699 | AP90: 0.00333061305 | AQ90: 0.003826344668 | AR90: 0.005318999948 | AS90: 0.005490509597 | AT90: 0.005682806965 | AU90: 0.005441640443 | AV90: 0.005454684757 | AW90: 0.005068312543 | AX90: 0.004877400516 | AY90: 0.00502511513 | AZ90: 0.005012762681 | BA90: 0.006143021123
C91: 40 | D91: 0.03307566698 | E91: =E47 -> 0.03307566698 | F91: =F47 -> 0.03307566698 | G91: 0.03307566698 | H91: 0.03307566698 | I91: 0.03307566698 | J91: 0.03307566698 | K91: 0.03307566698 | L91: 0.03307566698 | M91: 0.03307566698 | N91: 0.03307566698 | O91: 0.03307566698 | P91: 0.03307566698 | Q91: 0.03307566698 | R91: 0.03307566698 | S91: 0.03307566698 | T91: 0.03307566698 | U91: 0.03307566698 | V91: 0.03307566698 | W91: 0.03307566698 | X91: 0.03307566698 | Y91: 0.03307566698 | Z91: 0.03307566698 | AA91: 0.03307566698 | AB91: 0.03307566698 | AC91: 0.03307566698 | AD91: 0.03307566698 | AE91: 0.03307566698 | AF91: 0.03307566698 | AG91: 0.03307566698 | AH91: 0.03307566698 | AI91: 0.03307566698 | AJ91: 0.03307566698 | AK91: 0.03307566698 | AL91: 0.03307566698 | AM91: 0.03307566698 | AN91: 0.03307566698 | AO91: 0.03307566698 | AP91: 0.03307566698 | AQ91: 0.03307566698 | AR91: 0.03307566698 | AS91: 0.03307566698 | AT91: 0.03307566698 | AU91: 0.03307566698 | AV91: 0.03307566698 | AW91: 0.03307566698 | AX91: 0.03307566698 | AY91: 0.03307566698 | AZ91: 0.03307566698 | BA91: 0.03307566698

Sheet 21 (hidden)
D1: 2011 | E1: 2012 | F1: 2013 | G1: 2014 | H1: 2015 | I1: 2016 | J1: 2017 | K1: 2018 | L1: 2019 | M1: 2020 | N1: 2021 | O1: 2022 | P1: 2023 | Q1: 2024 | R1: 2025 | S1: 2026 | T1: 2027 | U1: 2028 | V1: 2029 | W1: 2030 | X1: 2031 | Y1: 2032 | Z1: 2033 | AA1: 2034 | AB1: 2035 | AC1: 2036 | AD1: 2037 | AE1: 2038 | AF1: 2039 | AG1: 2040 | AH1: 2041 | AI1: 2042 | AJ1: 2043 | AK1: 2044 | AL1: 2045 | AM1: 2046 | AN1: 2047 | AO1: 2048 | AP1: 2049 | AQ1: 2050 | AR1: 2051 | AS1: 2052 | AT1: 2053 | AU1: 2054 | AV1: 2055 | AW1: 2056 | AX1: 2057 | AY1: 2058 | AZ1: 2059 | BA1: 2060
C2: sales (age 0 pop) | D2: 0.03365868455 | E2: 0.04955305751 | F2: 0.05482302854 | G2: 0.05215827873 | H2: 0.05489979681 | I2: 0.04980588008 | J2: 0.04897234554 | K2: 0.04314108638 | L2: 0.03950910728 | M2: 0.03282506903 | N2: 0.02843863346 | O2: 0.02755836866 | P2: 0.04251810091 | Q2: 0.04400989496 | R2: 0.0438817376 | S2: 0.04452762515 | T2: 0.04494667069 | U2: 0.04506190941 | V2: 0.04617605665 | W2: 0.04698350038 | X2: 0.04781342823 | Y2: 0.04888939016 | Z2: 0.04980523281 | AA2: 0.05100889603 | AB2: 0.05233971747 | AC2: 0.05390666566 | AD2: 0.0550268154 | AE2: 0.05609563764 | AF2: 0.05699311802 | AG2: 0.057763551 | AH2: 0.05807463144 | AI2: 0.0583103517 | AJ2: 0.05823286566 | AK2: 0.05843534923 | AL2: 0.05879843973 | AM2: 0.05989314787 | AN2: 0.05984265104 | AO2: 0.06006632297 | AP2: 0.06019000298 | AQ2: 0.06071442799 | AR2: 0.06071442799 | AS2: 0.06071442799 | AT2: 0.06071442799 | AU2: 0.06071442799 | AV2: 0.06071442799 | AW2: 0.06071442799 | AX2: 0.06071442799 | AY2: 0.06071442799 | AZ2: 0.06071442799 | BA2: 0.06071442799
C3: scrappage k factor | D3: 0.7591579336 | E3: 1.548530008 | F3: 0.4766646014 | G3: 0.6721883914 | H3: 0.7792217927 | I3: 0.6384013218 | J3: 0.7419434096 | K3: 0.7663970337 | L3: 0.472281108 | M3: 0.659484506 | N3: 0.5420627327 | O3: 0.6150026041 | P3: 0.6196897779 | Q3: 0.6286558854 | R3: 0.6362473793 | S3: 0.6429844641 | T3: 0.6497258793 | U3: 0.6579699608 | V3: 0.6677056562 | W3: 0.6797164676 | X3: 0.6941784035 | Y3: 0.712192563 | Z3: 0.7358796197 | AA3: 0.7612075939 | AB3: 0.7807065345 | AC3: 0.7890146303 | AD3: 0.7915499389 | AE3: 0.7921368586 | AF3: 0.789486624 | AG3: 0.7875084978 | AH3: 0.7852851557 | AI3: 0.7850745692 | AJ3: 0.7863234873 | AK3: 0.7901606291 | AL3: 0.7961670617 | AM3: 0.8012624975 | AN3: 0.8061719621 | AO3: 0.8102907776 | AP3: 0.8138313175 | AQ3: 0.8182194955 | AR3: 0.8219859768 | AS3: 0.8253439738 | AT3: 0.8283321888 | AU3: 0.8310345384 | AV3: 0.8336679603 | AW3: 0.8362157985 | AX3: 0.838572204 | AY3: 0.8403414633 | AZ3: 0.8415487898
A5: default
A6: scrappage | C6: age | D6: 2011 | E6: 2012 | F6: 2013 | G6: 2014 | H6: 2015 | I6: 2016 | J6: 2017 | K6: 2018 | L6: 2019 | M6: 2020 | N6: 2021 | O6: 2022 | P6: 2023 | Q6: 2024 | R6: 2025 | S6: 2026 | T6: 2027 | U6: 2028 | V6: 2029 | W6: 2030 | X6: 2031 | Y6: 2032 | Z6: 2033 | AA6: 2034 | AB6: 2035 | AC6: 2036 | AD6: 2037 | AE6: 2038 | AF6: 2039 | AG6: 2040 | AH6: 2041 | AI6: 2042 | AJ6: 2043 | AK6: 2044 | AL6: 2045 | AM6: 2046 | AN6: 2047 | AO6: 2048 | AP6: 2049 | AQ6: 2050 | AR6: 2051 | AS6: 2052 | AT6: 2053 | AU6: 2054 | AV6: 2055 | AW6: 2056 | AX6: 2057 | AY6: 2058 | AZ6: 2059 | BA6: 2060
A7: 0.003300011 | C7: 0 | D7: 0.03365868455 | E7: =E51 -> 0.04955305751 | F7: =F51 -> 0.05482302854 | G7: 0.05215827873 | H7: 0.05489979681 | I7: 0.04980588008 | J7: 0.04897234554 | K7: 0.04314108638 | L7: 0.03950910728 | M7: 0.03282506903 | N7: 0.02843863346 | O7: 0.02755836866 | P7: 0.04251810091 | Q7: 0.04400989496 | R7: 0.0438817376 | S7: 0.04452762515 | T7: 0.04494667069 | U7: 0.04506190941 | V7: 0.04617605665 | W7: 0.04698350038 | X7: 0.04781342823 | Y7: 0.04888939016 | Z7: 0.04980523281 | AA7: 0.05100889603 | AB7: 0.05233971747 | AC7: 0.05390666566 | AD7: 0.0550268154 | AE7: 0.05609563764 | AF7: 0.05699311802 | AG7: 0.057763551 | AH7: 0.05807463144 | AI7: 0.0583103517 | AJ7: 0.05823286566 | AK7: 0.05843534923 | AL7: 0.05879843973 | AM7: 0.05989314787 | AN7: 0.05984265104 | AO7: 0.06006632297 | AP7: 0.06019000298 | AQ7: 0.06071442799 | AR7: =AR51 -> 0.06071442799 | AS7: 0.06071442799 | AT7: 0.06071442799 | AU7: 0.06071442799 | AV7: 0.06071442799 | AW7: 0.06071442799 | AX7: 0.06071442799 | AY7: 0.06071442799 | AZ7: 0.06071442799 | BA7: 0.06071442799
A8: 0.003300011 | C8: 1 | D8: 0.03510916686 | E8: =E52*(1-E$51-E$91)/SUM(E$52:E$90) -> 0.03471637427 | F8: =F52*(1-F$51-F$91)/SUM(F$52:F$90) -> 0.05536333647 | G8: 0.05417815474 | H8: 0.05232906983 | I8: 0.05587937373 | J8: 0.05004136239 | K8: 0.04997790763 | L8: 0.04429189465 | M8: 0.03980918296 | N8: 0.03386742101 | O8: 0.02907772116 | P8: 0.02796386598 | Q8: 0.04309719073 | R8: 0.0446624016 | S8: 0.0445675683 | T8: 0.04526064083 | U8: 0.04573560384 | V8: 0.04586381759 | W8: 0.04701319528 | X8: 0.04784841446 | Y8: 0.04866995732 | Z8: 0.04973746437 | AA8: 0.05061223797 | AB8: 0.05174264933 | AC8: 0.0529466004 | AD8: 0.05438927617 | AE8: 0.05536258691 | AF8: 0.05629422336 | AG8: 0.05705996019 | AH8: 0.05773059831 | AI8: 0.05795692024 | AJ8: 0.0581468088 | AK8: 0.05801616402 | AL8: 0.05817451305 | AM8: 0.05845528213 | AN8: 0.05953196754 | AO8: 0.05945016438 | AP8: 0.05964641991 | AQ8: 0.05972639622 | AR8: 0.06024182945 | AS8: 0.06024467154 | AT8: 0.06024051863 | AU8: 0.06023667571 | AV8: 0.06023465042 | AW8: 0.0602299395 | AX8: 0.06022706638 | AY8: 0.06022285301 | AZ8: 0.06021985853 | BA8: 0.06021695359
A9: 0.003400028 | C9: 2 | D9: 0.03305819873 | E9: =E53*(1-E$51-E$91)/SUM(E$52:E$90) -> 0.0362124365 | F9: 0.03878699733 | G9: 0.05471210711 | H9: 0.05435555988 | I9: 0.05326277728 | J9: 0.05614357153 | K9: 0.05106887488 | L9: 0.05131109124 | M9: 0.04462829609 | N9: 0.04107331376 | O9: 0.03462850723 | P9: 0.02950557443 | Q9: 0.02834472942 | R9: 0.04373616529 | S9: 0.04536043336 | T9: 0.04530124154 | U9: 0.04605508499 | V9: 0.04654950088 | W9: 0.04669529555 | X9: 0.047878656 | Y9: 0.04870557029 | Z9: 0.04951422508 | AA9: 0.05054337147 | AB9: 0.05134028542 | AC9: 0.05234260921 | AD9: 0.05342061572 | AE9: 0.05472115744 | AF9: 0.05555857754 | AG9: 0.05636024586 | AH9: 0.05702740889 | AI9: 0.05761358443 | AJ9: 0.0577943686 | AK9: 0.0579304274 | AL9: 0.05775719895 | AM9: 0.0578349968 | AN9: 0.05810277272 | AO9: 0.05914151854 | AP9: 0.05903456868 | AQ9: 0.05918700004 | AR9: 0.05926148848 | AS9: 0.05977572957 | AT9: 0.05977442889 | AU9: 0.05976649547 | AV9: 0.05976067344 | AW9: 0.05975399046 | AX9: 0.05974646694 | AY9: 0.05973943733 | AZ9: 0.05973228784 | BA9: 0.05972643647
A10: 0.007000029 | C10: 3 | D10: 0.04336526048 | E10: 0.03409442336 | F10: 0.04045218002 | G10: 0.03832892231 | H10: 0.05488756211 | I10: 0.05532110305 | J10: 0.05351117963 | K10: 0.05729212006 | L10: 0.05242713136 | M10: 0.05169835823 | N10: 0.04604241286 | O10: 0.04199405359 | P10: 0.03513586971 | Q10: 0.02990557825 | R10: 0.02876316625 | S10: 0.04441688821 | T10: 0.04610418734 | U10: 0.04609339639 | V10: 0.04687157596 | W10: 0.04739023777 | X10: 0.0475516639 | Y10: 0.04873296207 | Z10: 0.04954691796 | AA10: 0.05031280265 | AB10: 0.05126651505 | AC10: 0.05193151405 | AD10: 0.05280703871 | AE10: 0.05374232008 | AF10: 0.05491051517 | AG10: 0.05561933363 | AH10: 0.05632364553 | AI10: 0.05690733873 | AJ10: 0.05744747286 | AK10: 0.05757475859 | AL10: 0.05766727533 | AM10: 0.05741553379 | AN10: 0.05748160881 | AO10: 0.05771703074 | AP10: 0.05872330822 | AQ10: 0.05857508046 | AR10: 0.058721472 | AS10: 0.05879812615 | AT10: 0.05930423802 | AU10: 0.05929914667 | AV10: 0.05928926671 | AW10: 0.05927883894 | AX10: 0.05926936723 | AY10: 0.05925774483 | AZ10: 0.05924781603 | BA10: 0.05923786047
A11: 0.010200024 | C11: 4 | D11: 0.04988384497 | E11: 0.04460201758 | F11: 0.03787274716 | G11: 0.03990573195 | H11: 0.03835857651 | I11: 0.05570543362 | J11: 0.05545109257 | K11: 0.05445965541 | L11: 0.0586531947 | M11: 0.05273286712 | N11: 0.05320958774 | O11: 0.04698251279 | P11: 0.04251479783 | Q11: 0.03553258839 | R11: 0.03027822957 | S11: 0.02914379265 | T11: 0.04504044282 | U11: 0.04680041585 | V11: 0.04679920073 | W11: 0.04760316688 | X11: 0.0481409878 | Y11: 0.04827889522 | Z11: 0.04944736989 | AA11: 0.05021231322 | AB11: 0.05089243729 | AC11: 0.05171076014 | AD11: 0.05224307777 | AE11: 0.05297325542 | AF11: 0.05377408837 | AG11: 0.05481390734 | AH11: 0.05542521122 | AI11: 0.05604573851 | AJ11: 0.05658246244 | AK11: 0.05706674434 | AL11: 0.057149751 | AM11: 0.05716138782 | AN11: 0.0568996534 | AO11: 0.0569338185 | AP11: 0.05714125886 | AQ11: 0.05809506093 | AR11: 0.0579427067 | AS11: 0.05808944185 | AT11: 0.05816053257 | AU11: 0.05865676001 | AV11: 0.05864916079 | AW11: 0.05863422673 | AX11: 0.05862056024 | AY11: 0.05860657797 | AZ11: 0.05859178509 | BA11: 0.05857887799
A12: 0.014199972 | C12: 5 | D12: 0.04807065567 | E12: 0.0511812042 | F12: 0.04929658763 | G12: 0.0373039647 | H12: 0.03985029636 | I12: 0.03883254708 | J12: 0.0557217472 | K12: 0.05629926709 | L12: 0.05561596893 | M12: 0.0589057835 | N12: 0.05415926816 | O12: 0.05420148745 | P12: 0.04747110293 | Q12: 0.04290920151 | R12: 0.03590266613 | S12: 0.03061616364 | T12: 0.02949185164 | U12: 0.04562511459 | V12: 0.04741653632 | W12: 0.04742763062 | X12: 0.04825160583 | Y12: 0.04876812748 | Z12: 0.04887444603 | AA12: 0.04999281431 | AB12: 0.05066640811 | AC12: 0.05120449202 | AD12: 0.05188892514 | AE12: 0.05227403379 | AF12: 0.05286946215 | AG12: 0.05354311298 | AH12: 0.0544841828 | AI12: 0.05501237986 | AJ12: 0.05558501113 | AK12: 0.05606525294 | AL12: 0.05650146152 | AM12: 0.05650326975 | AN12: 0.0565017247 | AO12: 0.05621119611 | AP12: 0.05621887353 | AQ12: 0.05638187509 | AR12: 0.05731653463 | AS12: 0.05716741676 | AT12: 0.05730689505 | AU12: 0.05737217156 | AV12: 0.05785863619 | AW12: 0.05784555284 | AX12: 0.05782703654 | AY12: 0.05780856302 | AZ12: 0.05779118709 | BA12: 0.05777332615
A13: 0.01880002 | C13: 6 | D13: 0.04854603534 | E13: 0.04916992209 | F13: 0.05621225504 | G13: 0.04846320778 | H13: 0.03715129138 | I13: 0.04021594966 | J13: 0.03874407847 | K13: 0.0564048845 | L13: 0.05731699886 | M13: 0.05574945064 | N13: 0.06033848747 | O13: 0.05504858777 | P13: 0.05462957909 | Q13: 0.04779197062 | R13: 0.04324638142 | S13: 0.0362103803 | T13: 0.0309015986 | U13: 0.02979652814 | V13: 0.04610328131 | W13: 0.0479240358 | X13: 0.04794206176 | Y13: 0.04874349417 | Z13: 0.049228043 | AA13: 0.04926702279 | AB13: 0.05029012804 | AC13: 0.05081660859 | AD13: 0.05121743801 | AE13: 0.05175394737 | AF13: 0.05200495795 | AG13: 0.0524747832 | AH13: 0.05305202929 | AI13: 0.05390712351 | AJ13: =AJ57*(1-AJ$51-AJ$91)/SUM(AJ$52:AJ$90) -> 0.05438743129 | AK13: 0.05490228766 | AL13: 0.05533302039 | AM13: 0.05568295658 | AN13: 0.05567072296 | AO13: 0.05563659624 | AP13: 0.05532392672 | AQ13: 0.05528966012 | AR13: 0.05544271909 | AS13: 0.05636212142 | AT13: 0.05620952399 | AU13: 0.05634120864 | AV13: 0.0564018029 | AW13: 0.0568739345 | AX13: 0.05685675903 | AY13: 0.05683310151 | AZ13: 0.05681100858 | BA13: 0.05679043431
A14: 0.023899972 | C14: 7 | D14: 0.04595436498 | E14: 0.04948087546 | F14: 0.05360993519 | G14: 0.05513996532 | H14: 0.04811418525 | I14: 0.03735628672 | J14: 0.04000541924 | K14: 0.03908379403 | L14: 0.05721985004 | M14: 0.05732889946 | N14: 0.05693051042 | O14: 0.06117516097 | P14: 0.05532502232 | Q14: 0.05484066084 | R14: 0.04802697149 | S14: 0.04348821619 | T14: 0.03643887404 | U14: 0.03112665819 | V14: 0.03001681629 | W14: 0.04645223422 | X14: 0.04829090427 | Y14: 0.04827460307 | Z14: 0.04904033503 | AA14: 0.04945370668 | AB14: 0.0493845849 | AC14: 0.05025604067 | AD14: 0.05064288034 | AE14: 0.05089608633 | AF14: 0.05129780046 | AG14: 0.05142715206 | AH14: 0.05180301744 | AI14: 0.05229838745 | AJ14: 0.05310009342 | AK14: 0.0535229131 | AL14: 0.05398605767 | AM14: 0.05432944196 | AN14: 0.05465795472 | AO14: 0.0546126744 | AP14: 0.05455191571 | AQ14: 0.05420343312 | AR14: 0.05416165609 | AS14: 0.05431092553 | AT14: 0.05520482687 | AU14: 0.05504925347 | AV14: 0.05517401053 | AW14: 0.05522673328 | AX14: 0.05568413169 | AY14: 0.05566134987 | AZ14: 0.05563386876 | BA14: 0.05560849904
A15: 0.029399991 | C15: 8 | D15: 0.04876919614 | E15: 0.04665532595 | F15: 0.05351013383 | G15: 0.05245829273 | H15: 0.05455279063 | I15: 0.04818455334 | J15: 0.0370382684 | K15: 0.04020133154 | L15: 0.03949126081 | M15: 0.05709264658 | N15: 0.05834404679 | O15: 0.05755871853 | P15: 0.06128726689 | Q15: 0.05536119805 | R15: 0.05493151802 | S15: 0.04813693139 | T15: 0.0436173724 | U15: 0.03658113604 | V15: 0.03125024094 | W15: 0.03013971356 | X15: 0.04664347507 | Y15: 0.04845143991 | Z15: 0.04838978613 | AA15: 0.04907765486 | AB15: 0.04937647682 | AC15: 0.04915168964 | AD15: 0.04987965859 | AE15: 0.05011890887 | AF15: 0.05024061865 | AG15: 0.05052052654 | AH15: 0.05056183314 | AI15: 0.05085953451 | AJ15: 0.05130609175 | AK15: 0.05204333603 | AL15: 0.05241441838 | AM15: 0.0527884087 | AN15: 0.05310809728 | AO15: 0.05339530985 | AP15: 0.05332324905 | AQ15: 0.05322177908 | AR15: 0.05287255855 | AS15: 0.05283010728 | AT15: 0.05296830718 | AU15: 0.05383328581 | AV15: 0.05367671568 | AW15: 0.05379116905 | AX15: 0.05383711072 | AY15: 0.05427650647 | AZ15: 0.05424957951 | BA15: 0.05421879979
A16: 0.0352 | C16: 9 | D16: 0.04598664089 | E16: 0.04930253646 | F16: 0.0500082649 | G16: 0.05222178142 | H16: 0.05170466614 | I16: 0.05439399135 | J16: 0.04760400742 | K16: 0.03706502594 | L16: 0.04044603113 | M16: 0.03929994798 | N16: 0.05788948339 | O16: 0.05880968076 | P16: 0.05746623681 | Q16: 0.06111517659 | R16: 0.05525825781 | S16: 0.05486164525 | T16: 0.04810649082 | U16: 0.04362871662 | V16: 0.03659134424 | W16: 0.0312610864 | X16: 0.03014878869 | Y16: 0.04661684314 | Z16: 0.04837351002 | AA16: 0.0482271025 | AB16: 0.04879206044 | AC16: 0.04892858976 | AD16: 0.04856780851 | AE16: 0.04914453339 | AF16: 0.04925374633 | AG16: 0.0492603826 | AH16: 0.04945119746 | AI16: 0.04942245139 | AJ16: 0.04967497867 | AK16: 0.05006339951 | AL16: 0.05073973017 | AM16: 0.05102285445 | AN16: 0.05136986048 | AO16: 0.0516466966 | AP16: 0.05189769457 | AQ16: 0.05178559201 | AR16: 0.05167671844 | AS16: 0.05133487256 | AT16: 0.05128550085 | AU16: 0.05141225888 | AV16: 0.0522462826 | AW16: 0.05208657381 | AX16: 0.05219157866 | AY16: 0.0522291973 | AZ16: 0.05265035196 | BA16: 0.05261998829
A17: 0.040899992 | C17: 10 | D17: 0.04368018076 | E17: 0.04628017893 | F17: 0.05234844785 | G17: 0.04866738149 | H17: 0.05126683482 | I17: 0.05131569593 | J17: 0.05353584585 | K17: 0.04742882524 | L17: 0.0371210533 | M17: 0.04013828608 | N17: 0.03969301906 | O17: 0.0581650633 | P17: 0.05850189418 | Q17: 0.05709508805 | R17: 0.06077492447 | S17: 0.05498043039 | T17: 0.05461854547 | U17: 0.04793413892 | V17: 0.04347106252 | W17: 0.03645944844 | X17: 0.03114470575 | Y17: 0.03000773019 | Z17: 0.04634550094 | AA17: 0.04800056161 | AB17: 0.04772992768 | AC17: 0.04812539991 | AD17: 0.04812085297 | AE17: 0.04762709457 | AF17: 0.04806900783 | AG17: 0.04806637629 | AH17: 0.04799226888 | AI17: 0.04811148232 | AJ17: 0.04804637239 | AK17: 0.04824549786 | AL17: 0.04858037752 | AM17: 0.04915907708 | AN17: 0.04941543585 | AO17: 0.0497170351 | AP17: 0.0499564528 | AQ17: 0.05015740882 | AR17: 0.05003771966 | AS17: 0.04992868209 | AT17: 0.04958949474 | AU17: 0.04953376439 | AV17: 0.04965010211 | AW17: 0.05044721555 | AX17: 0.05028638447 | AY17: 0.05038032212 | AZ17: 0.05041118833 | BA17: 0.05081320957
A18: 0.046800017 | C18: 11 | D18: 0.04561654073 | E18: 0.04376355462 | F18: 0.04868062998 | G18: 0.05080403822 | H18: 0.04758993792 | I18: 0.05064879332 | J18: 0.05031810434 | K18: 0.05310721166 | L18: 0.04728726143 | M18: 0.03673776131 | N18: 0.04038372923 | O18: 0.03975635322 | P18: 0.05765333124 | Q18: 0.05791417098 | R18: 0.05656916163 | S18: 0.06024503797 | T18: 0.05453154795 | U18: 0.05421659389 | V18: 0.04757755634 | W18: 0.04314554966 | X18: 0.0361795335 | Y18: 0.03087325826 | Z18: 0.02970884329 | AA18: 0.04579016069 | AB18: 0.04729392574 | AC18: 0.04686236244 | AD18: 0.04711197672 | AE18: 0.04696978623 | AF18: 0.04636840658 | AG18: 0.04669306535 | AH18: 0.04661280123 | AI18: 0.04647713784 | AJ18: 0.0465566561 | AK18: 0.04644865502 | AL18: 0.04659943839 | AM18: 0.04684723742 | AN18: 0.04738661818 | AO18: 0.04759930913 | AP18: 0.04786131166 | AQ18: 0.04805068884 | AR18: 0.04823175717 | AS18: 0.04811186348 | AT18: 0.04799742428 | AU18: 0.04766275754 | AV18: 0.04760257108 | AW18: 0.04770573752 | AX18: 0.04846450219 | AY18: =AY62*(1-AY$51-AY$91)/SUM(AY$52:AY$90) -> 0.04830216867 | AZ18: 0.04838665077 | BA18: 0.04841167764
A19: 0.088500023 | C19: 12 | D19: 0.04051057597 | E19: 0.04549234199 | F19: 0.04558445682 | G19: 0.04710892122 | H19: 0.04947669703 | I19: 0.0467929535 | J19: 0.04947208694 | K19: 0.04968989171 | L19: 0.05270153015 | M19: 0.04666602611 | N19: 0.03681460387 | O19: 0.04031587183 | P19: 0.03925990222 | Q19: 0.05686003286 | R19: 0.05716225302 | S19: 0.05585981822 | T19: 0.05952036977 | U19: 0.05391706915 | V19: 0.0535985935 | W19: 0.04703004369 | X19: 0.04263769272 | Y19: 0.0357130238 | Z19: 0.03043346112 | AA19: 0.02922145747 | AB19: 0.04490693125 | AC19: 0.04621334564 | AD19: 0.04565485462 | AE19: 0.04576309965 | AF19: 0.04550759579 | AG19: 0.04482434089 | AH19: 0.04506362848 | AI19: 0.04492513164 | AJ19: 0.04475989493 | AK19: 0.04479272956 | AL19: 0.04464776182 | AM19: 0.04471877751 | AN19: 0.04493741631 | AO19: 0.04542054463 | AP19: 0.04559605653 | AQ19: 0.04580681814 | AR19: 0.04597513576 | AS19: 0.04614267617 | AT19: 0.04601779154 | AU19: 0.04589918079 | AV19: 0.04557202264 | AW19: 0.04550547722 | AX19: 0.04559664946 | AY19: 0.04631367336 | AZ19: 0.04615254126 | BA19: 0.04622849892
A20: 0.145699978 | C20: 13 | D20: 0.03822595857 | E20: 0.03907421881 | F20: 0.04408626225 | G20: 0.04321588036 | H20: 0.04455037678 | I20: 0.04700753716 | J20: 0.04445160554 | K20: 0.04728855505 | L20: 0.04767579219 | M20: 0.05096173898 | N20: 0.04543665567 | O20: 0.03590036027 | P20: 0.03876116183 | Q20: 0.03768925118 | R20: 0.05460597334 | S20: 0.05490192724 | T20: 0.05366226649 | U20: 0.05720522425 | V20: 0.05179353909 | W20: 0.05145901787 | X20: 0.04511584362 | Y20: 0.04082867102 | Z20: 0.03412272182 | AA20: 0.02898285865 | AB20: 0.02771454531 | AC20: 0.04239815187 | AD20: 0.043484436 | AE20: 0.04282757182 | AF20: 0.04281749471 | AG20: 0.04248833723 | AH20: 0.04178513159 | AI20: 0.04195554178 | AJ20: 0.0417948063 | AK20: 0.04159803785 | AL20: 0.0415828789 | AM20: 0.04136832238 | AN20: 0.04140662745 | AO20: 0.04156818702 | AP20: 0.04198090893 | AQ20: 0.04209920208 | AR20: 0.04227323879 | AS20: 0.0424158549 | AT20: 0.04255432026 | AU20: 0.04242475271 | AV20: 0.0423034383 | AW20: 0.04198842554 | AX20: 0.04191525987 | AY20: 0.04198717024 | AZ20: 0.04263835018 | BA20: 0.04248322061
A21: 0.168299973 | C21: 14 | D21: 0.03418283111 | E21: 0.03515422815 | F21: 0.03397979821 | G21: 0.04060577944 | H21: 0.03919801111 | I21: 0.04030075154 | J21: 0.04292714328 | K21: 0.04055971232 | L21: 0.04323806456 | M21: 0.04480216808 | N21: 0.04763142739 | O21: 0.04286524635 | P21: 0.03323183074 | Q21: 0.0358149601 | R21: 0.03481694046 | S21: 0.0504241297 | T21: 0.05068523406 | U21: 0.04954129568 | V21: 0.05275614059 | W21: 0.04770757199 | X21: 0.0473224259 | Y21: 0.0413739877 | Z21: 0.0373144776 | AA21: 0.03103314275 | AB21: 0.02620493039 | AC21: 0.0249110236 | AD21: 0.0379588629 | AE21: 0.03880553161 | AF21: 0.03811841698 | AG21: 0.0380358118 | AH21: 0.03768971677 | AI21: 0.03702518791 | AJ21: 0.03714847255 | AK21: 0.03696469433 | AL21: 0.03674050507 | AM21: 0.03664093765 | AN21: 0.0364147648 | AO21: 0.03640020204 | AP21: 0.03650199693 | AQ21: 0.03681687981 | AR21: 0.03689134369 | AS21: 0.03702297897 | AT21: 0.03712508778 | AU21: 0.03722584179 | AV21: 0.03709496465 | AW21: 0.03697017401 | AX21: 0.03667792975 | AY21: 0.03659742798 | AZ21: 0.03664784158 | BA21: 0.0372071075
A22: 0.18690002 | C22: 15 | D22: 0.02800502607 | E22: 0.03082957282 | F22: 0.02918928825 | G22: 0.030934876 | H22: 0.03621032003 | I22: 0.03475452254 | J22: 0.03621709023 | K22: 0.03843234047 | L22: 0.03636249329 | M22: 0.04016618659 | N22: 0.04118392603 | O22: 0.04433811225 | P22: 0.03907322365 | Q22: 0.03023319175 | R22: 0.03256802657 | S22: 0.03164105013 | T22: 0.0458049682 | U22: 0.04603394042 | V22: 0.04493684071 | W22: 0.04778191397 | X22: 0.04312451107 | Y22: 0.04264010934 | Z22: 0.03713377303 | AA22: 0.03330374401 | AB22: 0.02751578479 | AC22: 0.02308518883 | AD22: 0.02185336704 | AE22: 0.03318952771 | AF22: 0.03383963041 | AG22: 0.03317880777 | AH22: 0.03306173211 | AI22: 0.03272702671 | AJ22: 0.0321262303 | AK22: 0.03219590824 | AL22: 0.03198933829 | AM22: 0.03171509986 | AN22: 0.03159218953 | AO22: 0.03135103455 | AP22: 0.03130017247 | AQ22: 0.03134393434 | AR22: 0.03158512986 | AS22: 0.03162763233 | AT22: 0.03171783342 | AU22: 0.03178502157 | AV22: 0.03185365363 | AW22: 0.03172310343 | AX22: 0.03159937345 | AY22: 0.03133316782 | AZ22: 0.03125218658 | BA22: 0.03128644626
A23: 0.201399982 | C23: 16 | D23: 0.02883850501 | E23: 0.02484890432 | F23: 0.02460124665 | G23: 0.02631749201 | H23: 0.02719736449 | I23: 0.0315699583 | J23: 0.03081734672 | K23: 0.03191356476 | L23: 0.03389137291 | M23: 0.03345674201 | N23: 0.03641289796 | O23: 0.03791107708 | P23: 0.03990009771 | Q23: 0.03509005527 | R23: 0.02713278864 | S23: 0.02920501011 | T23: 0.02835707487 | U23: 0.04103705138 | V23: 0.0411808159 | W23: 0.04013041453 | X23: 0.04257511235 | Y23: 0.03828946806 | Z23: 0.0376941385 | AA23: 0.03262470492 | AB23: 0.02904951321 | AC23: 0.02383474519 | AD23: 0.01990892395 | AE23: 0.01878304903 | AF23: 0.02845027573 | AG23: 0.02895569161 | AH23: 0.02835291457 | AI23: 0.02822523497 | AJ23: 0.0279189854 | AK23: 0.02737388538 | AL23: 0.02739011548 | AM23: 0.02714160484 | AN23: 0.0268740202 | AO23: 0.02672720434 | AP23: 0.02648798315 | AQ23: 0.02640575797 | AR23: 0.02641531133 | AS23: 0.02659804557 | AT23: 0.02661254847 | AU23: 0.02666938492 | AV23: 0.02670924872 | AW23: 0.02674946495 | AX23: 0.02662376129 | AY23: 0.02650442946 | AZ23: 0.02626968746 | BA23: 0.0261936199
A24: 0.212800026 | C24: 17 | D24: 0.02315613676 | E24: 0.02526020635 | F24: 0.0192022478 | G24: 0.02201254708 | H24: 0.02287992591 | I24: 0.0233984314 | J24: 0.02769930853 | K24: 0.02681627453 | L24: 0.02777779185 | M24: 0.03094887264 | N24: 0.02999960129 | O24: 0.03322604085 | P24: 0.03377263069 | Q24: 0.03546848771 | R24: =R68*(1-R$51-R$91)/SUM(R$52:R$90) -> 0.03116630238 | S24: 0.02407625952 | T24: 0.02589651114 | U24: 0.0251329135 | V24: 0.03631137348 | W24: 0.03636930746 | X24: 0.03535369135 | Y24: 0.03736444608 | Z24: 0.03344492983 | AA24: 0.03270730954 | AB24: 0.02809102045 | AC24: 0.02482977365 | AD24: 0.02027950445 | AE24: 0.01688129309 | AF24: 0.0158838775 | AG24: 0.02401724202 | AH24: 0.02441274229 | AI24: 0.02388222941 | AJ24: 0.02375733305 | AK24: 0.02347104334 | AL24: 0.02297481529 | AM24: 0.02292417327 | AN24: 0.02268436798 | AO24: 0.02242268644 | AP24: 0.02226871991 | AQ24: 0.02203505195 | AR24: 0.02194194508 | AS24: 0.02193125572 | AT24: 0.02206379692 | AU24: 0.02205870379 | AV24: 0.02209082922 | AW24: 0.02210822021 | AX24: 0.02212698554 | AY24: 0.02200906773 | AZ24: 0.02190006508 | BA24: 0.02169878931
A25: 0.221199989 | C25: 18 | D25: 0.02061119017 | E25: 0.02007568984 | F25: 0.01901931391 | G25: 0.01707838518 | H25: 0.01896767862 | I25: 0.01947664751 | J25: 0.02035820006 | K25: 0.02386337347 | L25: 0.023099922 | M25: 0.02521515449 | N25: 0.02751028364 | O25: 0.02718414653 | P25: 0.02936216405 | Q25: 0.02977925254 | R25: 0.0312439215 | S25: 0.02742532184 | T25: 0.02116900583 | U25: 0.0227565134 | V25: 0.02204640691 | W25: 0.03178677391 | X25: 0.03175261726 | Y25: 0.03074139448 | Z25: 0.03232759302 | AA25: 0.02873444751 | AB25: 0.02787351059 | AC25: 0.02375694703 | AD25: 0.02090018574 | AE25: 0.01701092284 | AF25: 0.01412227301 | AG25: 0.01326540166 | AH25: 0.02003304512 | AI25: 0.02034466962 | AJ25: 0.01988810441 | AK25: 0.01975968581 | AL25: 0.01948814178 | AM25: 0.01902092884 | AN25: 0.01895084137 | AO25: 0.01871933246 | AP25: 0.01847602817 | AQ25: 0.01831953132 | AR25: 0.01810560413 | AS25: 0.01801267801 | AT25: 0.01798727 | AU25: 0.01808104236 | AV25: 0.01806380301 | AW25: 0.01807653861 | AX25: 0.01807813558 | AY25: 0.01808131936 | AZ25: 0.01797593076 | BA25: 0.01788051535
A26: 0.228299975 | C26: 19 | D26: 0.01875510279 | E26: 0.01773338979 | F26: 0.01482245155 | G26: 0.01684030921 | H26: 0.01461906931 | I26: 0.01601963538 | J26: 0.01684082601 | K26: 0.01740909604 | L26: 0.0203981275 | M26: 0.02087636018 | N26: 0.02226917999 | O26: 0.02480014344 | P26: 0.02388009592 | Q26: 0.02573505273 | R26: 0.02607239927 | S26: 0.0273236758 | T26: 0.02396277855 | U26: 0.01848441242 | V26: 0.01983355593 | W26: 0.01917313023 | X26: 0.02756654069 | Y26: 0.02742122068 | Z26: 0.02640981305 | AA26: 0.02757091897 | AB26: 0.02430095244 | AC26: 0.02338760709 | AD26: 0.01983786774 | AE26: 0.01739138558 | AF26: 0.01411682879 | AG26: 0.01170019089 | AH26: 0.01097688745 | AI26: 0.01656257312 | AJ26: 0.01680803902 | AK26: 0.01641031808 | AL26: 0.01627567307 | AM26: 0.01600438684 | AN26: 0.01559653958 | AO26: 0.01551056472 | AP26: 0.0152976483 | AQ26: 0.01507377508 | AR26: 0.01492739313 | AS26: 0.01473894909 | AT26: 0.01464914284 | AU26: 0.01461586252 | AV26: 0.01468094404 | AW26: 0.01465546 | AX26: 0.01465508285 | AY26: 0.01464609386 | AZ26: 0.01464099242 | BA26: 0.01455023749
A27: 0.233200014 | C27: 20 | D27: 0.01985147801 | E27: 0.01603192655 | F27: 0.01287411458 | G27: 0.01307462113 | H27: 0.0143344634 | I27: 0.01226437196 | J27: 0.01377855106 | K27: 0.01431049372 | L27: 0.01478358444 | M27: 0.01836561026 | N27: 0.01833622814 | O27: 0.01998757129 | P27: 0.02167574549 | Q27: 0.02082346847 | R27: 0.02241479974 | S27: 0.02268116566 | T27: 0.02374690513 | U27: 0.02081116344 | V27: 0.01602210512 | W27: 0.01715273599 | X27: 0.01653312779 | Y27: 0.02366755225 | Z27: 0.02341607005 | AA27: 0.02238331828 | AB27: 0.02316541414 | AC27: 0.02025339471 | AD27: 0.01939692094 | AE27: 0.01639495068 | AF27: 0.01433414734 | AG27: 0.01161625097 | AH27: 0.009616150656 | AI27: 0.009014043941 | AJ27: 0.01359110576 | AK27: 0.01377512514 | AL27: 0.01342497062 | AM27: 0.01327448133 | AN27: 0.01303233472 | AO27: 0.01267626973 | AP27: 0.01258656046 | AQ27: 0.01239272728 | AR27: 0.01219551533 | AS27: 0.01206503335 | AT27: 0.01190079328 | AU27: 0.01181770034 | AV27: 0.01178159101 | AW27: 0.01182444962 | AX27: 0.01179498085 | AY27: 0.01178610232 | AZ27: 0.01177247235 | BA27: 0.01176383754
A28: 0.236699998 | C28: 21 | D28: 0.01775224356 | E28: 0.01689275446 | F28: 0.01150227384 | G28: 0.01132626485 | H28: 0.01108580985 | I28: 0.01196975529 | J28: 0.01051000623 | K28: 0.01165707858 | L28: 0.01209697574 | M28: 0.01327598767 | N28: 0.01606960722 | O28: 0.01640768643 | P28: 0.01740823205 | Q28: 0.01883442096 | R28: 0.01807166036 | S28: 0.01942818692 | T28: 0.01963932559 | U28: 0.02054658704 | V28: 0.01797047033 | W28: 0.01380297419 | X28: 0.01473261531 | Y28: 0.01413731971 | Z28: 0.02012643836 | AA28: 0.01975999597 | AB28: 0.01872182749 | AC28: 0.01921711304 | AD28: 0.01671829609 | AE28: 0.01595464072 | AF28: 0.01344884643 | AG28: 0.01173941299 | AH28: 0.009502245924 | AI28: 0.007859605507 | AJ28: 0.007362178664 | AK28: 0.01108636136 | AL28: 0.01121593364 | AM28: 0.01089723533 | AN28: 0.01075743751 | AO28: 0.01054090221 | AP28: 0.01023646537 | AQ28: 0.01014651661 | AR28: 0.009976966829 | AS28: 0.009808125836 | AT28: 0.009693226084 | AU28: 0.009552507398 | AV28: 0.009478167554 | AW28: 0.009441352752 | AX28: 0.009468337548 | AY28: 0.009437706694 | AZ28: 0.009425352226 | BA28: 0.00941073928
A29: 0.240199983 | C29: 22 | D29: 0.01860911283 | E29: 0.01505762335 | F29: 0.01201706732 | G29: 0.01010036637 | H29: 0.009576606739 | I29: 0.009226168444 | J29: 0.01023060487 | K29: 0.008863867934 | L29: 0.009821801258 | M29: 0.01084317397 | N29: 0.0115845856 | O29: 0.01434823251 | P29: 0.01425441107 | Q29: 0.01508795707 | R29: 0.01630332126 | S29: 0.01562278207 | T29: 0.01677807758 | U29: 0.01694703497 | V29: 0.01769374499 | W29: 0.01543863035 | X29: 0.01182196253 | Y29: 0.01256119923 | Z29: 0.01198617372 | AA29: 0.01693118663 | AB29: 0.01647409484 | AC29: 0.01547900549 | AD29: 0.01580920696 | AE29: 0.01370465758 | AF29: 0.01304315169 | AG29: =AG73*(1-AG$51-AG$91)/SUM(AG$52:AG$90) -> 0.01097706471 | AH29: 0.009570571315 | AI29: 0.007740375746 | AJ29: 0.006397704831 | AK29: 0.005985142638 | AL29: 0.008996095086 | AM29: 0.00907297584 | AN29: 0.008800497048 | AO29: 0.008670669843 | AP29: 0.008482327831 | AQ29: 0.008223002573 | AR29: 0.008139709345 | AS29: 0.007995321054 | AT29: 0.007851804973 | AU29: 0.007752583921 | AV29: 0.007633770795 | AW29: 0.007567959561 | AX29: 0.007532604525 | AY29: 0.007548411412 | AZ29: 0.007519730546 | BA29: 0.007506875654
A30: 0.242799997 | C30: 23 | D30: 0.01802975287 | E30: 0.01573330105 | F30: 0.01061995548 | G30: 0.01053257267 | H30: 0.008516189104 | I30: 0.007943481219 | J30: 0.007864892483 | K30: 0.008601049257 | L30: 0.007443878171 | M30: 0.008787427904 | N30: 0.00943584078 | O30: 0.01032113337 | P30: 0.01243382843 | Q30: 0.01232309477 | R30: 0.01302657303 | S30: 0.01405711923 | T30: 0.01345593761 | U30: 0.01443911906 | V30: 0.01455417367 | W30: 0.01515870035 | X30: 0.01318537959 | Y30: 0.01005023833 | Z30: 0.01061794798 | AA30: 0.01005181387 | AB30: 0.0140698174 | AC30: 0.01357494993 | AD30: 0.01269076321 | AE30: 0.01291526008 | AF30: 0.01116552747 | AG30: 0.01060975591 | AH30: 0.008918748657 | AI30: 0.007769713031 | AJ30: 0.006279387969 | AK30: 0.005183478472 | AL30: 0.004840158839 | AM30: 0.007252280239 | AN30: 0.007301885605 | AO30: 0.007068609619 | AP30: 0.006952856889 | AQ30: 0.006789855829 | AR30: 0.006573204823 | AS30: 0.006499683989 | AT30: 0.006377602446 | AU30: 0.006257180048 | AV30: 0.006172951148 | AW30: 0.006073121039 | AX30: 0.006015920766 | AY30: 0.005983203406 | AZ30: 0.005992305295 | BA30: 0.005967104003
A31: 0.2443899984 | C31: 24 | D31: 0.01929484112 | E31: 0.01520667612 | F31: 0.01102536619 | G31: 0.00929502176 | H31: 0.008862097534 | I31: 0.007046292742 | J31: 0.006758184162 | K31: 0.006596631881 | L31: 0.007205522368 | M31: 0.006650709034 | N31: 0.00763132965 | O31: 0.008393115766 | P31: 0.00892726197 | Q31: 0.01072883323 | R31: 0.01061897515 | S31: 0.01120989531 | T31: 0.01208349076 | U31: 0.01155692436 | V31: 0.01237517086 | W31: 0.01244316482 | X31: 0.01291896101 | Y31: 0.01118504404 | Z31: 0.008476461914 | AA31: 0.00888370124 | AB31: 0.008332827064 | AC31: 0.01156481679 | AD31: 0.0111015153 | AE31: 0.01034131527 | AF31: 0.01049562161 | AG31: 0.009059424646 | AH31: 0.008598546151 | AI31: 0.007222321199 | AJ31: 0.006287331698 | AK31: 0.005074793668 | AL31: 0.004181227243 | AM31: 0.003891949 | AN31: 0.005821541553 | AO31: 0.005849670972 | AP31: 0.005653365652 | AQ31: 0.005550920934 | AR31: 0.005413222243 | AS31: 0.005234828553 | AT31: 0.005170705725 | AU31: 0.005068709104 | AV31: 0.004968794316 | AW31: 0.004897641661 | AX31: 0.004814509785 | AY31: 0.00476544388 | AZ31: 0.00473676288 | BA31: 0.004742011707
A32: 0.2451499995 | C32: 25 | D32: 0.01829471297 | E32: 0.01624959612 | F32: 0.01061427888 | G32: 0.009641583073 | H32: 0.007810834245 | I32: 0.007321292748 | J32: 0.00598766946 | K32: 0.005660230605 | L32: 0.005518049432 | M32: 0.006432290376 | N32: 0.005768512454 | O32: 0.006781278318 | P32: 0.007251278628 | Q32: 0.007694172349 | R32: 0.009234272936 | S32: 0.009127126154 | T32: 0.009624345061 | U32: 0.01036543913 | V32: 0.009892628688 | W32: 0.01056680943 | X32: 0.01059092696 | Y32: 0.01094449546 | Z32: 0.009420651448 | AA32: 0.007081884462 | AB32: 0.007353542145 | AC32: 0.006838753713 | AD32: 0.009442963515 | AE32: 0.009032191641 | AF32: 0.008390793036 | AG32: 0.008502655189 | AH32: 0.007330732517 | AI32: 0.006952281874 | AJ32: 0.005835363127 | AK32: 0.005073361634 | AL32: 0.004087193299 | AM32: 0.003356829182 | AN32: 0.003119199015 | AO32: 0.004656307942 | AP32: 0.004670973319 | AQ32: 0.004506173371 | AR32: 0.004418294861 | AS32: 0.004303991877 | AT32: 0.004157638272 | AU32: 0.004102732195 | AV32: 0.00401837282 | AW32: 0.003935707527 | AX32: 0.003876162738 | AY32: 0.003807374672 | AZ32: 0.003766357992 | BA32: 0.003742134361
A33: 0.2459100006 | C33: 26 | D33: 0.01567604487 | E33: 0.01539640073 | F33: 0.01132076235 | G33: 0.009278284987 | H33: 0.008097105546 | I33: 0.006448086578 | J33: 0.006217777407 | K33: 0.005011441785 | L33: 0.004731361068 | M33: 0.004923903116 | N33: 0.005575732824 | O33: 0.005123525522 | P33: 0.005855500014 | Q33: 0.006246217673 | R33: 0.00661861151 | S33: 0.007932414794 | T33: 0.007831623776 | U33: 0.008251092784 | V33: 0.008867440451 | W33: 0.008441914289 | X33: 0.0089883064 | Y33: 0.008966565118 | Z33: 0.009212007514 | AA33: 0.007865365514 | AB33: 0.00585791005 | AC33: 0.006030629155 | AD33: 0.005579865866 | AE33: 0.007677063769 | AF33: 0.007323117978 | AG33: 0.00679244942 | AH33: 0.00687510488 | AI33: 0.00592282428 | AJ33: 0.005613034295 | AK33: 0.004705176707 | AL33: 0.004082998952 | AM33: 0.00327887043 | AN33: 0.002688290485 | AO33: 0.002492959797 | AP33: 0.003715215641 | AQ33: 0.003720255534 | AR33: 0.003583932764 | AS33: 0.003510190103 | AT33: 0.003415657371 | AU33: 0.003296302929 | AV33: 0.003249987512 | AW33: 0.003180360254 | AX33: 0.003112366818 | AY33: 0.00306286093 | AZ33: 0.003006731601 | BA33: 0.00297309992
A34: 0.2466700017 | C34: 27 | D34: 0.01415840692 | E34: 0.01318323906 | F34: 0.01070601013 | G34: 0.009891785804 | H34: 0.007787237858 | I34: 0.006679519113 | J34: 0.005473036899 | K34: 0.005200446168 | L34: 0.004186036997 | M34: 0.004220206228 | N34: 0.004265658504 | O34: 0.004949948047 | P34: 0.004421628259 | Q34: 0.005041099446 | R34: 0.005370030149 | S34: 0.005682254966 | T34: 0.006802540982 | U34: 0.00671022289 | V34: 0.007054447878 | W34: 0.007562474262 | X34: 0.007176383506 | Y34: 0.007604905172 | Z34: 0.007542229778 | AA34: 0.007685919068 | AB34: 0.006501353371 | AC34: 0.00480053836 | AD34: 0.004916843887 | AE34: 0.004533006148 | AF34: 0.006219757455 | AG34: 0.00592374283 | AH34: 0.005488187481 | AI34: 0.005550596977 | AJ34: 0.00477835235 | AK34: 0.00452255767 | AL34: 0.003783866499 | AM34: 0.003273042973 | AN34: 0.002623867903 | AO34: 0.00214692379 | AP34: 0.001987575958 | AQ34: 0.002956743944 | AR34: 0.002956560482 | AS34: 0.002845089191 | AT34: 0.002783503957 | AU34: 0.002705898554 | AV34: =AV78*(1-AV$51-AV$91)/SUM(AV$52:AV$90) -> 0.002609101825 | AW34: 0.002570169694 | AX34: 0.002513025887 | AY34: 0.002457352763 | AZ34: 0.002416834159 | BA34: 0.002371550976
A35: 0.2474300028 | C35: 28 | D35: 0.01224171169 | E35: 0.0118984893 | F35: 0.009149647104 | G35: 0.009350792576 | H35: 0.008297066151 | I35: 0.0064191949 | J35: 0.005666210278 | K35: 0.004574400304 | L35: 0.004340793839 | M35: 0.003732280216 | N35: 0.003653847148 | O35: 0.003785108107 | P35: 0.00426947759 | Q35: 0.003804539771 | R35: 0.00433151043 | S35: 0.004607671676 | T35: 0.004870059977 | U35: 0.005825067889 | V35: 0.00573362563 | W35: 0.006012635779 | X35: 0.006424793165 | Y35: 0.006067994783 | Z35: 0.006392671423 | AA35: 0.006288464736 | AB35: 0.00634850477 | AC35: 0.005323925776 | AD35: 0.003911024182 | AE35: 0.003991392516 | AF35: 0.003669777898 | AG35: 0.005027477493 | AH35: 0.004782734222 | AI35: 0.004427595736 | AJ35: 0.004474739722 | AK35: 0.003847181861 | AL35: 0.003634294844 | AM35: 0.00303096806 | AN35: 0.00261721818 | AO35: 0.00209387326 | AP35: 0.001710373501 | AQ35: 0.001580583592 | AR35: 0.002347953484 | AS35: 0.002345214788 | AT35: 0.002254317961 | AU35: 0.002203360597 | AV35: 0.002140082613 | AW35: 0.002061697172 | AX35: 0.002029246713 | AY35: 0.001982553268 | AZ35: 0.001937480425 | BA35: 0.001904733692
A36: 0.2481900039 | C36: 29 | D36: 0.01074164116 | E36: 0.01028042733 | F36: 0.008242258646 | G36: 0.007988160589 | H36: 0.007838486709 | I36: 0.006834443634 | J36: 0.005442242419 | K36: 0.004732587229 | L36: 0.003815493165 | M36: 0.003868689429 | N36: 0.003229467399 | O36: 0.003240678883 | P36: 0.003262969603 | Q36: 0.003671581121 | R36: 0.003267161326 | S36: 0.003714454117 | T36: 0.003946779046 | U36: 0.004167817352 | V36: 0.004974323797 | W36: 0.004883905806 | X36: 0.005104938461 | Y36: 0.005429028969 | Z36: 0.005097397696 | AA36: 0.005326358544 | AB36: 0.005190519579 | AC36: 0.005194938494 | AD36: 0.004334201206 | AE36: 0.003172515467 | AF36: 0.003228886948 | AG36: 0.002964099278 | AH36: 0.004056088973 | AI36: 0.003855615222 | AJ36: 0.003566765594 | AK36: 0.003600063936 | AL36: 0.003089261676 | AM36: 0.002908965575 | AN36: 0.002421808727 | AO36: 0.002086969433 | AP36: 0.001666826265 | AQ36: 0.001359090819 | AR36: 0.001254165225 | AS36: 0.001860993699 | AT36: 0.001856776882 | AU36: 0.001783056725 | AV36: 0.00174124326 | AW36: 0.001689732081 | AX36: 0.001626484982 | AY36: 0.001599608292 | AZ36: 0.001561869148 | BA36: 0.001525717282
A37: 0.248950005 | C37: 30 | D37: 0.009535798451 | E37: 0.009014279659 | F37: 0.007107816361 | G37: 0.007193003614 | H37: 0.006692130183 | I37: 0.006451966409 | J37: 0.005790954779 | K37: 0.004542383159 | L37: 0.003944599128 | M37: 0.00339913835 | N37: 0.003345494603 | O37: 0.002862924203 | P37: 0.002792101807 | Q37: 0.002804463369 | R37: 0.003151198724 | S37: 0.002800121668 | T37: 0.003179829507 | U37: 0.003375682376 | V37: 0.003556986834 | W37: 0.004234556348 | X37: 0.004144031988 | Y37: 0.004310987782 | Z37: 0.004557640138 | AA37: 0.004244235509 | AB37: 0.004393260353 | AC37: 0.004244243559 | AD37: 0.004226041574 | AE37: 0.003513154909 | AF37: 0.002564524389 | AG37: 0.002606044589 | AH37: 0.002389610566 | AI37: 0.003267405907 | AJ37: 0.003103691736 | AK37: 0.002867442072 | AL37: 0.002888669713 | AM37: 0.002470846371 | AN37: 0.002322560684 | AO37: 0.001929671939 | AP37: 0.00166005084 | AQ37: 0.001323461705 | AR37: 0.001077573774 | AS37: 0.0009932748957 | AT37: 0.00147224314 | AU37: 0.001467458031 | AV37: 0.001407970634 | AW37: 0.001373725459 | AX37: 0.001331971347 | AY37: 0.001281089481 | AZ37: 0.00125916635 | BA37: 0.001228939302
A38: 0.2497100061 | C38: 31 | D38: 0.008206606077 | E38: 0.00799665939 | F38: 0.006220497053 | G38: 0.006200429328 | H38: 0.006022287711 | I38: 0.005504340302 | J38: 0.00546372267 | K38: 0.004830096305 | L38: 0.003783341298 | M38: 0.003512727161 | N38: 0.002937683183 | O38: 0.002964370633 | P38: 0.002465275609 | Q38: 0.00239842539 | R38: 0.002405617138 | S38: 0.002699185053 | T38: 0.002395703907 | U38: 0.002718108828 | V38: 0.002879224434 | W38: 0.003026159953 | X38: 0.003590821145 | Y38: 0.003497296684 | Z38: 0.003616671208 | AA38: 0.003792221755 | AB38: 0.003498212095 | AC38: 0.003589687772 | AD38: 0.00345008417 | AE38: 0.003422919911 | AF38: 0.002837754535 | AG38: 0.002068290953 | AH38: 0.002099389557 | AI38: 0.00192353763 | AJ38: 0.002628246112 | AK38: 0.002493308828 | AL38: 0.002299099563 | AM38: 0.00230866708 | AN38: 0.001971260362 | AO38: 0.001849174683 | AP38: 0.001533747543 | AQ38: 0.001317060413 | AR38: 0.001048505946 | AS38: 0.0008527480605 | AT38: 0.0007851657855 | AU38: 0.001162629174 | AV38: 0.001157839652 | AW38: 0.001109908061 | AX38: 0.001082003215 | AY38: 0.001048273534 | AZ38: 0.001007623589 | BA38: 0.0009899600245
A39: 0.2504700072 | C39: 32 | D39: 0.007276055416 | E39: 0.006877111249 | F39: 0.005507697712 | G39: 0.005424155128 | H39: 0.005188077406 | I39: 0.004949749089 | J39: 0.004658554954 | K39: 0.004554008012 | L39: 0.004020081246 | M39: 0.003367754124 | N39: 0.003034031093 | O39: 0.00260177808 | P39: 0.00255122274 | Q39: 0.00211650124 | R39: 0.002056159897 | S39: 0.002059367145 | T39: 0.002308001857 | U39: 0.00204663426 | V39: 0.002316973103 | W39: 0.002448052559 | X39: 0.002564528957 | Y39: 0.003028489488 | Z39: 0.002932100755 | AA39: 0.00300722039 | AB39: 0.00312341927 | AC39: 0.002856247949 | AD39: 0.002915827738 | AE39: 0.002792332688 | AF39: 0.002762793723 | AG39: 0.00228694215 | AH39: 0.001664943069 | AI39: 0.001688668064 | AJ39: 0.001546113726 | AK39: 0.002109797126 | AL39: 0.001997627047 | AM39: 0.001836087313 | AN39: 0.001840471355 | AO39: 0.001568273593 | AP39: 0.001468632643 | AQ39: 0.001215909327 | AR39: 0.001042619718 | AS39: 0.0008290932515 | AT39: 0.0006735497007 | AU39: 0.0006195530199 | AV39: 0.0009165960101 | AW39: 0.0009119992059 | AX39: 0.0008735080292 | AY39: 0.0008508604532 | AZ39: 0.0008238394731 | BA39: 0.0007915554649
A40: 0.2512300083 | C40: 33 | D40: 0.006038007272 | E40: 0.006092971797 | F40: 0.00472752012 | G40: 0.004800632773 | H40: 0.004535760216 | I40: 0.004260972059 | J40: 0.004186763064 | K40: 0.00388021406 | L40: 0.00378756321 | M40: 0.00357703282 | N40: 0.002907068875 | O40: =O84*(1-O$51-O$91)/SUM(O$52:O$90) -> 0.002685828925 | P40: 0.002237928665 | Q40: 0.00218906862 | R40: 0.001813439174 | S40: 0.00175919675 | T40: 0.001759885371 | U40: 0.0019705488 | V40: 0.001743550151 | W40: 0.001968800207 | X40: 0.002073319189 | Y40: 0.002161536863 | Z40: 0.00253738561 | AA40: 0.002436337493 | AB40: 0.002475092838 | AC40: 0.002548354558 | AD40: 0.002318337425 | AE40: 0.002358161725 | AF40: 0.002252126782 | AG40: 0.002224867358 | AH40: 0.001839582455 | AI40: 0.00133822182 | AJ40: 0.001356321381 | AK40: 0.001240203726 | AL40: 0.00168909469 | AM40: 0.001594123048 | AN40: 0.001462616055 | AO40: 0.001463098682 | AP40: 0.001244576649 | AQ40: 0.001163384376 | AR40: 0.0009617935979 | AS40: 0.0008237907354 | AT40: 0.0006543483565 | AU40: 0.0005310579569 | AV40: 0.0004880552234 | AW40: 0.0007214003668 | AX40: 0.0007171753716 | AY40: 0.0006863512924 | AZ40: 0.0006681518047 | BA40: 0.0006466567492
A41: 0.2519900094 | C41: 34 | D41: 0.005006788671 | E41: 0.005052627583 | F41: 0.004180427889 | G41: 0.004118917358 | H41: 0.00401189546 | I41: 0.00372248234 | J41: 0.003602077014 | K41: 0.003484832887 | L41: 0.003224843305 | M41: 0.003368768374 | N41: 0.0030858659 | O41: 0.002572210864 | P41: 0.002308948872 | Q41: 0.001919177098 | R41: 0.001874552018 | S41: 0.001550638769 | T41: 0.001502491334 | U41: 0.001501686278 | V41: 0.001677727008 | W41: 0.001480643049 | X41: 0.00166638984 | Y41: 0.001746400198 | Z41: 0.001809826107 | AA41: 0.002106915693 | AB41: 0.00200379431 | AC41: 0.002017904562 | AD41: 0.002066883048 | AE41: 0.001873537447 | AF41: 0.001900522292 | AG41: 0.001812272779 | AH41: 0.001788316103 | AI41: 0.001477492209 | AJ41: 0.001074048158 | AK41: 0.001087153565 | AL41: 0.0009921584936 | AM41: 0.001346892891 | AN41: 0.001268901322 | AO41: 0.001161826701 | AP41: 0.001160213085 | AQ41: 0.0009851314346 | AR41: 0.0009195261996 | AS41: 0.0007593308926 | AT41: 0.0006496493323 | AU41: 0.0005155089099 | AV41: 0.0004180092304 | AW41: 0.0003838127854 | AX41: 0.0005668367462 | AY41: 0.0005630596497 | AZ41: 0.0005385323664 | BA41: 0.000524027732
A42: 0.2527500105 | C42: 35 | D42: 0.004242818147 | E42: 0.004186712933 | F42: 0.003459963189 | G42: 0.003640756708 | H42: 0.003440069153 | I42: 0.003290123881 | J42: 0.00314503814 | K42: 0.002996094231 | L42: 0.002894153064 | M42: 0.002867100881 | N42: 0.002904452637 | O42: 0.002729110529 | P42: 0.00221005146 | Q42: 0.001978977287 | R42: 0.001642504955 | S42: 0.001601972706 | T42: 0.001323594679 | U42: 0.00128129888 | V42: 0.001277771082 | W42: 0.001423876547 | X42: 0.00125243357 | Y42: 0.001402738129 | Z42: 0.001461273759 | AA42: 0.001501756277 | AB42: 0.001731617954 | AC42: 0.001632456409 | AD42: 0.001635429174 | AE42: 0.001669073258 | AF42: 0.00150881232 | AG42: 0.001528194123 | AH42: 0.001455591702 | AI42: 0.001435248856 | AJ42: 0.001184944301 | AK42: 0.000860257544 | AL42: 0.0008690672726 | AM42: 0.0007905539317 | AN42: 0.001071291897 | AO42: 0.00100717531 | AP42: 0.0009205969999 | AQ42: 0.0009176403544 | AR42: 0.0007780275584 | AS42: 0.0007253894649 | AT42: 0.000598341805 | AU42: 0.0005114000533 | AV42: 0.0004054462757 | AW42: 0.0003284642755 | AX42: 0.0003013363509 | AY42: 0.0004446683676 | AZ42: 0.0004414362792 | BA42: 0.0004220253672
A43: 0.2535100116 | C43: 36 | D43: 0.003473355014 | E43: 0.003545344045 | F43: 0.002861464597 | G43: 0.003012059565 | H43: 0.003038845086 | I43: 0.002819094691 | J43: 0.002778141351 | K43: 0.002614129414 | L43: 0.002486459493 | M43: 0.002572046856 | N43: 0.002470443852 | O43: 0.002567444736 | P43: 0.002343563139 | Q43: 0.001893156096 | R43: 0.00169272271 | S43: 0.001402859353 | T43: 0.001366614903 | U43: 0.001128072394 | V43: 0.001089591921 | W43: 0.001083774797 | X43: 0.001203665633 | Y43: 0.001053602769 | Z43: 0.001172945512 | AA43: 0.001211702237 | AB43: 0.001233370019 | AC43: 0.001409677028 | AD43: 0.001322048951 | AE43: 0.00131966821 | AF43: 0.001343140543 | AG43: 0.001212314668 | AH43: 0.001226507273 | AI43: 0.001167345019 | AJ43: 0.001150209091 | AK43: 0.000948372342 | AL43: 0.0006871716365 | AM43: 0.000691950423 | AN43: 0.0006283111389 | AO43: 0.000849671376 | AP43: 0.0007974382708 | AQ43: 0.000727555709 | AR43: 0.0007241573834 | AS43: 0.000613281403 | AT43: 0.000571143758 | AU43: 0.0004706363395 | AV43: 0.0004018933493 | AW43: 0.0003183369882 | AX43: 0.0002576738798 | AY43: 0.0002361993412 | AZ43: 0.0003483355747 | BA43: 0.0003456544116
A44: 0.2542700127 | C44: 37 | D44: 0.002920990995 | E44: 0.002900300299 | F44: 0.002418426865 | G44: 0.002490012556 | H44: 0.002512540682 | I44: 0.002488459998 | J44: 0.00237903277 | K44: 0.002307565248 | L44: 0.002167899565 | M44: 0.002208827087 | N44: 0.002214876926 | O44: 0.002182752147 | P44: 0.00220351606 | Q44: 0.00200640271 | R44: 0.001618395531 | S44: 0.001444917155 | T44: 0.001196056481 | U44: 0.001164049497 | V44: 0.0009587156751 | W44: 0.0009236015558 | X44: 0.0009155911756 | Y44: 0.001011929128 | Z44: 0.0008804229856 | AA44: 0.0009719494409 | AB44: 0.0009944400982 | AC44: 0.00100332072 | AD44: 0.001140775397 | AE44: 0.0010659917 | AF44: 0.001061167119 | AG44: 0.001078390204 | AH44: 0.0009722597771 | AI44: 0.0009828931124 | AJ44: 0.0009348144775 | AK44: 0.0009198853566 | AL44: 0.0007569890636 | AM44: 0.0005467108527 | AN44: 0.0005495237654 | AO44: 0.0004979475697 | AP44: 0.0006722124207 | AQ44: 0.0006297315639 | AR44: 0.0005737016527 | AS44: 0.0005703680465 | AT44: 0.000482491455 | AU44: 0.0004488855315 | AV44: 0.0003695627082 | AW44: 0.0003152941006 | AX44: 0.000249527976 | AY44: 0.0002018116287 | AZ44: 0.0001848791637 | BA44: 0.0002725329144
A45: 0.2550300138 | C45: 38 | D45: 0.002544519189 | E45: 0.002437325951 | F45: 0.001974582524 | G45: 0.002103619204 | H45: 0.002075790702 | I45: 0.00205595962 | J45: 0.002098794663 | K45: 0.001974687375 | L45: 0.001912282239 | M45: 0.001925051569 | N45: 0.001900951313 | O45: 0.001956012234 | P45: 0.001872315313 | Q45: 0.001885449658 | R45: 0.001714231403 | S45: 0.001380674601 | T45: 0.001231195086 | U45: 0.001018169701 | V45: 0.0009886978209 | W45: 0.0008121668085 | X45: 0.0007797871333 | Y45: 0.0007692503271 | Z45: 0.0008450406672 | AA45: 0.0007290520165 | AB45: 0.00079710394 | AC45: 0.0008083578032 | AD45: =AD89*(1-AD$51-AD$91)/SUM(AD$52:AD$90) -> 0.000811324594 | AE45: 0.0009191353305 | AF45: 0.0008565359115 | AG45: 0.0008513582584 | AH45: 0.0008642074522 | AI45: 0.0007785647596 | AJ45: 0.0007865183411 | AK45: 0.0007470644386 | AL45: 0.0007336994199 | AM45: 0.0006018007317 | AN45: 0.0004338475861 | AO45: 0.0004351718253 | AP45: 0.0003936429179 | AQ45: 0.0005304278837 | AR45: 0.0004961744896 | AS45: 0.0004515080147 | AT45: 0.0004483739625 | AU45: 0.000378907835 | AV45: 0.0003522010497 | AW45: 0.0002896970843 | AX45: 0.0002469434943 | AY45: 0.0001952735329 | AZ45: 0.0001578348417 | BA45: 0.0001445292869
A46: 0.2557900149 | C46: 39 | D46: 0.0017569175 | E46: 0.002121673271 | F46: 0.001656159068 | G46: 0.001716842248 | H46: 0.001752594588 | I46: 0.00169732176 | J46: 0.00173301471 | K46: 0.001740868396 | L46: 0.001635242068 | M46: 0.001697375806 | N46: 0.001655731978 | O46: 0.001677974647 | P46: 0.001676893371 | Q46: 0.001601160428 | R46: 0.001609975386 | S46: 0.001461589808 | T46: 0.001175767585 | U46: 0.001047462265 | V46: 0.0008642739322 | W46: 0.0008370539508 | X46: 0.0006852757042 | Y46: 0.0006547323998 | Z46: 0.0006419601295 | AA46: 0.0006992715417 | AB46: 0.0005974727974 | AC46: 0.0006474680439 | AD46: 0.000653179562 | AE46: 0.0006532008418 | AF46: 0.0007379784667 | AG46: 0.000686669872 | AH46: 0.0006817565143 | AI46: 0.0006915227111 | AJ46: 0.0006225488444 | AK46: 0.0006280829017 | AL46: 0.0005954098755 | AM46: 0.0005828431121 | AN46: 0.0004771994539 | AO46: 0.0003433022505 | AP46: 0.0003437499266 | AQ46: 0.0003103726308 | AR46: 0.0004176035382 | AS46: 0.0003901850832 | AT46: 0.0003546547284 | AU46: 0.0003518340394 | AV46: 0.0002970576225 | AW46: 0.0002758654464 | AX46: 0.0002267123554 | AY46: 0.0001930944507 | AZ46: 0.0001525974213 | BA46: 0.0001232869887
A47: 0.256550016 | C47: 40 | D47: 0.03036410074 | E47: =D47 -> 0.03036410074 | F47: =E47 -> 0.03036410074 | G47: =F47 -> 0.03036410074 | H47: =G47 -> 0.03036410074 | I47: =H47 -> 0.03036410074 | J47: =I47 -> 0.03036410074 | K47: =J47 -> 0.03036410074 | L47: =K47 -> 0.03036410074 | M47: =L47 -> 0.03036410074 | N47: =M47 -> 0.03036410074 | O47: =N47 -> 0.03036410074 | P47: =O47 -> 0.03036410074 | Q47: =P47 -> 0.03036410074 | R47: =Q47 -> 0.03036410074 | S47: =R47 -> 0.03036410074 | T47: =S47 -> 0.03036410074 | U47: =T47 -> 0.03036410074 | V47: =U47 -> 0.03036410074 | W47: =V47 -> 0.03036410074 | X47: =W47 -> 0.03036410074 | Y47: =X47 -> 0.03036410074 | Z47: =Y47 -> 0.03036410074 | AA47: =Z47 -> 0.03036410074 | AB47: =AA47 -> 0.03036410074 | AC47: =AB47 -> 0.03036410074 | AD47: =AC47 -> 0.03036410074 | AE47: =AD47 -> 0.03036410074 | AF47: =AE47 -> 0.03036410074 | AG47: =AF47 -> 0.03036410074 | AH47: =AG47 -> 0.03036410074 | AI47: =AH47 -> 0.03036410074 | AJ47: =AI47 -> 0.03036410074 | AK47: =AJ47 -> 0.03036410074 | AL47: =AK47 -> 0.03036410074 | AM47: =AL47 -> 0.03036410074 | AN47: =AM47 -> 0.03036410074 | AO47: =AN47 -> 0.03036410074 | AP47: =AO47 -> 0.03036410074 | AQ47: =AP47 -> 0.03036410074 | AR47: =AQ47 -> 0.03036410074 | AS47: =AR47 -> 0.03036410074 | AT47: =AS47 -> 0.03036410074 | AU47: =AT47 -> 0.03036410074 | AV47: =AU47 -> 0.03036410074 | AW47: =AV47 -> 0.03036410074 | AX47: =AW47 -> 0.03036410074 | AY47: =AX47 -> 0.03036410074 | AZ47: =AY47 -> 0.03036410074 | BA47: =AZ47 -> 0.03036410074
C49: Intermediate table
C50: age | D50: 2011 | E50: 2012 | F50: 2013 | G50: 2014 | H50: 2015 | I50: 2016 | J50: 2017 | K50: 2018 | L50: 2019 | M50: 2020 | N50: 2021 | O50: 2022 | P50: 2023 | Q50: 2024 | R50: 2025 | S50: 2026 | T50: 2027 | U50: 2028 | V50: 2029 | W50: 2030 | X50: 2031 | Y50: 2032 | Z50: 2033 | AA50: 2034 | AB50: 2035 | AC50: 2036 | AD50: 2037 | AE50: 2038 | AF50: 2039 | AG50: 2040 | AH50: 2041 | AI50: 2042 | AJ50: 2043 | AK50: 2044 | AL50: 2045 | AM50: 2046 | AN50: 2047 | AO50: 2048 | AP50: 2049 | AQ50: 2050 | AR50: 2051 | AS50: 2052 | AT50: 2053 | AU50: 2054 | AV50: 2055 | AW50: 2056 | AX50: 2057 | AY50: 2058 | AZ50: 2059 | BA50: 2060
C51: 0 | D51: =D7 -> 0.03365868455 | E51: =E2 -> 0.04955305751 | F51: =F2 -> 0.05482302854 | G51: 0.05215827873 | H51: 0.05489979681 | I51: 0.04980588008 | J51: 0.04897234554 | K51: 0.04314108638 | L51: 0.03950910728 | M51: 0.03282506903 | N51: 0.02843863346 | O51: 0.02755836866 | P51: 0.04251810091 | Q51: 0.04400989496 | R51: 0.0438817376 | S51: 0.04452762515 | T51: 0.04494667069 | U51: 0.04506190941 | V51: 0.04617605665 | W51: 0.04698350038 | X51: 0.04781342823 | Y51: 0.04888939016 | Z51: 0.04980523281 | AA51: 0.05100889603 | AB51: 0.05233971747 | AC51: 0.05390666566 | AD51: 0.0550268154 | AE51: 0.05609563764 | AF51: 0.05699311802 | AG51: 0.057763551 | AH51: 0.05807463144 | AI51: 0.0583103517 | AJ51: 0.05823286566 | AK51: 0.05843534923 | AL51: 0.05879843973 | AM51: 0.05989314787 | AN51: 0.05984265104 | AO51: 0.06006632297 | AP51: 0.06019000298 | AQ51: 0.06071442799 | AR51: =AR2 -> 0.06071442799 | AS51: 0.06071442799 | AT51: 0.06071442799 | AU51: 0.06071442799 | AV51: 0.06071442799 | AW51: 0.06071442799 | AX51: 0.06071442799 | AY51: 0.06071442799 | AZ51: 0.06071442799 | BA51: 0.06071442799
C52: 1 | D52: =D8 -> 0.03510916686 | E52: =MAX(D7*(1-D$3*$A7),0) -> 0.03357436181 | F52: =MAX(E7*(1-E$3*$A7),0) -> 0.04929983316 | G52: 0.05473679201 | H52: 0.05204257972 | I52: 0.05475862525 | J52: 0.04970095247 | K52: 0.0488524406 | L52: 0.04303197745 | M52: 0.03944753104 | N52: 0.03275363164 | O52: 0.02838776207 | P52: 0.02750243852 | Q52: 0.04243115211 | R52: 0.0439185933 | S52: 0.04378960248 | T52: 0.04443314395 | U52: 0.04485030042 | V52: 0.04496406613 | W52: 0.04607431066 | X52: 0.04687811301 | Y52: 0.0477038974 | Z52: 0.04877448819 | AA52: 0.04968428524 | AB52: 0.05088076202 | AC52: 0.05220487256 | AD52: 0.05376630581 | AE52: 0.05488307856 | AF52: 0.05594900025 | AG52: 0.05684463302 | AH52: 0.05761343585 | AI52: 0.05792413395 | AJ52: 0.05815928388 | AK52: 0.05808175859 | AL52: 0.05828297679 | AM52: 0.05864395505 | AN52: 0.05973477991 | AO52: 0.05968344707 | AP52: 0.05990570751 | AQ52: 0.06002835356 | AR52: =MAX(AQ7*(1-AQ$3*$A7),0) -> 0.06055049093 | AS52: 0.06054973629 | AT52: 0.06054906349 | AU52: 0.06054846477 | AV52: 0.06054792333 | AW52: 0.06054739571 | AX52: 0.06054688523 | AY52: 0.0605464131 | AZ52: 0.06054605861 | BA52: 0.06054581672
C53: 2 | D53: 0.03305819873 | E53: =MAX(D8*(1-D$3*$A8),0) -> 0.03502121034 | F53: 0.03453896783 | G53: 0.05527625003 | H53: 0.05405797518 | I53: 0.05219450874 | J53: 0.0557616509 | K53: 0.04991884004 | L53: 0.04985150757 | M53: 0.04422286427 | N53: 0.03972254599 | O53: 0.03380683853 | P53: 0.02901870747 | Q53: 0.02790668035 | R53: 0.04300778253 | S53: 0.04456862738 | T53: 0.04447300235 | U53: 0.04516359738 | V53: 0.04563629775 | W53: 0.0457627596 | X53: 0.0469077413 | Y53: 0.04773880348 | Z53: 0.04855557108 | AA53: 0.04961668137 | AB53: 0.05048510037 | AC53: 0.05160934267 | AD53: 0.05280874032 | AE53: 0.05424720466 | AF53: 0.05521786577 | AG53: 0.0561475592 | AH53: 0.05691167353 | AI53: 0.05758099237 | AJ53: 0.05780676807 | AK53: 0.05799592503 | AL53: 0.05786488463 | AM53: 0.05802166766 | AN53: 0.05830071614 | AO53: 0.0593735901 | AP53: 0.05929119652 | AQ53: 0.05948623036 | AR53: 0.05956512698 | AS53: 0.0600784197 | AT53: 0.06008058649 | AU53: 0.06007585085 | AV53: 0.06007148125 | AW53: 0.06006893807 | AX53: 0.0600637337 | AY53: 0.06006040017 | AZ53: 0.06005584684 | BA53: 0.06005262074
C54: 3 | D54: 0.04336526048 | E54: 0.03297287029 | F54: 0.03602177638 | G54: 0.0387241363 | H54: 0.05458706482 | I54: 0.05421155157 | J54: 0.05314716603 | K54: 0.05600194216 | L54: 0.05093580107 | M54: 0.05122869748 | N54: 0.04452822758 | O54: 0.04099761447 | P54: 0.03455609812 | Q54: 0.02944340729 | R54: 0.02828414405 | S54: 0.04364155264 | T54: 0.04526126796 | U54: 0.04520116719 | V54: 0.0459520544 | W54: 0.04644382336 | X54: 0.04658738016 | Y54: 0.04776565155 | Z54: 0.04858763098 | AA54: 0.04939033993 | AB54: 0.0504125588 | AC54: 0.05120400653 | AD54: 0.05220219116 | AE54: 0.05327684525 | AF54: 0.05457377763 | AG54: 0.05540944295 | AH54: 0.05620933843 | AI54: 0.05687514619 | AJ54: 0.0574597979 | AK54: 0.0576398541 | AL54: 0.05777479335 | AM54: 0.05760085077 | AN54: 0.05767743606 | AO54: 0.0579435126 | AP54: 0.05897858298 | AQ54: 0.05887121712 | AR54: 0.05902234363 | AS54: 0.05909586593 | AT54: 0.05960798736 | AU54: 0.05960608302 | AV54: 0.0595976228 | AW54: 0.05959128214 | AX54: 0.05958410048 | AY54: 0.05957611967 | AZ54: 0.05956875074 | BA54: 0.05956137647
C55: 4 | D55: 0.04988384497 | E55: 0.04313481196 | F55: 0.03372484817 | G55: 0.04031720461 | H55: 0.03814857177 | I55: 0.05458817378 | J55: 0.05507388257 | K55: 0.05323326261 | L55: 0.05698475921 | M55: 0.05225380824 | N55: 0.05145969738 | O55: 0.04586770701 | P55: 0.04181326767 | Q55: 0.0349834557 | R55: 0.02977397548 | S55: 0.0286350623 | T55: 0.04421697179 | U55: 0.04589450089 | V55: 0.04588109902 | W55: 0.04665250014 | X55: 0.04716475336 | Y55: 0.04732059757 | Z55: 0.04849001029 | AA55: 0.04929169293 | AB55: 0.05004471212 | AC55: 0.05098634516 | AD55: 0.05164468979 | AE55: 0.05251444164 | AF55: 0.05344431994 | AG55: 0.0546070561 | AH55: 0.05531272747 | AI55: 0.05601403338 | AJ55: 0.0565946019 | AK55: 0.05713126547 | AL55: 0.05725630412 | AM55: 0.05734588451 | AN55: 0.05709349806 | AO55: 0.05715722704 | AP55: 0.05738965633 | AQ55: 0.05838877076 | AR55: 0.05823958816 | AS55: 0.05838359302 | AT55: 0.05845842399 | AU55: 0.05896037133 | AV55: 0.05895418777 | AW55: 0.05894327235 | AX55: 0.05893184819 | AY55: 0.05892145428 | AZ55: 0.0589091662 | BA55: 0.05889879509
C56: 5 | D56: 0.04807065567 | E56: 0.04949757295 | F56: 0.04389752678 | G56: 0.03768861023 | H56: 0.03963212478 | I56: 0.03805369944 | J56: 0.05534269606 | K56: 0.05503144754 | L56: 0.05403392968 | M56: 0.05837064591 | N56: 0.0523781459 | O56: 0.05291538912 | P56: 0.04668778954 | Q56: 0.04224606814 | R56: 0.03530474259 | S56: 0.03008173177 | T56: 0.02895265434 | U56: 0.04474194991 | V56: 0.04648632378 | W56: 0.04648046945 | X56: 0.04727312821 | Y56: 0.04780011897 | Z56: 0.04792817892 | AA56: 0.04907621844 | AB56: 0.04982244796 | AC56: 0.05048716934 | AD56: 0.05129459359 | AE56: 0.05182127613 | AF56: 0.05254524132 | AG56: 0.05334105733 | AH56: 0.05437360884 | AI56: 0.0549812593 | AJ56: 0.0555969366 | AK56: 0.05612864176 | AL56: 0.05660680593 | AM56: 0.05668564227 | AN56: 0.0566942137 | AO56: 0.05643176907 | AP56: 0.05646326132 | AQ56: 0.05666692362 | AR56: 0.05761020777 | AS56: 0.05745689902 | AT56: 0.05760041423 | AU56: 0.05766913376 | AV56: 0.05815955175 | AW56: 0.05815044157 | AX56: 0.05813411071 | AY56: 0.05811915183 | AZ56: 0.0581042315 | BA56: 0.05808884388
C57: 6 | D57: 0.04854603534 | E57: 0.04755245297 | F57: 0.05005577647 | G57: 0.04896291757 | H57: 0.03694789626 | I57: 0.03940935571 | J57: 0.03848051913 | K57: 0.05513468651 | L57: 0.0556865725 | M57: 0.05524298719 | N57: 0.05835415077 | O57: 0.05374238935 | P57: 0.05372814479 | Q57: 0.04705337728 | R57: 0.04252615553 | S57: 0.03557829649 | T57: 0.030336627 | U57: 0.02921975718 | V57: 0.04519883207 | W57: 0.04696696109 | X57: 0.04696986127 | Y57: 0.04777597461 | Z57: 0.04827492983 | AA57: 0.04836373398 | AB57: 0.04945243566 | AC57: 0.05010471976 | AD57: 0.05063079763 | AE57: 0.05130569429 | AF57: 0.05168603867 | AG57: 0.05227675911 | AH57: 0.05294436184 | AI57: 0.0538766282 | AJ57: 0.05439909982 | AK57: 0.0549643616 | AL57: 0.05543618629 | AM57: 0.05586268142 | AN57: 0.05586038091 | AO57: 0.05585491447 | AP57: 0.05556442411 | AQ57: 0.05556918676 | AR57: 0.05572679134 | AS57: 0.05664752585 | AT57: 0.05649742256 | AU57: 0.05663283451 | AV57: 0.05669514165 | AW57: 0.05717370209 | AX57: 0.05715868081 | AY57: 0.05713844944 | AZ57: 0.05711874354 | BA57: 0.05710058418
C58: 7 | D58: 0.04595436498 | E58: 0.04785317737 | F58: 0.04773846789 | G58: 0.05570851993 | H58: 0.0478507707 | I58: 0.0366070478 | J58: 0.03973327954 | K58: 0.03820365472 | L58: 0.05559218715 | M58: 0.05680808729 | N58: 0.05505825101 | O58: 0.0597235906 | P58: 0.05441211262 | Q58: 0.05399313465 | R58: 0.04722712959 | S58: 0.0427290914 | T58: 0.03577266485 | U58: 0.03052413992 | V58: 0.0294279496 | W58: 0.04552455237 | X58: 0.04731162973 | Y58: 0.04731639062 | Z58: 0.0480908561 | AA58: 0.0485469951 | AB58: 0.04856197632 | AC58: 0.04955200482 | AD58: 0.05006282089 | AE58: 0.05045526339 | AF58: 0.05098321781 | AG58: 0.05123308141 | AH58: 0.05169788482 | AI58: 0.0522688022 | AJ58: 0.05311148576 | AK58: 0.05358342748 | AL58: 0.05408671222 | AM58: 0.05450479813 | AN58: 0.05484416239 | AO58: 0.05482697475 | AP58: 0.05478905711 | AQ58: 0.05447746815 | AR58: 0.05443916455 | AS58: 0.05458594319 | AT58: 0.05548757951 | AU58: 0.05533419209 | AV58: 0.05546096369 | AW58: 0.0555178189 | AX58: 0.05597982656 | AY58: 0.05596040232 | AZ58: 0.05593522737 | BA58: 0.05591219399
C59: 8 | D59: 0.04876919614 | E59: 0.04512057572 | F59: 0.04764959698 | G59: 0.0529991963 | H59: 0.05425412613 | I59: 0.04721813655 | J59: =MAX(I14*(1-I$3*$A14),0) -> 0.03678631295 | K59: 0.03929602608 | L59: 0.03836790135 | M59: 0.05657398068 | N59: 0.05642530076 | O59: 0.05619295948 | P59: 0.06027597511 | Q59: 0.0545056273 | R59: 0.0540166877 | S59: 0.04729665922 | T59: 0.04281991926 | U59: 0.03587303552 | V59: 0.03063717705 | W59: 0.02953780354 | X59: 0.04569760817 | Y59: 0.04748971739 | Z59: 0.0474529026 | AA59: 0.04817783802 | AB59: 0.0485540033 | AC59: 0.04846312463 | AD59: 0.04930834102 | AE59: 0.04968481725 | AF59: 0.04993251914 | AG59: 0.05032987723 | AH59: 0.05045921946 | AI59: 0.05083076322 | AJ59: 0.0513170992 | AK59: 0.05210217756 | AL59: 0.05251214268 | AM59: 0.05295879096 | AN59: 0.05328902493 | AO59: 0.05360483327 | AP59: 0.05355504934 | AQ59: 0.05349085118 | AR59: 0.05314346206 | AS59: 0.05309762643 | AT59: 0.05323960462 | AU59: 0.0541119305 | AV59: 0.05395588159 | AW59: 0.05407468819 | AX59: 0.05412299751 | AY59: 0.05456811855 | AZ59: 0.05454343967 | BA59: 0.05451490517
C60: 9 | D60: 0.04598664089 | E60: 0.04768070492 | F60: 0.04453125974 | G60: 0.05276024629 | H60: 0.0514215945 | I60: 0.05330303455 | J60: 0.04728017779 | K60: 0.03623034785 | L60: 0.03929551249 | M60: 0.03894292227 | N60: 0.05598568647 | O60: 0.05741423875 | P60: 0.05651799525 | Q60: 0.0601706819 | R60: 0.05433798596 | S60: 0.05390398732 | T60: 0.04722696348 | U60: 0.04278419618 | V60: 0.03587349917 | W60: 0.03063678182 | X60: 0.02953741184 | Y60: 0.0456915359 | Z60: 0.04743694162 | AA60: 0.04734288016 | AB60: 0.04797932166 | AC60: 0.04824315015 | AD60: 0.04801151677 | AE60: 0.04871888107 | AF60: 0.0489516988 | AG60: 0.04907448869 | AH60: 0.04935083779 | AI60: 0.04939449306 | AJ60: 0.04968563617 | AK60: 0.05012000247 | AL60: 0.0508343321 | AM60: 0.05118753813 | AN60: 0.05154486634 | AO60: 0.05184935845 | AP60: 0.05212329787 | AQ60: 0.05204740321 | AR60: 0.05194149481 | AS60: 0.0515948202 | AT60: 0.05154817916 | AU60: 0.05167837217 | AV60: 0.05251800901 | AW60: 0.05236110847 | AX60: 0.05246872731 | AY60: 0.05250980978 | AZ60: 0.0529355494 | BA60: 0.05290736208
C61: 10 | D61: 0.04368018076 | E61: 0.04475776935 | F61: 0.04661514117 | G61: 0.04916919653 | H61: 0.05098616021 | I61: 0.05028647916 | J61: 0.05317166445 | K61: 0.04636076174 | L61: 0.03606511623 | M61: 0.03977364437 | N61: 0.0383876447 | O61: 0.05678491683 | P61: 0.0575365634 | Q61: 0.05621272117 | R61: 0.05976277797 | S61: 0.05402069897 | T61: 0.05361995872 | U61: 0.04700627849 | V61: 0.04261825186 | W61: 0.03573132913 | X61: 0.03051313304 | Y61: 0.02941210063 | Z61: 0.04544819719 | AA61: 0.0471204928 | AB61: 0.04693488105 | AC61: 0.04745121217 | AD61: 0.04756968062 | AE61: 0.04721458514 | AF61: 0.04777422568 | AG61: 0.04788498821 | AH61: 0.04789487006 | AI61: 0.04808426561 | AJ61: 0.04805668048 | AK61: 0.04830004546 | AL61: 0.04867095343 | AM61: 0.04931774515 | AN61: 0.04958378342 | AO61: 0.04991212495 | AP61: 0.05017361737 | AQ61: 0.05041098846 | AR61: 0.05029409828 | AS61: 0.05018150911 | AT61: 0.04984348631 | AU61: 0.04979015447 | AV61: 0.04990832611 | AW61: 0.05071310958 | AX61: 0.05055341613 | AY61: 0.05065100112 | AZ61: 0.05068425662 | BA61: 0.05109071599
C62: 11 | D62: 0.04561654073 | E62: 0.04232393066 | F62: 0.04334903004 | G62: 0.05132788458 | H62: 0.04732939351 | I62: 0.04963295233 | J62: 0.04997581186 | K62: 0.05191127493 | L62: 0.04594213871 | M62: 0.03640401214 | N62: 0.03905563966 | O62: 0.03881301048 | P62: 0.05670200247 | Q62: 0.05701914571 | R62: 0.05562705797 | S62: 0.05919340823 | T62: 0.05353455176 | U62: 0.05316712408 | V62: 0.04664418493 | W62: 0.04228390449 | X62: 0.03544586126 | Y62: 0.03026044865 | Z62: 0.02913364492 | AA62: 0.04495061859 | AB62: 0.04650614167 | AC62: 0.04620586856 | AD62: 0.04657235995 | AE62: 0.0465629699 | AF62: 0.04608405333 | AG62: 0.04651685973 | AH62: 0.04651820199 | AI62: 0.04645084568 | AJ62: 0.04656664458 | AK62: 0.04650117106 | AL62: 0.04668632093 | AM62: 0.04699844368 | AN62: 0.04754805401 | AO62: 0.04778608901 | AP62: 0.04806936849 | AQ62: 0.04829361758 | AR62: 0.04847888257 | AS62: 0.04835549056 | AT62: 0.04824326144 | AU62: 0.04790946316 | AV62: 0.04785014612 | AW62: 0.04795718194 | AX62: 0.04872185926 | AY62: 0.04856168235 | AZ62: 0.04864875251 | BA62: 0.04867606856
C63: 12 | D63: 0.04051057597 | E63: 0.0439958487 | F63: 0.04059195596 | G63: 0.04759466679 | H63: 0.04920582303 | I63: 0.04585444743 | J63: 0.04913554956 | K63: 0.0485709106 | L63: 0.05120239437 | M63: 0.04624208226 | N63: 0.03560389123 | O63: 0.03935925277 | P63: 0.0386120806 | Q63: 0.0559812986 | R63: 0.056210272 | S63: 0.05488473632 | T63: 0.05843216334 | U63: 0.05287339723 | V63: 0.05254710203 | W63: 0.0460908226 | X63: 0.0417730577 | Y63: 0.0350041487 | Z63: 0.02984423329 | AA63: 0.02868569512 | AB63: 0.04415890781 | AC63: 0.04556594383 | AD63: 0.04513192762 | AE63: 0.04536673471 | AF63: 0.04522852145 | AG63: 0.04465518727 | AH63: 0.04497217323 | AI63: 0.04489971745 | AJ63: 0.04476949793 | AK63: 0.04484337337 | AL63: 0.04473100554 | AM63: 0.04486311386 | AN63: 0.04509050825 | AO63: 0.04559877503 | AP63: 0.04579426611 | AQ63: 0.0460384026 | AR63: 0.04621069889 | AS63: 0.04637633175 | AT63: 0.04625348926 | AU63: 0.04613675802 | AV63: 0.04580903705 | AW63: 0.04574532465 | AX63: 0.0458387776 | AY63: 0.04656250343 | AZ63: 0.04640254123 | BA63: 0.04648096684
C64: 13 | D64: 0.03822595857 | E64: 0.03778885289 | F64: 0.03925784665 | G64: 0.04366148434 | H64: 0.0443064733 | I64: 0.04606472728 | J64: 0.04414922034 | K64: 0.04622365033 | L64: 0.04631961741 | M64: 0.05049877015 | N64: 0.04394239177 | O64: 0.03504851292 | P64: 0.03812156985 | Q64: 0.03710678869 | R64: 0.05369656464 | S64: 0.05394356616 | T64: 0.05268116331 | U64: 0.05609790356 | V64: 0.05077745899 | W64: 0.05043134724 | X64: 0.04420095503 | Y64: 0.0400182544 | Z64: 0.03346206554 | AA64: 0.02845147091 | AB64: 0.02725289877 | AC64: 0.04180419702 | AD64: 0.04298636879 | AE64: 0.04245663217 | AF64: 0.04255491735 | AG64: 0.04232799899 | AH64: 0.04170032996 | AI64: 0.04193180749 | AJ64: 0.04180377315 | AK64: 0.04164506966 | AL64: 0.0416604083 | AM64: 0.04150184466 | AN64: 0.04154769076 | AO64: 0.04173130075 | AP64: 0.04216340319 | AQ64: 0.04231204203 | AR64: 0.04248983448 | AS64: 0.04263063874 | AT64: 0.04277227849 | AU64: 0.04264434607 | AV64: 0.04252345321 | AW64: 0.04220973551 | AX64: 0.04213783904 | AY64: 0.04221275525 | AZ64: 0.04286931441 | BA64: 0.04271523442
C65: 14 | D65: 0.03418283111 | E65: 0.03399781227 | F65: 0.03025826277 | G65: 0.04102447037 | H65: 0.03898341065 | I65: 0.03949245676 | J65: 0.04263512834 | K65: 0.03964633637 | L65: 0.04200812437 | M65: 0.04439515671 | N65: 0.04606498458 | O65: 0.04184813548 | P65: 0.03268347741 | Q65: 0.03526146355 | R65: 0.03423709861 | S65: 0.04954393249 | T65: 0.04975855975 | U65: 0.04858232555 | V65: 0.05172117627 | W65: 0.04675482021 | X65: 0.0463627908 | Y65: 0.04055274697 | Z65: 0.03659202515 | AA65: 0.03046416396 | AB65: 0.0257684298 | AC65: 0.02456204558 | AD65: 0.03752408516 | AE65: 0.0384694278 | AF65: 0.03788465662 | AG65: 0.03789227606 | AH65: 0.03761322665 | AI65: 0.03700424273 | AJ65: 0.03715644256 | AK65: =MAX(AJ20*(1-AJ$3*$A20),0) -> 0.03700648757 | AL65: 0.03680900607 | AM65: 0.0367592016 | AN65: 0.03653882192 | AO65: 0.03654303658 | AP65: 0.03666067394 | AQ65: 0.03700301405 | AR65: 0.03708036413 | AS65: 0.03721045457 | AT65: 0.03731523812 | AU65: 0.03741852523 | AV65: 0.03728789094 | AW65: 0.0371650341 | AX65: 0.03687269754 | AY65: 0.03679405545 | AZ65: 0.03684635631 | BA65: 0.03741030685
C66: 15 | D66: 0.02800502607 | E66: 0.02981541864 | F66: 0.02599241903 | G66: 0.03125384911 | H66: 0.03601207652 | I66: 0.03405746608 | J66: 0.03597072091 | K66: 0.03756687143 | L66: 0.03532813405 | M66: 0.03980129142 | N66: 0.03982952058 | O66: 0.04328605307 | P66: 0.03842848238 | Q66: 0.02976595774 | R66: 0.03202563817 | S66: 0.03108872797 | T66: 0.04496751942 | U66: 0.04514286211 | V66: 0.04405527458 | W66: 0.04682767753 | X66: 0.04225000403 | Y66: 0.04179373711 | Z66: 0.03641481923 | AA66: 0.03269313477 | AB66: 0.02705744905 | AC66: 0.02276178889 | AD66: 0.02160306035 | AE66: 0.03290206543 | AF66: 0.03363210961 | AG66: 0.0330536009 | AH66: 0.03299463435 | AI66: 0.032708513 | AJ66: 0.03213312281 | AK66: 0.03223230976 | AL66: 0.03204898096 | AM66: 0.03181746495 | AN66: 0.03169981719 | AO66: 0.03147405614 | AP66: 0.03143623674 | AQ66: 0.03150239913 | AR66: 0.03174696282 | AS66: 0.03178778717 | AT66: 0.03188028844 | AU66: 0.03194954297 | AV66: 0.03201932051 | AW66: 0.03189030759 | AX66: 0.03176717301 | AY66: 0.03150151193 | AZ66: 0.03142147403 | BA66: 0.03145731108
C67: 16 | D67: 0.02883850501 | E67: 0.02403148721 | F67: 0.02190686893 | G67: 0.02658885474 | H67: 0.02704846492 | I67: 0.03093677328 | J67: 0.03060770953 | K67: 0.03119489392 | L67: 0.03292730659 | M67: 0.0331527997 | N67: 0.03521539612 | O67: 0.03701151924 | P67: 0.03924171232 | Q67: 0.03454776164 | R67: 0.02668091877 | S67: 0.02869521116 | T67: 0.0278386246 | U67: 0.04024269778 | V67: 0.04037293507 | W67: 0.0393289836 | X67: 0.04171174638 | Y67: 0.03752945259 | Z67: 0.03696433537 | AA67: 0.03202654555 | AB67: 0.02856562986 | AC67: 0.02350084473 | AD67: 0.01968088875 | AE67: 0.01862036464 | AF67: 0.02827580503 | AG67: 0.02884642152 | AH67: 0.0282953732 | AI67: 0.02820926793 | AJ67: 0.02792497526 | AK67: 0.02740483499 | AL67: 0.02744118311 | AM67: 0.02722920832 | AN67: 0.0269655741 | AO67: 0.02683208199 | AP67: 0.02660312846 | AQ67: 0.02653925694 | AR67: 0.02655065565 | AS67: 0.02673273177 | AT67: 0.02674885481 | AU67: 0.02680742744 | AV67: 0.0268481602 | AW67: 0.02689045436 | AX67: 0.02676513927 | AY67: 0.02664683014 | AZ67: 0.02641198561 | BA67: 0.02633667124
C68: 17 | D68: 0.02315613676 | E68: 0.02442925925 | F68: 0.01709917923 | G68: 0.02223952101 | H68: 0.02275466337 | I68: 0.02292913916 | J68: 0.02751088202 | K68: 0.02621239105 | L68: 0.02698763108 | M68: 0.03066771341 | N68: 0.02901301193 | O68: 0.03243765002 | P68: 0.0332153537 | Q68: 0.03492034566 | R68: 0.03064725831 | S68: 0.02365598738 | T68: 0.02542304718 | U68: 0.02464641606 | V68: 0.03559902085 | W68: 0.03564298833 | X68: 0.03463676608 | Y68: 0.03662279157 | Z68: 0.0327973964 | AA68: 0.03210763565 | AB68: 0.0276231029 | AC68: 0.02448193386 | AD68: 0.02004722465 | AE68: 0.01673508025 | AF68: 0.01578646996 | AG68: 0.02392660815 | AH68: 0.02436319738 | AI68: 0.02386871921 | AJ68: 0.02376243005 | AK68: 0.0234975803 | AL68: 0.02301765079 | AM68: 0.02299816437 | AN68: 0.02276164865 | AO68: 0.02251067316 | AP68: 0.02236552376 | AQ68: 0.02214645404 | AR68: =MAX(AQ23*(1-AQ$3*$A23),0) -> 0.02205436917 | AS68: 0.02204231041 | AT68: 0.02217680509 | AU68: 0.02217288112 | AV68: 0.02220572087 | AW68: 0.02222474684 | AX68: 0.02224448466 | AY68: 0.02212731613 | AZ68: 0.02201869377 | BA68: 0.02181729301
C69: 18 | D69: 0.02061119017 | E69: 0.01941529 | F69: 0.01693628062 | G69: 0.0172544824 | H69: 0.01886383476 | I69: 0.0190860128 | J69: 0.02021971196 | K69: 0.02332598723 | L69: 0.02244282686 | M69: 0.02498608399 | N69: 0.02660555985 | O69: 0.02653911837 | P69: 0.02887766349 | Q69: 0.02931903386 | R69: 0.03072358476 | S69: 0.0269465889 | T69: 0.02078197449 | U69: 0.0223160159 | V69: 0.02161390286 | W69: 0.031151971 | X69: 0.03110871692 | Y69: 0.03013120227 | Z69: 0.03170169255 | AA69: 0.02820761428 | AB69: 0.02740921614 | AC69: 0.02342413644 | AD69: 0.02066079671 | AE69: 0.01686358725 | AF69: 0.01403566848 | AG69: 0.01321534202 | AH69: 0.01999238868 | AI69: 0.02033316062 | AJ69: 0.01989237129 | AK69: 0.01978202662 | AL69: 0.01952447653 | AM69: 0.01908232165 | AN69: 0.01901540274 | AO69: 0.01879278719 | AP69: 0.01855634489 | AQ69: 0.01841214894 | AR69: 0.01819837194 | AS69: 0.01810388994 | AT69: 0.01807939868 | AU69: 0.01817463104 | AV69: 0.0181577506 | AW69: 0.0181718153 | AX69: 0.01817413442 | AY69: 0.01817846509 | AZ69: 0.01807330312 | BA69: 0.01797816629
C70: 19 | D70: 0.01875510279 | E70: 0.01715004109 | F70: 0.01319906702 | G70: 0.0170139516 | H70: 0.01453903314 | I70: 0.01569833647 | J70: 0.0167262651 | K70: 0.01701705554 | L70: 0.01981788699 | M70: 0.02068670605 | N70: 0.02153681905 | O70: 0.02421168315 | P70: 0.02348605413 | Q70: 0.02533733449 | R70: 0.02563818914 | S70: 0.02684671718 | T70: 0.02352466888 | U70: 0.01812660992 | V70: 0.01944446335 | W70: 0.01879023013 | X70: 0.02700752834 | Y70: 0.02687693127 | Z70: 0.02589848782 | AA70: 0.02706541851 | AB70: 0.02389616677 | AC70: 0.02305997058 | AD70: 0.01961064641 | AE70: 0.01724075471 | AF70: 0.01403025764 | AG70: 0.01165603788 | AH70: 0.0109546102 | AI70: 0.01655320366 | AJ70: 0.0168116451 | AK70: 0.016428872 | AL70: 0.01630601832 | AM70: 0.01605604332 | AN70: 0.01564967357 | AO70: 0.01557142824 | AP70: 0.01536414836 | AQ70: 0.01514998322 | AR70: 0.01500387672 | AS70: 0.01481358364 | AT70: 0.01472417403 | AU70: 0.0146915152 | AV70: 0.0147572978 | AW70: 0.01473270508 | AX70: 0.01473290453 | AY70: 0.01472478312 | AZ70: 0.01472030003 | BA70: 0.01462970077
C71: 20 | D71: 0.01985147801 | E71: 0.01550454832 | F71: 0.01146411581 | G71: 0.01320943507 | H71: 0.01425598537 | I71: 0.01201839074 | J71: 0.01368482149 | K71: 0.01398823155 | L71: 0.01436305395 | M71: 0.01819876538 | N71: 0.0177332092 | O71: 0.0195133042 | P71: 0.02131807734 | Q71: 0.02050165551 | R71: 0.02204150333 | S71: 0.02228524611 | T71: 0.02331274225 | U71: 0.02040832205 | V71: 0.01570778518 | W71: 0.0168101845 | X71: 0.01619785821 | Y71: 0.02319777017 | Z71: 0.02296270722 | AA71: 0.02197293016 | AB71: 0.02277954336 | AC71: 0.01996966532 | AD71: 0.01917475018 | AE71: 0.01625295017 | AF71: 0.0142462435 | AG71: 0.01157241472 | AH71: 0.009596634975 | AI71: 0.009008944688 | AJ71: 0.01359402166 | AK71: 0.01379069965 | AL71: 0.01345000087 | AM71: 0.01331732665 | AN71: 0.01307673303 | AO71: 0.01272601146 | AP71: 0.01264127522 | AQ71: 0.0124553809 | AR71: 0.01225800158 | AS71: 0.01212612782 | AT71: 0.01196174774 | AU71: 0.01187886955 | AV71: 0.0118428656 | AW71: 0.01188677319 | AX71: 0.01185761477 | AY71: 0.01184942567 | AZ71: 0.01183624171 | BA71: 0.01182808344
C72: 21 | D72: 0.01775224356 | E72: 0.01633705888 | F72: 0.01024252181 | G72: 0.01144305128 | H72: 0.01102511749 | I72: 0.01172968307 | J72: 0.01043851116 | K72: 0.01139456944 | L72: 0.01175286791 | M72: 0.01315538016 | N72: 0.01554113008 | O72: 0.0160183632 | P72: 0.01712098148 | Q72: 0.01854334742 | R72: 0.01777069465 | S72: 0.01908905095 | T72: 0.01928026128 | U72: 0.02014886705 | V72: 0.01761792757 | W72: 0.01352731966 | X72: 0.0144338577 | Y72: 0.01385670516 | Z72: =MAX(Y27*(1-Y$3*$A27),0) -> 0.0197367667 | AA72: 0.01939770529 | AB72: 0.01840997439 | AC72: 0.01894790089 | AD72: 0.01652680608 | AE72: 0.01581645384 | AF72: 0.01336637167 | AG72: 0.01169511196 | AH72: 0.009482961409 | AI72: 0.007855159321 | AJ72: 0.00736375818 | AK72: 0.01109889589 | AL72: 0.01123684524 | AM72: 0.01093240774 | AN72: 0.01079408575 | AO72: 0.01058226475 | AP72: 0.01028096407 | AQ72: 0.01019781411 | AR72: 0.01002808588 | AS72: 0.009857791861 | AT72: 0.009742873649 | AU72: 0.009601951816 | AV72: 0.009527462322 | AW72: 0.009491115645 | AX72: 0.009518616484 | AY72: 0.009488412782 | AZ72: 0.009476407655 | BA72: 0.009462134194
C73: 22 | D73: 0.01860911283 | E73: 0.01456229531 | F73: 0.01070093408 | G73: 0.01020451242 | H73: 0.00952417693 | I73: 0.009041123166 | J73: 0.01016101046 | K73: 0.008664259917 | L73: 0.009542412526 | M73: 0.01074466768 | N73: 0.01120360624 | O73: 0.01400777621 | P73: 0.01401920122 | Q73: 0.01485478266 | R73: 0.0160318055 | S73: 0.01535007276 | T73: 0.01647132525 | U73: 0.01661899146 | V73: 0.01734663099 | W73: 0.01513031068 | X73: 0.01158222904 | Y73: 0.01231186943 | Z73: 0.01175410721 | AA73: 0.0166207609 | AB73: 0.01619968266 | AC73: 0.01526216042 | AD73: 0.01562812959 | AE73: 0.01358595832 | AF73: 0.01296316485 | AG73: 0.01093564056 | AH73: 0.009551148137 | AI73: 0.007735997008 | AJ73: 0.006399077424 | AK73: 0.005991909594 | AL73: 0.009012867898 | AM73: 0.009102260189 | AN73: 0.008830478413 | AO73: 0.008704693587 | AP73: 0.008519201167 | AQ73: 0.008264575414 | AR73: 0.008181414832 | AS73: 0.008035807466 | AT73: 0.007892020995 | AU73: 0.007792711814 | AV73: 0.007673473085 | AW73: 0.00760784829 | AX73: 0.007572604296 | AY73: 0.007588966859 | AZ73: 0.007560463567 | BA73: 0.007547872989
C74: 23 | D74: 0.01802975287 | E74: 0.01521574626 | F74: 0.009456836721 | G74: 0.01064117525 | H74: 0.008469564847 | I74: 0.007784162245 | J74: 0.007811390994 | K74: 0.008407359729 | L74: 0.007232131299 | M74: 0.008707597323 | N74: 0.009125526652 | O74: 0.01007623249 | P74: 0.01222865974 | Q74: 0.01213264948 | R74: 0.01280962829 | S74: 0.01381173994 | T74: 0.01320992372 | U74: 0.01415962125 | V74: 0.01426865144 | W74: 0.01485597108 | X74: 0.01291799784 | Y74: 0.009850749099 | Z74: 0.01041237195 | AA74: 0.00986751836 | AB74: 0.01383545374 | AC74: 0.01338477874 | AD74: 0.01254540424 | AE74: 0.01280339799 | AF74: 0.01109705511 | AG74: 0.01056971788 | AH74: 0.008900648332 | AI74: 0.007765317697 | AJ74: 0.006280735177 | AK74: 0.005189339046 | AL74: 0.004849183096 | AM74: 0.007275688027 | AN74: 0.007326761529 | AO74: 0.007096346872 | AP74: 0.006983081496 | AQ74: 0.006824183144 | AR74: 0.006606883999 | AS74: 0.006532596849 | AT74: 0.006410267776 | AU74: 0.006289567631 | AV74: 0.006205055897 | AW74: 0.006105130866 | AX74: 0.006047866616 | AY74: 0.006015349439 | AZ74: 0.00602476453 | BA74: 0.005999692176
C75: 24 | D75: 0.01929484112 | E75: 0.01470644492 | F75: 0.009817846042 | G75: 0.009390863813 | H75: 0.008813579505 | I75: 0.00690496829 | J75: 0.006712211135 | K75: 0.006448080411 | L75: 0.007000555711 | M75: 0.006590289766 | N75: 0.007380360026 | O75: 0.008193963073 | P75: 0.00877995459 | Q75: 0.0105630262 | R75: 0.01044212658 | S75: 0.0110142168 | T75: 0.01186256921 | U75: 0.01133321714 | V75: 0.01213239609 | W75: 0.01219466658 | X75: 0.01265698187 | Y75: 0.01096302982 | Z75: 0.00831234758 | AA75: 0.008720822554 | AB75: 0.008194025552 | AC75: 0.01140280551 | AD75: 0.01097435944 | AE75: 0.01025174671 | AF75: 0.01043125743 | AG75: 0.009025237096 | AH75: 0.008581095667 | AI75: 0.007218235525 | AJ75: 0.006288680611 | AK75: 0.00508053136 | AL75: 0.004189022952 | AM75: 0.003904510831 | AN75: 0.005841374269 | AO75: 0.005872625105 | AP75: 0.00567794127 | AQ75: 0.005578984595 | AR75: 0.005440958008 | AS75: 0.005261336484 | AT75: 0.005197189472 | AU75: 0.005094945082 | AV75: 0.004994636396 | AW75: 0.004923455844 | AX75: 0.004840075881 | AY75: 0.004791047241 | AZ75: 0.004762421069 | BA75: 0.004767909277
C76: 25 | D76: 0.01829471297 | E76: 0.01571505755 | F76: 0.009451781832 | G76: 0.00974099856 | H76: 0.007768071651 | I76: 0.00717445274 | J76: 0.005946937913 | K76: 0.005532766227 | L76: 0.005361084248 | M76: 0.006373855361 | N76: 0.005578804833 | O76: 0.006620371465 | P76: 0.007131626392 | Q76: 0.007575263998 | R76: 0.009080485216 | S76: 0.008967804197 | T76: 0.009448383885 | U76: 0.01016479547 | V76: 0.009698556157 | W76: 0.01035578325 | X76: 0.01037615722 | Y76: 0.01072725593 | Z76: 0.009238256487 | AA76: 0.006952041279 | AB76: 0.007231052772 | AC76: 0.006742949752 | AD76: 0.009334804576 | AE76: 0.008953961711 | AF76: 0.00833933668 | AG76: 0.008470568719 | AH76: 0.007315855021 | AI76: 0.006948348961 | AJ76: 0.005836615072 | AK76: 0.005079097707 | AL76: 0.004094813686 | AM76: 0.003367663836 | AN76: 0.003129825443 | AO76: 0.004674579314 | AP76: 0.004691278402 | AQ76: 0.004528955126 | AR76: 0.00444093291 | AS76: 0.004325786272 | AT76: 0.004178933206 | AU76: 0.004123968212 | AV76: 0.004039271876 | AW76: 0.003956451608 | AX76: 0.003896746007 | AY76: 0.003827830603 | AZ76: 0.003786759672 | BA76: 0.003762571297
C77: 26 | D77: 0.01567604487 | E77: 0.01488992845 | F77: 0.01008088982 | G77: 0.009373954465 | H77: 0.008052775679 | I77: 0.006318760088 | J77: 0.006175480535 | K77: 0.004898587671 | L77: 0.004596773843 | M77: 0.00487917125 | N77: 0.005392365097 | O77: 0.005001953994 | P77: 0.005758879307 | Q77: 0.006149686504 | R77: 0.006508385055 | S77: 0.007793947567 | T77: 0.007688438789 | U77: 0.008091376502 | V77: 0.008693479953 | W77: 0.008273323675 | X77: 0.008806035645 | Y77: 0.008788585937 | Z77: 0.009033652146 | AA77: 0.007721157558 | AB77: 0.00576033371 | AC77: 0.005946146195 | AD77: 0.005515954535 | AE77: 0.00761057092 | AF77: 0.007278209116 | AG77: 0.006766816754 | AH77: 0.006861152067 | AI77: 0.005919473733 | AJ77: 0.005614238542 | AK77: 0.004710496501 | AL77: 0.004090611518 | AM77: 0.003289453461 | AN77: 0.002697448901 | AO77: 0.002502742181 | AP77: 0.003731365971 | AQ77: 0.003739063943 | AR77: 0.003602295786 | AS77: 0.003527964874 | AT77: 0.003433151967 | AU77: 0.003313364813 | AV77: 0.003266890292 | AW77: 0.003197123098 | AX77: 0.003128894164 | AY77: 0.003079316802 | AZ77: 0.003023018523 | BA77: 0.002989336925
C78: 27 | D78: 0.01415840692 | E78: 0.01274956983 | F78: 0.009533466497 | G78: 0.00999378116 | H78: 0.007744604448 | I78: 0.006545550881 | J78: 0.005435806177 | K78: 0.005083335809 | L78: 0.004066961937 | M78: 0.004181867192 | N78: 0.004125374863 | O78: 0.004832495183 | P78: 0.00434866765 | Q78: 0.004963192583 | R78: 0.005280597586 | S78: 0.005583066244 | T78: 0.006678170638 | U78: 0.006580333203 | V78: 0.006916054474 | W78: 0.007411446647 | X78: 0.007030856108 | Y78: 0.007453953857 | Z78: 0.007396203283 | AA78: 0.007545001181 | AB78: 0.006393059071 | AC78: 0.004733287716 | AD78: 0.004860526755 | AE78: 0.004493744719 | AF78: 0.006181614928 | AG78: 0.005901388402 | AH78: 0.005477049374 | AI78: 0.005547456999 | AJ78: 0.004779377519 | AK78: 0.00452767099 | AL78: 0.003790921346 | AM78: 0.003283607195 | AN78: 0.002632806846 | AO78: 0.002155348328 | AP78: 0.001996216104 | AQ78: 0.002971692285 | AR78: 0.002971709032 | AS78: 0.002859496049 | AT78: 0.002797760737 | AU78: 0.002719904466 | AV78: 0.002622671438 | AW78: 0.002583716384 | AX78: 0.002526370602 | AY78: 0.002470555413 | AZ78: 0.002429925712 | BA78: 0.002384502738
C79: 28 | D79: 0.01224171169 | E79: 0.01150708256 | F79: 0.008147559458 | G79: 0.009447209688 | H79: 0.008251641544 | I79: 0.006290447878 | J79: 0.005627665481 | K79: 0.004471388054 | L79: 0.004217316602 | M79: 0.00369837381 | N79: 0.003533683993 | O79: =MAX(N34*(1-N$3*$A34),0) -> 0.003695294681 | P79: 0.004199027596 | Q79: 0.003745743122 | R79: 0.004259373391 | S79: 0.004527240744 | T79: 0.004781021038 | U79: 0.005712312135 | V79: 0.005621143976 | W79: 0.005892559464 | X79: 0.006294507007 | Y79: 0.005947549916 | Z79: 0.006268901739 | AA79: 0.00617316855 | AB79: 0.006242756499 | AC79: 0.005249343008 | AD79: 0.003866227628 | AE79: 0.003956822129 | AF79: 0.003647273064 | AG79: 0.005008505301 | AH79: 0.004773027811 | AI79: 0.004425091041 | AJ79: 0.004475699753 | AK79: 0.003851531584 | AL79: 0.003641070822 | AM79: 0.00304075095 | AN79: 0.002626134469 | AO79: 0.002102089627 | AP79: 0.001717808627 | AQ79: 0.001588574512 | AR79: 0.00235998371 | AS79: 0.002357090401 | AT79: 0.002265864313 | AU79: 0.002214765339 | AV79: 0.002151212916 | AW79: 0.002072563837 | AX79: 0.002040022456 | AY79: 0.001993204957 | AZ79: 0.001947975406 | BA79: 0.001915136023
C80: 29 | D80: 0.01074164116 | E80: =MAX(D35*(1-D$3*$A35),0) -> 0.009942247546 | F80: =MAX(E35*(1-E$3*$A35),0) -> 0.007339549998 | G80: 0.008070527443 | H80: 0.007795572723 | I80: 0.006697368148 | J80: 0.005405221179 | K80: 0.004626012722 | L80: 0.003706958511 | M80: 0.003833543795 | N80: 0.003123260714 | O80: 0.003163783729 | P80: 0.003209127842 | Q80: 0.00361483926 | R80: 0.003212749973 | S80: 0.003649615077 | T80: 0.003874620382 | U80: 0.004087140972 | V80: 0.004876738045 | W80: 0.004786370975 | X80: 0.00500141718 | Y80: 0.005321267065 | Z80: 0.004998706044 | AA80: 0.005228702144 | AB80: 0.005104060091 | AC80: 0.005122162707 | AD80: 0.004284557616 | AE80: 0.003145037566 | AF80: 0.003209085868 | AG80: 0.002952913657 | AH80: 0.004047857266 | AI80: 0.003853434097 | AJ80: 0.003567530824 | AK80: 0.00360413426 | AL80: 0.003095021464 | AM80: 0.002918354684 | AN80: 0.002430059298 | AO80: 0.00209515871 | AP80: 0.001674072088 | AQ80: 0.001365961943 | AR80: 0.0012605912 | AS80: 0.00187041733 | AT80: 0.001866287075 | AU80: 0.001792285946 | AV80: 0.001750299249 | AW80: 0.001698638215 | AX80: 0.001635121972 | AY80: 0.001608202528 | AZ80: 0.00157032951 | BA80: 0.001534049689
C81: 30 | D81: 0.009535798451 | E81: =MAX(D36*(1-D$3*$A36),0) -> 0.008717750432 | F81: =MAX(E36*(1-E$3*$A36),0) -> 0.006329354101 | G81: =MAX(F36*(1-F$3*$A36),0) -> 0.007267171513 | H81: =MAX(G36*(1-G$3*$A36),0) -> 0.006655492247 | I81: =MAX(H36*(1-H$3*$A36),0) -> 0.006322562103 | J81: =MAX(I36*(1-I$3*$A36),0) -> 0.005751561398 | K81: =MAX(J36*(1-J$3*$A36),0) -> 0.004440091912 | L81: =MAX(K36*(1-K$3*$A36),0) -> 0.003832391955 | M81: =MAX(L36*(1-L$3*$A36),0) -> 0.003368258417 | N81: =MAX(M36*(1-M$3*$A36),0) -> 0.003235472162 | O81: =MAX(N36*(1-N$3*$A36),0) -> 0.00279499245 | P81: =MAX(O36*(1-O$3*$A36),0) -> 0.002746029764 | Q81: =MAX(P36*(1-P$3*$A36),0) -> 0.00276112224 | R81: =MAX(Q36*(1-Q$3*$A36),0) -> 0.003098718613 | S81: =MAX(R36*(1-R$3*$A36),0) -> 0.002751243099 | T81: =MAX(S36*(1-S$3*$A36),0) -> 0.003121692924 | U81: =MAX(T36*(1-T$3*$A36),0) -> 0.003310339342 | V81: =MAX(U36*(1-U$3*$A36),0) -> 0.003487206247 | W81: =MAX(V36*(1-V$3*$A36),0) -> 0.004149989456 | X81: =MAX(W36*(1-W$3*$A36),0) -> 0.004059996597 | Y81: =MAX(X36*(1-X$3*$A36),0) -> 0.004225418105 | Z81: =MAX(Y36*(1-Y$3*$A36),0) -> 0.004469398831 | AA81: =MAX(Z36*(1-Z$3*$A36),0) -> 0.004166419351 | AB81: =MAX(AA36*(1-AA$3*$A36),0) -> 0.004320080966 | AC81: =MAX(AB36*(1-AB$3*$A36),0) -> 0.004184786038 | AD81: =MAX(AC36*(1-AC$3*$A36),0) -> 0.004177636836 | AE81: =MAX(AD36*(1-AD$3*$A36),0) -> 0.003482726651 | AF81: =MAX(AE36*(1-AE$3*$A36),0) -> 0.002548797498 | AG81: =MAX(AF36*(1-AF$3*$A36),0) -> 0.002596210159 | AH81: =MAX(AG36*(1-AG$3*$A36),0) -> 0.002384760925 | AI81: =MAX(AH36*(1-AH$3*$A36),0) -> 0.003265557533 | AJ81: =MAX(AI36*(1-AI$3*$A36),0) -> 0.003104357616 | AK81: =MAX(AJ36*(1-AJ$3*$A36),0) -> 0.002870684076 | AL81: =MAX(AK36*(1-AK$3*$A36),0) -> 0.002894055507 | AM81: =MAX(AL36*(1-AL$3*$A36),0) -> 0.002478821387 | AN81: =MAX(AM36*(1-AM$3*$A36),0) -> 0.00233047314 | AO81: =MAX(AN36*(1-AN$3*$A36),0) -> 0.001937243979 | AP81: =MAX(AO36*(1-AO$3*$A36),0) -> 0.00166726721 | AQ81: =MAX(AP36*(1-AP$3*$A36),0) -> 0.001330152699 | AR81: =MAX(AQ36*(1-AQ$3*$A36),0) -> 0.001083094946 | AS81: =MAX(AR36*(1-AR$3*$A36),0) -> 0.0009983046045 | AT81: =MAX(AS36*(1-AS$3*$A36),0) -> 0.001479783796 | AU81: =MAX(AT36*(1-AT$3*$A36),0) -> 0.001475053692 | AV81: =MAX(AU36*(1-AU$3*$A36),0) -> 0.001415293314 | AW81: =MAX(AV36*(1-AV$3*$A36),0) -> 0.001380966005 | AX81: =MAX(AW36*(1-AW$3*$A36),0) -> 0.001339044405 | AY81: =MAX(AX36*(1-AX$3*$A36),0) -> 0.001287972407 | AZ81: =MAX(AY36*(1-AY$3*$A36),0) -> 0.001265987027 | BA81: =MAX(AZ36*(1-AZ$3*$A36),0) -> 0.001235650914
C82: 31 | D82: 0.008206606077 | E82: 0.007733605289 | F82: 0.005539215778 | G82: 0.006264362678 | H82: 0.005989317014 | I82: 0.005393942124 | J82: 0.005426555309 | K82: 0.004721325963 | L82: 0.003675721229 | M82: 0.003480815315 | N82: 0.002841072333 | O82: 0.002894031749 | P82: 0.002424596475 | Q82: 0.00236135931 | R82: 0.002365553954 | S82: 0.002652068421 | T82: 0.002351903433 | U82: 0.002665494435 | V82: 0.002822740117 | W82: 0.002965725536 | X82: 0.003518004125 | Y82: 0.003427878129 | Z82: 0.003546648173 | AA82: 0.003722693066 | AB82: 0.0034399417 | AC82: 0.003539399909 | AD82: 0.003410567186 | AE82: 0.003393273199 | AF82: 0.002820352066 | AG82: 0.002060485844 | AH82: 0.002095128911 | AI82: 0.001922449482 | AJ82: 0.002628809988 | AK82: 0.002496127828 | AL82: 0.00230338613 | AM82: 0.002316118639 | AN82: 0.001977976014 | AO82: 0.001856430852 | AP82: 0.001540414862 | AQ82: 0.001323719044 | AR82: 0.001053878183 | AS82: 0.0008570661747 | AT82: 0.0007891873124 | AU82: 0.00116864702 | AV82: 0.001163861432 | AW82: 0.001115758095 | AX82: 0.001087748888 | AY82: 0.001053905606 | AZ82: 0.001013081704 | BA82: 0.0009953664978
C83: 32 | D83: 0.007276055416 | E83: 0.006650885243 | F83: 0.004904483646 | G83: 0.005480084224 | H83: 0.005159673827 | I83: 0.004850474108 | J83: 0.004626864803 | K83: 0.004451454982 | L83: 0.003905726926 | M83: 0.003337159304 | N83: 0.002934251674 | O83: 0.002540042828 | P83: 0.002509125405 | Q83: 0.002083792111 | R83: 0.002021916579 | S83: 0.002023419094 | T83: 0.002265804833 | U83: 0.00200701759 | V83: 0.002271518973 | W83: 0.00239916333 | X83: 0.002512523762 | Y83: 0.002968376382 | Z83: 0.002875331814 | AA83: 0.00295208435 | AB83: 0.003071391872 | AC83: 0.00281623483 | AD83: 0.002882430084 | AE83: 0.00276814764 | AF83: 0.00274585095 | AG83: 0.002278311916 | AH83: 0.001661564119 | AI83: 0.001687712783 | AJ83: 0.001546445436 | AK83: 0.002112182517 | AL83: 0.002001351532 | AM83: 0.001842013552 | AN83: 0.001846741437 | AO83: 0.001574427505 | AP83: 0.001475016903 | AQ83: 0.001222056571 | AR83: 0.001047961797 | AS83: 0.0008332915833 | AT83: 0.0006769995431 | AU83: 0.0006227598678 | AV83: 0.0009213631117 | AW83: 0.0009168061144 | AX83: 0.0008781465471 | AY83: 0.0008554318821 | AZ83: 0.0008283020626 | BA83: 0.0007958783905
C84: 33 | D84: 0.006038007272 | E84: 0.00589254045 | F84: 0.004209752664 | G84: 0.004850132657 | H84: 0.004510927929 | I84: 0.004175511581 | J84: 0.004158282311 | K84: 0.003792834392 | L84: 0.003679823045 | M84: 0.00354453678 | N84: 0.00281146483 | O84: 0.002622099306 | P84: 0.002201000947 | Q84: 0.002155238011 | R84: 0.001783238131 | S84: 0.001728488435 | T84: 0.001727709519 | U84: 0.001932404915 | V84: 0.001709345371 | W84: 0.001929481964 | X84: 0.002031275066 | Y84: 0.002118632077 | Z84: 0.002488258822 | AA84: 0.002391668336 | AB84: 0.002433864738 | AC84: 0.002512654711 | AD84: 0.002291783376 | AE84: 0.002337737134 | AF84: 0.002238315664 | AG84: 0.002216471376 | AH84: 0.001835849079 | AI84: 0.001337464787 | AJ84: 0.001356612373 | AK84: 0.001241605933 | AL84: 0.001692243931 | AM84: 0.001599268312 | AN84: 0.001467598867 | AO84: 0.001468839887 | AP84: 0.00124998692 | AQ84: 0.001169266072 | AR84: 0.0009667215466 | AS84: 0.0008279622166 | AT84: 0.0006576998519 | AU84: 0.0005338067484 | AV84: 0.0004905935378 | AW84: 0.0007252026788 | AX84: 0.0007209837291 | AY84: 0.0006900388608 | AZ84: 0.0006717710622 | BA84: 0.0006501883387
C85: 34 | D85: 0.005006788671 | E85: 0.004886418878 | F85: 0.003722579068 | G85: 0.004161387995 | H85: 0.003989931218 | I85: 0.003647822118 | J85: 0.003577573629 | K85: 0.003406356922 | L85: 0.003133110144 | M85: 0.003338164341 | N85: 0.002984381803 | O85: 0.002511177186 | P85: 0.002270849261 | Q85: 0.001889517484 | R85: 0.001843333201 | S85: 0.001523571015 | T85: 0.001475021398 | U85: 0.001472618159 | V85: 0.001644813539 | W85: 0.001451073628 | X85: 0.001632597697 | Y85: 0.001711735544 | Z85: 0.001774785732 | AA85: 0.002068286337 | AB85: 0.001970416721 | AC85: 0.001989635779 | AD85: 0.002043209137 | AE85: 0.0018573103 | AF85: 0.001888867381 | AG85: 0.001805433806 | AH85: 0.00178468677 | AI85: 0.00147665639 | AJ85: 0.001074278589 | AK85: 0.001088382729 | AL85: 0.0009940083281 | AM85: 0.001351240184 | AN85: 0.001273224191 | AO85: 0.001166385714 | AP85: 0.001165256621 | AQ85: 0.0009901119405 | AR85: 0.0009242375825 | AS85: 0.0007631759644 | AT85: 0.0006529767598 | AU85: 0.0005181772185 | AV85: 0.0004201832444 | AW85: 0.0003858357619 | AX85: 0.0005698467728 | AY85: 0.0005660848075 | AZ85: 0.0005414494989 | BA85: 0.0005268896071
C86: 35 | D86: 0.004242818147 | E86: 0.004048988922 | F86: 0.003081021102 | G86: 0.003678296975 | H86: 0.003421235534 | I86: 0.003224135286 | J86: 0.003123643795 | K86: 0.002928624314 | L86: 0.002811826641 | M86: 0.002841054314 | N86: 0.002808934632 | O86: 0.00266435392 | P86: 0.00217358374 | Q86: 0.0019483935 | R86: 0.001615150653 | S86: 0.001574008874 | T86: 0.001299395497 | U86: 0.001256496796 | V86: 0.001252703905 | W86: 0.001395440791 | X86: 0.001227035903 | Y86: 0.001374894894 | Z86: 0.001432981769 | AA86: 0.001474222247 | AB86: 0.001702774059 | AC86: 0.00160958736 | AD86: 0.001616697101 | AE86: 0.001654617023 | AF86: 0.001499559561 | AG86: 0.001522427177 | AH86: 0.001452637624 | AI86: 0.001434436934 | AJ86: 0.001185198524 | AK86: 0.0008612301733 | AL86: 0.0008706876091 | AM86: 0.0007931055594 | AN86: 0.001074941553 | AO86: 0.00101112747 | AP86: 0.0009245989063 | AQ86: 0.0009222796472 | AR86: 0.0007820139437 | AS86: 0.0007290626653 | AT86: 0.0006014064414 | AU86: 0.0005140470942 | AV86: 0.0004075549513 | AW86: 0.0003301955245 | AX86: 0.0003029365126 | AY86: 0.0004470574431 | AZ86: 0.0004438274597 | BA86: 0.0004243301763
C87: 36 | D87: 0.003473355014 | E87: 0.003428718184 | F87: 0.002548071273 | G87: 0.003043117262 | H87: 0.003022208079 | I87: 0.002762553326 | J87: 0.002759242847 | K87: 0.002555261074 | L87: 0.00241573023 | M87: 0.002548680747 | N87: 0.002389198985 | O87: 0.002506524149 | P87: 0.002304892363 | Q87: 0.001863898619 | R87: 0.001664532081 | S87: 0.001378371218 | T87: 0.001341629185 | U87: 0.001106236313 | V87: 0.001068216423 | W87: 0.001062131097 | X87: 0.001179256914 | Y87: 0.001032689593 | Z87: 0.001150235899 | AA87: 0.001189486219 | AB87: 0.001212825536 | AC87: 0.001389928892 | AD87: 0.00130690631 | AE87: 0.001308238254 | AF87: 0.001334903762 | AG87: 0.001207739756 | AH87: 0.001224018115 | AI87: 0.001166684651 | AJ87: 0.001150455862 | AK87: 0.0009494445962 | AL87: 0.0006884528368 | AM87: 0.0006941837936 | AN87: 0.0006304516573 | AO87: 0.0008530054899 | AP87: 0.0008009047967 | AQ87: 0.0007312339954 | AR87: 0.0007278677537 | AS87: 0.0006163869147 | AT87: 0.0005740690892 | AU87: 0.0004730723847 | AV87: 0.0004039835465 | AW87: 0.0003200148589 | AX87: 0.0002590421843 | AY87: 0.0002374683725 | AZ87: 0.0003502224455 | BA87: 0.0003475421357
C88: 37 | D88: 0.002920990995 | E88: 0.002804893474 | F88: 0.002153555919 | G88: 0.002515687365 | H88: 0.002498785076 | I88: 0.00243855003 | J88: 0.002362849231 | K88: 0.002255600515 | L88: 0.002106231986 | M88: 0.002188760698 | N88: 0.002142036824 | O88: 0.002130959585 | P88: 0.00216715618 | Q88: 0.001975395081 | R88: 0.001591442747 | S88: 0.001419694864 | T88: 0.001174189071 | U88: 0.001141517008 | V88: 0.0009399076936 | W88: 0.0009051566216 | X88: 0.0008970242189 | Y88: 0.0009918431404 | Z88: 0.0008633769546 | AA88: 0.0009541291829 | AB88: 0.0009778755173 | AC88: 0.0009892652205 | AD88: 0.001127709048 | AE88: 0.001056758896 | AF88: 0.001054659534 | AG88: 0.001074320683 | AH88: 0.0009702866059 | AI88: 0.0009823370888 | AJ88: 0.0009350150369 | AK88: 0.0009209254026 | AL88: 0.0007584004354 | AM88: 0.0005484754414 | AN88: 0.0005513958725 | AO88: 0.0004999015179 | AP88: 0.0006751345801 | AQ88: 0.000632915283 | AR88: 0.0005766411319 | AS88: 0.0005732562552 | AT88: 0.0004849627195 | AU88: 0.0004512089931 | AV88: 0.0003714847578 | AW88: 0.0003169559331 | AX88: 0.000250853024 | AY88: 0.0002028959047 | AZ88: 0.0001858806207 | BA88: 0.0002740212997
C89: 38 | D89: 0.002544519189 | E89: 0.002357148898 | F89: 0.001758322298 | G89: 0.002125309867 | H89: 0.002064426206 | I89: 0.002014724125 | J89: 0.002084517464 | K89: 0.001930218816 | L89: 0.001857885892 | M89: 0.001907563176 | N89: 0.001838435204 | O89: 0.001909599779 | P89: 0.001841420526 | Q89: 0.001856311279 | R89: 0.001685682568 | S89: 0.00135657372 | T89: 0.001208685239 | U89: 0.0009984610046 | V89: 0.0009693016528 | W89: 0.0007959472999 | X89: 0.0007639740998 | Y89: 0.0007539813204 | Z89: 0.0008286796797 | AA89: 0.0007156851741 | AB89: 0.0007838264256 | AC89: 0.0007970335353 | AD89: 0.0008020317479 | AE89: 0.0009111744838 | AF89: 0.0008512832236 | AG89: 0.0008481454878 | AH89: 0.0008624535699 | AI89: 0.0007781243247 | AJ89: 0.0007866870844 | AK89: 0.0007479090889 | AL89: 0.0007350673692 | AM89: 0.0006037431311 | AN89: 0.0004353256098 | AO89: 0.0004368794413 | AP89: 0.0003953541142 | AQ89: 0.0005331095555 | AR89: 0.0004987167423 | AS89: 0.0004537943443 | AT89: 0.0004506704813 | AU89: 0.0003808690873 | AV89: 0.0003540328035 | AW89: 0.0002912240016 | AX89: 0.0002482548181 | AY89: 0.0001963226815 | AZ89: 0.0001586898045 | BA89: 0.0001453186053
C90: 39 | D90: 0.0017569175 | E90: 0.00205187977 | F90: 0.001474773215 | G90: 0.001734544809 | H90: 0.00174299952 | I90: 0.00166327931 | J90: 0.001721225754 | K90: 0.001701665275 | L90: 0.001588726343 | M90: 0.001681955765 | N90: 0.001601280336 | O90: 0.001638159496 | P90: 0.001649223211 | Q90: 0.001576415551 | R90: 0.001583162831 | S90: 0.001436076482 | T90: 0.001154271115 | U90: 0.001027186553 | V90: 0.0008473186987 | W90: 0.0008203374295 | X90: 0.0006713792353 | Y90: 0.0006417364828 | Z90: 0.0006295310216 | AA90: 0.0006864507109 | AB90: 0.0005875205776 | AC90: 0.0006383976773 | AD90: 0.0006456980963 | AE90: 0.0006475433162 | AF90: 0.0007334528298 | AG90: 0.000684078586 | AH90: 0.0006803729105 | AI90: 0.000691131516 | AJ90: 0.0006226824089 | AK90: 0.0006287930284 | AL90: 0.0005965199902 | AM90: 0.000584724323 | AN90: 0.0004788251679 | AO90: 0.0003446493699 | AP90: 0.0003452442342 | AQ90: 0.0003119417744 | AR90: 0.0004197432165 | AS90: 0.000392160888 | AT90: 0.0003564712282 | AU90: 0.000353655156 | AV90: 0.0002986025821 | AW90: 0.0002773194608 | AX90: 0.0002279162474 | AY90: 0.0001941318917 | AZ90: 0.0001534240139 | BA90: 0.0001239602965
C91: 40 | D91: =D47 -> 0.03036410074 | E91: =E47 -> 0.03036410074 | F91: =F47 -> 0.03036410074 | G91: 0.03036410074 | H91: 0.03036410074 | I91: 0.03036410074 | J91: 0.03036410074 | K91: 0.03036410074 | L91: 0.03036410074 | M91: 0.03036410074 | N91: 0.03036410074 | O91: 0.03036410074 | P91: 0.03036410074 | Q91: 0.03036410074 | R91: 0.03036410074 | S91: 0.03036410074 | T91: 0.03036410074 | U91: 0.03036410074 | V91: 0.03036410074 | W91: 0.03036410074 | X91: 0.03036410074 | Y91: 0.03036410074 | Z91: 0.03036410074 | AA91: 0.03036410074 | AB91: 0.03036410074 | AC91: 0.03036410074 | AD91: 0.03036410074 | AE91: 0.03036410074 | AF91: 0.03036410074 | AG91: 0.03036410074 | AH91: 0.03036410074 | AI91: 0.03036410074 | AJ91: 0.03036410074 | AK91: 0.03036410074 | AL91: 0.03036410074 | AM91: 0.03036410074 | AN91: 0.03036410074 | AO91: 0.03036410074 | AP91: 0.03036410074 | AQ91: 0.03036410074 | AR91: 0.03036410074 | AS91: 0.03036410074 | AT91: 0.03036410074 | AU91: 0.03036410074 | AV91: 0.03036410074 | AW91: 0.03036410074 | AX91: 0.03036410074 | AY91: 0.03036410074 | AZ91: 0.03036410074 | BA91: 0.03036410074

Sheet 31 (hidden)
D1: 2011 | E1: 2012 | F1: 2013 | G1: 2014 | H1: 2015 | I1: 2016 | J1: 2017 | K1: 2018 | L1: 2019 | M1: 2020 | N1: 2021 | O1: 2022 | P1: 2023 | Q1: 2024 | R1: 2025 | S1: 2026 | T1: 2027 | U1: 2028 | V1: 2029 | W1: 2030 | X1: 2031 | Y1: 2032 | Z1: 2033 | AA1: 2034 | AB1: 2035 | AC1: 2036 | AD1: 2037 | AE1: 2038 | AF1: 2039 | AG1: 2040 | AH1: 2041 | AI1: 2042 | AJ1: 2043 | AK1: 2044 | AL1: 2045 | AM1: 2046 | AN1: 2047 | AO1: 2048 | AP1: 2049 | AQ1: 2050 | AR1: 2051 | AS1: 2052 | AT1: 2053 | AU1: 2054 | AV1: 2055 | AW1: 2056 | AX1: 2057 | AY1: 2058 | AZ1: 2059 | BA1: 2060
C2: sales (age 0 pop) | D2: 0.05496327307 | E2: 0.0497507666 | F2: 0.05526617167 | G2: 0.05945824889 | H2: 0.0660141137 | I2: 0.06466147724 | J2: 0.06801474766 | K2: 0.06757422255 | L2: 0.06840127114 | M2: 0.05669741347 | N2: 0.0583249389 | O2: 0.05225977058 | P2: 0.06478343052 | Q2: 0.06593240714 | R2: 0.06650664146 | S2: 0.06581942161 | T2: 0.06427720143 | U2: 0.06262197439 | V2: 0.06158864473 | W2: 0.06008013269 | X2: 0.05879004198 | Y2: 0.05756725556 | Z2: 0.0564716126 | AA2: 0.05579822849 | AB2: 0.0554875148 | AC2: 0.05523424378 | AD2: 0.05504768244 | AE2: 0.05497244391 | AF2: 0.05483920817 | AG2: 0.05483925484 | AH2: 0.05457128216 | AI2: 0.05434857281 | AJ2: 0.05414840825 | AK2: 0.05388467364 | AL2: 0.0539465997 | AM2: 0.05370252707 | AN2: 0.05359733173 | AO2: 0.05328998216 | AP2: 0.05325806177 | AQ2: 0.0533109048 | AR2: 0.0533109048 | AS2: 0.0533109048 | AT2: 0.0533109048 | AU2: 0.0533109048 | AV2: 0.0533109048 | AW2: 0.0533109048 | AX2: 0.0533109048 | AY2: 0.0533109048 | AZ2: 0.0533109048 | BA2: 0.0533109048
C3: scrappage k factor | D3: 0 | E3: 0 | F3: 1.188353451 | G3: 0.6861097107 | H3: 0.7684425905 | I3: 0.7229962676 | J3: 0.7417780359 | K3: 1.072604935 | L3: 1.051529331 | M3: 0.8706025948 | N3: 0.6187104448 | O3: 0.8818930213 | P3: 0.8033503507 | Q3: 0.7951389509 | R3: 0.7872034271 | S3: 0.7777304519 | T3: 0.7683626497 | U3: 0.7591253177 | V3: 0.7512729853 | W3: 0.7471239806 | X3: 0.741692214 | Y3: 0.7389894815 | Z3: 0.7433511919 | AA3: 0.7457641902 | AB3: 0.747826925 | AC3: 0.7520647245 | AD3: 0.7548179029 | AE3: 0.7550350557 | AF3: 0.7548825041 | AG3: 0.7541628115 | AH3: 0.7529735616 | AI3: 0.7503875509 | AJ3: 0.7471478665 | AK3: 0.7484835148 | AL3: 0.7493170626 | AM3: 0.7482768325 | AN3: 0.7466311905 | AO3: 0.7454776781 | AP3: 0.7425877201 | AQ3: 0.7407341229 | AR3: 0.739386021 | AS3: 0.7381139133 | AT3: 0.7371493557 | AU3: 0.7364588489 | AV3: 0.7361150623 | AW3: 0.7358410763 | AX3: 0.7357783241 | AY3: 0.7357525758 | AZ3: 0.7357803932
A5: default
A6: scrappage | C6: age | D6: 2011 | E6: 2012 | F6: 2013 | G6: 2014 | H6: 2015 | I6: 2016 | J6: 2017 | K6: 2018 | L6: 2019 | M6: 2020 | N6: 2021 | O6: 2022 | P6: 2023 | Q6: 2024 | R6: 2025 | S6: 2026 | T6: 2027 | U6: 2028 | V6: 2029 | W6: 2030 | X6: 2031 | Y6: 2032 | Z6: 2033 | AA6: 2034 | AB6: 2035 | AC6: 2036 | AD6: 2037 | AE6: 2038 | AF6: 2039 | AG6: 2040 | AH6: 2041 | AI6: 2042 | AJ6: 2043 | AK6: 2044 | AL6: 2045 | AM6: 2046 | AN6: 2047 | AO6: 2048 | AP6: 2049 | AQ6: 2050 | AR6: 2051 | AS6: 2052 | AT6: 2053 | AU6: 2054 | AV6: 2055 | AW6: 2056 | AX6: 2057 | AY6: 2058 | AZ6: 2059 | BA6: 2060
A7: 0.008599997 | C7: 0 | D7: 0.05496327307 | E7: =E51 -> 0.0497507666 | F7: =F51 -> 0.05526617167 | G7: 0.05945824889 | H7: 0.0660141137 | I7: 0.06466147724 | J7: 0.06801474766 | K7: 0.06757422255 | L7: 0.06840127114 | M7: 0.05669741347 | N7: 0.0583249389 | O7: 0.05225977058 | P7: 0.06478343052 | Q7: 0.06593240714 | R7: 0.06650664146 | S7: 0.06581942161 | T7: 0.06427720143 | U7: 0.06262197439 | V7: 0.06158864473 | W7: 0.06008013269 | X7: 0.05879004198 | Y7: 0.05756725556 | Z7: 0.0564716126 | AA7: 0.05579822849 | AB7: 0.0554875148 | AC7: 0.05523424378 | AD7: 0.05504768244 | AE7: 0.05497244391 | AF7: 0.05483920817 | AG7: 0.05483925484 | AH7: 0.05457128216 | AI7: 0.05434857281 | AJ7: 0.05414840825 | AK7: 0.05388467364 | AL7: 0.0539465997 | AM7: 0.05370252707 | AN7: 0.05359733173 | AO7: 0.05328998216 | AP7: 0.05325806177 | AQ7: 0.0533109048 | AR7: 0.0533109048 | AS7: 0.0533109048 | AT7: 0.0533109048 | AU7: 0.0533109048 | AV7: 0.0533109048 | AW7: 0.0533109048 | AX7: 0.0533109048 | AY7: 0.0533109048 | AZ7: 0.0533109048 | BA7: 0.0533109048
A8: 0.008700013 | C8: 1 | D8: 0.0449019393 | E8: =E52*(1-E$51-E$91)/SUM(E$52:E$90) -> 0.05226048136 | F8: 0.04702667201 | G8: 0.05507401498 | H8: 0.05739909054 | I8: 0.06409893665 | J8: 0.06242862321 | K8: 0.06575925504 | L8: 0.06636170929 | M8: 0.06789656447 | N8: 0.05567227328 | O8: 0.05694730335 | P8: 0.05102951062 | Q8: 0.06290859212 | R8: 0.06394212101 | S8: 0.06451292621 | T8: 0.06389219866 | U8: =U52*(1-U$51-U$91)/SUM(U$52:U$90) -> 0.06247552432 | V8: 0.06091165071 | W8: 0.05997511001 | X8: 0.05858083065 | Y8: 0.05739954768 | Z8: 0.05629110967 | AA8: 0.05530654972 | AB8: 0.0546908099 | AC8: 0.05441313665 | AD8: 0.05422434235 | AE8: 0.05406013581 | AF8: 0.05402591638 | AG8: 0.05391479996 | AH8: 0.05394340022 | AI8: 0.05370681459 | AJ8: 0.05350523355 | AK8: 0.05333231567 | AL8: 0.05306914855 | AM8: 0.05314613222 | AN8: 0.05291321134 | AO8: 0.05281645283 | AP8: 0.0524730644 | AQ8: 0.05245485872 | AR8: 0.05252402164 | AS8: 0.05251987304 | AT8: 0.0525347804 | AU8: 0.05254217149 | AV8: 0.05255753436 | AW8: 0.05255783929 | AX8: 0.05256765291 | AY8: 0.05256987112 | AZ8: 0.05257229794 | BA8: 0.05254853441
A9: 0.00880003 | C9: 2 | D9: 0.03474124821 | E9: 0.04269390869 | F9: 0.04939896777 | G9: 0.04685753609 | H9: 0.05316302137 | I9: 0.05572953734 | J9: 0.06188100494 | K9: 0.06035386991 | L9: 0.06457231611 | M9: 0.0658650608 | N9: 0.06666308464 | O9: 0.05435391204 | P9: 0.05560175086 | Q9: 0.04954870276 | R9: 0.06100469989 | S9: 0.06202036744 | T9: 0.06261905401 | U9: 0.06209650896 | V9: 0.06076455626 | W9: 0.05931136633 | X9: 0.05847403079 | Y9: 0.05719101454 | Z9: 0.05612294459 | AA9: 0.05512564562 | AB9: 0.05420481994 | AC9: 0.05362782062 | AD9: 0.05341420413 | AE9: 0.05324751987 | AF9: 0.05312527828 | AG9: 0.05311118117 | AH9: 0.05303002086 | AI9: 0.05308485482 | AJ9: 0.05286943967 | AK9: 0.05269487104 | AL9: 0.05252119279 | AM9: 0.05227775722 | AN9: 0.05236104998 | AO9: 0.05213838075 | AP9: 0.05200289149 | AQ9: 0.05167783707 | AR9: 0.05167675771 | AS9: 0.0517408147 | AT9: 0.0517514197 | AU9: 0.05177339694 | AV9: 0.05179582475 | AW9: 0.0518112718 | AX9: 0.05182124812 | AY9: 0.05183311165 | AZ9: 0.05183769191 | BA9: 0.05181665222
A10: 0.014199972 | C10: 3 | D10: 0.06127623127 | E10: 0.03303286455 | F10: 0.04035621112 | G10: 0.04921538833 | H10: 0.0452285206 | I10: 0.05161268786 | J10: 0.05379728592 | K10: 0.05981998396 | L10: 0.05925807918 | M10: 0.06408225683 | N10: 0.06466281339 | O10: 0.06508040341 | P10: 0.05306491911 | Q10: 0.05398389432 | R10: 0.04804529203 | S10: 0.05916653838 | T10: 0.06019495337 | U10: 0.06085443757 | V10: 0.06039130463 | W10: 0.05916366124 | X10: 0.05782255014 | Y10: 0.05708248618 | Z10: 0.05591488956 | AA10: 0.05495684945 | AB10: 0.05402346335 | AC10: 0.05314727503 | AD10: 0.05263931929 | AE10: 0.05244798983 | AF10: 0.0523227372 | AG10: 0.05222182298 | AH10: 0.05223562359 | AI10: 0.05218205645 | AJ10: 0.05225322949 | AK10: 0.05206479014 | AL10: 0.0518895327 | AM10: 0.05173406991 | AN10: 0.05150162279 | AO10: 0.05159042688 | AP10: 0.05133141156 | AQ10: 0.05121096108 | AR10: 0.05090746591 | AS10: 0.05090239572 | AT10: 0.05097997212 | AU10: 0.05099760496 | AV10: 0.05103418681 | AW10: 0.05105659418 | AX10: 0.05108135975 | AY10: 0.05109335208 | AZ10: 0.05110740844 | BA10: 0.05108882086
A11: 0.01910001 | C11: 4 | D11: 0.06673797517 | E11: 0.05826300297 | F11: 0.03122415578 | G11: 0.03994550529 | H11: 0.04732733077 | I11: 0.04372612675 | J11: 0.04962741355 | K11: 0.05179582309 | L11: 0.05839045798 | M11: 0.05847130703 | N11: 0.06261450313 | O11: 0.06291555755 | P11: 0.06323209295 | Q11: 0.05129578615 | R11: 0.05211956903 | S11: 0.04639815521 | T11: 0.05718228944 | U11: 0.05825427865 | V11: 0.05893910333 | W11: 0.05856011306 | X11: 0.05744431278 | Y11: 0.05621895035 | Z11: 0.0555846201 | AA11: 0.05453188818 | AB11: 0.05363971846 | AC11: 0.05275413731 | AD11: 0.05195436168 | AE11: 0.0514750379 | AF11: 0.0513255634 | AG11: 0.05122187078 | AH11: 0.05115036532 | AI11: 0.05118997317 | AJ11: 0.05115505903 | AK11: 0.05124897438 | AL11: 0.05106048972 | AM11: 0.0509036912 | AN11: 0.05075870634 | AO11: 0.05053770873 | AP11: 0.05058612364 | AQ11: 0.0503456727 | AR11: 0.05024443953 | AS11: 0.04994311078 | AT11: 0.04995267311 | AU11: 0.05003611551 | AV11: 0.05006825397 | AW11: 0.05010455797 | AX11: 0.05013599505 | AY11: 0.05016244863 | AZ11: 0.05017654882 | BA11: 0.05016765815
A12: 0.024399996 | C12: 5 | D12: 0.06625677443 | E12: 0.06345616832 | F12: 0.05507282235 | G12: 0.03072333085 | H12: 0.03828265575 | I12: 0.04558103165 | J12: 0.04189371237 | K12: 0.04760556512 | L12: 0.05028821846 | M12: 0.05731384112 | N12: 0.05688529236 | O12: 0.06073625834 | P12: 0.06086122352 | Q12: 0.06088060841 | R12: 0.04932913359 | S12: 0.05013640909 | T12: 0.04466931784 | U12: 0.05512809344 | V12: 0.05620862411 | W12: 0.05693928537 | X12: 0.05664791762 | Y12: 0.05564606099 | Z12: 0.05454341027 | AA12: 0.05401022474 | AB12: 0.05302836187 | AC12: 0.05218541066 | AD12: 0.05137795353 | AE12: 0.05061528425 | AF12: 0.05018504697 | AG12: 0.0500578072 | AH12: 0.0499835196 | AI12: 0.04993949423 | AJ12: 0.04999599627 | AK12: 0.04998625798 | AL12: 0.05007409538 | AM12: 0.04990450511 | AN12: 0.04975889256 | AO12: 0.04962451798 | AP12: 0.04937094803 | AQ12: 0.0494322395 | AR12: 0.04921428907 | AS12: 0.04911216114 | AT12: 0.04883214528 | AU12: 0.04884887139 | AV12: 0.04894513904 | AW12: 0.04897704137 | AX12: 0.04902184974 | AY12: 0.04905471037 | AZ12: 0.04908287271 | BA12: 0.04907446232
A13: 0.030099988 | C13: 6 | D13: 0.06824406696 | E13: 0.06299863039 | F13: 0.05998163683 | G13: 0.05384024706 | H13: 0.02933588905 | I13: 0.03671769107 | J13: 0.0435012001 | K13: 0.04002667717 | L13: 0.04595167888 | M13: 0.04908026101 | N13: 0.05549758857 | O13: 0.05499580239 | P13: 0.05847376531 | Q13: 0.05834452435 | R13: 0.05829594605 | S13: 0.04725114982 | T13: 0.04806632099 | U13: 0.04288664868 | V13: 0.0529750581 | W13: 0.05408209021 | X13: 0.05485875539 | Y13: 0.05465578691 | Z13: 0.05377311828 | AA13: 0.05278669827 | AB13: 0.05231049013 | AC13: 0.05138318848 | AD13: 0.05061852944 | AE13: 0.04985056222 | AF13: 0.04914647975 | AG13: 0.04874677284 | AH13: 0.04864949874 | AI13: 0.04860267962 | AJ13: =AJ57*(1-AJ$51-AJ$91)/SUM(AJ$52:AJ$90) -> 0.04857788438 | AK13: 0.04865742268 | AL13: 0.04864376943 | AM13: 0.04874325958 | AN13: 0.04858590945 | AO13: 0.04845175689 | AP13: 0.04828453245 | AQ13: 0.04805217333 | AR13: 0.0481289564 | AS13: 0.04791401353 | AT13: 0.04782914092 | AU13: 0.04756387382 | AV13: 0.04759460967 | AW13: 0.04768894766 | AX13: 0.04772915326 | AY13: 0.04777488436 | AZ13: 0.047809136 | BA13: 0.04781493881
A14: 0.036199987 | C14: 7 | D14: 0.07195091446 | E14: 0.06488819879 | F14: 0.05954915131 | G14: 0.05823013841 | H14: 0.05120438934 | I14: 0.02801106432 | J14: 0.03489528258 | K14: 0.04138355463 | L14: 0.03839352934 | M14: 0.04457200447 | N14: 0.04728396968 | O14: 0.05346207267 | P14: 0.05267514079 | Q14: 0.05579397436 | R14: 0.05560931305 | S14: 0.05558477136 | T14: 0.04509548861 | U14: 0.04594210919 | V14: 0.04103001593 | W14: 0.05074851351 | X14: 0.0518799418 | Y14: 0.05270165269 | Z14: 0.05258961572 | AA14: 0.05181663859 | AB14: 0.05090411418 | AC14: 0.05046751124 | AD14: 0.04962274632 | AE14: 0.04889844028 | AF14: 0.0481917236 | AG14: 0.04752870782 | AH14: 0.0471678773 | AI14: 0.04709867967 | AJ14: 0.04707153122 | AK14: 0.04707219859 | AL14: 0.04714485051 | AM14: 0.04714494068 | AN14: 0.04724917735 | AO14: 0.04710451155 | AP14: 0.04693940484 | AQ14: 0.04679219002 | AR14: 0.04658410398 | AS14: 0.04665624784 | AT14: 0.04646237387 | AU14: 0.04638758791 | AV14: 0.04614450903 | AW14: 0.04617494684 | AX14: 0.04627539033 | AY14: 0.04631642283 | AZ14: 0.04636296695 | BA14: 0.04637520594
A15: 0.042400002 | C15: 8 | D15: 0.06402140968 | E15: 0.0684127639 | F15: 0.06133525673 | G15: 0.05737567185 | H15: 0.05514269963 | I15: 0.04865736366 | J15: 0.0265007748 | K15: 0.03304293481 | L15: 0.039426659 | M15: 0.03699410195 | N15: 0.04270653019 | O15: 0.04537453631 | P15: 0.05092315258 | Q15: 0.05000869003 | R15: 0.0529140757 | S15: 0.05276229271 | T15: 0.052791214 | U15: 0.04289576269 | V15: 0.0437449087 | W15: 0.03912122663 | X15: 0.04845513303 | Y15: 0.04960932802 | Z15: 0.05047556457 | AA15: 0.05044114916 | AB15: 0.04973611543 | AC15: 0.04888149478 | AD15: 0.04850967025 | AE15: 0.04771064573 | AF15: 0.04704850367 | AG15: 0.0463857824 | AH15: 0.0457727822 | AI15: 0.04544968213 | AJ15: 0.04540129133 | AK15: 0.04539986885 | AL15: 0.04539586653 | AM15: 0.04547853629 | AN15: 0.04548644733 | AO15: 0.04559510759 | AP15: 0.04542193086 | AQ15: 0.04527787191 | AR15: 0.04515297094 | AS15: 0.04495035353 | AT15: 0.04503438076 | AU15: 0.04485479048 | AV15: 0.04479656884 | AW15: 0.04456252288 | AX15: 0.04460059211 | AY15: 0.04469957709 | AZ15: 0.04474131052 | BA15: 0.04476599213
A16: 0.048500001 | C16: 9 | D16: 0.05904347463 | E16: 0.06087318859 | F16: 0.06466683488 | G16: 0.05864160126 | H16: 0.0540965223 | I16: 0.05214297865 | J16: 0.04582197836 | K16: 0.02497544021 | L16: 0.0312626331 | M16: 0.03773210071 | N16: 0.03524823248 | O16: 0.04082113515 | P16: 0.04297558677 | Q16: 0.04809737823 | R16: 0.04718666783 | S16: 0.04995282105 | T16: 0.04986195621 | U16: 0.04997002934 | V16: 0.04064658588 | W16: 0.04151010607 | X16: 0.03717545894 | Y16: 0.04611546431 | Z16: 0.04729017777 | AA16: 0.0481841666 | AB16: 0.04818578016 | AC16: 0.04753230307 | AD16: 0.04675996735 | AE16: 0.04641605598 | AF16: 0.04568471259 | AG16: 0.04506750052 | AH16: 0.04445734039 | AI16: 0.043893733 | AJ16: 0.04360220026 | AK16: 0.04358046103 | AL16: 0.04357425298 | AM16: 0.04358225209 | AN16: 0.04366942954 | AO16: 0.04368525052 | AP16: 0.04375759533 | AQ16: 0.04360681755 | AR16: 0.0434855166 | AS16: 0.04336418767 | AT16: 0.04318377955 | AU16: 0.0432720569 | AV16: 0.04311314169 | AW16: 0.04305795027 | AX16: 0.0428413979 | AY16: 0.04287990059 | AZ16: 0.04297708948 | BA16: 0.04299772824
A17: 0.054400027 | C17: 10 | D17: 0.05272402296 | E17: 0.05614004103 | F17: 0.05754008771 | G17: 0.06135490632 | H17: 0.05505176357 | I17: 0.05090585386 | J17: 0.04888106486 | K17: 0.04298280306 | L17: 0.02346782902 | M17: 0.02971809913 | N17: 0.03575315862 | O17: 0.03356151998 | P17: 0.03844685543 | Q17: 0.04038490335 | R17: 0.04515540807 | S17: 0.0443246456 | T17: 0.04697532691 | U17: 0.04696864844 | V17: 0.04712337003 | W17: 0.03838749451 | X17: 0.03925987065 | Y17: 0.0352151624 | Z17: 0.0437550734 | AA17: 0.04493202244 | AB17: 0.04581347982 | AC17: 0.04583371297 | AD17: 0.045253867 | AE17: 0.04452904788 | AF17: 0.0442336236 | AG17: 0.0435529591 | AH17: 0.04298859212 | AI17: 0.04243001847 | AJ17: 0.04191041419 | AK17: 0.04165653077 | AL17: 0.04163077146 | AM17: 0.04163592602 | AN17: 0.041651302 | AO17: 0.04174292486 | AP17: 0.041727835 | AQ17: 0.04181251289 | AR17: 0.04168523938 | AS17: 0.0415683343 | AT17: 0.04146631724 | AU17: 0.04130127342 | AV17: 0.04139899371 | AW17: 0.04124778706 | AX17: 0.04120314561 | AY17: 0.04099775868 | AZ17: 0.04103654276 | BA17: 0.04111091476
A18: 0.060100019 | C18: 11 | D18: 0.04813170187 | E18: 0.05013134526 | F18: 0.05306610282 | G18: 0.05418697719 | H18: 0.05735777909 | I18: 0.05156078751 | J18: 0.04751036883 | K18: 0.04564418339 | L18: 0.04011858148 | M18: 0.02216255809 | N18: 0.02800844877 | O18: 0.03391417164 | P18: 0.03143766205 | Q18: 0.03595098881 | R18: 0.03772967653 | S18: 0.04221176344 | T18: 0.04148386172 | U18: 0.04404115594 | V18: 0.04408700468 | W18: 0.04429958007 | X18: 0.03614047554 | Y18: 0.03702084645 | Z18: 0.03326159983 | AA18: 0.04138404761 | AB18: 0.04252631366 | AC18: 0.04337770313 | AD18: 0.04343574326 | AE18: 0.04289559035 | AF18: 0.0422391172 | AG18: 0.04197462766 | AH18: 0.04135204361 | AI18: 0.04083906806 | AJ18: 0.04032669998 | AK18: 0.03985709611 | AL18: 0.03961056554 | AM18: 0.0395964027 | AN18: 0.0396089218 | AO18: 0.03963185306 | AP18: 0.03969058813 | AQ18: 0.03969175631 | AR18: 0.03978881018 | AS18: 0.03966713166 | AT18: 0.03956953118 | AU18: 0.0394798015 | AV18: 0.03933546616 | AW18: 0.0394294149 | AX18: 0.03929325428 | AY18: =AY62*(1-AY$51-AY$91)/SUM(AY$52:AY$90) -> 0.0392525027 | AZ18: 0.03905869052 | BA18: 0.03907791618
A19: 0.065400004 | C19: 12 | D19: 0.04245475737 | E19: 0.04576484929 | F19: 0.04738641215 | G19: 0.04961181322 | H19: 0.05045103289 | I19: 0.05347500464 | J19: 0.0479151857 | K19: 0.04416878888 | L19: 0.04232601145 | M19: 0.0376463396 | N19: 0.02077876369 | O19: 0.02647085732 | P19: 0.03160025896 | Q19: 0.02925605114 | R19: 0.03342817348 | S19: 0.03510477002 | T19: 0.03932352387 | U19: 0.0387149311 | V19: 0.04115254135 | W19: 0.04126012285 | X19: 0.0415213602 | Y19: 0.03392922033 | Z19: 0.03481365461 | AA19: 0.03132028753 | AB19: 0.03899476224 | AC19: 0.04008639283 | AD19: 0.04092449077 | AE19: 0.04098748605 | AF19: 0.04050704449 | AG19: 0.03990212858 | AH19: 0.03967482364 | AI19: 0.03910854297 | AJ19: 0.03864153188 | AK19: 0.03818072652 | AL19: 0.03773095457 | AM19: 0.03750716665 | AN19: 0.0375012097 | AO19: 0.03752131205 | AP19: 0.03751641676 | AQ19: 0.03758738545 | AR19: 0.03760452642 | AS19: 0.03769625558 | AT19: 0.03759423715 | AU19: 0.03750897517 | AV19: 0.03743626234 | AW19: 0.03730030983 | AX19: 0.03739693478 | AY19: 0.03726949229 | AZ19: 0.03723261028 | BA19: 0.03703196896
A20: 0.070900023 | C20: 13 | D20: 0.03293748584 | E20: 0.04036706572 | F20: 0.04325900291 | G20: 0.0440013519 | H20: 0.04601611271 | I20: 0.04683496356 | J20: 0.04949498705 | K20: 0.04436183665 | L20: 0.04070899229 | M20: 0.03948145742 | N20: 0.03512390992 | O20: 0.01957117997 | P20: 0.02454305478 | Q20: 0.02927580366 | R20: 0.02708265156 | S20: 0.03096631946 | T20: 0.03256140021 | U20: 0.03654210537 | V20: 0.03602315293 | W20: 0.03835321552 | X20: 0.03851218796 | Y20: 0.03882049425 | Z20: 0.03177557843 | AA20: 0.032646565 | AB20: 0.02938990689 | AC20: 0.03660491886 | AD20: 0.03766143816 | AE20: 0.03845594757 | AF20: 0.03854294075 | AG20: 0.03810551474 | AH20: 0.03755796789 | AI20: 0.03736547864 | AJ20: 0.03685000833 | AK20: 0.03643355012 | AL20: 0.03599387424 | AM20: 0.03557878912 | AN20: 0.03537501192 | AO20: 0.03537750775 | AP20: 0.03537161368 | AQ20: 0.03538206195 | AR20: 0.0354644984 | AS20: 0.03548074203 | AT20: 0.03558010467 | AU20: 0.03549086141 | AV20: 0.03542219237 | AW20: 0.03535445988 | AX20: 0.03523322472 | AY20: 0.03532611868 | AZ20: 0.03520741285 | BA20: 0.03515661418
A21: 0.086600006 | C21: 14 | D21: 0.03305817467 | E21: 0.0313178013 | F21: 0.03815677404 | G21: 0.03988411961 | H21: 0.0406510339 | I21: 0.04252781683 | J21: 0.04316821564 | K21: 0.04562799487 | L21: 0.04062751556 | M21: 0.03773727822 | N21: 0.03664903633 | O21: 0.03296531521 | P21: 0.01805246043 | Q21: 0.02263167775 | R21: 0.02697591535 | S21: 0.02497360225 | T21: 0.02859333708 | U21: 0.03012364059 | V21: 0.03385202083 | W21: 0.03342685308 | X21: 0.03564421972 | Y21: 0.03585268906 | Z21: 0.0362011077 | AA21: 0.02966955268 | AB21: 0.03050234461 | AC21: 0.02746939999 | AD21: 0.034240959 | AE21: 0.03523517027 | AF21: 0.03600441406 | AG21: 0.03609950052 | AH21: 0.03571040993 | AI21: 0.03521776313 | AJ21: 0.03505480075 | AK21: 0.0345942834 | AL21: 0.03419809765 | AM21: 0.03379370467 | AN21: 0.03341104798 | AO21: 0.03322764138 | AP21: 0.03320688301 | AQ21: 0.03321607717 | AR21: 0.03324079753 | AS21: 0.03331858549 | AT21: 0.03334611434 | AU21: 0.03344633784 | AV21: 0.0333737259 | AW21: 0.03331010395 | AX21: 0.03325322054 | AY21: 0.03314072675 | AZ21: 0.03322969428 | BA21: 0.03310300223
A22: 0.092100024 | C22: 15 | D22: 0.02282275802 | E22: 0.03143255531 | F22: 0.02960300052 | G22: 0.03446319926 | H22: 0.03643008176 | I22: 0.03709006749 | J22: 0.038729298 | K22: 0.03930634564 | L22: 0.04102548214 | M22: 0.03698990324 | N22: 0.03451968111 | O22: 0.03404726258 | P22: 0.02995812435 | Q22: 0.01642392428 | R22: 0.02057786335 | S22: 0.02454957071 | T22: 0.0227618472 | U22: 0.0261151614 | V22: 0.02755454742 | W22: 0.03102084966 | X22: 0.03068104108 | Y22: 0.03277492575 | Z22: 0.03302420546 | AA22: 0.03338533163 | AB22: 0.02737817304 | AC22: 0.02815568147 | AD22: 0.02537493065 | AE22: 0.03163394807 | AF22: 0.03257578835 | AG22: 0.03329964461 | AH22: 0.0334072901 | AI22: 0.03306714764 | AJ22: 0.03262878186 | AK22: 0.03250134517 | AL22: 0.03206871789 | AM22: 0.03170878058 | AN22: 0.0313410204 | AO22: 0.03099446036 | AP22: 0.03080351887 | AQ22: 0.03079950625 | AR22: 0.0308228695 | AS22: 0.03084686014 | AT22: 0.03093112178 | AU22: 0.03096353761 | AV22: 0.0310674795 | AW22: 0.03100110549 | AX22: 0.03094849499 | AY22: 0.03089711075 | AZ22: 0.03079407552 | BA22: 0.03086271461
A23: 0.097199976 | C23: 16 | D23: 0.02345834801 | E23: 0.02170046021 | F23: 0.0297114712 | G23: 0.0265426285 | H23: 0.03135233091 | I23: 0.03308836659 | J23: 0.03363395371 | K23: 0.03511078934 | L23: 0.03511165887 | M23: 0.03711457104 | N23: 0.03366080028 | O23: 0.03195376708 | P23: 0.03077888493 | Q23: 0.02712613095 | R23: 0.01486332287 | S23: 0.01863997772 | T23: 0.0222727463 | U23: 0.0206949675 | V23: 0.0237811761 | W23: 0.02513846357 | X23: 0.02834758271 | Y23: 0.0280882918 | Z23: 0.03005816015 | AA23: 0.0303224507 | AB23: 0.0306718966 | AC23: 0.02516072196 | AD23: 0.02589380777 | AE23: 0.02333882392 | AF23: 0.02911642076 | AG23: 0.02999474914 | AH23: 0.03067948598 | AI23: 0.0307974556 | AJ23: 0.03050103775 | AK23: 0.03011912635 | AL23: 0.02999594908 | AM23: 0.02960335386 | AN23: 0.02927800286 | AO23: 0.02894650986 | AP23: 0.02860731863 | AQ23: 0.02844566898 | AR23: 0.02845599249 | AS23: 0.02847879082 | AT23: 0.02851231705 | AU23: 0.0285967107 | AV23: 0.02863683282 | AW23: 0.02873402135 | AX23: 0.0286786947 | AY23: 0.02863139551 | AZ23: 0.02858524426 | BA23: 0.0284769693
A24: 0.101700008 | C24: 17 | D24: 0.02042260484 | E24: 0.02230479537 | F24: 0.02051225527 | G24: 0.02645859099 | H24: 0.02405652971 | I24: 0.02835629612 | J24: 0.02988660897 | K24: 0.03036769837 | L24: 0.03117346909 | M24: 0.03157589431 | N24: 0.03361121699 | O24: 0.03105446943 | P24: 0.02874495033 | Q24: 0.02774599856 | R24: =R68*(1-R$51-R$91)/SUM(R$52:R$90) -> 0.02444119074 | S24: 0.01340531697 | T24: 0.01683898053 | U24: 0.02016488303 | V24: 0.01876695565 | W24: 0.02160664888 | X24: 0.02287812117 | Y24: 0.02584666262 | Z24: 0.02565583389 | AA24: 0.02748674232 | AB24: 0.02774418716 | AC24: 0.02807221917 | AD24: 0.02304409089 | AE24: 0.02371753538 | AF24: 0.02139254889 | AG24: 0.0266985487 | AH24: 0.02752041199 | AI24: 0.02816604958 | AJ24: 0.0282906958 | AK24: 0.02803982814 | AL24: 0.02768340062 | AM24: 0.02757627389 | AN24: 0.02722194489 | AO24: 0.02693054058 | AP24: 0.02660803395 | AQ24: 0.02631018403 | AR24: 0.02617470503 | AS24: 0.02618552764 | AT24: 0.02621714909 | AU24: 0.02625413794 | AV24: 0.02634129366 | AW24: 0.02637927534 | AX24: 0.02647444096 | AY24: 0.02642473931 | AZ24: 0.02638244061 | BA24: 0.02632793808
A25: 0.105599999 | C25: 18 | D25: 0.01458740589 | E25: 0.01941833337 | F25: 0.02108350017 | G25: 0.01815608718 | H25: 0.02390103325 | I25: 0.02167637128 | J25: 0.02552280294 | K25: 0.02688719199 | L25: 0.02681698027 | M25: 0.02788652454 | N25: 0.02847296658 | O25: 0.03091686603 | P25: 0.02781470117 | Q25: 0.02581087298 | R25: 0.02490275858 | S25: 0.02195909306 | T25: 0.01206424439 | U25: 0.01518839381 | V25: 0.01821881167 | W25: 0.01698873778 | X25: 0.0195925835 | Y25: 0.0207847041 | Z25: 0.0235237461 | AA25: 0.02337643497 | AB25: 0.02505859663 | AC25: 0.02530050463 | AD25: 0.02561678476 | AE25: 0.02102995396 | AF25: 0.02165996406 | AG25: 0.01954416668 | AH25: 0.02440641281 | AI25: 0.02517341346 | AJ25: 0.0257792306 | AK25: 0.02591355358 | AL25: 0.02567863773 | AM25: 0.02535771274 | AN25: 0.02526584659 | AO25: 0.024948622 | AP25: 0.02466539474 | AQ25: 0.02438330247 | AR25: 0.02412274689 | AS25: 0.02399991412 | AT25: 0.02401974781 | AU25: 0.02405448737 | AV25: 0.02409715346 | AW25: 0.02417813073 | AX25: 0.02421818638 | AY25: 0.02430673576 | AZ25: 0.02426228689 | BA25: 0.02421243208
A26: 0.109300017 | C26: 19 | D26: 0.01121618898 | E26: 0.01387007744 | F26: 0.01835508589 | G26: 0.01856333668 | H26: 0.01635389321 | I26: 0.0214662456 | J26: 0.01945098827 | K26: 0.02288949166 | L26: 0.02363194587 | M26: 0.0238792259 | N26: 0.02505247337 | O26: 0.02612306904 | P26: 0.02758682834 | Q26: 0.02489036511 | R26: 0.02308777409 | S26: 0.02229911968 | T26: 0.01969720758 | U26: 0.01084631356 | V26: 0.01367856739 | W26: 0.01644021197 | X26: 0.01535655312 | Y26: 0.01774411489 | Z26: 0.01885777154 | AA26: 0.02136655347 | AB26: 0.02124431836 | AC26: 0.02277932577 | AD26: 0.02301418291 | AE26: 0.02330324379 | AF26: 0.01914428189 | AG26: 0.01972537392 | AH26: 0.01780933811 | AI26: 0.02225398666 | AJ26: 0.0229671954 | AK26: 0.02353865205 | AL26: 0.02365643193 | AM26: 0.0234469629 | AN26: 0.02315977818 | AO26: 0.02308291166 | AP26: 0.02277829321 | AQ26: 0.02253228181 | AR26: 0.02228622179 | AS26: 0.02204948134 | AT26: 0.02194638811 | AU26: 0.02196985823 | AV26: 0.02200967484 | AW26: 0.02204964426 | AX26: 0.02212851365 | AY26: 0.02216625625 | AZ26: 0.02224839078 | BA26: 0.02219760233
A27: 0.112200022 | C27: 20 | D27: 0.009834689714 | E27: 0.01066463844 | F27: 0.01311062375 | G27: 0.01607980075 | H27: 0.01667495544 | I27: 0.01464247976 | J27: 0.01920664666 | K27: 0.01739218947 | L27: 0.02002820803 | M27: 0.02095100786 | N27: 0.02137632858 | O27: 0.02292857594 | P27: 0.02322549891 | Q27: 0.02460626974 | R27: 0.02219287504 | S27: 0.02060822016 | T27: 0.01993950106 | U27: 0.01765390969 | V27: 0.009738290973 | W27: 0.01230593883 | X27: 0.01481612735 | Y27: 0.01386632418 | Z27: 0.01605132762 | AA27: 0.01707733826 | AB27: 0.01935959352 | AC27: 0.01925396784 | AD27: 0.02065820143 | AE27: 0.02087215769 | AF27: 0.0211493367 | AG27: 0.01738146979 | AH27: 0.01791996429 | AI27: 0.01618956525 | AJ27: 0.02024240614 | AK27: 0.02090808294 | AL27: 0.02142377166 | AM27: 0.0215354696 | AN27: 0.02135027043 | AO27: 0.02109534938 | AP27: 0.02101178696 | AQ27: 0.02074634294 | AR27: 0.02053316432 | AS27: 0.02031035009 | AT27: 0.02010312163 | AU27: 0.0200140716 | AV27: 0.02004285877 | AW27: 0.02008006033 | AX27: 0.02012088929 | AY27: 0.02019385145 | AZ27: 0.02022928548 | BA27: 0.02029500272
A28: 0.115199983 | C28: 21 | D28: 0.009682731274 | E28: 0.009351073721 | F28: 0.01008069802 | G28: 0.01143994887 | H28: 0.01441299103 | I28: 0.01489362136 | J28: 0.01307134401 | K28: 0.01713350741 | L28: 0.0151644686 | M28: 0.01769492046 | N28: 0.01870269975 | O28: 0.01952643803 | P28: 0.02032764207 | Q28: 0.02066324209 | R28: 0.02188416261 | S28: 0.01975995027 | T28: 0.01838210381 | U28: 0.01782759657 | V28: 0.01581239472 | W28: 0.008740269353 | X28: 0.01106410243 | Y28: 0.01334702818 | Z28: 0.01251423422 | AA28: 0.01450175494 | AB28: 0.01543683006 | AC28: 0.01750438149 | AD28: 0.01741961814 | AE28: 0.01869075795 | AF28: 0.01889774623 | AG28: 0.01915608213 | AH28: 0.01575295361 | AI28: 0.01625136824 | AJ28: 0.01469125025 | AK28: 0.01838410508 | AL28: 0.01898456572 | AM28: 0.01945682169 | AN28: 0.01956336469 | AO28: 0.0194012893 | AP28: 0.01915736317 | AQ28: 0.01909256578 | AR28: 0.01886148858 | AS28: 0.01866906477 | AT28: 0.01847439184 | AU28: 0.01829047373 | AV28: 0.01821620697 | AW28: 0.0182432268 | AX28: 0.01828106996 | AY28: 0.01831914464 | AZ28: 0.01838647588 | BA28: 0.01841035476
A29: 0.117200017 | C29: 22 | D29: 0.01033923292 | E29: 0.009206587763 | F29: 0.008839057302 | G29: 0.008759941159 | H29: 0.0102312334 | I29: 0.01284081872 | J29: 0.01326415484 | K29: 0.01163213728 | L29: 0.01488427389 | M29: 0.01334988961 | N29: 0.01575030987 | O29: 0.01705010735 | P29: 0.01726060087 | Q29: 0.01803717609 | R29: 0.01832920754 | S29: 0.01943460726 | T29: 0.01758041014 | U29: 0.01639369392 | V29: 0.0159282137 | W29: 0.0141569432 | X29: 0.007839032852 | Y29: 0.009942846641 | Z29: 0.01201645553 | AA29: 0.01127862042 | AB29: 0.01307666058 | AC29: 0.01392335179 | AD29: 0.015797694 | AE29: 0.01572161962 | AF29: 0.01688081804 | AG29: =AG73*(1-AG$51-AG$91)/SUM(AG$52:AG$90) -> 0.01707434686 | AH29: 0.01731838764 | AI29: 0.01425088739 | AJ29: 0.01471108323 | AK29: 0.01330991587 | AL29: 0.01665187194 | AM29: 0.01719924778 | AN29: 0.01763175493 | AO29: 0.01773404314 | AP29: 0.01757593324 | AQ29: 0.01736522141 | AR29: 0.01731589224 | AS29: 0.01710767162 | AT29: 0.01694047328 | AU29: 0.01676808001 | AV29: 0.01660734706 | AW29: 0.016540677 | AX29: 0.01656883672 | AY29: 0.01660402932 | AZ29: 0.01663942948 | BA29: 0.01669298363
A30: 0.119899988 | C30: 23 | D30: 0.008651729558 | E30: 0.009830806269 | F30: 0.008702482647 | G30: 0.007659826893 | H30: 0.007822715048 | I30: 0.009099838279 | J30: 0.01141790417 | K30: 0.01178457084 | L30: 0.0100803723 | M30: 0.01307186737 | N30: 0.01185978571 | O30: 0.01433946255 | P30: 0.01504203253 | Q30: 0.01528860329 | R30: 0.01597176086 | S30: 0.0162493844 | T30: 0.01726141003 | U30: 0.0156522861 | V30: 0.01462271205 | W30: 0.01423717889 | X30: 0.0126764167 | Y30: 0.007033184994 | Z30: 0.008937177027 | AA30: 0.01081238155 | AB30: 0.0101536698 | AC30: 0.01177527725 | AD30: 0.012545123 | AE30: 0.01423422016 | AF30: 0.01417571459 | AG30: 0.01522680674 | AH30: 0.01541086006 | AI30: 0.01564121993 | AJ30: 0.01287901291 | AK30: 0.01330609229 | AL30: 0.01203604526 | AM30: 0.01506117703 | AN30: 0.01556041744 | AO30: 0.01595694005 | AP30: 0.01603934493 | AQ30: 0.01590585645 | AR30: 0.01572377802 | AS30: 0.01568040286 | AT30: 0.01549860486 | AU30: 0.01535106294 | AV30: 0.01520054251 | AW30: 0.01505554187 | AX30: 0.01499839292 | AY30: 0.01502467371 | AZ30: 0.01505732791 | BA30: 0.01508255962
A31: 0.1225400502 | C31: 24 | D31: 0.007269650908 | E31: 0.008226285045 | F31: 0.009292522177 | G31: 0.007513360536 | H31: 0.006826522469 | I31: 0.00694179552 | J31: 0.008074211177 | K31: 0.01012201375 | L31: 0.01017864292 | M31: 0.008824253007 | N31: 0.01158239729 | O31: 0.01077798808 | P31: 0.01261703918 | Q31: 0.01329160033 | R31: 0.01350587307 | S31: 0.01412628461 | T31: 0.01439901677 | U31: 0.01533323463 | V31: 0.01392998717 | W31: 0.01304120544 | X31: 0.01272007756 | Y31: 0.01134834487 | Z31: 0.006308003575 | AA31: 0.008023973077 | AB31: 0.009712457624 | AC31: 0.009122946627 | AD31: 0.01058605365 | AE31: 0.011278279 | AF31: 0.0128058667 | AG31: 0.01275816297 | AH31: 0.01371262085 | AI31: 0.01388738833 | AJ31: 0.01410410344 | AK31: 0.01162324049 | AL31: 0.01200593296 | AM31: 0.01086213927 | AN31: 0.01359589733 | AO31: 0.01405124518 | AP31: 0.01440023579 | AQ31: 0.01448339887 | AR31: 0.0143708167 | AS31: 0.01420754229 | AT31: 0.01417458722 | AU31: 0.01401387955 | AV31: 0.01388570827 | AW31: 0.01375021647 | AX31: 0.0136220522 | AY31: 0.01357102185 | AZ31: 0.01359547213 | BA31: 0.01361881487
A32: 0.1236000355 | C32: 25 | D32: 0.007873147123 | E32: 0.006912169428 | F32: 0.007775856235 | G32: 0.007993423765 | H32: 0.00668277388 | I32: 0.006044247759 | J32: 0.006146525022 | K32: 0.007142431857 | L32: 0.008714238051 | M32: 0.008881973661 | N32: 0.007798710523 | O32: 0.01050733079 | P32: 0.009458670464 | Q32: 0.01112263621 | R32: 0.011714485 | S32: 0.01191790784 | T32: 0.01248933572 | U32: 0.01276200438 | V32: 0.01361595547 | W32: 0.01239632165 | X32: 0.01162630255 | Y32: 0.01136295714 | Z32: 0.01015644559 | AA32: 0.005651247489 | AB32: 0.007192124359 | AC32: 0.008707597117 | AD32: 0.008183692369 | AE32: 0.009496189885 | AF32: 0.010124305 | AG32: 0.01150004292 | AH32: 0.01146431412 | AI32: 0.01233002968 | AJ32: 0.01249536601 | AK32: 0.01270129967 | AL32: 0.01046474831 | AM32: 0.01081141388 | AN32: 0.009784098083 | AO32: 0.01225067995 | AP32: 0.01265304784 | AQ32: 0.01297531227 | AR32: 0.01305755306 | AS32: 0.01295723352 | AT32: 0.01281571095 | AU32: 0.01278933816 | AV32: 0.01264913406 | AW32: 0.01253406059 | AX32: 0.01241450389 | AY32: 0.0122994059 | AZ32: 0.01225393581 | BA32: 0.01227042118
A33: 0.1246600208 | C33: 26 | D33: 0.006175925365 | E33: 0.007485989015 | F33: 0.00653369479 | G33: 0.006678926859 | H33: 0.007104121769 | I33: 0.005911651202 | J33: 0.005347302582 | K33: 0.005432501765 | L33: 0.006141009087 | M33: 0.007594391789 | N33: 0.007841613933 | O33: 0.007069821545 | P33: 0.009211479678 | Q33: 0.008330479165 | R33: 0.009793725231 | S33: 0.01032759739 | T33: 0.01052726341 | U33: 0.01105948077 | V33: 0.01132264152 | W33: 0.01210623675 | X33: 0.01104175123 | Y33: 0.01037689681 | Z33: 0.01016076399 | AA33: 0.009091121993 | AB33: 0.005060973338 | AC33: 0.006442393139 | AD33: 0.007804246282 | AE33: 0.007334686117 | AF33: 0.008517038148 | AG33: 0.009083905464 | AH33: 0.01032468231 | AI33: 0.01029934724 | AJ33: 0.0110843936 | AK33: 0.01124275857 | AL33: 0.01142536821 | AM33: 0.009415326404 | AN33: 0.00972990318 | AO33: 0.008808351328 | AP33: 0.01102205793 | AQ33: 0.01139113855 | AR33: 0.01168783116 | AS33: 0.01176300249 | AT33: 0.01167783391 | AU33: 0.01155332933 | AV33: 0.01153393951 | AW33: 0.01140806333 | AX33: 0.01130678543 | AY33: 0.01119949719 | AZ33: 0.01109621242 | BA33: 0.0110501542
A34: 0.1257200061 | C34: 27 | D34: 0.005335161185 | E34: 0.005872227296 | F34: 0.007076094986 | G34: 0.005603709273 | H34: 0.005931151199 | I34: 0.006278723846 | J34: 0.005225593953 | K34: 0.004722031467 | L34: 0.004664701975 | M34: 0.005344986134 | N34: 0.006697915079 | O34: 0.007103666976 | P34: 0.006191409999 | Q34: 0.008105102354 | R34: 0.007328313528 | S34: 0.008626256796 | T34: 0.009114198528 | U34: 0.009313649343 | V34: 0.00980342409 | W34: 0.01005836481 | X34: 0.01077395586 | Y34: 0.009846633618 | Z34: 0.009271029114 | AA34: 0.009087096076 | AB34: 0.008134462767 | AC34: 0.004529440917 | AD34: 0.005768966342 | AE34: 0.006988432966 | AF34: 0.00657260017 | AG34: 0.007635061544 | AH34: 0.008148296223 | AI34: 0.009267358293 | AJ34: 0.009250742639 | AK34: 0.009964528096 | AL34: 0.01010450572 | AM34: 0.01027061568 | AN34: 0.008466066359 | AO34: 0.008751923893 | AP34: 0.007918062974 | AQ34: 0.009914210053 | AR34: 0.01025197935 | AS34: 0.01051999538 | AT34: 0.01059239426 | AU34: 0.01051848573 | AV34: =AV78*(1-AV$51-AV$91)/SUM(AV$52:AV$90) -> 0.01041030888 | AW34: 0.01039335717 | AX34: 0.01028221054 | AY34: 0.01019143995 | AZ34: 0.01009523448 | BA34: 0.009997576623
A35: 0.1267799914 | C35: 28 | D35: 0.004690260358 | E35: 0.005072807278 | F35: 0.005550694509 | G35: 0.0060599319 | H35: 0.004972357857 | I35: 0.005237313581 | J35: 0.005545392483 | K35: 0.004610556481 | L35: 0.004049324178 | M35: 0.004054836009 | N35: 0.004709159702 | O35: 0.006063285794 | P35: 0.00621451651 | Q35: 0.005442613549 | R35: 0.007123379121 | S35: 0.006448764323 | T35: 0.0076058004 | U35: 0.008056223746 | V35: 0.008248534144 | W35: 0.008701130184 | X35: 0.008943633387 | Y35: 0.009599500362 | Z35: 0.008789685865 | AA35: 0.008284177382 | AB35: 0.008123774274 | AC35: 0.007273770724 | AD35: 0.004052408212 | AE35: 0.005161347545 | AF35: 0.006256790642 | AG35: 0.005886774341 | AH35: 0.006842634994 | AI35: 0.007307408096 | AJ35: 0.008316519291 | AK35: 0.008308869896 | AL35: 0.008947850924 | AM35: 0.009075293822 | AN35: 0.009227046232 | AO35: 0.007608473532 | AP35: 0.007860485188 | AQ35: 0.007116025481 | AR35: 0.008915030996 | AS35: 0.009219646071 | AT35: 0.009464923659 | AU35: 0.009532596754 | AV35: 0.009469700125 | AW35: 0.009372782362 | AX35: 0.009359600432 | AY35: 0.009259974996 | AZ35: 0.009178683021 | BA35: 0.00908789522
A36: 0.1278399767 | C36: 29 | D36: 0.004153401915 | E36: =E80*(1-E$51-E$91)/SUM(E$52:E$90) -> 0.004459619129 | F36: =F80*(1-F$51-F$91)/SUM(F$52:F$90) -> 0.004795046596 | G36: 0.004746547166 | H36: 0.005372899581 | I36: 0.004386722917 | J36: 0.004621715683 | K36: 0.004888472968 | L36: 0.003948534255 | M36: 0.003515392098 | N36: 0.003568780701 | O36: 0.00425993397 | P36: 0.005298780779 | Q36: 0.005457751023 | R36: 0.004778902492 | S36: 0.006262621249 | T36: 0.005680702431 | U36: 0.006716859258 | V36: 0.007128561664 | W36: 0.007314633441 | X36: 0.007730053794 | Y36: 0.007961789966 | Z36: 0.008561680347 | AA36: 0.007847244048 | AB36: 0.007399512783 | AC36: 0.007257857373 | AD36: 0.006501980534 | AE36: 0.003622381667 | AF36: 0.004616902711 | AG36: 0.005598964105 | AH36: 0.005271139505 | AI36: 0.00613107863 | AJ36: 0.006551902398 | AK36: 0.00746323626 | AL36: 0.00745458453 | AM36: 0.008029405175 | AN36: 0.008146039469 | AO36: 0.008285125351 | AP36: 0.006827544251 | AQ36: 0.007058146776 | AR36: 0.006393314419 | AS36: 0.008010395636 | AT36: 0.008287835272 | AU36: 0.008510597169 | AV36: 0.008574729876 | AW36: 0.008518586886 | AX36: 0.008433280699 | AY36: 0.00842184477 | AZ36: 0.008332613778 | BA36: 0.008255699438
A37: 0.128899962 | C37: 30 | D37: 0.003740050218 | E37: =E81*(1-E$51-E$91)/SUM(E$52:E$90) -> 0.003949160434 | F37: 0.004215433458 | G37: 0.00409429128 | H37: 0.004205064906 | I37: 0.004735811859 | J37: 0.003867838054 | K37: 0.00407068099 | L37: 0.004181036154 | M37: 0.003423483589 | N37: 0.003090790744 | O37: 0.003226042886 | P37: 0.003718891087 | Q37: 0.004649115919 | R37: 0.004787702151 | S37: 0.004197546431 | T37: 0.005511684029 | U37: 0.005012233566 | V37: 0.005938131256 | W37: 0.006315900498 | X37: 0.006492610188 | Y37: 0.006875467093 | Z37: 0.007094888533 | AA37: 0.007637036154 | AB37: 0.007003120046 | AC37: 0.006605006105 | AD37: 0.006482038695 | AE37: 0.005806872187 | AF37: 0.003237406883 | AG37: 0.004127834992 | AH37: 0.005008996822 | AI37: 0.004718833379 | AJ37: 0.005492360303 | AK37: 0.00587452706 | AL37: 0.006690026264 | AM37: 0.006683543147 | AN37: 0.007200927736 | AO37: 0.007308076518 | AP37: 0.00742825682 | AQ37: 0.006125313426 | AR37: 0.006335818904 | AS37: 0.005739597397 | AT37: 0.007194585843 | AU37: 0.007445768714 | AV37: 0.007648832655 | AW37: 0.007706867107 | AX37: 0.00765811398 | AY37: 0.007581807611 | AZ37: 0.007571901674 | BA37: 0.007488262034
A38: 0.1299599473 | C38: 31 | D38: 0.00329031815 | E38: 0.003556135102 | F38: 0.00373292484 | G38: 0.003594037587 | H38: 0.003624326265 | I38: 0.003703104406 | J38: 0.004172108944 | K38: 0.003403726951 | L38: 0.003477003772 | M38: 0.003620400848 | N38: 0.003006857708 | O38: 0.002791968305 | P38: 0.002813344564 | Q38: 0.003259834412 | R38: 0.004074516973 | S38: 0.004201373979 | T38: 0.003690846135 | U38: 0.004858711967 | V38: 0.00442718483 | W38: 0.005256545195 | X38: 0.005601206967 | Y38: 0.005769811917 | Z38: 0.00612154749 | AA38: 0.006323144646 | AB38: 0.006809568658 | AC38: 0.006245696158 | AD38: 0.005893770324 | AE38: 0.005783935783 | AF38: 0.00518513973 | AG38: 0.00289190549 | AH38: 0.003689614667 | AI38: 0.004480197614 | AJ38: 0.004223519626 | AK38: 0.004920214931 | AL38: 0.005261291381 | AM38: 0.005992795786 | AN38: 0.005988675275 | AO38: 0.006454533886 | AP38: 0.006546533865 | AQ38: 0.006658445281 | AR38: 0.005493682554 | AS38: 0.005683057556 | AT38: 0.005150601017 | AU38: 0.006458020493 | AV38: 0.006686059591 | AW38: 0.006868760151 | AX38: 0.006922421862 | AY38: 0.006878979078 | AZ38: 0.006810773954 | BA38: 0.00679877555
A39: 0.1310199326 | C39: 32 | D39: 0.002805001025 | E39: 0.003128518386 | F39: 0.003361419542 | G39: 0.003177921265 | H39: 0.003178956133 | I39: 0.003188803225 | J39: 0.003259567415 | K39: 0.003668295654 | L39: 0.002903484004 | M39: 0.003006890198 | N39: 0.003176505492 | O39: 0.002714214354 | P39: 0.002432231937 | Q39: 0.002463725235 | R39: 0.00285425825 | S39: 0.003572208922 | T39: 0.003690826881 | U39: 0.003250648483 | V39: 0.00428775508 | W39: 0.003915571572 | X39: 0.004657640765 | Y39: 0.004973318298 | Z39: 0.005132683692 | AA39: 0.005450924115 | AB39: 0.00563310551 | AC39: 0.006067750766 | AD39: 0.005568231633 | AE39: 0.005254361525 | AF39: 0.005160080025 | AG39: 0.0046276674 | AH39: 0.002582605371 | AI39: 0.003297185406 | AJ39: 0.004006401297 | AK39: 0.003780235044 | AL39: 0.004402729453 | AM39: 0.004708819231 | AN39: 0.005365029107 | AO39: 0.005363233694 | AP39: 0.005776880612 | AQ39: 0.005862989909 | AR39: 0.005966654998 | AS39: 0.004923415244 | AT39: 0.005095453658 | AU39: 0.004619302404 | AV39: 0.005794091825 | AW39: 0.005999000279 | AX39: 0.006164305365 | AY39: 0.006212778369 | AZ39: 0.006174095543 | BA39: 0.006110093269
A40: 0.1320799179 | C40: 33 | D40: 0.00238655185 | E40: 0.002667066489 | F40: 0.002957216905 | G40: 0.002857387595 | H40: 0.00280865339 | I40: 0.002794420732 | J40: 0.00280449217 | K40: 0.002863456494 | L40: 0.003125035313 | M40: 0.002507672366 | N40: 0.002635471827 | O40: 0.002865306211 | P40: 0.002361999904 | Q40: 0.002127948958 | R40: 0.002155170243 | S40: 0.002500058161 | T40: 0.003135239493 | U40: 0.003247690342 | V40: 0.002866097375 | W40: 0.003788907898 | X40: 0.003466407891 | Y40: 0.00413192665 | Z40: 0.004420308737 | AA40: 0.004566405313 | AB40: 0.004851818934 | AC40: 0.005015041493 | AD40: 0.005404808255 | AE40: 0.004959736394 | AF40: 0.00468346588 | AG40: 0.004601216113 | AH40: 0.004129058359 | AI40: 0.00230587632 | AJ40: 0.002945898046 | AK40: 0.003582759308 | AL40: 0.00337967447 | AM40: 0.00393694488 | AN40: 0.004211849866 | AO40: 0.004800508341 | AP40: 0.004795954672 | AQ40: 0.00516919117 | AR40: 0.005249280232 | AS40: 0.005342654773 | AT40: 0.004410534919 | AU40: 0.0045658946 | AV40: 0.004140828836 | AW40: 0.005194205602 | AX40: 0.005379104147 | AY40: 0.005527608254 | AZ40: 0.005571351332 | BA40: 0.005534138593
A41: 0.1331399032 | C41: 34 | D41: 0.002093274588 | E41: 0.002269194346 | F41: 0.002521031727 | G41: 0.002510043193 | H41: 0.002523347048 | I41: 0.002466674681 | J41: 0.002455559688 | K41: 0.002461537489 | L41: 0.002436162763 | M41: 0.002695532104 | N41: 0.002195629147 | O41: 0.002375580501 | P41: 0.002490849678 | Q41: 0.002064536547 | R41: 0.001859694973 | S41: 0.001885967397 | T41: 0.002192225136 | U41: 0.002756310724 | V41: 0.00286093056 | W41: 0.002530412044 | X41: 0.003351329451 | Y41: 0.003072471962 | Z41: 0.00366929077 | AA41: 0.00392919218 | AB41: 0.004060955702 | AC41: 0.004315681724 | AD41: 0.004463164208 | AE41: 0.004809897356 | AF41: 0.004416925733 | AG41: 0.00417251335 | AH41: 0.004101815321 | AI41: 0.003683360639 | AJ41: =AJ85*(1-AJ$51-AJ$91)/SUM(AJ$52:AJ$90) -> 0.00205838724 | AK41: 0.002632082276 | AL41: 0.00320030601 | AM41: 0.003019461811 | AN41: 0.003518342561 | AO41: 0.003765363288 | AP41: 0.004288990517 | AQ41: 0.004287710104 | AR41: 0.004624080609 | AS41: 0.004696225001 | AT41: 0.004781956072 | AU41: 0.003948739704 | AV41: 0.004089416757 | AW41: 0.003708906127 | AX41: 0.004653451173 | AY41: 0.004819345419 | AZ41: 0.004952642109 | BA41: 0.004989559661
A42: 0.1341998885 | C42: 35 | D42: 0.001844260537 | E42: 0.001990338847 | F42: 0.002144945003 | G42: 0.002136618266 | H42: 0.002214835948 | I42: 0.002214097933 | J42: 0.002165720732 | K42: 0.002153396431 | L42: 0.002091445335 | M42: 0.002098617913 | N42: 0.002357651527 | O42: 0.001977698496 | P42: 0.002062939483 | Q42: 0.002175085355 | R42: 0.001802577315 | S42: 0.0016258845 | T42: 0.001652228182 | U42: 0.00192552324 | V42: 0.002425896682 | W42: 0.002523617372 | X42: 0.002236209882 | Y42: 0.002967882525 | Z42: 0.002726090712 | AA42: 0.003258765994 | AB42: 0.003491210853 | AC42: 0.003609033543 | AD42: 0.003837365624 | AE42: 0.003968370896 | AF42: 0.004279677665 | AG42: 0.003931554563 | AH42: 0.003716340096 | AI42: 0.003655815296 | AJ42: 0.003285123524 | AK42: 0.001837498772 | AL42: 0.002349042126 | AM42: 0.002856690395 | AN42: 0.002696037424 | AO42: 0.003142611134 | AP42: 0.003361196606 | AQ42: 0.003831124305 | AR42: 0.003832216879 | AS42: 0.004133302204 | AT42: 0.004199723624 | AU42: 0.004277565954 | AV42: 0.003533607253 | AW42: 0.003659690931 | AX42: 0.003319911422 | AY42: 0.004165603493 | AZ42: 0.004314320694 | BA42: 0.004431627862
A43: 0.1352598738 | C43: 36 | D43: 0.001613045848 | E43: 0.001753569939 | F43: 0.001881358189 | G43: 0.001815157964 | H43: 0.001883820705 | I43: 0.001941633067 | J43: 0.001942311893 | K43: 0.001897565991 | L43: 0.001827206536 | M43: 0.001799328084 | N43: 0.001833643574 | O43: 0.002122121329 | P43: 0.001715602185 | Q43: 0.001799703513 | R43: 0.001897308968 | S43: 0.001574479001 | T43: 0.001423069048 | U43: 0.001449904634 | V43: 0.001693183257 | W43: 0.002137981972 | X43: 0.00222824392 | Y43: 0.001978623373 | Z43: 0.002631004573 | AA43: 0.002418975103 | AB43: 0.002892974874 | AC43: 0.003099961153 | AD43: 0.003206193927 | AE43: 0.003408914433 | AF43: 0.003527775283 | AG43: 0.003805999817 | AH43: 0.003498613162 | AI43: 0.003309315496 | AJ43: 0.003257675017 | AK43: 0.00293001317 | AL43: 0.001638458836 | AM43: 0.002094976385 | AN43: 0.002548454007 | AO43: 0.00240600555 | AP43: 0.002802828455 | AQ43: 0.002999753405 | AR43: 0.003421152557 | AS43: 0.003422505381 | AT43: 0.003693107867 | AU43: 0.00375349125 | AV43: 0.003824550865 | AW43: 0.003159551695 | AX43: 0.003273025361 | AY43: 0.002969296764 | AZ43: 0.003725861043 | BA43: 0.00385711957
A44: 0.1363198591 | C44: 37 | D44: 0.001429894188 | E44: 0.001533725118 | F44: 0.001657553521 | G44: 0.001589711863 | H44: 0.001599112566 | I44: 0.001649949145 | J44: 0.001701847163 | K44: 0.001700333115 | L44: 0.001607990064 | M44: 0.001569956124 | N44: 0.00157049974 | O44: 0.001649281526 | P44: 0.0018389334 | Q44: 0.001495258784 | R44: 0.001568385298 | S44: 0.001655677133 | T44: 0.001376807501 | U44: 0.001247673144 | V44: 0.001273812084 | W44: 0.001490908222 | X44: 0.001886083127 | Y44: 0.001969853648 | Z44: 0.00175250887 | AA44: 0.002332557797 | AB44: 0.002145562783 | AC44: 0.002566504342 | AD44: 0.002751502268 | AE44: 0.002845678886 | AF44: 0.003027734702 | AG44: 0.003134525188 | AH44: 0.003383872103 | AI44: 0.003112668599 | AJ44: 0.002946302914 | AK44: 0.002902974235 | AL44: 0.002610326577 | AM44: 0.001459957394 | AN44: 0.001867280966 | AO44: 0.002272298376 | AP44: 0.002143981353 | AQ44: 0.002499241973 | AR44: 0.002676411917 | AS44: 0.003052730525 | AT44: 0.003055354895 | AU44: 0.003297842625 | AV44: 0.003353071113 | AW44: 0.003416736237 | AX44: 0.002823282955 | AY44: 0.002924829097 | AZ44: 0.002653544408 | BA44: 0.003328138157
A45: 0.1373798444 | C45: 38 | D45: 0.001207707983 | E45: 0.00135957985 | F45: 0.001449746265 | G45: 0.001398499038 | H45: 0.00139937699 | I45: 0.001399313636 | J45: 0.001444956898 | K45: 0.00148852412 | L45: 0.001438939516 | M45: 0.001379807614 | N45: 0.001368864673 | O45: 0.00141158423 | P45: 0.001427675079 | Q45: 0.001601218767 | R45: 0.001301840614 | S45: 0.001367365426 | T45: 0.001446477563 | U45: 0.001206016255 | V45: 0.001095158884 | W45: 0.00112064272 | X45: 0.001314089463 | Y45: 0.001665913269 | Z45: 0.001743222871 | AA45: 0.001552352757 | AB45: 0.002067094111 | AC45: 0.00190175865 | AD45: 0.002275988377 | AE45: 0.002439938162 | AF45: 0.002525226429 | AG45: 0.002687827993 | AH45: 0.002784390578 | AI45: 0.00300790969 | AJ45: 0.002768773804 | AK45: 0.00262319175 | AL45: 0.00258395479 | AM45: 0.002323889499 | AN45: 0.001300131544 | AO45: 0.001663472943 | AP45: 0.002023056015 | AQ45: 0.001910084624 | AR45: 0.002227904536 | AS45: 0.002386110887 | AT45: 0.002722879079 | AU45: 0.002725979015 | AV45: 0.002943476593 | AW45: 0.002992934933 | AX45: 0.003050450969 | AY45: 0.002520746775 | AZ45: 0.002611541637 | BA45: 0.002368234707
A46: 0.1384398297 | C46: 39 | D46: 0.001148319542 | E46: 0.001148319542 | F46: 0.001285136292 | G46: 0.001221330812 | H46: 0.001230070231 | I46: 0.001223419608 | J46: 0.001224418902 | K46: 0.001262729014 | L46: 0.001258014613 | M46: 0.001233139706 | N46: 0.001201812043 | O46: 0.001229470966 | P46: 0.001220617763 | Q46: 0.001241934099 | R46: 0.001392776379 | S46: 0.001133922857 | T46: 0.001193493276 | U46: 0.00126589115 | V46: 0.001057643956 | W46: 0.0009626168585 | X46: 0.0009868657837 | Y46: 0.001159675507 | Z46: 0.001472966523 | AA46: 0.001542773449 | AB46: 0.001374472087 | AC46: 0.001830589283 | AD46: 0.001684990696 | AE46: 0.002016468672 | AF46: 0.002163244582 | AG46: 0.002239733975 | AH46: 0.002385463271 | AI46: 0.002472831695 | AJ46: 0.002673218236 | AK46: 0.002462957969 | AL46: 0.002332855748 | AM46: 0.002298376542 | AN46: 0.002067658554 | AO46: 0.001157205641 | AP46: 0.001479708354 | AQ46: 0.001800773106 | AR46: 0.001701223687 | AS46: 0.001984520338 | AT46: 0.002126437104 | AU46: 0.002427234762 | AV46: 0.002430950659 | AW46: 0.002625054169 | AX46: 0.002669766002 | AY46: =AY90*(1-AY$51-AY$91)/SUM(AY$52:AY$90) -> 0.002721211054 | AZ46: 0.002248790813 | BA46: 0.002328727641
A47: 0.139499815 | C47: 40 | D47: 0.0104848901 | E47: =D47 -> 0.0104848901 | F47: =E47 -> 0.0104848901 | G47: 0.0104848901 | H47: 0.0104848901 | I47: 0.0104848901 | J47: 0.0104848901 | K47: 0.0104848901 | L47: 0.0104848901 | M47: 0.0104848901 | N47: 0.0104848901 | O47: 0.0104848901 | P47: 0.0104848901 | Q47: 0.0104848901 | R47: 0.0104848901 | S47: 0.0104848901 | T47: 0.0104848901 | U47: 0.0104848901 | V47: 0.0104848901 | W47: 0.0104848901 | X47: 0.0104848901 | Y47: 0.0104848901 | Z47: 0.0104848901 | AA47: 0.0104848901 | AB47: 0.0104848901 | AC47: 0.0104848901 | AD47: 0.0104848901 | AE47: 0.0104848901 | AF47: 0.0104848901 | AG47: 0.0104848901 | AH47: 0.0104848901 | AI47: 0.0104848901 | AJ47: 0.0104848901 | AK47: 0.0104848901 | AL47: 0.0104848901 | AM47: 0.0104848901 | AN47: 0.0104848901 | AO47: 0.0104848901 | AP47: 0.0104848901 | AQ47: 0.0104848901 | AR47: 0.0104848901 | AS47: 0.0104848901 | AT47: 0.0104848901 | AU47: 0.0104848901 | AV47: 0.0104848901 | AW47: 0.0104848901 | AX47: 0.0104848901 | AY47: 0.0104848901 | AZ47: 0.0104848901 | BA47: 0.0104848901
C49: Intermediate table
C50: age | D50: 2011 | E50: 2012 | F50: 2013 | G50: 2014 | H50: 2015 | I50: 2016 | J50: 2017 | K50: 2018 | L50: 2019 | M50: 2020 | N50: 2021 | O50: 2022 | P50: 2023 | Q50: 2024 | R50: 2025 | S50: 2026 | T50: 2027 | U50: 2028 | V50: 2029 | W50: 2030 | X50: 2031 | Y50: 2032 | Z50: 2033 | AA50: 2034 | AB50: 2035 | AC50: 2036 | AD50: 2037 | AE50: 2038 | AF50: 2039 | AG50: 2040 | AH50: 2041 | AI50: 2042 | AJ50: 2043 | AK50: 2044 | AL50: 2045 | AM50: 2046 | AN50: 2047 | AO50: 2048 | AP50: 2049 | AQ50: 2050 | AR50: 2051 | AS50: 2052 | AT50: 2053 | AU50: 2054 | AV50: 2055 | AW50: 2056 | AX50: 2057 | AY50: 2058 | AZ50: 2059 | BA50: 2060
C51: 0 | D51: =D7 -> 0.05496327307 | E51: =E2 -> 0.0497507666 | F51: =F2 -> 0.05526617167 | G51: 0.05945824889 | H51: 0.0660141137 | I51: 0.06466147724 | J51: 0.06801474766 | K51: 0.06757422255 | L51: 0.06840127114 | M51: 0.05669741347 | N51: 0.0583249389 | O51: 0.05225977058 | P51: 0.06478343052 | Q51: 0.06593240714 | R51: 0.06650664146 | S51: 0.06581942161 | T51: 0.06427720143 | U51: 0.06262197439 | V51: 0.06158864473 | W51: 0.06008013269 | X51: 0.05879004198 | Y51: 0.05756725556 | Z51: 0.0564716126 | AA51: 0.05579822849 | AB51: 0.0554875148 | AC51: 0.05523424378 | AD51: 0.05504768244 | AE51: 0.05497244391 | AF51: 0.05483920817 | AG51: 0.05483925484 | AH51: 0.05457128216 | AI51: 0.05434857281 | AJ51: 0.05414840825 | AK51: 0.05388467364 | AL51: 0.0539465997 | AM51: 0.05370252707 | AN51: 0.05359733173 | AO51: 0.05328998216 | AP51: 0.05325806177 | AQ51: 0.0533109048 | AR51: =AR2 -> 0.0533109048 | AS51: 0.0533109048 | AT51: 0.0533109048 | AU51: 0.0533109048 | AV51: 0.0533109048 | AW51: 0.0533109048 | AX51: 0.0533109048 | AY51: 0.0533109048 | AZ51: 0.0533109048 | BA51: 0.0533109048
C52: 1 | D52: =D8 -> 0.0449019393 | E52: =MAX(D7*(1-D$3*$A7),0) -> 0.05496327307 | F52: =MAX(E7*(1-E$3*$A7),0) -> 0.0497507666 | G52: 0.05470136045 | H52: 0.05910741303 | I52: 0.06557785257 | J52: 0.06425942732 | K52: 0.06758086194 | L52: 0.06695089095 | M52: 0.06778270825 | N52: 0.05627290975 | O52: 0.05801459727 | P52: 0.05186341798 | Q52: 0.06433585407 | R52: 0.06548154864 | S52: 0.06605639501 | T52: 0.06537918976 | U52: 0.06385246305 | V52: 0.06221314837 | W52: 0.06119072386 | X52: 0.05969410198 | Y52: 0.05841504671 | Z52: 0.05720139796 | AA52: 0.05611059986 | AB52: 0.05544036266 | AC52: 0.05513065743 | AD52: 0.05487700226 | AE52: 0.05469034417 | AF52: 0.05461549138 | AG52: 0.05448319273 | AH52: 0.05448357852 | AI52: 0.05421790199 | AJ52: 0.0539978435 | AK52: 0.05380047931 | AL52: 0.05353782036 | AM52: 0.05359896109 | AN52: 0.05335694172 | AO52: 0.05325318187 | AP52: 0.05294833445 | AQ52: 0.05291794235 | AR52: =MAX(AQ7*(1-AQ$3*$A7),0) -> 0.05297129774 | AS52: 0.05297191581 | AT52: 0.05297249904 | AU52: 0.05297294127 | AV52: 0.05297325784 | AW52: 0.05297341546 | AX52: 0.05297354108 | AY52: 0.05297356985 | AZ52: 0.05297358165 | BA52: 0.0529735689
C53: 2 | D53: 0.03474124821 | E53: =MAX(D8*(1-D$3*$A8),0) -> 0.0449019393 | F53: 0.05226048136 | G53: 0.0465404778 | H53: 0.05474526918 | I53: 0.05701535118 | J53: 0.06369574941 | K53: 0.06202574142 | L53: 0.06514561092 | M53: 0.06575461122 | N53: 0.06738229866 | O53: 0.05537260119 | P53: 0.05651037626 | Q53: 0.05067285728 | R53: 0.06247340814 | S53: 0.06350420188 | T53: 0.06407641465 | U53: 0.06346509432 | V53: 0.06206291096 | W53: 0.060513527 | X53: 0.05958527249 | Y53: 0.05820282426 | Z53: 0.05703051347 | AA53: 0.05592706577 | AB53: 0.05494771208 | AC53: 0.0543349858 | AD53: 0.05405711298 | AE53: 0.05386825513 | AF53: 0.05370502479 | AG53: 0.05367110184 | AH53: 0.05356105276 | AI53: 0.05359002349 | AJ53: 0.05335619602 | AK53: 0.05315743904 | AL53: 0.05298502542 | AM53: 0.05272318715 | AN53: 0.05280014993 | AO53: 0.05256950294 | AP53: 0.05247390299 | AQ53: 0.05213406097 | AR53: 0.05211681881 | AS53: 0.05218615205 | AT53: 0.05218261139 | AU53: 0.05219786388 | AV53: 0.05220552321 | AW53: 0.05222094484 | AX53: 0.0522213731 | AY53: 0.0522311526 | AZ53: 0.05223336838 | BA53: 0.05223576694
C54: 3 | D54: 0.06127623127 | E54: 0.03474124821 | F54: 0.04269390869 | G54: 0.04888237579 | H54: 0.04657462031 | I54: 0.05280351612 | J54: 0.05537496436 | K54: 0.06147706623 | L54: 0.05978419241 | M54: 0.06397479685 | N54: 0.0653604469 | O54: 0.06630012611 | P54: 0.05393208845 | Q54: 0.05520867389 | R54: 0.04920199827 | S54: 0.0605820951 | T54: 0.06159589686 | U54: 0.06219564811 | V54: 0.06168168407 | W54: 0.06036282812 | X54: 0.05892141109 | Y54: 0.05809237584 | Z54: 0.05681909396 | AA54: 0.05575581563 | AB54: 0.05476386994 | AC54: 0.05384810348 | AD54: 0.0532729014 | AE54: 0.05305940454 | AF54: 0.05289372572 | AG54: 0.05277236766 | AH54: 0.05275870056 | AI54: 0.05267863387 | AJ54: 0.05273431254 | AK54: 0.05252182715 | AL54: 0.05234778692 | AM54: 0.05217486738 | AN54: 0.05193351558 | AO54: 0.05201701815 | AP54: 0.05179634119 | AQ54: 0.05166306329 | AR54: 0.05134097599 | AS54: 0.05134051673 | AT54: 0.05140473614 | AU54: 0.05141571153 | AV54: 0.0514378608 | AW54: 0.05146029996 | AX54: 0.05147577187 | AY54: 0.05148571221 | AZ54: 0.05149751067 | BA54: 0.05150204858
C55: 4 | D55: 0.06673797517 | E55: 0.06127623127 | F55: 0.03303286455 | G55: 0.03967521678 | H55: 0.04873589566 | I55: 0.04473499317 | J55: 0.05108280482 | K55: 0.05323062688 | L55: 0.05890886818 | M55: 0.05837325609 | N55: 0.06329003785 | O55: 0.06409470718 | P55: 0.06426541087 | Q55: 0.05245957826 | R55: 0.05337436482 | S55: 0.04750822895 | T55: 0.05851311788 | U55: 0.0595381826 | V55: 0.06019845362 | W55: 0.05974704685 | X55: 0.05853598569 | Y55: 0.05721356254 | Z55: 0.05648348369 | AA55: 0.05532467624 | AB55: 0.05437486572 | AC55: 0.05344978163 | AD55: 0.05257969944 | AE55: 0.05207511037 | AF55: 0.05188566994 | AG55: 0.05176187354 | AH55: 0.05166257474 | AI55: 0.05167710968 | AJ55: 0.05162603148 | AK55: 0.05169884996 | AL55: 0.05151142239 | AM55: 0.05133741347 | AN55: 0.05118436903 | AO55: 0.05095559527 | AP55: 0.05104430289 | AQ55: 0.05079013595 | AR55: 0.05067230351 | AS55: 0.05037297515 | AT55: 0.05036887768 | AU55: 0.05044633926 | AV55: 0.05046428756 | AW55: 0.05050073598 | AX55: 0.05052310777 | AY55: 0.05054766009 | AZ55: 0.0505595458 | BA55: 0.05057343512
C56: 5 | D56: 0.06625677443 | E56: 0.06673797517 | F56: 0.05826300297 | G56: 0.03051544355 | H56: 0.03942203133 | I56: 0.04663269517 | J56: 0.04312230235 | K56: 0.04892429395 | L56: 0.05073469423 | M56: 0.05721773114 | N56: 0.05749901583 | O56: 0.06187456402 | P56: 0.06185579748 | Q56: 0.06226185973 | R56: 0.05051674874 | S56: 0.05133592038 | T56: 0.04570892642 | U56: 0.05634309735 | V56: 0.05740963232 | W56: 0.05809336718 | X56: 0.05772445582 | Y56: 0.05663053776 | Z56: 0.05542543637 | AA56: 0.05479542882 | AB56: 0.05375513032 | AC56: 0.05287355545 | AD56: 0.05199635347 | AE56: 0.05120533411 | AF56: 0.05073270726 | AG56: 0.0505855379 | AH56: 0.05048404446 | AI56: 0.05041473087 | AJ56: 0.0504562975 | AK56: 0.05042504913 | AL56: 0.05051631686 | AM56: 0.05032971386 | AN56: 0.05017617081 | AO56: 0.05003485352 | AP56: 0.04981812093 | AQ56: 0.04986863875 | AR56: 0.04963338066 | AS56: 0.04953487346 | AT56: 0.04923901364 | AU56: 0.04924936145 | AV56: 0.04933228893 | AW56: 0.04936430408 | AX56: 0.04940035986 | AY56: 0.0494314152 | AZ56: 0.04945752168 | BA56: 0.04947139706
C57: 6 | D57: 0.06824406696 | E57: 0.06625677443 | F57: 0.06345616832 | G57: 0.05347594074 | H57: 0.03020898929 | I57: 0.03756485611 | J57: 0.04477693184 | K57: 0.0411354621 | L57: 0.0463596534 | M57: 0.04899795797 | N57: 0.0560963404 | O57: 0.0560265217 | P57: 0.05942932422 | Q57: 0.05966823732 | R57: 0.05969944015 | S57: 0.04838163141 | T57: 0.04918498951 | U57: 0.04383185543 | V57: 0.0541069748 | W57: 0.05517826057 | X57: 0.05590129232 | Y57: 0.05562274399 | Z57: 0.05464268792 | AA57: 0.05355411466 | AB57: 0.05302741994 | AC57: 0.05206075473 | AD57: 0.05122778874 | AE57: 0.0504316973 | AF57: 0.04968280634 | AG57: 0.04926068206 | AH57: 0.04913666498 | AI57: 0.04906519479 | AJ57: 0.0490251294 | AK57: 0.04908454901 | AL57: 0.04907335921 | AM57: 0.04915857401 | AN57: 0.04899335106 | AO57: 0.0488523951 | AP57: 0.04872186525 | AQ57: 0.04847638904 | AR57: 0.04853880567 | AS57: 0.0483264133 | AT57: 0.04822765227 | AU57: 0.04795382876 | AV57: 0.04797107705 | AW57: 0.04806602538 | AX57: 0.04809768214 | AY57: 0.04814176105 | AZ57: 0.04817406255 | BA57: 0.048201686
C58: 7 | D58: 0.07195091446 | E58: 0.06824406696 | F58: 0.06299863039 | G58: 0.0578361282 | H58: 0.05272834398 | I58: 0.02865734663 | J58: 0.03591863411 | K58: 0.04252992662 | L58: 0.03873440006 | M58: 0.04449726136 | N58: 0.0477941065 | O58: 0.05446404715 | P58: 0.0535359405 | Q58: 0.05705982079 | R58: 0.05694812559 | S58: 0.05691463446 | T58: 0.04614501565 | U58: 0.04695465723 | V58: 0.04190670321 | W58: 0.05177711681 | X58: 0.0528658693 | Y58: 0.05363403769 | Z58: 0.05344004684 | AA58: 0.05256995219 | AB58: 0.05160176922 | AC58: 0.05113300289 | AD58: 0.05022002009 | AE58: 0.04946847595 | AF58: 0.04871763112 | AG58: 0.04802977568 | AH58: 0.04764020688 | AI58: 0.04754688241 | AJ58: 0.0475049076 | AK58: 0.04748540945 | AL58: 0.04756120283 | AM58: 0.04754663671 | AN58: 0.04764540912 | AO58: 0.04749400965 | AP58: 0.04736455426 | AQ58: 0.0472052823 | AR58: 0.04698079784 | AS58: 0.04705782191 | AT58: 0.04684949735 | AU58: 0.04676789901 | AV58: 0.04650950629 | AW58: 0.04654005331 | AX58: 0.04663269434 | AY58: 0.04667209958 | AZ58: 0.04671685491 | BA58: 0.04675030797
C59: 8 | D59: 0.06402140968 | E59: 0.07195091446 | F59: 0.06488819879 | G59: 0.05698744333 | H59: 0.056783867 | I59: 0.04978000552 | J59: =MAX(I14*(1-I$3*$A14),0) -> 0.02727794599 | K59: 0.03395826206 | L59: 0.03977670219 | M59: 0.03693206629 | N59: 0.04316728198 | O59: 0.04622493595 | P59: 0.05175532188 | Q59: 0.05114328068 | R59: 0.0541879995 | S59: 0.05402462815 | T59: 0.05401984703 | U59: 0.04384117031 | V59: 0.04467960503 | W59: 0.03991416065 | X59: 0.04937597539 | Y59: 0.05048700435 | Z59: 0.05129180919 | AA59: 0.0511744658 | AB59: 0.05041776273 | AC59: 0.04952607236 | AD59: 0.04909354671 | AE59: 0.04826683464 | AF59: 0.04756193543 | AG59: 0.04687480106 | AH59: 0.04623114158 | AI59: 0.0458821926 | AJ59: 0.04581929021 | AK59: 0.04579839961 | AL59: 0.04579677297 | AM59: 0.04586603381 | AN59: 0.04586789684 | AO59: 0.04597212472 | AP59: 0.0458333359 | AQ59: 0.04567759544 | AR59: 0.04553747777 | AS59: 0.04533724483 | AT59: 0.04540960623 | AU59: 0.04522253485 | AV59: 0.04515090406 | AW59: 0.04491487988 | AX59: 0.04494496458 | AY59: 0.04504283764 | AZ59: 0.0450828204 | BA59: 0.04512807816
C60: 9 | D60: 0.05904347463 | E60: 0.06402140968 | F60: 0.0684127639 | G60: 0.05824480691 | H60: 0.05570655314 | I60: 0.05334604199 | J60: 0.04716577007 | K60: 0.02566728859 | L60: 0.0315401933 | M60: 0.03766882749 | N60: 0.03562851826 | O60: 0.04158619594 | P60: 0.04367787958 | Q60: 0.04918860528 | R60: 0.0483227024 | S60: 0.05114794 | T60: 0.05102241534 | U60: 0.05107135133 | V60: 0.04151508043 | W60: 0.04235145942 | X60: 0.03788194213 | Y60: 0.04693132805 | Z60: 0.04805491123 | AA60: 0.04888467108 | AB60: 0.04884617968 | AC60: 0.04815908949 | AD60: 0.04732278388 | AE60: 0.04695715315 | AF60: 0.04618326155 | AG60: 0.04554262128 | AH60: 0.04490252721 | AI60: 0.04431143667 | AJ60: 0.04400363533 | AK60: 0.0439630206 | AL60: 0.04395907212 | AM60: 0.04395359242 | AN60: 0.04403564154 | AO60: 0.04404647541 | AP60: 0.0441539258 | AQ60: 0.04399178863 | AR60: 0.04385582398 | AS60: 0.04373742671 | AT60: 0.04354358585 | AU60: 0.04362682515 | AV60: 0.04345416122 | AW60: 0.04339841058 | AX60: 0.04317218718 | AY60: 0.04320918733 | AZ60: 0.04330513308 | BA60: 0.04334551182
C61: 10 | D61: 0.05272402296 | E61: 0.05904347463 | F61: 0.06087318859 | G61: 0.06093975257 | H61: 0.05669022448 | I61: 0.05208037378 | J61: 0.05031456843 | K61: 0.04417347608 | L61: 0.02367618433 | M61: 0.02966826464 | N61: 0.03613889194 | O61: 0.03419052265 | P61: 0.03907514121 | Q61: 0.04130115078 | R61: 0.04624253939 | S61: 0.04538511072 | T61: 0.04806860425 | U61: 0.04800382103 | V61: 0.04813025386 | W61: 0.03916555678 | X61: 0.04000596605 | Y61: 0.03583818061 | Z61: 0.04446264039 | AA61: 0.04558524705 | AB61: 0.0464413663 | AC61: 0.04643810087 | AD61: 0.04579855567 | AE61: 0.04504814718 | AF61: 0.0447163371 | AG61: 0.04401211293 | AH61: 0.04341907119 | AI61: 0.04283379307 | AJ61: 0.04229627339 | AK61: 0.04202220162 | AL61: 0.04199842705 | AM61: 0.04199068278 | AN61: 0.04200058996 | AO61: 0.04208808904 | AP61: 0.0421057811 | AQ61: 0.04218164343 | AR61: 0.04204021622 | AS61: 0.04192611629 | AT61: 0.04181181369 | AU61: 0.04163988409 | AV61: 0.04172645454 | AW61: 0.04157393436 | AX61: 0.04152128553 | AY61: 0.04131259193 | AZ61: 0.04134977419 | BA61: 0.04144343701
C62: 11 | D62: 0.04813170187 | E62: 0.05272402296 | F62: 0.05614004103 | G62: 0.05382032475 | H62: 0.05906487206 | I62: 0.05275041831 | J62: 0.04890367489 | K62: 0.0469085797 | L62: 0.04047476779 | M62: 0.02212539354 | N62: 0.02831062604 | O62: 0.03454978364 | P62: 0.03195140592 | Q62: 0.03676664016 | R62: 0.03863803092 | S62: 0.04322167794 | T62: 0.04244933378 | U62: 0.04501180762 | V62: 0.04502901057 | W62: 0.04519747227 | X62: 0.03682728989 | Y62: 0.03767581038 | Z62: 0.03379947598 | AA62: 0.04198569153 | AB62: 0.04310914862 | AC62: 0.04394970477 | AD62: 0.04395854846 | AE62: 0.04339564754 | AF62: 0.042700065 | AG62: 0.04241714205 | AH62: 0.04176613461 | AI62: 0.04122770278 | AJ62: 0.04069797831 | AK62: 0.0402069711 | AL62: 0.03996038 | AM62: 0.0399337818 | AN62: 0.03994108236 | AO62: 0.03995956119 | AP62: 0.04005008205 | AQ62: 0.04004216432 | AR62: 0.0401276377 | AS62: 0.04000854985 | AT62: 0.03989922364 | AU62: 0.03980347874 | AV62: 0.03964660475 | AW62: 0.03974118428 | AX62: 0.03959664745 | AY62: 0.03955393364 | AZ62: 0.03935682503 | BA62: 0.03939399468
C63: 12 | D63: 0.04245475737 | E63: 0.04813170187 | F63: 0.05013134526 | G63: 0.04927611831 | H63: 0.05195256599 | I63: 0.05470880101 | J63: 0.04932036356 | K63: 0.04539231506 | L63: 0.04270179606 | M63: 0.03758321019 | N63: 0.02100294141 | O63: 0.02696696834 | P63: 0.03211665993 | Q63: 0.02991980862 | R63: 0.03423296777 | S63: 0.03594465003 | T63: 0.04023871745 | U63: 0.03956819465 | V63: 0.04203184664 | W63: 0.04209640938 | X63: 0.042310433 | Y63: 0.03452948796 | Z63: 0.03537662916 | AA63: 0.03177562387 | AB63: 0.0395291963 | AC63: 0.04061499348 | AD63: 0.04141706981 | AE63: 0.04146529943 | AF63: 0.0409490905 | AG63: 0.0403227938 | AH63: 0.0400721193 | AI63: 0.03948070958 | AJ63: 0.03899729527 | AK63: 0.03851588594 | AL63: 0.03806416954 | AM63: 0.03782674453 | AN63: 0.03781569498 | AO63: 0.03783156853 | AP63: 0.03785621832 | AQ63: 0.03791921559 | AR63: 0.03792475335 | AS63: 0.03802071029 | AT63: 0.03790747151 | AU63: 0.03781649449 | AV63: 0.03773237847 | AW63: 0.03759524432 | AX63: 0.03768568598 | AY63: 0.03755569513 | AZ63: 0.03751680634 | BA63: 0.03733149899
C64: 13 | D64: 0.03293748584 | E64: 0.04245475737 | F64: 0.04576484929 | G64: 0.04370361979 | H64: 0.04738565289 | I64: 0.04791555829 | J64: 0.05094649472 | K64: 0.04559071048 | L64: 0.04107042046 | M64: 0.03941525069 | N64: 0.0355028544 | O64: 0.01993797875 | P64: 0.02494412926 | Q64: 0.02994000928 | R64: 0.02773467532 | S64: 0.03170718724 | T64: 0.03331921592 | U64: 0.0373474806 | V64: 0.0367928587 | W64: 0.03913058299 | X64: 0.03924407438 | Y64: 0.03950729713 | Z64: 0.032289424 | AA64: 0.03312118284 | AB64: 0.02979270374 | AC64: 0.03708761093 | AD64: 0.03811474215 | AE64: 0.03890424944 | AF64: 0.03896355285 | AG64: 0.0385072393 | AH64: 0.03793406578 | AI64: 0.03772105782 | AJ64: 0.03718927758 | AK64: 0.03675337241 | AL64: 0.03631174846 | AM64: 0.03588193635 | AN64: 0.03567166689 | AO64: 0.03567003752 | AP64: 0.03569198888 | AQ64: 0.03569442298 | AR64: 0.0357665016 | AS64: 0.03578612763 | AT64: 0.03587655732 | AU64: 0.03578183511 | AV64: 0.03570237745 | AW64: 0.03563400849 | AX64: 0.03550526937 | AY64: 0.03559739782 | AZ64: 0.03547615061 | BA64: 0.03544097556
C65: 14 | D65: 0.03305817467 | E65: 0.03293748584 | F65: 0.04036706572 | G65: 0.03961424646 | H65: 0.04186089759 | I65: 0.04350903537 | J65: 0.04443418216 | K65: 0.04689194274 | L65: 0.04098822036 | M65: 0.03767399632 | N65: 0.03704443509 | O65: 0.03358314394 | P65: 0.01834746776 | Q65: 0.02314514231 | R65: 0.0276253694 | S65: 0.02557109454 | T65: 0.02925880233 | U65: 0.0307875551 | V65: 0.03457533608 | W65: 0.03410436989 | X65: 0.03632160322 | Y65: 0.03648698623 | Z65: 0.03678651887 | AA65: 0.03010089053 | AB65: 0.03092038772 | AC65: 0.02783162622 | AD65: 0.03465309311 | AE65: 0.03564592579 | AF65: 0.03639732368 | AG65: 0.03648007681 | AH65: 0.03606800675 | AI65: 0.03555290412 | AJ65: 0.03537754196 | AK65: =MAX(AJ20*(1-AJ$3*$A20),0) -> 0.03489796017 | AL65: 0.03450011276 | AM65: 0.03408164219 | AN65: 0.03369123315 | AO65: 0.03350239432 | AP65: 0.03350765135 | AQ65: 0.03350931639 | AR65: 0.03352386447 | AS65: 0.03360536124 | AT65: 0.03362395343 | AU65: 0.03372054942 | AV65: 0.03363770788 | AW65: 0.03357348778 | AX65: 0.03350997708 | AY65: 0.03339522365 | AZ65: 0.03348333613 | BA65: 0.03337075314
C66: 15 | D66: 0.02282275802 | E66: 0.03305817467 | F66: 0.0313178013 | G66: 0.0342300064 | H66: 0.03751432068 | I66: 0.03794582414 | J66: 0.03986508723 | K66: 0.04039517656 | L66: 0.04138972022 | M66: 0.03692787461 | N66: 0.0348921067 | O66: 0.03468536894 | P66: 0.0304476901 | Q66: 0.01679654814 | R66: 0.02107328219 | S66: 0.02513691807 | T66: 0.02329159363 | U66: 0.02669073043 | V66: 0.02814330472 | W66: 0.03164960006 | X66: 0.03126410422 | Y66: 0.03335477188 | Z66: 0.03355824267 | AA66: 0.03387068971 | AB66: 0.02775339852 | AC66: 0.02852695737 | AD66: 0.02568035067 | AE66: 0.03200272219 | AF66: 0.03293128201 | AG66: 0.03365070364 | AH66: 0.03374182395 | AI66: 0.03338182284 | AJ66: 0.03292918728 | AK66: 0.03278664964 | AL66: 0.03235192772 | AM66: 0.03197895361 | AN66: 0.03160384631 | AO66: 0.03125074756 | AP66: 0.03108251897 | AQ66: 0.03107141142 | AR66: 0.03108534622 | AS66: 0.03111236154 | AT66: 0.03118883921 | AU66: 0.03121739381 | AV66: 0.03131321936 | AW66: 0.03124623202 | AX66: 0.03118745616 | AY66: 0.03113437829 | AZ66: 0.03102912632 | BA66: 0.03111234513
C67: 16 | D67: 0.02345834801 | E67: 0.02282275802 | F67: 0.03143255531 | G67: 0.02636302964 | H67: 0.03228544486 | I67: 0.03385179441 | J67: 0.03462031506 | K67: 0.03608339853 | L67: 0.03542339202 | M67: 0.03705233336 | N67: 0.03402395958 | O67: 0.0325526376 | P67: 0.03128186328 | Q67: 0.02774156508 | R67: 0.01522116226 | S67: 0.01908593833 | T67: 0.02279110968 | U67: 0.02115107735 | V67: 0.02428930788 | W67: 0.02564798601 | X67: 0.02888630076 | Y67: 0.02858522313 | Z67: 0.0305442332 | AA67: 0.03076328042 | AB67: 0.03109226347 | AC67: 0.02549250472 | AD67: 0.02620547315 | AE67: 0.02361089726 | AF67: 0.02943416297 | AG67: 0.03031096654 | AH67: 0.03098670415 | AI67: 0.03109053184 | AJ67: 0.03078185354 | AK67: 0.03038351914 | AL67: 0.03026085358 | AM67: 0.0298555877 | AN67: 0.0295235283 | AO67: 0.02918586295 | AP67: 0.02886642683 | AQ67: 0.02869679393 | AR67: 0.02869831372 | AS67: 0.02872391006 | AT67: 0.02874988105 | AU67: 0.02883116235 | AV67: 0.02886334657 | AW67: 0.02896122199 | AX67: 0.02890013016 | AY67: 0.028851264 | AZ67: 0.02880343509 | BA67: 0.02870730292
C68: 17 | D68: 0.02042260484 | E68: 0.02345834801 | F68: 0.02170046021 | G68: 0.02627956076 | H68: 0.02477250466 | I68: 0.02901054375 | J68: 0.03076307435 | K68: 0.0312089185 | L68: 0.03145023767 | M68: 0.03152294447 | N68: 0.03397384135 | O68: 0.03163648552 | P68: 0.02921469079 | Q68: 0.02837549616 | R68: 0.02502962046 | S68: 0.01372603856 | T68: 0.01723088149 | U68: 0.02060931001 | V68: 0.0191679487 | W68: 0.02204458625 | X68: 0.02331289746 | Y68: 0.02630393558 | Z68: 0.02607071655 | AA68: 0.02788634633 | AB68: 0.02812442897 | AC68: 0.02844239449 | AD68: 0.02332145625 | AE68: 0.02399402358 | AF68: 0.02162600188 | AG68: 0.02698001616 | AH68: 0.02779599583 | AI68: 0.02843408471 | AJ68: 0.0285511615 | AK68: 0.02828596837 | AL68: 0.02792788221 | AM68: 0.02781123611 | AN68: 0.02745022821 | AO68: 0.02715322401 | AP68: 0.02684903382 | AQ68: 0.02654245643 | AR68: =MAX(AQ23*(1-AQ$3*$A23),0) -> 0.02639759962 | AS68: 0.02641090858 | AT68: 0.02643558981 | AU68: 0.02646938388 | AV68: 0.02654964998 | AW68: 0.02658785694 | AX68: 0.02667885682 | AY68: 0.02662766227 | AZ68: 0.02658381746 | BA68: 0.02654088944
C69: 18 | D69: 0.01458740589 | E69: 0.02042260484 | F69: 0.02230479537 | G69: 0.01803323527 | H69: 0.02461238028 | I69: 0.02217649706 | J69: 0.02627129378 | K69: 0.0276319981 | L69: 0.02705507047 | M69: 0.02783976143 | N69: 0.02878015544 | O69: 0.03149630318 | P69: 0.0282692398 | Q69: 0.0263964667 | R69: 0.02550230069 | S69: 0.02248446335 | T69: 0.01234502083 | U69: 0.0155231407 | V69: 0.01860809254 | W69: 0.01733307637 | X69: 0.01996492137 | Y69: 0.0211524221 | Z69: 0.02390415059 | AA69: 0.02371628307 | AB69: 0.02540203167 | AC69: 0.02563413064 | AD69: 0.02592511581 | AE69: 0.02127511156 | AF69: 0.02189633531 | AG69: 0.01975020961 | AH69: 0.0246508137 | AI69: 0.02541296992 | AJ69: 0.02601657384 | AK69: 0.02614102887 | AL69: 0.02590541457 | AM69: 0.02557377182 | AN69: 0.02547772607 | AO69: 0.02515491733 | AP69: 0.02488879933 | AQ69: 0.02459856391 | AR69: 0.02432816772 | AS69: 0.02420648331 | AT69: 0.02421987983 | AU69: 0.02425169936 | AV69: 0.02428775891 | AW69: 0.02436930783 | AX69: 0.02440518113 | AY69: 0.02449339398 | AZ69: 0.02444748063 | BA69: 0.02440827234
C70: 19 | D70: 0.01121618898 | E70: 0.01458740589 | F70: 0.01941833337 | G70: 0.01843772914 | H70: 0.01684062084 | I70: 0.02196152327 | J70: 0.0200214149 | K70: 0.02352355687 | L70: 0.02384175827 | M70: 0.02383918266 | N70: 0.02532275925 | O70: 0.0266126619 | P70: 0.02803764316 | Q70: 0.02545507448 | R70: 0.02364361986 | S70: 0.0228326251 | T70: 0.02015562931 | U70: 0.01108536252 | V70: 0.01397083699 | W70: 0.01677343269 | X70: 0.01564838937 | Y70: 0.01805803952 | Z70: 0.01916272215 | AA70: 0.02167718178 | AB70: 0.02153547765 | AC70: 0.02307970616 | AD70: 0.02329118828 | AE70: 0.02357490236 | AF70: 0.01935319996 | AG70: 0.01993332721 | AH70: 0.01798767722 | AI70: 0.02246576113 | AJ70: 0.0231786489 | AK70: 0.02374527989 | AL70: 0.02386534998 | AM70: 0.02364674154 | AN70: 0.02335399616 | AO70: 0.02327377979 | AP70: 0.02298460555 | AQ70: 0.02273120201 | AR70: 0.02247600342 | AS70: 0.022239263 | AT70: 0.02212924493 | AU70: 0.02214997928 | AV70: 0.0221837686 | AW70: 0.02222399136 | AX70: 0.02229937351 | AY70: 0.02233647713 | AZ70: 0.02241821247 | BA70: 0.02237714581
C71: 20 | D71: 0.009834689714 | E71: 0.01121618898 | F71: 0.01387007744 | G71: 0.01597099789 | H71: 0.01717123859 | I71: 0.01498031682 | J71: 0.01976990765 | K71: 0.0178739731 | L71: 0.02020602522 | M71: 0.02091587497 | N71: 0.0216069533 | O71: 0.0233582983 | P71: 0.02360504233 | Q71: 0.02516453358 | R71: 0.02272717582 | S71: 0.02110127089 | T71: 0.02040356179 | U71: 0.01804299569 | V71: 0.009946368784 | W71: 0.01255536346 | X71: 0.01509769335 | Y71: 0.01411164386 | Z71: 0.016310895 | AA71: 0.0173256097 | AB71: 0.01962492214 | AC71: 0.01950786098 | AD71: 0.02090684954 | AE71: 0.02111547577 | AF71: 0.02138013557 | AG71: 0.01756471264 | AH71: 0.01809941119 | AI71: 0.01634362917 | AJ71: 0.02042877316 | AK71: 0.02109161902 | AL71: 0.02161297232 | AM71: 0.02171896146 | AN71: 0.02152931387 | AO71: 0.02126978275 | AP71: 0.02120209933 | AQ71: 0.02092949645 | AR71: 0.02070801753 | AS71: 0.0204851629 | AT71: 0.0202706204 | AU71: 0.02017815803 | AV71: 0.02020139527 | AW71: 0.02023883387 | AX71: 0.02027624777 | AY71: 0.02034892568 | AZ71: 0.02038369537 | BA71: 0.02045915718
C72: 21 | D72: 0.009682731274 | E72: 0.009834689714 | F72: 0.01066463844 | G72: 0.01136254124 | H72: 0.01484195318 | I72: 0.01523725286 | J72: 0.01345467892 | K72: 0.01760812525 | L72: 0.01529910387 | M72: 0.01766524772 | N72: 0.01890447925 | O72: 0.01989239827 | P72: 0.02065982966 | Q72: 0.02113204704 | R72: 0.02241103104 | S72: 0.02023270618 | T72: 0.01880991856 | U72: 0.01822051057 | V72: 0.01615025775 | W72: 0.008917422717 | X72: 0.01127436487 | Y72: 0.01358316061 | Z72: =MAX(Y27*(1-Y$3*$A27),0) -> 0.01271660296 | AA72: 0.01471258237 | AB72: 0.01564839611 | AC72: 0.01773520365 | AD72: 0.01762928571 | AE72: 0.01890864626 | AF72: 0.0191039739 | AG72: 0.0193580337 | AH72: 0.0159107005 | AI72: 0.0164060203 | AJ72: 0.01482650909 | AK72: 0.01854548509 | AL72: 0.01915222492 | AM72: 0.01962260253 | AN72: 0.01972742313 | AO72: 0.01956171481 | AP72: 0.01933087926 | AQ72: 0.01926111937 | AR72: 0.01902210639 | AS72: 0.01882975091 | AT72: 0.01862832007 | AU72: 0.01844042915 | AV72: 0.01836029487 | AW72: 0.01838747645 | AX72: 0.01842222274 | AY72: 0.01845982247 | AZ72: 0.01852681963 | BA72: 0.01855926539
C73: 22 | D73: 0.01033923292 | E73: 0.009682731274 | F73: 0.009351073721 | G73: 0.008700667621 | H73: 0.01053573729 | I73: 0.01313708715 | J73: 0.01365314418 | K73: 0.01195436084 | L73: 0.0150164215 | M73: 0.01332750309 | N73: 0.01592023665 | O73: 0.01736965674 | P73: 0.0175426679 | Q73: 0.01844640119 | R73: 0.01877048925 | S73: 0.01989957935 | T73: 0.01798956672 | U73: 0.0167550052 | V73: 0.01626855143 | W73: 0.01444388517 | X73: 0.007988005996 | Y73: 0.0101187531 | Z73: 0.01221077464 | AA73: 0.01144258972 | AB73: 0.01325587985 | AC73: 0.01410695257 | AD73: 0.01598783963 | AE73: 0.01590489508 | AF73: 0.01706503534 | AG73: 0.01725435189 | AH73: 0.01749181047 | AI73: 0.01438650238 | AJ73: 0.01484652467 | AK73: 0.01342675345 | AL73: 0.01679893032 | AM73: 0.01734579308 | AN73: 0.01777961489 | AO73: 0.01788068251 | AP73: 0.01773512566 | AQ73: 0.01751852561 | AR73: 0.01746334829 | AS73: 0.01725491872 | AT73: 0.01708162094 | AU73: 0.016905554 | AV73: 0.01673870908 | AW73: 0.01667146455 | AX73: 0.0166967689 | AY73: 0.0167315363 | AZ73: 0.01676643805 | BA73: 0.01682800346
C74: 23 | D74: 0.008651729558 | E74: 0.01033923292 | F74: 0.009206587763 | G74: 0.007607997202 | H74: 0.00805553616 | I74: 0.009309793332 | J74: 0.0117527497 | K74: 0.01211101699 | L74: 0.01016986925 | M74: 0.01304994706 | N74: 0.01198773845 | O74: 0.01460820962 | P74: 0.01528784445 | Q74: 0.01563546913 | R74: 0.01635628626 | S74: 0.01663815018 | T74: 0.01766314238 | U74: 0.01599725702 | V74: 0.01493515516 | W74: 0.01452574712 | X74: 0.01291731958 | Y74: 0.007157614416 | Z74: 0.009081700872 | AA74: 0.01096957264 | AB74: 0.01029282867 | AC74: 0.01193055237 | AD74: 0.01269611974 | AE74: 0.0144001562 | AF74: 0.01433041159 | AG74: 0.01538733422 | AH74: 0.01556518129 | AI74: 0.01579006566 | AJ74: 0.01299758692 | AK74: 0.0134228963 | AL74: 0.0121423397 | AM74: 0.01518950501 | AN74: 0.01569090716 | AO74: 0.0160888849 | AP74: 0.01618461985 | AQ74: 0.01604627703 | AR74: 0.01585767618 | AS74: 0.01581536534 | AT74: 0.0156277389 | AU74: 0.01547691944 | AV74: 0.01532077689 | AW74: 0.01517458642 | AX74: 0.01511419931 | AY74: 0.01514005238 | AZ74: 0.01517226031 | BA74: 0.01520455366
C75: 24 | D75: 0.007269650908 | E75: 0.008651729558 | F75: 0.009830806269 | G75: 0.0074625219 | H75: 0.00702969471 | I75: 0.007101959361 | J75: 0.008310998379 | K75: 0.01040240516 | L75: 0.01026901235 | M75: 0.008809455555 | N75: 0.01170735734 | O75: 0.01097998678 | P75: 0.01282322265 | Q75: 0.01359315843 | R75: 0.01383103142 | S75: 0.01446425532 | T75: 0.01473413139 | U75: 0.01567117376 | V75: 0.01422762885 | W75: 0.01330553293 | X75: 0.01296181018 | Y75: 0.01154911706 | Z75: 0.006410010833 | AA75: 0.008140626109 | AB75: 0.009845569557 | AC75: 0.009243246689 | AD75: 0.01071347046 | AE75: 0.01140975603 | AF75: 0.0129456148 | AG75: 0.01289266495 | AH75: 0.01384993626 | AI75: 0.01401954417 | AJ75: 0.01423395656 | AK75: 0.01172527204 | AL75: 0.01211196146 | AM75: 0.01095468956 | AN75: 0.01370991257 | AO75: 0.01416743221 | AP75: 0.01453066463 | AQ75: 0.01461126167 | AR75: 0.01449319352 | AS75: 0.01432982775 | AT75: 0.01429268957 | AU75: 0.01412877309 | AV75: 0.01399554248 | AW75: 0.01385893978 | AX75: 0.01372723152 | AY75: 0.01367523751 | AZ75: 0.0136992462 | BA75: 0.01372896954
C76: 25 | D76: 0.007873147123 | E76: 0.007269650908 | F76: 0.008226285045 | G76: 0.007939336814 | H76: 0.006881667849 | I76: 0.006183703024 | J76: 0.006326780211 | K76: 0.007340285423 | L76: 0.008791605997 | M76: 0.008867079417 | N76: 0.007882849173 | O76: 0.01070425689 | P76: 0.009613240924 | Q76: 0.01137498513 | R76: 0.01199651508 | S76: 0.01220304324 | T76: 0.01278000549 | U76: 0.0130432745 | V76: 0.01390688724 | W76: 0.01264757822 | X76: 0.01184724904 | Y76: 0.01156398785 | Z76: 0.01032068632 | AA76: 0.005733405685 | AB76: 0.007290694424 | AC76: 0.008822420158 | AD76: 0.008282193664 | AE76: 0.009606892128 | AF76: 0.01023478969 | AG76: 0.01162128126 | AH76: 0.01157911544 | AI76: 0.01244736531 | AJ76: 0.01261040787 | AK76: 0.01281279467 | AL76: 0.01055716609 | AM76: 0.01090353198 | AN76: 0.009866147565 | AO76: 0.01235197845 | AP76: 0.01276765168 | AQ76: 0.01308986133 | AR76: 0.0131687466 | AS76: 0.01306875747 | AT76: 0.01292249118 | AU76: 0.01289419223 | AV76: 0.01274918712 | AW76: 0.01263316772 | AX76: 0.01251035942 | AY76: 0.01239385647 | AZ76: 0.01234746995 | BA76: 0.01236966947
C77: 26 | D77: 0.006175925365 | E77: 0.007873147123 | F77: 0.006912169428 | G77: 0.00663373436 | H77: 0.007315555974 | I77: 0.006048047148 | J77: 0.005504119488 | K77: 0.005582988303 | L77: 0.006195531039 | M77: 0.0075816567 | N77: 0.007926215459 | O77: 0.007202322595 | P77: 0.009362010629 | Q77: 0.008519479991 | R77: 0.01002951239 | S77: 0.01057468468 | T77: 0.01077226902 | U77: 0.01130322787 | V77: 0.0115645721 | W77: 0.01235161369 | X77: 0.0112515889 | Y77: 0.01056048238 | Z77: 0.01032507457 | AA77: 0.009223289304 | AB77: 0.005130335385 | AC77: 0.006527345987 | AD77: 0.007898180453 | AE77: 0.007420190537 | AF77: 0.008609983037 | AG77: 0.009179671861 | AH77: 0.01042807159 | AI77: 0.01039735839 | AJ77: 0.01118644498 | AK77: 0.01134145016 | AL77: 0.01152626955 | AM77: 0.009495549206 | AN77: 0.009811498183 | AO77: 0.008881185882 | AP77: 0.01112188922 | AQ77: 0.01149170216 | AR77: 0.01178736062 | AS77: 0.0118642476 | AT77: 0.01177513337 | AU77: 0.01164804991 | AV77: 0.01162517152 | AW77: 0.01149826717 | AX77: 0.01139408799 | AY77: 0.01128550126 | AZ77: 0.01118090968 | BA77: 0.01113953246
C78: 27 | D78: 0.005335161185 | E78: 0.006175925365 | F78: 0.007485989015 | G78: 0.00556579216 | H78: 0.006107675233 | I78: 0.006423589036 | J78: 0.005378841589 | K78: 0.004852837163 | L78: 0.004706116774 | M78: 0.005336023089 | N78: 0.006770177479 | O78: 0.00723680235 | P78: 0.006292587971 | Q78: 0.008288989861 | R78: 0.007504745091 | S78: 0.008832639594 | T78: 0.009326317259 | U78: 0.00951891892 | V78: 0.0100128936 | W78: 0.01026223418 | X78: 0.01097870434 | Y78: 0.0100208379 | Z78: 0.009420951709 | AA78: 0.009219204857 | AB78: 0.008245947842 | AC78: 0.004589168552 | AD78: 0.005838403294 | AE78: 0.007069900924 | AF78: 0.006644325761 | AG78: 0.007715553612 | AH78: 0.008229891614 | AI78: 0.009355548778 | AJ78: 0.009335912024 | AK78: 0.01005199907 | AL78: 0.01019374207 | AM78: 0.01035812593 | AN78: 0.008537062822 | AO78: 0.00882429186 | AP78: 0.007989780115 | AQ78: 0.01000173499 | AR78: 0.0103392816 | AS78: 0.01061054183 | AT78: 0.01068064986 | AU78: 0.01060472209 | AV78: 0.01049265311 | AW78: 0.01047553771 | AX78: 0.01036160209 | AY78: 0.01026970286 | AZ78: 0.01017229128 | BA78: 0.0100784412
C79: 28 | D79: 0.004690260358 | E79: 0.005335161185 | F79: 0.005872227296 | G79: 0.006018927788 | H79: 0.005120346104 | I79: 0.005358150943 | J79: 0.005708018645 | K79: 0.004738274191 | L79: 0.004085275445 | M79: 0.004048036426 | N79: 0.004759965838 | O79: =MAX(N34*(1-N$3*$A34),0) -> 0.006176922571 | P79: 0.006316072081 | Q79: 0.005566094857 | R79: 0.00729487682 | S79: 0.006603050714 | T79: 0.007782813521 | U79: 0.008233780102 | V79: 0.008424780359 | W79: 0.00887749025 | X79: 0.009113598383 | Y79: 0.009769332421 | Z79: 0.008931824618 | AA79: 0.00840461328 | AB79: 0.00823511286 | AC79: 0.007369686562 | AD79: 0.004101184173 | AE79: 0.005221516177 | AF79: 0.006325069861 | AG79: 0.005948835221 | AH79: 0.006911155757 | AI79: 0.007376947207 | AJ79: 0.008393087505 | AK79: 0.008381807114 | AL79: 0.009026872459 | AM79: 0.009152619395 | AN79: 0.009304424275 | AO79: 0.007671386529 | AP79: 0.007931680824 | AQ79: 0.0071788474 | AR79: 0.008990948266 | AS79: 0.009299000305 | AT79: 0.009543785195 | AU79: 0.009610750254 | AV79: 0.009544604262 | AW79: 0.00944689319 | AX79: 0.009431868278 | AY79: 0.009331084931 | AZ79: 0.009248743797 | BA79: 0.009161401911
C80: 29 | D80: =D36 -> 0.004153401915 | E80: =MAX(D35*(1-D$3*$A35),0) -> 0.004690260358 | F80: =MAX(E35*(1-E$3*$A35),0) -> 0.005072807278 | G80: 0.004714429981 | H80: 0.005532808825 | I80: 0.004487935117 | J80: 0.004757253769 | K80: 0.005023889284 | L80: 0.003983590675 | M80: 0.003509497112 | N80: 0.003607283527 | O80: 0.004339772722 | P80: 0.0053853717 | Q80: 0.005581575768 | R80: 0.004893956144 | S80: 0.006412454176 | T80: 0.005812911904 | U80: 0.006864896489 | V80: 0.007280877456 | W80: 0.007462891105 | X80: 0.007876955898 | Y80: 0.008102648045 | Z80: 0.008700132004 | AA80: 0.007961327782 | AB80: 0.007500925164 | AC80: 0.007353563369 | AD80: 0.006580240257 | AE80: 0.003664609737 | AF80: 0.00466728613 | AG80: 0.005657990767 | AH80: 0.00532392363 | AI80: 0.006189423498 | AJ80: 0.006612224204 | AK80: 0.007528750307 | AL80: 0.007520418518 | AM80: 0.008097819307 | AN80: 0.008214352185 | AO80: 0.008353633451 | AP80: 0.006889384117 | AQ80: 0.007120457729 | AR80: 0.006447757637 | AS80: 0.008079341755 | AT80: 0.008356889334 | AU80: 0.00858037175 | AV80: 0.008642554911 | AW80: 0.008585943568 | AX80: 0.008498396196 | AY80: 0.008486518469 | AZ80: 0.008396216518 | BA80: 0.008322474983
C81: 30 | D81: =D37 -> 0.003740050218 | E81: =MAX(D36*(1-D$3*$A36),0) -> 0.004153401915 | F81: =MAX(E36*(1-E$3*$A36),0) -> 0.004459619129 | G81: =MAX(F36*(1-F$3*$A36),0) -> 0.004066587541 | H81: =MAX(G36*(1-G$3*$A36),0) -> 0.004330216837 | I81: =MAX(H36*(1-H$3*$A36),0) -> 0.004845078375 | J81: =MAX(I36*(1-I$3*$A36),0) -> 0.003981267655 | K81: =MAX(J36*(1-J$3*$A36),0) -> 0.004183443529 | L81: =MAX(K36*(1-K$3*$A36),0) -> 0.004218156804 | M81: =MAX(L36*(1-L$3*$A36),0) -> 0.003417742725 | N81: =MAX(M36*(1-M$3*$A36),0) -> 0.003124136637 | O81: =MAX(N36*(1-N$3*$A36),0) -> 0.003286504677 | P81: =MAX(O36*(1-O$3*$A36),0) -> 0.003779663973 | Q81: =MAX(P36*(1-P$3*$A36),0) -> 0.004754594456 | R81: =MAX(Q36*(1-Q$3*$A36),0) -> 0.004902967657 | S81: =MAX(R36*(1-R$3*$A36),0) -> 0.004297972537 | T81: =MAX(S36*(1-S$3*$A36),0) -> 0.005639959863 | U81: =MAX(T36*(1-T$3*$A36),0) -> 0.005122701442 | V81: =MAX(U36*(1-U$3*$A36),0) -> 0.006065011153 | W81: =MAX(V36*(1-V$3*$A36),0) -> 0.006443915205 | X81: =MAX(W36*(1-W$3*$A36),0) -> 0.006615995887 | Y81: =MAX(X36*(1-X$3*$A36),0) -> 0.006997106208 | Z81: =MAX(Y36*(1-Y$3*$A36),0) -> 0.007209620575 | AA81: =MAX(Z36*(1-Z$3*$A36),0) -> 0.007748063872 | AB81: =MAX(AA36*(1-AA$3*$A36),0) -> 0.007099099754 | AC81: =MAX(AB36*(1-AB$3*$A36),0) -> 0.006692103255 | AD81: =MAX(AC36*(1-AC$3*$A36),0) -> 0.006560058392 | AE81: =MAX(AD36*(1-AD$3*$A36),0) -> 0.00587456605 | AF81: =MAX(AE36*(1-AE$3*$A36),0) -> 0.003272736116 | AG81: =MAX(AF36*(1-AF$3*$A36),0) -> 0.004171352385 | AH81: =MAX(AG36*(1-AG$3*$A36),0) -> 0.005059155903 | AI81: =MAX(AH36*(1-AH$3*$A36),0) -> 0.00476373897 | AJ81: =MAX(AI36*(1-AI$3*$A36),0) -> 0.005542927157 | AK81: =MAX(AJ36*(1-AJ$3*$A36),0) -> 0.005926095044 | AL81: =MAX(AK36*(1-AK$3*$A36),0) -> 0.006749108176 | AM81: =MAX(AL36*(1-AL$3*$A36),0) -> 0.006740489931 | AN81: =MAX(AM36*(1-AM$3*$A36),0) -> 0.007261314742 | AO81: =MAX(AN36*(1-AN$3*$A36),0) -> 0.00736850559 | AP81: =MAX(AO36*(1-AO$3*$A36),0) -> 0.007495537586 | AQ81: =MAX(AP36*(1-AP$3*$A36),0) -> 0.006179389111 | AR81: =MAX(AQ36*(1-AQ$3*$A36),0) -> 0.006389772511 | AS81: =MAX(AR36*(1-AR$3*$A36),0) -> 0.005788998573 | AT81: =MAX(AS36*(1-AS$3*$A36),0) -> 0.007254530975 | AU81: =MAX(AT36*(1-AT$3*$A36),0) -> 0.007506813243 | AV81: =MAX(AU36*(1-AU$3*$A36),0) -> 0.00770933396 | AW81: =MAX(AV36*(1-AV$3*$A36),0) -> 0.0077678055 | AX81: =MAX(AW36*(1-AW$3*$A36),0) -> 0.007717244218 | AY81: =MAX(AX36*(1-AX$3*$A36),0) -> 0.00764003043 | AZ81: =MAX(AY36*(1-AY$3*$A36),0) -> 0.007629697908 | BA81: =MAX(AZ36*(1-AZ$3*$A36),0) -> 0.007548830225
C82: 31 | D82: 0.00329031815 | E82: 0.003740050218 | F82: 0.003949160434 | G82: 0.003569718779 | H82: 0.003732194143 | I82: 0.003788543889 | J82: 0.004294461702 | K82: 0.003498014097 | L82: 0.003507873785 | M82: 0.003614329772 | N82: 0.003039298065 | O82: 0.002844294765 | P82: 0.002859319309 | Q82: 0.00333379311 | R82: 0.004172612312 | S82: 0.004301891659 | T82: 0.003776744812 | U82: 0.004965796281 | V82: 0.004521780373 | W82: 0.005363088212 | X82: 0.005707652421 | Y82: 0.005871890046 | Z82: 0.006220539551 | AA82: 0.006415070926 | AB82: 0.00690289569 | AC82: 0.006328055254 | AD82: 0.005964709453 | AE82: 0.005851362264 | AF82: 0.005241724217 | AG82: 0.002922393188 | AH82: 0.003726561722 | AI82: 0.004522832288 | AJ82: 0.004262404566 | AK82: 0.004963405738 | AL82: 0.005307755647 | AM82: 0.006043857093 | AN82: 0.006038896327 | AO82: 0.006507905179 | AP82: 0.006605828505 | AQ82: 0.006717227577 | AR82: 0.005540464823 | AS82: 0.005731972089 | AT82: 0.005193515712 | AU82: 0.006510966916 | AV82: 0.006738945481 | AW82: 0.006923071612 | AX82: 0.006975871634 | AY82: 0.006931804681 | AZ82: 0.006862760509 | BA82: 0.006853766886
C83: 32 | D83: 0.002805001025 | E83: 0.00329031815 | F83: 0.003556135102 | G83: 0.00315641808 | H83: 0.003273568821 | I83: 0.003262376549 | J83: 0.003355158654 | K83: 0.003769911657 | L83: 0.002929262115 | M83: 0.003001847923 | N83: 0.003210776143 | O83: 0.002765083566 | P83: 0.002471978666 | Q83: 0.002519621913 | R83: 0.002922975458 | S83: 0.003657673857 | T83: 0.00377672511 | U83: 0.00332229164 | V83: 0.004379371431 | W83: 0.003994934879 | X83: 0.004746154668 | Y83: 0.005061305053 | Z83: 0.005215684754 | AA83: 0.005530169997 | AB83: 0.005710308788 | AC83: 0.006147763379 | AD83: 0.005635252483 | AE83: 0.005315614471 | AF83: 0.00521639104 | AG83: 0.004676454239 | AH83: 0.002608467059 | AI83: 0.003328562242 | AJ83: 0.00404328728 | AK83: 0.003813418838 | AL83: 0.004441611464 | AM83: 0.004748940482 | AN83: 0.005410020261 | AO83: 0.005407581236 | AP83: 0.005829204187 | AQ83: 0.005914749741 | AR83: 0.006017464935 | AS83: 0.004965791475 | AT83: 0.005137908866 | AU83: 0.004657173999 | AV83: 0.005839922362 | AW83: 0.006046434526 | AX83: 0.006211901528 | AY83: 0.00626048803 | AZ83: 0.006221222339 | BA83: 0.006159514255
C84: 33 | D84: 0.00238655185 | E84: 0.002805001025 | F84: 0.003128518386 | G84: 0.002838053279 | H84: 0.002892245058 | I84: 0.002858894708 | J84: 0.00288673771 | K84: 0.002942777528 | L84: 0.003152780432 | M84: 0.002503467233 | N84: 0.002663905379 | O84: 0.002919007154 | P84: 0.002400598925 | Q84: 0.002176227586 | R84: 0.002207056677 | S84: 0.002559871938 | T84: 0.003208207294 | U84: 0.003319268303 | V84: 0.002927337204 | W84: 0.003865703904 | X84: 0.003532283579 | Y84: 0.004205027706 | Z84: 0.004491789923 | AA84: 0.004632792005 | AB84: 0.004918314462 | AC84: 0.005081172518 | AD84: 0.005469862095 | AE84: 0.005017554735 | AF84: 0.004734575691 | AG84: 0.004649724092 | AH84: 0.004170405915 | AI84: 0.002327819612 | AJ84: 0.002973020228 | AK84: 0.003614209614 | AL84: 0.003409521532 | AM84: 0.003970489415 | AN84: 0.004247170454 | AO84: 0.004840202816 | AP84: 0.004839393599 | AQ84: 0.005214825985 | AR84: 0.005293981258 | AS84: 0.005388639432 | AT84: 0.004447283399 | AU84: 0.004603328329 | AV84: 0.004173582271 | AW84: 0.005235276317 | AX84: 0.005420637572 | AY84: 0.005570056302 | AZ84: 0.005613877389 | BA84: 0.005578901017
C85: 34 | D85: 0.002093274588 | E85: 0.00238655185 | F85: 0.002667066489 | G85: 0.002493059159 | H85: 0.002598447376 | I85: 0.002523586771 | J85: 0.002527572309 | K85: 0.002529724904 | L85: 0.002457791839 | M85: 0.002691011947 | N85: 0.002219317329 | O85: 0.002420103112 | P85: 0.002531554319 | Q85: 0.002111376484 | R85: 0.001904467742 | S85: 0.001931089081 | T85: 0.002243245751 | U85: 0.002817058849 | V85: 0.002922059989 | W85: 0.002581700052 | X85: 0.003415018186 | Y85: 0.0031268294 | Z85: 0.003728627181 | AA85: 0.003986315026 | AB85: 0.00411661223 | AC85: 0.004372590616 | AD85: 0.004516884147 | AE85: 0.004865968942 | AF85: 0.00446512684 | AG85: 0.004216501761 | AH85: 0.00414289007 | AI85: 0.003718412414 | AJ85: 0.002077338322 | AK85: 0.002655187315 | AL85: 0.003228569008 | AM85: 0.00304518898 | AN85: 0.003547847394 | AO85: 0.003796498349 | AP85: 0.004327837662 | AQ85: 0.004325563001 | AR85: 0.004663457654 | AS85: 0.004736645787 | AT85: 0.004821799226 | AU85: 0.003981113655 | AV85: 0.004121763529 | AW85: 0.003738232541 | AX85: 0.004689381648 | AY85: 0.004856354519 | AZ85: 0.004990445566 | BA85: 0.005029917304
C86: 35 | D86: 0.001844260537 | E86: 0.002093274588 | F86: 0.002269194346 | G86: 0.002122160986 | H86: 0.002280754311 | I86: 0.002265182472 | J86: 0.002229233432 | K86: 0.002213047985 | L86: 0.002110013893 | M86: 0.002095098726 | N86: 0.002383087735 | O86: 0.002014764089 | P86: 0.002096651357 | Q86: 0.002224433408 | R86: 0.001845974958 | S86: 0.001664783712 | T86: 0.001690681212 | U86: 0.0019679611 | V86: 0.002477730754 | W86: 0.002574767662 | X86: 0.002278706861 | Y86: 0.003020389591 | Z86: 0.002770174555 | AA86: 0.003306142142 | AB86: 0.003539058869 | AC86: 0.003656624193 | AD86: 0.00388355327 | AE86: 0.004014632351 | AF86: 0.004326381009 | AG86: 0.003973002685 | AH86: 0.003753554774 | AI86: 0.003690604943 | AJ86: 0.003315368874 | AK86: 0.001853628769 | AL86: 0.002369787322 | AM86: 0.002881030678 | AN86: 0.002718646403 | AO86: 0.003168596778 | AP86: 0.003391640341 | AQ86: 0.003864946357 | AR86: 0.003864850691 | AS86: 0.004168877868 | AT86: 0.004234715629 | AU86: 0.004312635805 | AV86: 0.003561557642 | AW86: 0.0036886282 | AX86: 0.003345545299 | AY86: 0.004197592326 | AZ86: 0.004347251851 | BA86: 0.004467472718
C87: 36 | D87: 0.001613045848 | E87: 0.001844260537 | F87: 0.001990338847 | G87: 0.001802875822 | H87: 0.00193988733 | I87: 0.00198643119 | J87: 0.001999272826 | K87: 0.001950130748 | L87: 0.001843429092 | M87: 0.001796310778 | N87: 0.00185342637 | O87: 0.002161893664 | P87: 0.001743637988 | Q87: 0.001840534952 | R87: 0.001942987307 | S87: 0.001612148339 | T87: 0.001456188756 | U87: 0.001481860025 | V87: 0.001729361459 | W87: 0.002181315957 | X87: 0.002270589514 | Y87: 0.002013628703 | Z87: 0.002673550771 | AA87: 0.002454142317 | AB87: 0.0029326239 | AC87: 0.003140838902 | AD87: 0.003244784607 | AE87: 0.003448654 | AF87: 0.003566273253 | AG87: 0.003846124287 | AH87: 0.003533647567 | AI87: 0.003340807764 | AJ87: 0.003287667656 | AK87: 0.002955733516 | AL87: 0.001652928627 | AM87: 0.002112826523 | AN87: 0.002569825352 | AO87: 0.002425900344 | AP87: 0.002828214821 | AQ87: 0.003026235922 | AR87: 0.00345028589 | AS87: 0.00345196316 | AT87: 0.003723878761 | AU87: 0.003784264447 | AV87: 0.003854802581 | AW87: 0.003184534351 | AX87: 0.003298297218 | AY87: 0.002992098823 | AZ87: 0.003754300495 | BA87: 0.003888317564
C88: 37 | D88: 0.001429894188 | E88: 0.001613045848 | F88: 0.001753569939 | G88: 0.001578955187 | H88: 0.001646705654 | I88: 0.001688017421 | J88: 0.001751756141 | K88: 0.001747434295 | L88: 0.001622266342 | M88: 0.001567323453 | N88: 0.001587443532 | O88: 0.001680192 | P88: 0.001868984641 | Q88: 0.001529183021 | R88: 0.001606144691 | S88: 0.001695289133 | T88: 0.001408850544 | U88: 0.001275171424 | V88: 0.001301029594 | W88: 0.001521126903 | X88: 0.00192192629 | Y88: 0.002004703827 | Z88: 0.001780848839 | AA88: 0.00236646867 | AB88: 0.002174968318 | AC88: 0.002600347644 | AD88: 0.002784620147 | AE88: 0.002878852511 | AF88: 0.003060775821 | AG88: 0.003167570686 | AH88: 0.003417757514 | AI88: 0.003142289527 | AJ88: 0.002973428824 | AK88: 0.002928457227 | AL88: 0.002633379264 | AM88: 0.001472396886 | AN88: 0.001882939991 | AO88: 0.002291087572 | AP88: 0.002163400271 | AQ88: 0.002521305859 | AR88: 0.0026992033 | AS88: 0.003079005622 | AT88: 0.003080812045 | AU88: 0.003324880162 | AV88: 0.003379593484 | AW88: 0.003443752457 | AX88: 0.002845082238 | AY88: 0.002947289677 | AZ88: 0.002673798881 | BA88: 0.003355057528
C89: 38 | D89: 0.001207707983 | E89: 0.001429894188 | F89: 0.001533725118 | G89: 0.001389036191 | H89: 0.00144102551 | I89: 0.001431599151 | J89: 0.001487332221 | K89: 0.001529757948 | L89: 0.001451714907 | M89: 0.001377493805 | N89: 0.001383633067 | O89: 0.001438039834 | P89: 0.001451005673 | Q89: 0.00163754701 | R89: 0.001333182855 | S89: 0.001400079582 | T89: 0.001480142069 | U89: 0.001232596431 | V89: 0.001118559115 | W89: 0.001143356622 | X89: 0.001339062446 | Y89: 0.001695386207 | Z89: 0.001771412676 | AA89: 0.00157492096 | AB89: 0.002095424211 | AC89: 0.001926836258 | AD89: 0.002303382833 | AE89: 0.002468381847 | AF89: 0.002552783766 | AG89: 0.00271616422 | AH89: 0.002812272903 | AI89: 0.003036533706 | AJ89: 0.002794265245 | AK89: 0.002646218745 | AL89: 0.002606774579 | AM89: 0.002343690079 | AN89: 0.001311034451 | AO89: 0.00167722788 | AP89: 0.002041379662 | AQ89: 0.001926947293 | AR89: 0.002246876588 | AS89: 0.002406648335 | AT89: 0.002745566047 | AU89: 0.002748328098 | AV89: 0.002966759123 | AW89: 0.003016600146 | AX89: 0.003074004273 | AY89: 0.002540104294 | AZ89: 0.002631475502 | BA89: 0.002387389978
C90: 39 | D90: 0.001148319542 | E90: 0.001207707983 | F90: 0.00135957985 | G90: 0.001213066761 | H90: 0.001266679812 | I90: 0.001251646827 | J90: 0.001260326648 | K90: 0.001297708058 | L90: 0.001269183692 | M90: 0.001231071845 | N90: 0.001214778141 | O90: 0.001252513442 | P90: 0.001240564694 | Q90: 0.001270110938 | R90: 0.001426307929 | S90: 0.001161051909 | T90: 0.001221269967 | U90: 0.001293790948 | V90: 0.001080242607 | W90: 0.000982127792 | X90: 0.001005620202 | Y90: 0.001180192208 | Z90: 0.001496785989 | AA90: 0.001565202387 | AB90: 0.001393309609 | AC90: 0.001854728414 | AD90: 0.001705271732 | AE90: 0.002039975743 | AF90: 0.002186851676 | AG90: 0.002263346204 | AH90: 0.002409350817 | AI90: 0.002496363776 | AJ90: 0.00269782992 | AK90: 0.002484578395 | AL90: 0.002353457995 | AM90: 0.002317959741 | AN90: 0.002084997947 | AO90: 0.001166774351 | AP90: 0.001493110678 | AQ90: 0.001816670748 | AR90: 0.00171571071 | AS90: 0.002001601264 | AT90: 0.002144154531 | AU90: 0.002447134574 | AV90: 0.002450179173 | AW90: 0.002645810539 | AX90: 0.002690379941 | AY90: 0.002742107994 | AZ90: 0.002265955806 | BA90: 0.002347563362
C91: 40 | D91: =D47 -> 0.0104848901 | E91: =E47 -> 0.0104848901 | F91: =F47 -> 0.0104848901 | G91: 0.0104848901 | H91: 0.0104848901 | I91: 0.0104848901 | J91: 0.0104848901 | K91: 0.0104848901 | L91: 0.0104848901 | M91: 0.0104848901 | N91: 0.0104848901 | O91: 0.0104848901 | P91: 0.0104848901 | Q91: 0.0104848901 | R91: 0.0104848901 | S91: 0.0104848901 | T91: 0.0104848901 | U91: 0.0104848901 | V91: 0.0104848901 | W91: 0.0104848901 | X91: 0.0104848901 | Y91: 0.0104848901 | Z91: 0.0104848901 | AA91: 0.0104848901 | AB91: 0.0104848901 | AC91: 0.0104848901 | AD91: 0.0104848901 | AE91: 0.0104848901 | AF91: 0.0104848901 | AG91: 0.0104848901 | AH91: 0.0104848901 | AI91: 0.0104848901 | AJ91: 0.0104848901 | AK91: 0.0104848901 | AL91: 0.0104848901 | AM91: 0.0104848901 | AN91: 0.0104848901 | AO91: 0.0104848901 | AP91: 0.0104848901 | AQ91: 0.0104848901 | AR91: 0.0104848901 | AS91: 0.0104848901 | AT91: 0.0104848901 | AU91: 0.0104848901 | AV91: 0.0104848901 | AW91: 0.0104848901 | AX91: 0.0104848901 | AY91: 0.0104848901 | AZ91: 0.0104848901 | BA91: 0.0104848901

Sheet 32 (hidden)
D1: 2011 | E1: 2012 | F1: 2013 | G1: 2014 | H1: 2015 | I1: 2016 | J1: 2017 | K1: 2018 | L1: 2019 | M1: 2020 | N1: 2021 | O1: 2022 | P1: 2023 | Q1: 2024 | R1: 2025 | S1: 2026 | T1: 2027 | U1: 2028 | V1: 2029 | W1: 2030 | X1: 2031 | Y1: 2032 | Z1: 2033 | AA1: 2034 | AB1: 2035 | AC1: 2036 | AD1: 2037 | AE1: 2038 | AF1: 2039 | AG1: 2040 | AH1: 2041 | AI1: 2042 | AJ1: 2043 | AK1: 2044 | AL1: 2045 | AM1: 2046 | AN1: 2047 | AO1: 2048 | AP1: 2049 | AQ1: 2050 | AR1: 2051 | AS1: 2052 | AT1: 2053 | AU1: 2054 | AV1: 2055 | AW1: 2056 | AX1: 2057 | AY1: 2058 | AZ1: 2059 | BA1: 2060
C2: sales (age 0 pop) | D2: 0.04655165372 | E2: 0.04607736438 | F2: 0.05110384503 | G2: 0.05450701417 | H2: 0.06435413374 | I2: 0.06810244452 | J2: 0.07595307191 | K2: 0.07985883276 | L2: 0.1020904557 | M2: 0.09161354026 | N2: 0.1040752641 | O2: 0.1097114268 | P2: 0.06478343052 | Q2: 0.06593240714 | R2: 0.06650664146 | S2: 0.06581942161 | T2: 0.06427720143 | U2: 0.06262197439 | V2: 0.06158864473 | W2: 0.06008013269 | X2: 0.05879004198 | Y2: 0.05756725556 | Z2: 0.0564716126 | AA2: 0.05579822849 | AB2: 0.0554875148 | AC2: 0.05523424378 | AD2: 0.05504768244 | AE2: 0.05497244391 | AF2: 0.05483920817 | AG2: 0.05483925484 | AH2: 0.05457128216 | AI2: 0.05434857281 | AJ2: 0.05414840825 | AK2: 0.05388467364 | AL2: 0.0539465997 | AM2: 0.05370252707 | AN2: 0.05359733173 | AO2: 0.05328998216 | AP2: 0.05325806177 | AQ2: 0.0533109048 | AR2: 0.0533109048 | AS2: 0.0533109048 | AT2: 0.0533109048 | AU2: 0.0533109048 | AV2: 0.0533109048 | AW2: 0.0533109048 | AX2: 0.0533109048 | AY2: 0.0533109048 | AZ2: 0.0533109048 | BA2: 0.0533109048
C3: scrappage k factor | D3: 0 | E3: 0 | F3: 1.031953772 | G3: 0.6018185159 | H3: 1.181746512 | I3: 1.182195257 | J3: 1.24631381 | K3: 1.614635651 | L3: 1.682992787 | M3: 1.628959501 | N3: 0.6480057633 | O3: 0.9879845532 | P3: 1.000173053 | Q3: 0.9829401837 | R3: 0.9585414973 | S3: 0.9310185408 | T3: 0.9030047476 | U3: 0.8757060696 | V3: 0.8507067661 | W3: 0.8312053146 | X3: 0.8119416472 | Y3: 0.7971076477 | Z3: 0.7898517375 | AA3: 0.7816389747 | AB3: 0.7731943198 | AC3: 0.7671664394 | AD3: 0.764815263 | AE3: 0.7609813977 | AF3: 0.7576350256 | AG3: 0.7543589049 | AH3: 0.7511461965 | AI3: 0.7468889153 | AJ3: 0.742283148 | AK3: 0.7424942498 | AL3: 0.7425061886 | AM3: 0.7411325791 | AN3: 0.7393094701 | AO3: 0.7382483549 | AP3: 0.7357115083 | AQ3: 0.7339809551 | AR3: 0.7327188665 | AS3: 0.7316599718 | AT3: 0.7308564782 | AU3: 0.7302718207 | AV3: 0.7300281153 | AW3: 0.7299474047 | AX3: 0.7301180722 | AY3: 0.7303884986 | AZ3: 0.7312411066
A5: default
A6: scrappage | C6: age | D6: 2011 | E6: 2012 | F6: 2013 | G6: 2014 | H6: 2015 | I6: 2016 | J6: 2017 | K6: 2018 | L6: 2019 | M6: 2020 | N6: 2021 | O6: 2022 | P6: 2023 | Q6: 2024 | R6: 2025 | S6: 2026 | T6: 2027 | U6: 2028 | V6: 2029 | W6: 2030 | X6: 2031 | Y6: 2032 | Z6: 2033 | AA6: 2034 | AB6: 2035 | AC6: 2036 | AD6: 2037 | AE6: 2038 | AF6: 2039 | AG6: 2040 | AH6: 2041 | AI6: 2042 | AJ6: 2043 | AK6: 2044 | AL6: 2045 | AM6: 2046 | AN6: 2047 | AO6: 2048 | AP6: 2049 | AQ6: 2050 | AR6: 2051 | AS6: 2052 | AT6: 2053 | AU6: 2054 | AV6: 2055 | AW6: 2056 | AX6: 2057 | AY6: 2058 | AZ6: 2059 | BA6: 2060
A7: 0.008599997 | C7: 0 | D7: 0.04655165372 | E7: =E51 -> 0.04607736438 | F7: =F51 -> 0.05110384503 | G7: 0.05450701417 | H7: 0.06435413374 | I7: 0.06810244452 | J7: 0.07595307191 | K7: 0.07985883276 | L7: 0.1020904557 | M7: 0.09161354026 | N7: 0.1040752641 | O7: 0.1097114268 | P7: 0.06478343052 | Q7: 0.06593240714 | R7: 0.06650664146 | S7: 0.06581942161 | T7: 0.06427720143 | U7: 0.06262197439 | V7: 0.06158864473 | W7: 0.06008013269 | X7: 0.05879004198 | Y7: 0.05756725556 | Z7: 0.0564716126 | AA7: 0.05579822849 | AB7: 0.0554875148 | AC7: 0.05523424378 | AD7: 0.05504768244 | AE7: 0.05497244391 | AF7: 0.05483920817 | AG7: 0.05483925484 | AH7: 0.05457128216 | AI7: 0.05434857281 | AJ7: 0.05414840825 | AK7: 0.05388467364 | AL7: 0.0539465997 | AM7: 0.05370252707 | AN7: 0.05359733173 | AO7: 0.05328998216 | AP7: 0.05325806177 | AQ7: 0.0533109048 | AR7: =AR51 -> 0.0533109048 | AS7: 0.0533109048 | AT7: 0.0533109048 | AU7: 0.0533109048 | AV7: 0.0533109048 | AW7: 0.0533109048 | AX7: 0.0533109048 | AY7: 0.0533109048 | AZ7: 0.0533109048 | BA7: 0.0533109048
A8: 0.008700013 | C8: 1 | D8: 0.03486416959 | E8: =E52*(1-E$51-E$91)/SUM(E$52:E$90) -> 0.04444125352 | F8: =F52*(1-F$51-F$91)/SUM(F$52:F$90) -> 0.04375297118 | G8: 0.05121806376 | H8: 0.05272624629 | I8: 0.06405668702 | J8: 0.06706717752 | K8: 0.07453662837 | L8: 0.07767555231 | M8: 0.1000958416 | N8: 0.08783261238 | O8: 0.09487813118 | P8: 0.1063712508 | Q8: 0.06274848166 | R8: 0.06378116553 | S8: 0.06434595533 | T8: 0.06373446831 | U8: 0.06233531451 | V8: 0.06077857533 | W8: 0.05985670038 | X8: 0.05847750787 | Y8: 0.05730453037 | Z8: 0.05619876008 | AA8: 0.05521453121 | AB8: 0.05460479756 | AC8: 0.05433581258 | AD8: 0.05414180174 | AE8: 0.05398137188 | AF8: 0.05394459943 | AG8: 0.05383005188 | AH8: 0.05385660255 | AI8: 0.05361293998 | AJ8: 0.05341212366 | AK8: 0.0532344929 | AL8: 0.05298215522 | AM8: 0.05307145833 | AN8: 0.0528341075 | AO8: 0.05275297767 | AP8: 0.05242518074 | AQ8: 0.05239702428 | AR8: 0.05246505081 | AS8: 0.05246927439 | AT8: 0.05248153031 | AU8: 0.05248795049 | AV8: 0.05250681582 | AW8: 0.05251426606 | AX8: 0.05252888163 | AY8: 0.05253758884 | AZ8: 0.0525767879 | BA8: 0.05256190863
